Workbook

Sheet README
B3: FRAME Report: 2019/20 Budget
B5: All pages of the FRAME report containing the tables of financial and statistical data are included in this file.
B7: In most cases, formulas have been left intact to show how statistics such as percentages and average costs per pupil are derived.
B10: Each worksheet tab is numbered to match the corresponding page found in the published document so for example to see page 15, click the worksheet tab - 15 - .
B13: This file is unprotected for data analysis by the user. Data can also be copied to other files or additional data copied to this one. In cases of dispute however, the published FRAME reports and the corresponding files located on the Manitoba Govenment web site remain the final authority.
B17: The cover page, table of contents, forward and introduction as well as the graphs (pie charts, bar charts) are not included in this file. The full report is available in a PDF version on the same site as this file at:
B20: http://www.edu.gov.mb.ca/k12/finance/frame_report/index.html

Sheet i
A1: =IF(Lang=1,BA1,BB1) -> PROVINCIAL CONTRIBUTION TO PUBLIC EDUCATION | BA1: PROVINCIAL CONTRIBUTION TO PUBLIC EDUCATION | BB1: CONTRIBUTION PROVINCIALE À L'ÉDUCATION PUBLIQUE
A3: The total cost of public education in Manitoba includes direct expenditures for the operation of schools (e.g. educator and administrator salaries, teaching supplies, pupil transportation, utilities, building maintenance) and capital expenditures for school building construction and major building repairs and renovations. Also included are provincial expenditures for pensions for retired teachers and the provincial education tax credit programs for homeowners, tenants and farmers which results in reduced property tax bills. The total provincial contribution to public education accounts for 70.7% of the total of these expenditures.
I7: .
C12: 2019/2020 ($ millions)
C14: Total Expenditure | D14: Provincial | E14: Provincial
C15: on Public Education | D15: Contribution | E15: Contribution as %
A17: 1 | B17: FRAME Operating Fund | C17: 2505.538573 | D17: 1472.542222 | E17: =D17/C17 -> 0.5877148482
A18: 2 | B18: School division capital (net transfers to capital fund) | C18: 21.063219 | D18: 0 | E18: 0
A19: 3 | B19: Provincial Capital Grant Funding and Other | C19: 119.308128 | D19: 119.308128 | E19: =D19/C19 -> 1
A20: 4 | B20: Manitoba Education Property Tax Credit (1) | C20: n/a | D20: 138.478968 | E20: 1 | M20: =IF('- 3 -'!$B$65536=0,"","check updated file with W drive") -> 
A21: 5 | B21: Farmland School Tax Rebate | C21: n/a | D21: 45.698 | E21: 1 | M21: =IF('- 43 -'!$I$63299=0,"","check updated file with W drive") -> 
A22: 6 | B22: School Tax Assistance for Tenants and Homeowners (55+) | C22: n/a | D22: 0.94 | E22: 1
A23: 7 | B23: Teachers' Retirement Allowances Fund | C23: 314.765 | D23: 314.765 | E23: =D23/C23 -> 1
B25: Adjusted Total | C25: =SUM(C17:C23) -> 2960.67492 | D25: =SUM(D17:D23) -> 2091.732318 | E25: =D25/C25 -> 0.7065052309
A27: (1) | B27: The portion of the Education Property Tax Credit (EPTC) delivered through the income tax system. Total EPTC is
B28: $349.6 million. See page 41 for more information.
A30: Source:
A32: 1 | B32: FRAME 2019/2020 Budget, page 3 and 41
A33: 2 | B33: FRAME 2019/2020 Budget, page 44
A34: 3 | B34: 2019/2020 Funding Announcement, February 2019
A35: 4 | B35: Manitoba 2019 Estimates of Expenditure for the fiscal year ending March 31, 2020
A36: 5 | B36: =+B35 -> Manitoba 2019 Estimates of Expenditure for the fiscal year ending March 31, 2020
A37: 6 | B37: =+B36 -> Manitoba 2019 Estimates of Expenditure for the fiscal year ending March 31, 2020
A38: 7 | B38: Department of Finance
C45: `

Sheet - 1 -
U3: YEAR | V3: 1968 | W3: 1969 | X3: 1970 | Y3: 1971 | Z3: 1972 | AA3: 1973 | AB3: 1974 | AC3: 1975 | AD3: 1976 | AE3: 1977 | AF3: 1978 | AG3: 1979 | AH3: 1980 | AI3: 1981 | AJ3: 1982 | AK3: 1983 | AL3: 1984 | AM3: 1985 | AN3: 1986 | AO3: 1987 | AP3: 1988 | AQ3: 1989 | AR3: 1990 | AS3: 1991 | AT3: 1992 | AU3: 1993 | AV3: 1994 | AW3: 1995 | AX3: 1996 | AY3: 1997 | AZ3: 1998 | BA3: 1999 | BB3: 2000 | BC3: 2001 | BD3: 2002 | BE3: 2003 | BF3: 2004 | BG3: 2005 | BH3: 2006 | BI3: 2007 | BJ3: 2008 | BK3: 2009 | BL3: 2010 | BM3: 2011 | BN3: 2012 | BO3: =+BN3+1 -> 2013 | BP3: =+BO3+1 -> 2014 | BQ3: 2015 | BR3: =+BQ3+1 -> 2016 | BS3: 2017 | BT3: 2018
U4: ENROLMENT | V4: 232.2 | W4: 245.5 | X4: 247.5 | Y4: 245.6 | Z4: 239.7 | AA4: 231.4 | AB4: 227.5 | AC4: 225.6 | AD4: 223.2 | AE4: 219.2 | AF4: 213.4 | AG4: 206.7 | AH4: 202.4 | AI4: 199.1 | AJ4: 199 | AK4: 198.2 | AL4: 198 | AM4: 197.6 | AN4: 197.7 | AO4: 198.3 | AP4: 197.7 | AQ4: 196.7 | AR4: 196.4 | AS4: 195.9 | AT4: 195.6 | AU4: 195.2 | AV4: 194.2 | AW4: 194.7 | AX4: 194.7 | AY4: 194.3 | AZ4: 194.7 | BA4: =199-7.2 -> 191.8 | BB4: 191.9 | BC4: 190.7 | BD4: 188.8 | BE4: 188.1 | BF4: 186.3 | BG4: 184.3 | BH4: 182 | BI4: 181.2 | BJ4: 179.892 | BK4: 179.593 | BL4: 179.784 | BM4: 181.147 | BN4: 181.561 | BO4: 181.278 | BP4: 181.901 | BQ4: 183.13 | BR4: 185.225 | BS4: 186.872 | BT4: =+'- 8 -'!B48/1000 -> 188.54

Sheet - 2 -
S24: - 2 -
H101: TOTAL | I101: CPI
H102: EXPENSES | I102: 2002 = 100 | J102: CPI ADJUSTED | K102: Actual | L102: Adjusted
C103: Total Expenses | D103: - Wpg Tech Coll | E103: + Pine Falls | H103: CURRENT | J103: CONSTANT | K103: $millions | L103: $millions
C105: 1173479619 | D105: 5177094 | E105: 1262055 | F105: Actual | G105: 98/99 | H105: =C105-D105+E105 -> 1169564580 | I105: 92.55347956 | J105: =H105*(100/I105) -> 1263663544 | K105: =H105/1000000 -> 1169.56458 | L105: =J105/1000000 -> 1263.663544
C106: 1217264871 | D106: 4980674 | E106: 1311494 | F106: Actual | G106: 99/00 | H106: 1213595691 | I106: 94.70620092 | J106: 1281432133 | K106: 1213.595691 | L106: 1281.432133
C107: 1267547075 | D107: 5350449 | E107: 1339216 | F107: Actual | G107: 00/01 | H107: 1263535842 | I107: 97.48849174 | J107: 1296087179 | K107: 1263.535842 | L107: 1296.087179
C108: 1319006844 | D108: 8710460 | E108: 1285933.47 | F108: Actual | G108: 01/02 | H108: 1311582318 | I108: 98.85594368 | J108: 1326761213 | K108: 1311.582318 | L108: 1326.761213
C109: 1368981369 | D109: 9203863 | E109: 1342032 | F109: Actual | G109: 02/03 | H109: 1361119538 | I109: 101.2997563 | J109: 1343655294 | K109: 1361.119538 | L109: 1343.655294
C110: 1428062065 | D110: 9972592 | E110: 1333610 | F110: Actual | G110: 03/04 | H110: 1419423083 | I110: 102.3558083 | J110: 1386753822 | K110: 1419.423083 | L110: 1386.753822
C111: 1467949861 | E111: 1450110 | F111: Actual | G111: 04/05 | H111: =C111+E111 -> 1469399971 | I111: 105.2703967 | J111: 1395833983 | K111: 1469.399971 | L111: 1395.833983
F112: Actual | G112: 05/06 | H112: 1536007876 | I112: 107.7583333 | J112: 1425419110 | K112: 1536.007876 | L112: 1425.41911
F113: Actual | G113: 06/07 | H113: 1603516300 | I113: 109.8333333 | J113: 1459954143 | K113: 1603.5163 | L113: 1459.954143
F114: Actual | G114: 07/08 | H114: 1677944959 | I114: 111.85 | J114: 1500174304 | K114: =H114/1000000 -> 1677.944959 | L114: =J114/1000000 -> 1500.174304
F115: Actual | G115: 08/09 | H115: 1752304867 | I115: 114 | J115: 1537109532 | K115: 1752.304867 | L115: 1537.109532
F116: Actual | G116: 09/10 | H116: 1818421619 | I116: 114.6333333 | J116: 1586293939 | K116: 1818.421619 | L116: 1586.293939
F117: Actual | G117: 10/11 | H117: 1875139076 | I117: 116.6583333 | J117: 1607376878 | K117: 1875.139076 | L117: 1607.376878
F118: Actual | G118: 11/12 | H118: 1945942424 | I118: 119.4166667 | J118: 1629540062 | K118: 1945.942424 | L118: 1629.540062
F119: Actual | G119: 12/13 | H119: 2017420276 | I119: 121.4833333 | J119: =H119*(100/I119) -> 1660656010 | K119: =H119/1000000 -> 2017.420276 | L119: =J119/1000000 -> 1660.65601
F120: Actual | G120: 13/14 | H120: 2086402489 | I120: 124.4 | J120: 1677172419 | K120: 2086.402489 | L120: 1677.172419
F121: Actual | G121: 14/15 | H121: 2156918416 | I121: 125.7833333 | J121: 1714788723 | K121: 2156.918416 | L121: 1714.788723
F122: Actual | G122: 15/16 | H122: 2235012397 | I122: 127.725 | J122: 1749862906 | K122: 2235.012397 | L122: 1749.862906
F123: Actual | G123: 16/17 | H123: 2313048846 | I123: 129.325 | J123: 1788555071 | K123: 2313.048846 | L123: 1788.555071
F124: Actual | G124: 17/18 | H124: 2377682744 | I124: 132.1333333 | J124: 1799457173 | K124: 2377.682744 | L124: 1799.457173
F125: Budget | G125: 18/19 | H125: 2431888152 | I125: 134.4166667 | J125: 1809216232 | K125: 2431.888152 | L125: 1809.216232
F126: Budget | G126: 19/20 | H126: =+'- 3 -'!B48 -> 2468696522 | I126: 136.0296667 | J126: 1814822151 | K126: 2468.696522 | L126: 1814.822151

Sheet - 3 -
A2: =IF(Lang=1,BA2,BB2) -> RECONCILIATION OF EXPENSES | BA2: RECONCILIATION OF EXPENSES | BB2: CONCILIATION DES DÉPENSES
A3: =IF(Lang=1,BA3,BB3) -> OPERATING FUND 2019/2020 BUDGET | BA3: ="OPERATING FUND "&YEAR&"/"&YEAR+1&" BUDGET" -> OPERATING FUND 2019/2020 BUDGET | BB3: ="FONDS DE FONCTIONNEMENT – BUDGET "&YEAR&" - "&YEAR+1 -> FONDS DE FONCTIONNEMENT – BUDGET 2019 - 2020
C6: LESS OPERATING FUND TRANSFERS (2) | D6: EXPENSES NET OF TRANSFERS (3) | E6: LESS NON K-12 EDUCATION & SERVICES (4) | F6: TOTAL EXPENSES FOR PER PUPIL COSTS (5)
B8: TOTAL EXPENSES (1)
A9: DIVISION / DISTRICT
A11: BEAUTIFUL PLAINS | B11: 20899011 | C11: =-Data!L11 -> -79800 | D11: =B11+C11 -> 20819211 | E11: =-'- 15 -'!H11-'- 16 -'!B11 -> -25330 | F11: =D11+E11 -> 20793881
A12: BORDER LAND | B12: 35314379 | C12: =-Data!L12 -> -459150 | D12: =B12+C12 -> 34855229 | E12: =-'- 15 -'!H12-'- 16 -'!B12 -> -674943 | F12: =D12+E12 -> 34180286
A13: BRANDON | B13: 105795100 | C13: =-Data!L13 -> -103500 | D13: 105691600 | E13: =-'- 15 -'!H13-'- 16 -'!B13 -> -346600 | F13: 105345000
A14: DSFM | B14: 96846491 | C14: =-Data!L14 -> -1342574 | D14: 95503917 | E14: =-'- 15 -'!H14-'- 16 -'!B14 -> -1935970 | F14: 93567947
A15: EVERGREEN | B15: 21110015 | C15: =-Data!L15 -> -89000 | D15: 21021015 | E15: =-'- 15 -'!H15-'- 16 -'!B15 -> -78400 | F15: 20942615
A16: FLIN FLON | B16: 14913300 | C16: =-Data!L16 -> 0 | D16: 14913300 | E16: =-'- 15 -'!H16-'- 16 -'!B16 -> -107940 | F16: 14805360
A17: FORT LA BOSSE | B17: 18820355 | C17: =-Data!L17 -> -83250 | D17: 18737105 | E17: =-'- 15 -'!H17-'- 16 -'!B17 -> -285520 | F17: 18451585
A18: FRONTIER | B18: 141769566 | C18: =-Data!L18 -> -5351771 | D18: 136417795 | E18: =-'- 15 -'!H18-'- 16 -'!B18 -> -4208050 | F18: 132209745
A19: GARDEN VALLEY | B19: 51484500 | C19: =-Data!L19 -> -474000 | D19: 51010500 | E19: =-'- 15 -'!H19-'- 16 -'!B19 -> -91500 | F19: 50919000
A20: HANOVER | B20: 91526000 | C20: =-Data!L20 -> -2435800 | D20: 89090200 | E20: =-'- 15 -'!H20-'- 16 -'!B20 -> -142400 | F20: 88947800
A21: INTERLAKE | B21: 38241000 | C21: =-Data!L21 -> -468500 | D21: 37772500 | E21: =-'- 15 -'!H21-'- 16 -'!B21 -> -300000 | F21: 37472500
A22: KELSEY | B22: 20559662 | C22: =-Data!L22 -> -20500 | D22: 20539162 | E22: =-'- 15 -'!H22-'- 16 -'!B22 -> -648075 | F22: 19891087
A23: LAKESHORE | B23: 16456224 | C23: =-Data!L23 -> -75700 | D23: 16380524 | E23: =-'- 15 -'!H23-'- 16 -'!B23 -> -549000 | F23: 15831524
A24: LORD SELKIRK | B24: 58750940 | C24: =-Data!L24 -> -182000 | D24: 58568940 | E24: =-'- 15 -'!H24-'- 16 -'!B24 -> -783690 | F24: 57785250
A25: LOUIS RIEL | B25: 193361505 | C25: =-Data!L25 -> -961000 | D25: 192400505 | E25: =-'- 15 -'!H25-'- 16 -'!B25 -> -2647734 | F25: 189752771
A26: MOUNTAIN VIEW | B26: 41379438 | C26: =-Data!L26 -> -6600 | D26: 41372838 | E26: =-'- 15 -'!H26-'- 16 -'!B26 -> -100209 | F26: 41272629
A27: MYSTERY LAKE | B27: 41960427 | C27: =-Data!L27 -> -10300 | D27: 41950127 | E27: =-'- 15 -'!H27-'- 16 -'!B27 -> -50886 | F27: 41899241
A28: PARK WEST | B28: 28945161 | C28: =-Data!L28 -> -155000 | D28: 28790161 | E28: =-'- 15 -'!H28-'- 16 -'!B28 -> -310077 | F28: 28480084
A29: PEMBINA TRAILS | B29: 177327936 | C29: =-Data!L29 -> -2046000 | D29: 175281936 | E29: =-'- 15 -'!H29-'- 16 -'!B29 -> -670268 | F29: 174611668
A30: PINE CREEK | B30: 15445569 | C30: =-Data!L30 -> -35084 | D30: 15410485 | E30: =-'- 15 -'!H30-'- 16 -'!B30 -> -14790 | F30: 15395695
A31: PORTAGE LA PRAIRIE | B31: 39971492 | C31: =-Data!L31 -> -52000 | D31: 39919492 | E31: =-'- 15 -'!H31-'- 16 -'!B31 -> -59500 | F31: 39859992
A32: PRAIRIE ROSE | B32: 31543405 | C32: =-Data!L32 -> -289100 | D32: 31254305 | E32: =-'- 15 -'!H32-'- 16 -'!B32 -> -311754 | F32: 30942551
A33: PRAIRIE SPIRIT | B33: 28681572 | C33: =-Data!L33 -> -102600 | D33: 28578972 | E33: =-'- 15 -'!H33-'- 16 -'!B33 -> -28393 | F33: 28550579
A34: RED RIVER VALLEY | B34: 32172303 | C34: =-Data!L34 -> -508184 | D34: 31664119 | E34: =-'- 15 -'!H34-'- 16 -'!B34 -> -58518 | F34: 31605601
A35: RIVER EAST TRANSCONA | B35: 194120323 | C35: =-Data!L35 -> -58800 | D35: 194061523 | E35: =-'- 15 -'!H35-'- 16 -'!B35 -> -572788 | F35: 193488735
A36: ROLLING RIVER | B36: 24565930 | C36: =-Data!L36 -> -396000 | D36: 24169930 | E36: =-'- 15 -'!H36-'- 16 -'!B36 -> -32275 | F36: 24137655
A37: SEINE RIVER | B37: 54576000 | C37: =-Data!L37 -> -456400 | D37: 54119600 | E37: =-'- 15 -'!H37-'- 16 -'!B37 -> -435529 | F37: 53684071
A38: SEVEN OAKS | B38: 149441150 | C38: =-Data!L38 -> -1242450 | D38: 148198700 | E38: =-'- 15 -'!H38-'- 16 -'!B38 -> -3998909 | F38: 144199791
A39: SOUTHWEST HORIZON | B39: 23661900 | C39: =-Data!L39 -> -279000 | D39: 23382900 | E39: =-'- 15 -'!H39-'- 16 -'!B39 -> -159600 | F39: 23223300
A40: ST. JAMES-ASSINIBOIA | B40: 109485763 | C40: =-Data!L40 -> -458000 | D40: 109027763 | E40: =-'- 15 -'!H40-'- 16 -'!B40 -> -980756 | F40: 108047007
A41: SUNRISE | B41: 65974801 | C41: =-Data!L41 -> -814000 | D41: 65160801 | E41: =-'- 15 -'!H41-'- 16 -'!B41 -> -1349074 | F41: 63811727
A42: SWAN VALLEY | B42: 21339840 | C42: =-Data!L42 -> -62600 | D42: 21277240 | E42: =-'- 15 -'!H42-'- 16 -'!B42 -> -63985 | F42: 21213255
A43: TURTLE MOUNTAIN | B43: 13891446 | C43: =-Data!L43 -> -26000 | D43: 13865446 | E43: =-'- 15 -'!H43-'- 16 -'!B43 -> -212346 | F43: 13653100
A44: TURTLE RIVER | B44: 11538712 | C44: =-Data!L44 -> -163688 | D44: 11375024 | E44: =-'- 15 -'!H44-'- 16 -'!B44 -> -24879 | F44: 11350145
A45: WESTERN | B45: 21469206 | C45: =-Data!L45 -> -177050 | D45: 21292156 | E45: =-'- 15 -'!H45-'- 16 -'!B45 -> -473168 | F45: 20818988
A46: WINNIPEG | B46: 415356100 | C46: =-Data!L46 -> -2505150 | D46: 412850950 | E46: =-'- 15 -'!H46-'- 16 -'!B46 -> -10026700 | F46: 402824250
A48: PROVINCE | B48: =SUM(B11:B46) -> 2468696522 | C48: =SUM(C11:C46) -> -21970551 | D48: =SUM(D11:D46) -> 2446725971 | E48: =SUM(E11:E46) -> -32759556 | F48: =SUM(F11:F46) -> 2413966415
A50: WHITESHELL | B50: 3630643 | C50: =-Data!L50 -> -17896 | D50: =B50+C50 -> 3612747 | E50: =-'- 15 -'!H50-'- 16 -'!B50 -> -191000 | F50: =D50+E50 -> 3421747
A51: MITT | B51: 33211408 | C51: =-Data!L51 -> 0 | D51: =B51+C51 -> 33211408 | E51: =-'- 15 -'!H51-'- 16 -'!B51 -> -13376112 | F51: =D51+E51 -> 19835296
A53: (1) Total operating expenses as reported on the Schedule of Revenues and Expenses in each school division's budget.
A54: (2) Operating fund transfers are payments to other school divisions, organizations and individuals. These are removed to provide more accurate
A55: per pupil costs.
A56: (3) As reported on pages 10 and 13 (on a provincial basis).
A57: (4) Expenses for Adult Learning Centres and Community Education and Services (Functions 300 and 400).
A58: (5) As reported on page 4.
B64: 0
B65536: 0

Sheet - 4 -
A2: =IF(Lang=1,BA2,BB2) -> OPERATING FUND EXPENSE PER PUPIL | BA2: OPERATING FUND EXPENSE PER PUPIL | BB2: DÉPENSES DU FONDS DE FONCTIONNEMENT PAR ÉLÈVE
B7: 2018/2019 BUDGET | D7: 2019/2020 BUDGET
A9: DIVISION / DISTRICT | B9: EXPENSES (1) | C9: PER PUPIL | D9: EXPENSES (1) | E9: PER PUPIL
A11: BEAUTIFUL PLAINS | B11: 20330482 | C11: 11273 | D11: ='- 3 -'!F11 -> 20793881 | E11: =ROUND(D11/'- 7 -'!E11,0) -> 11543 | F11: =IF(B11=D11,"Check","") -> 
A12: BORDER LAND | B12: 34148587 | C12: 16028 | D12: ='- 3 -'!F12 -> 34180286 | E12: =ROUND(D12/'- 7 -'!E12,0) -> 15983 | F12: =IF(B12=D12,"Check","") -> 
A13: BRANDON | B13: 103749900 | C13: 12072 | D13: ='- 3 -'!F13 -> 105345000 | E13: =ROUND(D13/'- 7 -'!E13,0) -> 12146
A14: DSFM | B14: 91415155 | C14: 15788 | D14: ='- 3 -'!F14 -> 93567947 | E14: =ROUND(D14/'- 7 -'!E14,0) -> 16194
A15: EVERGREEN | B15: 20701807 | C15: 15346 | D15: ='- 3 -'!F15 -> 20942615 | E15: =ROUND(D15/'- 7 -'!E15,0) -> 14938
A16: FLIN FLON | B16: 14763971 | C16: 15996 | D16: ='- 3 -'!F16 -> 14805360 | E16: =ROUND(D16/'- 7 -'!E16,0) -> 15759
A17: FORT LA BOSSE | B17: 18413242 | C17: 13209 | D17: ='- 3 -'!F17 -> 18451585 | E17: =ROUND(D17/'- 7 -'!E17,0) -> 12836
A18: FRONTIER | B18: 130156756 | C18: 21215 | D18: ='- 3 -'!F18 -> 132209745 | E18: =ROUND(D18/'- 7 -'!E18,0) -> 21460
A19: GARDEN VALLEY | B19: 50237300 | C19: 11518 | D19: ='- 3 -'!F19 -> 50919000 | E19: =ROUND(D19/'- 7 -'!E19,0) -> 11722
A20: HANOVER | B20: 87089800 | C20: 11074 | D20: ='- 3 -'!F20 -> 88947800 | E20: =ROUND(D20/'- 7 -'!E20,0) -> 11200
A21: INTERLAKE | B21: 37266620 | C21: 13283 | D21: ='- 3 -'!F21 -> 37472500 | E21: =ROUND(D21/'- 7 -'!E21,0) -> 13316
A22: KELSEY | B22: 20180285 | C22: 13849 | D22: ='- 3 -'!F22 -> 19891087 | E22: =ROUND(D22/'- 7 -'!E22,0) -> 13937
A23: LAKESHORE | B23: 16415122 | C23: 15784 | D23: ='- 3 -'!F23 -> 15831524 | E23: =ROUND(D23/'- 7 -'!E23,0) -> 16726
A24: LORD SELKIRK | B24: 57640123 | C24: 15265 | D24: ='- 3 -'!F24 -> 57785250 | E24: =ROUND(D24/'- 7 -'!E24,0) -> 15227
A25: LOUIS RIEL | B25: 185014568 | C25: 12430 | D25: ='- 3 -'!F25 -> 189752771 | E25: =ROUND(D25/'- 7 -'!E25,0) -> 12714
A26: MOUNTAIN VIEW | B26: 40923091 | C26: 14417 | D26: ='- 3 -'!F26 -> 41272629 | E26: =ROUND(D26/'- 7 -'!E26,0) -> 13726
A27: MYSTERY LAKE | B27: 42666917 | C27: 14003 | D27: ='- 3 -'!F27 -> 41899241 | E27: =ROUND(D27/'- 7 -'!E27,0) -> 14023
A28: PARK WEST | B28: 28567416 | C28: 14598 | D28: ='- 3 -'!F28 -> 28480084 | E28: =ROUND(D28/'- 7 -'!E28,0) -> 14194
A29: PEMBINA TRAILS | B29: 169251624 | C29: 12527 | D29: ='- 3 -'!F29 -> 174611668 | E29: =ROUND(D29/'- 7 -'!E29,0) -> 12594
A30: PINE CREEK | B30: 15262793 | C30: 15112 | D30: ='- 3 -'!F30 -> 15395695 | E30: =ROUND(D30/'- 7 -'!E30,0) -> 14628
A31: PORTAGE LA PRAIRIE | B31: 38850998 | C31: 11966 | D31: ='- 3 -'!F31 -> 39859992 | E31: =ROUND(D31/'- 7 -'!E31,0) -> 11947
A32: PRAIRIE ROSE | B32: 30714026 | C32: 13569 | D32: ='- 3 -'!F32 -> 30942551 | E32: =ROUND(D32/'- 7 -'!E32,0) -> 13866
A33: PRAIRIE SPIRIT | B33: 28493736 | C33: 13882 | D33: ='- 3 -'!F33 -> 28550579 | E33: =ROUND(D33/'- 7 -'!E33,0) -> 14087
A34: RED RIVER VALLEY | B34: 31086178 | C34: 14330 | D34: ='- 3 -'!F34 -> 31605601 | E34: =ROUND(D34/'- 7 -'!E34,0) -> 14154
A35: RIVER EAST TRANSCONA | B35: 190309709 | C35: 11788 | D35: ='- 3 -'!F35 -> 193488735 | E35: =ROUND(D35/'- 7 -'!E35,0) -> 11881
A36: ROLLING RIVER | B36: 24074930 | C36: 14141 | D36: ='- 3 -'!F36 -> 24137655 | E36: =ROUND(D36/'- 7 -'!E36,0) -> 14046
A37: SEINE RIVER | B37: 52682176 | C37: 12352 | D37: ='- 3 -'!F37 -> 53684071 | E37: =ROUND(D37/'- 7 -'!E37,0) -> 12378
A38: SEVEN OAKS | B38: 141822090 | C38: 12625 | D38: ='- 3 -'!F38 -> 144199791 | E38: =ROUND(D38/'- 7 -'!E38,0) -> 12572
A39: SOUTHWEST HORIZON | B39: 23142828 | C39: 15296 | D39: ='- 3 -'!F39 -> 23223300 | E39: =ROUND(D39/'- 7 -'!E39,0) -> 15451
A40: ST. JAMES-ASSINIBOIA | B40: 107407529 | C40: 12861 | D40: ='- 3 -'!F40 -> 108047007 | E40: =ROUND(D40/'- 7 -'!E40,0) -> 12927
A41: SUNRISE | B41: 63714740 | C41: 14617 | D41: ='- 3 -'!F41 -> 63811727 | E41: =ROUND(D41/'- 7 -'!E41,0) -> 14356
A42: SWAN VALLEY | B42: 21227467 | C42: 15098 | D42: ='- 3 -'!F42 -> 21213255 | E42: =ROUND(D42/'- 7 -'!E42,0) -> 15411
A43: TURTLE MOUNTAIN | B43: 13531828 | C43: 14252 | D43: ='- 3 -'!F43 -> 13653100 | E43: =ROUND(D43/'- 7 -'!E43,0) -> 13729
A44: TURTLE RIVER | B44: 11264076 | C44: 16219 | D44: ='- 3 -'!F44 -> 11350145 | E44: =ROUND(D44/'- 7 -'!E44,0) -> 16226
A45: WESTERN | B45: 20263607 | C45: 11270 | D45: ='- 3 -'!F45 -> 20818988 | E45: =ROUND(D45/'- 7 -'!E45,0) -> 11163
A46: WINNIPEG | B46: 396080650 | C46: 13091 | D46: ='- 3 -'!F46 -> 402824250 | E46: =ROUND(D46/'- 7 -'!E46,0) -> 13353
A48: PROVINCE | B48: 2378862127 | C48: 13284 | D48: =SUM(D11:D46) -> 2413966415 | E48: =ROUND(D48/'- 7 -'!E48,0) -> 13374
A50: WHITESHELL | B50: 3399982 | C50: 20238 | D50: ='- 3 -'!F50 -> 3421747 | E50: =ROUND(D50/'- 7 -'!E50,0) -> 20428
A51: MITT | B51: 19101156 | C51: 13942 | D51: ='- 3 -'!F51 -> 19835296 | E51: =ROUND(D51/'- 7 -'!E51,0) -> 14128
A53: (1) Operating fund transfers (i.e. payments to other school divisions, organizations and individuals) are excluded to provide more accurate per pupil costs. Also excluded are expenditures on educational services not provided to K-12 pupils: Function 300 (Adult Learning Centres) and Function 400 (Community Education and Services).

Sheet - 5 -
S24: - 5 -
W33: .

Sheet - 6 -
B2: =IF(Lang=1,BA2,BB2) -> FRAME STUDENT STATISTICS | H2: PAGE 1 OF 2 | BA2: FRAME STUDENT STATISTICS | BB2: STATISTIQUES SUR LES ÉLÈVES (SYSTÈME COMPTABLE FRAME)
B3: =IF(Lang=1,BA3,BB3) -> ESTIMATE SEPTEMBER 30, 2019 | BA3: ="ESTIMATE SEPTEMBER 30, "&YEAR -> ESTIMATE SEPTEMBER 30, 2019 | BB3: ="PRÉVISIONS AU 30 SEPTEMBRE "&YEAR -> PRÉVISIONS AU 30 SEPTEMBRE 2019
B6: REGULAR INSTRUCTION
B7: SINGLE TRACK (1) | E7: DUAL TRACK (2)
B8: ENGLISH LANGUAGE | C8: FRANÇAIS | D8: FRENCH IMMERSION | E8: ENGLISH LANGUAGE | F8: FRANÇAIS | G8: FRENCH IMMERSION | H8: OTHER BILINGUAL
A9: DIVISION / DISTRICT
A11: BEAUTIFUL PLAINS | B11: 1801.5 | C11: 0 | D11: 0 | E11: 0 | F11: 0 | G11: 0 | H11: 0
A12: BORDER LAND | B12: 1318.67 | C12: 0 | D12: 0 | E12: 497 | F12: 0 | G12: 136 | H12: 0
A13: BRANDON | B13: 6429.5 | C13: 0 | D13: 332.5 | E13: 968 | F13: 0 | G13: 476.5 | H13: 0
A14: DSFM | B14: 0 | C14: 5744 | D14: 0 | E14: 0 | F14: 0 | G14: 0 | H14: 0
A15: EVERGREEN | B15: 1382 | C15: 0 | D15: 0 | E15: 0 | F15: 0 | G15: 0 | H15: 0
A16: FLIN FLON | B16: 563 | C16: 0 | D16: 0 | E16: 267 | F16: 0 | G16: 109.5 | H16: 0
A17: FORT LA BOSSE | B17: 1415.5 | C17: 0 | D17: 0 | E17: 0 | F17: 0 | G17: 0 | H17: 0
A18: FRONTIER | B18: 6103.7 | C18: 0 | D18: 0 | E18: 0 | F18: 0 | G18: 0 | H18: 0
A19: GARDEN VALLEY | B19: 4214 | C19: 0 | D19: 0 | E19: 0 | F19: 0 | G19: 0 | H19: 0
A20: HANOVER | B20: 7516.9 | C20: 0 | D20: 0 | E20: 0 | F20: 0 | G20: 0 | H20: 0
A21: INTERLAKE | B21: 2076.5 | C21: 0 | D21: 0 | E21: 430.5 | F21: 0 | G21: 307 | H21: 0
A22: KELSEY | B22: 812.7 | C22: 0 | D22: 0 | E22: 481 | F22: 0 | G22: 133.5 | H22: 0
A23: LAKESHORE | B23: 932.5 | C23: 0 | D23: 0 | E23: 0 | F23: 0 | G23: 0 | H23: 0
A24: LORD SELKIRK | B24: 2630.5 | C24: 0 | D24: 236 | E24: 487 | F24: 0 | G24: 110 | H24: 83.5
A25: LOUIS RIEL | B25: 9495.6 | C25: 0 | D25: 4609 | E25: 343 | F25: 0 | G25: 322 | H25: 0
A26: MOUNTAIN VIEW | B26: 2171.6 | C26: 0 | D26: 153 | E26: 367 | F26: 0 | G26: 86 | H26: 62
A27: MYSTERY LAKE | B27: 2464 | C27: 0 | D27: 0 | E27: 101 | F27: 0 | G27: 238 | H27: 0
A28: PARK WEST | B28: 2006.5 | C28: 0 | D28: 0 | E28: 0 | F28: 0 | G28: 0 | H28: 0
A29: PEMBINA TRAILS | B29: 8153.1 | C29: 0 | D29: 1279 | E29: 2593.4 | F29: 0 | G29: 1839.5 | H29: 0
A30: PINE CREEK | B30: 1040.5 | C30: 0 | D30: 0 | E30: 0 | F30: 0 | G30: 0 | H30: 0
A31: PORTAGE LA PRAIRIE | B31: 2455 | C31: 0 | D31: 0 | E31: 461.5 | F31: 0 | G31: 317 | H31: 0
A32: PRAIRIE ROSE | B32: 1935.5 | C32: 0 | D32: 129 | E32: 116 | F32: 0 | G32: 51 | H32: 0
A33: PRAIRIE SPIRIT | B33: 1570.7 | C33: 0 | D33: 0 | E33: 231 | F33: 119.5 | G33: 105.5 | H33: 0
A34: RED RIVER VALLEY | B34: 1714.5 | C34: 0 | D34: 263.5 | E34: 73.5 | F34: 158.5 | G34: 0 | H34: 0
A35: RIVER EAST TRANSCONA | B35: 9119 | C35: 0 | D35: 1371.5 | E35: 2822.5 | F35: 0 | G35: 1858.5 | H35: 397.5
A36: ROLLING RIVER | B36: 1711.6 | C36: 0 | D36: 0 | E36: 0 | F36: 0 | G36: 0 | H36: 0
A37: SEINE RIVER | B37: 2172 | C37: 0 | D37: 768.5 | E37: 609.5 | F37: 0 | G37: 787 | H37: 0
A38: SEVEN OAKS | B38: 6602.5 | C38: 0 | D38: 637.1 | E38: 2443 | F38: 0 | G38: 1367 | H38: 227.5
A39: SOUTHWEST HORIZON | B39: 1503 | C39: 0 | D39: 0 | E39: 0 | F39: 0 | G39: 0 | H39: 0
A40: ST. JAMES-ASSINIBOIA | B40: 5681.3 | C40: 0 | D40: 1413 | E40: 704.7 | F40: 0 | G40: 325 | H40: 0
A41: SUNRISE | B41: 2048.5 | C41: 0 | D41: 0 | E41: 1545 | F41: 0 | G41: 770 | H41: 81.5
A42: SWAN VALLEY | B42: 983.4 | C42: 0 | D42: 0 | E42: 209 | F42: 0 | G42: 64 | H42: 0
A43: TURTLE MOUNTAIN | B43: 966.5 | C43: 0 | D43: 0 | E43: 0 | F43: 0 | G43: 0 | H43: 0
A44: TURTLE RIVER | B44: 650.5 | C44: 0 | D44: 49 | E44: 0 | F44: 0 | G44: 0 | H44: 0
A45: WESTERN | B45: 829 | C45: 0 | D45: 0 | E45: 720.5 | F45: 0 | G45: 290.5 | H45: 0
A46: WINNIPEG | B46: 20355 | C46: 0 | D46: 1403 | E46: 4653.5 | F46: 0 | G46: 2930 | H46: 235.5
A48: PROVINCE | B48: =SUM(B11:B46) -> 122826.27 | C48: =SUM(C11:C46) -> 5744 | D48: 12644.1 | E48: 21124.6 | F48: 278 | G48: 12623.5 | H48: 1087.5
A50: WHITESHELL | B50: 167.5 | C50: 0 | D50: 0 | E50: 0 | F50: 0 | G50: 0 | H50: 0
A51: MITT | B51: 124 | C51: 0 | D51: 0 | E51: 0 | F51: 0 | G51: 0 | H51: 0
A53: (1) 90% or more of Regular Instruction enrolment is in one language program.
A54: (2) No one language program comprises 90% or more of Regular Instruction enrolment.

Sheet - 7 -
B2: =+'- 6 -'!B2 -> FRAME STUDENT STATISTICS | F2: PAGE 2 OF 2
B3: =+STATDATE -> ESTIMATE SEPTEMBER 30, 2019
B6: REGULAR INSTRUCTION (1) | E6: TOTAL
B8: SENIOR YEARS TECHNOLOGY | C8: TOTAL | E8: K-12 FTE ENROLMENT
A9: DIVISION / DISTRICT
A11: BEAUTIFUL PLAINS | B11: 0 | C11: =SUM('- 6 -'!$B11:H11,B11) -> 1801.5 | E11: =C11 -> 1801.5
A12: BORDER LAND | B12: 186.89 | C12: =SUM('- 6 -'!$B12:H12,B12) -> 2138.56 | E12: =C12 -> 2138.56
A13: BRANDON | B13: 467 | C13: =SUM('- 6 -'!$B13:H13,B13) -> 8673.5 | E13: 8673.5
A14: DSFM | B14: 34 | C14: =SUM('- 6 -'!$B14:H14,B14) -> 5778 | E14: 5778
A15: EVERGREEN | B15: 20 | C15: =SUM('- 6 -'!$B15:H15,B15) -> 1402 | E15: 1402
A16: FLIN FLON | B16: 0 | C16: =SUM('- 6 -'!$B16:H16,B16) -> 939.5 | E16: 939.5
A17: FORT LA BOSSE | B17: 22 | C17: =SUM('- 6 -'!$B17:H17,B17) -> 1437.5 | E17: 1437.5
A18: FRONTIER | B18: 57 | C18: =SUM('- 6 -'!$B18:H18,B18) -> 6160.7 | E18: 6160.7
A19: GARDEN VALLEY | B19: 130 | C19: =SUM('- 6 -'!$B19:H19,B19) -> 4344 | E19: 4344
A20: HANOVER | B20: 424.6 | C20: =SUM('- 6 -'!$B20:H20,B20) -> 7941.5 | E20: 7941.5
A21: INTERLAKE | B21: 0 | C21: =SUM('- 6 -'!$B21:H21,B21) -> 2814 | E21: 2814
A22: KELSEY | B22: 0 | C22: =SUM('- 6 -'!$B22:H22,B22) -> 1427.2 | E22: 1427.2
A23: LAKESHORE | B23: 14 | C23: =SUM('- 6 -'!$B23:H23,B23) -> 946.5 | E23: 946.5
A24: LORD SELKIRK | B24: 248 | C24: =SUM('- 6 -'!$B24:H24,B24) -> 3795 | E24: 3795
A25: LOUIS RIEL | B25: 155.4 | C25: =SUM('- 6 -'!$B25:H25,B25) -> 14925 | E25: 14925
A26: MOUNTAIN VIEW | B26: 167.4 | C26: =SUM('- 6 -'!$B26:H26,B26) -> 3007 | E26: 3007
A27: MYSTERY LAKE | B27: 185 | C27: =SUM('- 6 -'!$B27:H27,B27) -> 2988 | E27: 2988
A28: PARK WEST | B28: 0 | C28: =SUM('- 6 -'!$B28:H28,B28) -> 2006.5 | E28: 2006.5
A29: PEMBINA TRAILS | B29: 0 | C29: =SUM('- 6 -'!$B29:H29,B29) -> 13865 | E29: 13865
A30: PINE CREEK | B30: 12 | C30: =SUM('- 6 -'!$B30:H30,B30) -> 1052.5 | E30: 1052.5
A31: PORTAGE LA PRAIRIE | B31: 103 | C31: =SUM('- 6 -'!$B31:H31,B31) -> 3336.5 | E31: 3336.5
A32: PRAIRIE ROSE | B32: 0 | C32: =SUM('- 6 -'!$B32:H32,B32) -> 2231.5 | E32: 2231.5
A33: PRAIRIE SPIRIT | B33: 0 | C33: =SUM('- 6 -'!$B33:H33,B33) -> 2026.7 | E33: 2026.7
A34: RED RIVER VALLEY | B34: 23 | C34: =SUM('- 6 -'!$B34:H34,B34) -> 2233 | E34: 2233
A35: RIVER EAST TRANSCONA | B35: 716 | C35: =SUM('- 6 -'!$B35:H35,B35) -> 16285 | E35: 16285
A36: ROLLING RIVER | B36: 6.9 | C36: =SUM('- 6 -'!$B36:H36,B36) -> 1718.5 | E36: 1718.5
A37: SEINE RIVER | B37: 0 | C37: =SUM('- 6 -'!$B37:H37,B37) -> 4337 | E37: 4337
A38: SEVEN OAKS | B38: 192.5 | C38: =SUM('- 6 -'!$B38:H38,B38) -> 11469.6 | E38: 11469.6
A39: SOUTHWEST HORIZON | B39: 0 | C39: =SUM('- 6 -'!$B39:H39,B39) -> 1503 | E39: 1503
A40: ST. JAMES-ASSINIBOIA | B40: 234 | C40: =SUM('- 6 -'!$B40:H40,B40) -> 8358 | E40: 8358
A41: SUNRISE | B41: 0 | C41: =SUM('- 6 -'!$B41:H41,B41) -> 4445 | E41: 4445
A42: SWAN VALLEY | B42: 120.1 | C42: =SUM('- 6 -'!$B42:H42,B42) -> 1376.5 | E42: 1376.5
A43: TURTLE MOUNTAIN | B43: 28 | C43: =SUM('- 6 -'!$B43:H43,B43) -> 994.5 | E43: 994.5
A44: TURTLE RIVER | B44: 0 | C44: =SUM('- 6 -'!$B44:H44,B44) -> 699.5 | E44: 699.5
A45: WESTERN | B45: 25 | C45: =SUM('- 6 -'!$B45:H45,B45) -> 1865 | E45: 1865
A46: WINNIPEG | B46: 590.5 | C46: =SUM('- 6 -'!$B46:H46,B46) -> 30167.5 | E46: 30167.5
A48: PROVINCE | B48: =SUM(B11:B46) -> 4162.29 | C48: =SUM(C11:C46) -> 180490.26 | E48: =SUM(E11:E46) -> 180490.26
A50: WHITESHELL | B50: 0 | C50: =SUM('- 6 -'!$B50:H50,B50) -> 167.5 | E50: =C50 -> 167.5
A51: MITT | B51: 1280 | C51: =SUM('- 6 -'!$B51:H51,B51) -> 1404 | E51: 1404
A53: (1) Special Placement students are not reported separately. They are included in Regular Instruction Enrolment. As a result, total enrolment in Regular Instruction is equal to Total K-12 F.T.E. enrolment.

Sheet - 8 -
B2: =IF(Lang=1,BA2,BB2) -> ENROLMENTS - HEADCOUNT, FRAME AND ELIGIBLE | BA2: ENROLMENTS - HEADCOUNT, FRAME AND ELIGIBLE | BB2: INSCRIPTIONS – ÉLÈVES PRÉSENTS, SELON LE SYSTÈME COMPTABLE FRAME, ET ADMISSIBLES
B3: =IF(Lang=1,BA3,BB3) -> ACTUAL AND ESTIMATES AS OF SEPTEMBER 30 | BA3: ACTUAL AND ESTIMATES AS OF SEPTEMBER 30 | BB3: CHIFFRES RÉELS ET PRÉVISIONS AU 30 SEPTEMBRE
B5: HEADCOUNT (1) | E5: FRAME (2) | F5: ELIGIBLE (3) | G5: ELIGIBLE (3)
B6: ACTUAL SEP. 30, 2018 | E6: ESTIMATE SEP. 30, 2019 | F6: ACTUAL SEP. 30, 2018 | G6: ACTUAL SEP. 30, 2017
B8: N-12 ENROLMENT | C8: NURSERY ENROLMENT | D8: K-12 ENROLMENT | E8: K-12 FTE ENROLMENT | F8: K-12 ENROLMENT | G8: K-12 ENROLMENT
A9: DIVISION / DISTRICT
A11: BEAUTIFUL PLAINS | B11: 1896 | C11: 0 | D11: =+B11-C11 -> 1896 | E11: ='- 7 -'!E11 -> 1801.5 | F11: 1812.9 | G11: 1783.2
A12: BORDER LAND | B12: 2210 | C12: 0 | D12: =+B12-C12 -> 2210 | E12: ='- 7 -'!E12 -> 2138.56 | F12: 2040.3 | G12: 1973.3
A13: BRANDON | B13: 8922 | C13: 0 | D13: 8922 | E13: ='- 7 -'!E13 -> 8673.5 | F13: 8525.4 | G13: 8405.8
A14: DSFM | B14: 5708 | C14: 35 | D14: 5673 | E14: ='- 7 -'!E14 -> 5778 | F14: 5391.1 | G14: 5319.8
A15: EVERGREEN | B15: 1483 | C15: 0 | D15: 1483 | E15: ='- 7 -'!E15 -> 1402 | F15: 1400.4 | G15: 1362.8
A16: FLIN FLON | B16: 984 | C16: 0 | D16: 984 | E16: ='- 7 -'!E16 -> 939.5 | F16: 903.9 | G16: 893.9
A17: FORT LA BOSSE | B17: 1482 | C17: 3 | D17: 1479 | E17: ='- 7 -'!E17 -> 1437.5 | F17: 1358.5 | G17: 1320.8
A18: FRONTIER | B18: 6667 | C18: 406 | D18: 6261 | E18: ='- 7 -'!E18 -> 6160.7 | F18: 2133.6 | G18: 2200.4
A19: GARDEN VALLEY | B19: 4541 | C19: 0 | D19: 4541 | E19: ='- 7 -'!E19 -> 4344 | F19: 4370.8 | G19: 4387.5
A20: HANOVER | B20: 8218 | C20: 0 | D20: 8218 | E20: ='- 7 -'!E20 -> 7941.5 | F20: 7878.3 | G20: 7787.6
A21: INTERLAKE | B21: 2952 | C21: 0 | D21: 2952 | E21: ='- 7 -'!E21 -> 2814 | F21: 2835.8 | G21: 2780.8
A22: KELSEY | B22: 1534 | C22: 0 | D22: 1534 | E22: ='- 7 -'!E22 -> 1427.2 | F22: 1468.6 | G22: 1493.4
A23: LAKESHORE | B23: 1000 | C23: 0 | D23: 1000 | E23: ='- 7 -'!E23 -> 946.5 | F23: 938.5 | G23: 955
A24: LORD SELKIRK | B24: 3972 | C24: 0 | D24: 3972 | E24: ='- 7 -'!E24 -> 3795 | F24: 3756.1 | G24: 3815.3
A25: LOUIS RIEL | B25: 15481 | C25: 0 | D25: 15481 | E25: ='- 7 -'!E25 -> 14925 | F25: 14559.4 | G25: 14338.7
A26: MOUNTAIN VIEW | B26: 3104 | C26: 0 | D26: 3104 | E26: ='- 7 -'!E26 -> 3007 | F26: 2881.5 | G26: 2846.2
A27: MYSTERY LAKE | B27: 3095 | C27: 0 | D27: 3095 | E27: ='- 7 -'!E27 -> 2988 | F27: 2929.4 | G27: 2983.9
A28: PARK WEST | B28: 2076 | C28: 28 | D28: 2048 | E28: ='- 7 -'!E28 -> 2006.5 | F28: 1483.7 | G28: 1463.6
A29: PEMBINA TRAILS | B29: 14425 | C29: 0 | D29: 14425 | E29: ='- 7 -'!E29 -> 13865 | F29: 13661.2 | G29: 13192.7
A30: PINE CREEK | B30: 1067 | C30: 0 | D30: 1067 | E30: ='- 7 -'!E30 -> 1052.5 | F30: 1023.5 | G30: 1007.2
A31: PORTAGE LA PRAIRIE | B31: 3472 | C31: 0 | D31: 3472 | E31: ='- 7 -'!E31 -> 3336.5 | F31: 3043.2 | G31: 3109.4
A32: PRAIRIE ROSE | B32: 2323 | C32: 0 | D32: 2323 | E32: ='- 7 -'!E32 -> 2231.5 | F32: 2226 | G32: 2184.3
A33: PRAIRIE SPIRIT | B33: 2137 | C33: 0 | D33: 2137 | E33: ='- 7 -'!E33 -> 2026.7 | F33: 1996.3 | G33: 2057.8
A34: RED RIVER VALLEY | B34: 2260 | C34: 0 | D34: 2260 | E34: ='- 7 -'!E34 -> 2233 | F34: 2180.6 | G34: 2097.8
A35: RIVER EAST TRANSCONA | B35: 16672 | C35: 0 | D35: 16672 | E35: ='- 7 -'!E35 -> 16285 | F35: 15900.5 | G35: 15713.5
A36: ROLLING RIVER | B36: 1755 | C36: 0 | D36: 1755 | E36: ='- 7 -'!E36 -> 1718.5 | F36: 1578.7 | G36: 1575.6
A37: SEINE RIVER | B37: 4513 | C37: 0 | D37: 4513 | E37: ='- 7 -'!E37 -> 4337 | F37: 4330.3 | G37: 4186.1
A38: SEVEN OAKS | B38: 11705 | C38: 0 | D38: 11705 | E38: ='- 7 -'!E38 -> 11469.6 | F38: 11135.8 | G38: 10975.2
A39: SOUTHWEST HORIZON | B39: 1557 | C39: 0 | D39: 1557 | E39: ='- 7 -'!E39 -> 1503 | F39: 1485.4 | G39: 1513
A40: ST. JAMES-ASSINIBOIA | B40: 8529 | C40: 0 | D40: 8529 | E40: ='- 7 -'!E40 -> 8358 | F40: 8046.5 | G40: 7973.3
A41: SUNRISE | B41: 4617 | C41: 0 | D41: 4617 | E41: ='- 7 -'!E41 -> 4445 | F41: 4396.4 | G41: 4402
A42: SWAN VALLEY | B42: 1441 | C42: 0 | D42: 1441 | E42: ='- 7 -'!E42 -> 1376.5 | F42: 1354.5 | G42: 1369.5
A43: TURTLE MOUNTAIN | B43: 1031 | C43: 0 | D43: 1031 | E43: ='- 7 -'!E43 -> 994.5 | F43: 991.5 | G43: 969
A44: TURTLE RIVER | B44: 740 | C44: 0 | D44: 740 | E44: ='- 7 -'!E44 -> 699.5 | F44: 708.2 | G44: 693.8
A45: WESTERN | B45: 1878 | C45: 0 | D45: 1878 | E45: ='- 7 -'!E45 -> 1865 | F45: 1779.1 | G45: 1700.4
A46: WINNIPEG | B46: 33093 | C46: 1734 | D46: 31359 | E46: ='- 7 -'!E46 -> 30167.5 | F46: 29496.1 | G46: 29671.7
A48: PROVINCE | B48: =SUM(B11:B46) -> 188540 | C48: 2206 | D48: 186334 | E48: 180490.26 | F48: 172002 | G48: 170504.3
A50: WHITESHELL | B50: 204 | C50: 17 | D50: =+B50-C50 -> 187 | E50: ='- 7 -'!E50 -> 167.5 | F50: 176.5 | G50: 154
A51: MITT | B51: 0 | C51: 0 | D51: 0 | E51: ='- 7 -'!E51 -> 1404
A53: (1) Pupils taught in schools, whether or not they are counted for grant purposes.
A54: (2) The total number of pupils enrolled in schools adjusted for full time equivalence (FTE). Full time equivalent means pupils are counted on the basis of time attending school - eg. Kindergarten as 1/2. This total is the same as reported on page 7.
A56: (3) Provincially supported pupils (actual September 30, 2018 for 2019/20 and actual September 30, 2017 for 2018/19).

Sheet - 9 -
B2: =IF(Lang=1,BA2,BB2) -> PUPIL / TEACHER RATIOS | BA2: PUPIL / TEACHER RATIOS | BB2: RAPPORTS ÉLÈVES-ENSEIGNANT
B3: =STATDATE -> ESTIMATE SEPTEMBER 30, 2019
B7: FRAME PUPIL / TEACHER RATIOS
B8: REGULAR INSTRUCTION (1) | C8: EDUCATOR (2)
A9: DIVISION / DISTRICT
A11: BEAUTIFUL PLAINS | B11: 16.40859823 | C11: 13.77925654
A12: BORDER LAND | B12: 13.83017526 | C12: 11.26120955
A13: BRANDON | B13: 16.96627675 | C13: 12.82701608
A14: DSFM | B14: 14.78505629 | C14: 11.8207856
A15: EVERGREEN | B15: 16.00456621 | C15: 12.51227131
A16: FLIN FLON | B16: 15.593361 | C16: 11.67080745
A17: FORT LA BOSSE | B17: 15.25037131 | C17: 13.09317789
A18: FRONTIER | B18: 15.15249151 | C18: 12.03261719
A19: GARDEN VALLEY | B19: 18.48589302 | C19: 14.54448053
A20: HANOVER | B20: 17.87901301 | C20: 14.41406285
A21: INTERLAKE | B21: 16.0790812 | C21: 12.18181818
A22: KELSEY | B22: 15.42918919 | C22: 11.40847322
A23: LAKESHORE | B23: 14.56153846 | C23: 11.26115407
A24: LORD SELKIRK | B24: 15.31786075 | C24: 11.92458759
A25: LOUIS RIEL | B25: 17.53221581 | C25: 13.64558953
A26: MOUNTAIN VIEW | B26: 16.34256894 | C26: 13.02306646
A27: MYSTERY LAKE | B27: 15.67023285 | C27: 12.40194247
A28: PARK WEST | B28: 14.16619599 | C28: 11.65959672
A29: PEMBINA TRAILS | B29: 17.32605218 | C29: 13.820498
A30: PINE CREEK | B30: 14.66285874 | C30: 11.88862532
A31: PORTAGE LA PRAIRIE | B31: 16.41768278 | C31: 12.7666006
A32: PRAIRIE ROSE | B32: 14.27337853 | C32: 11.50317027
A33: PRAIRIE SPIRIT | B33: 14.99371162 | C33: 12.3745268
A34: RED RIVER VALLEY | B34: 16.18467783 | C34: 12.76437636
A35: RIVER EAST TRANSCONA | B35: 17.72381968 | C35: 13.99848711
A36: ROLLING RIVER | B36: 15.54922186 | C36: 12.69202363
A37: SEINE RIVER | B37: 17.936311 | C37: 13.6576917
A38: SEVEN OAKS | B38: 17.12596309 | C38: 13.89378816
A39: SOUTHWEST HORIZON | B39: 13.88324404 | C39: 11.74585808
A40: ST. JAMES-ASSINIBOIA | B40: 17.74145617 | C40: 13.47890595
A41: SUNRISE | B41: 16.35092882 | C41: 12.64940239
A42: SWAN VALLEY | B42: 15.1130874 | C42: 12.33312427
A43: TURTLE MOUNTAIN | B43: 15.65895135 | C43: 12.54968768
A44: TURTLE RIVER | B44: 13.00669394 | C44: 11.08557845
A45: WESTERN | B45: 16.81998557 | C45: 13.93975633
A46: WINNIPEG | B46: 17.57562164 | C46: 13.3126368
A48: PROVINCE | B48: 16.7513741 | C48: 13.14898075
A50: WHITESHELL | B50: 9.517045455 | C50: 8.304412494
A51: MITT | B51: 36.94736842 | C51: 29.87234043
A53: (1) Based on object code 330 instructional-teaching personnel and FTE students in Function 100. Included are teachers in physical education, music, EAL, etc. in addition to regular classroom teachers. School-based administrative personnel and Special Placement classroom teachers are excluded.
A56: (2) Based on total instructional-teaching (excluding Community Education and Adult Learning Centres) as well as school-based administrative staff - eg. department heads, coordinators, principals and vice-principals - and K-12 FTE enrolment. Division administrators (Function 500) are excluded.

Sheet - 10 -
C2: =OPYEAR -> OPERATING FUND 2019/2020 BUDGET
C5: =IF(Lang=1,BA5,BB5) -> EXPENSE BY FUNCTION AND OBJECT | BA5: EXPENSE BY FUNCTION AND OBJECT | BB5: DÉPENSES PAR FONCTION ET PAR OBJET
C10: OBJECT
C12: SALARIES | D12: EMPLOYEE BENEFITS | E12: SERVICES | F12: SUPPLIES AND MATERIALS | G12: DEBT SERVICES | H12: BAD DEBT EXPENSE | I12: TRANSFERS | K12: TOTALS
A13: FUNCTION | N13: =IF($N$27=0,"","Variance") -> 
A15: 100 | B15: REGULAR INSTRUCTION | C15: ='- 12 -'!B22 -> 1172387671 | D15: ='- 12 -'!B23 -> 72857472 | E15: ='- 12 -'!B40 -> 33665493 | F15: ='- 12 -'!B46 -> 82443122 | K15: =SUM(C15:F15) -> 1361353758 | N15: =IF($N$27=0,"",K15-'- 12 -'!$B$51) -> 
A16: 200 | B16: STUDENT SUPPORT SERVICES | C16: ='- 12 -'!D22 -> 398053459 | D16: ='- 12 -'!D23 -> 41139716 | E16: ='- 12 -'!D40 -> 12060794 | F16: ='- 12 -'!D46 -> 5327300 | K16: =SUM(C16:F16) -> 456581269 | N16: =IF($N$27=0,"",K16-'- 12 -'!$D$51) -> 
A17: 300 | B17: ADULT LEARNING CENTRES | C17: ='- 12 -'!F22 -> 7853616 | D17: ='- 12 -'!F23 -> 531094 | E17: ='- 12 -'!F40 -> 928805 | F17: ='- 12 -'!F46 -> 319330 | I17: ='- 12 -'!F48 -> 27000 | J17: (1) | K17: =SUM(C17:F17,I17) -> 9659845 | N17: =IF($N$27=0,"",K17-'- 12 -'!$F$51) -> 
A18: 400 | B18: COMMUNITY EDUCATION & SERVICES | C18: ='- 12 -'!H22 -> 17208986 | D18: ='- 12 -'!H23 -> 1715584 | E18: ='- 12 -'!H40 -> 2494597 | F18: ='- 12 -'!H46 -> 1680544 | K18: =SUM(C18:F18) -> 23099711 | N18: =IF($N$27=0,"",K18-'- 12 -'!$H$51) -> 
A19: 500 | B19: DIVISIONAL ADMINISTRATION | C19: ='- 12 -'!J22 -> 51794109 | D19: ='- 12 -'!J23 -> 7316967 | E19: ='- 12 -'!J40 -> 18129521 | F19: ='- 12 -'!J46 -> 2426145 | I19: ='- 12 -'!J48 -> -27000 | J19: (1) | K19: =SUM(C19:F19,I19) -> 79639742 | N19: =IF($N$27=0,"",K19-'- 12 -'!$J$51) -> 
L20: - 10 -
A21: 600 | B21: INSTRUCTIONAL AND OTHER SUPPORT SERVICES | C21: ='- 13 -'!B22 -> 55189681 | D21: ='- 13 -'!B23 -> 5368601 | E21: ='- 13 -'!B40 -> 15315728 | F21: ='- 13 -'!B46 -> 8210191 | K21: =SUM(C21:F21) -> 84084201 | N21: =IF($N$27=0,"",K21-'- 13 -'!$B$54) -> 
A22: 700 | B22: TRANSPORTATION OF PUPILS | C22: ='- 13 -'!D22 -> 49364873 | D22: ='- 13 -'!D23 -> 7935873 | E22: ='- 13 -'!D40 -> 29147214 | F22: ='- 13 -'!D46 -> 20287432 | K22: =SUM(C22:F22) -> 106735392 | N22: =IF($N$27=0,"",K22-'- 13 -'!$D$54) -> 
A23: 800 | B23: OPERATIONS AND MAINTENANCE | C23: ='- 13 -'!F22 -> 124118382 | D23: ='- 13 -'!F23 -> 21562083 | E23: ='- 13 -'!F40 -> 110420056 | F23: ='- 13 -'!F46 -> 27425633 | I23: ='- 13 -'!F52 -> 0 | K23: =SUM(C23:F23,I23) -> 283526154 | N23: =IF($N$27=0,"",K23-'- 13 -'!$F$54) -> 
A24: 900 | B24: FISCAL | G24: 2737415 | H24: 10500 | I24: 39297984 | J24: (2) | K24: =SUM(G24:I24) -> 42045899 | N24: =IF($N$27=0,"",K24-'- 13 -'!$H$54) -> 
B27: TOTALS | C27: =SUM(C15:C24) -> 1875970777 | D27: =SUM(D15:D24) -> 158427390 | E27: =SUM(E15:E24) -> 222162208 | F27: =SUM(F15:F24) -> 148119697 | G27: =G24 -> 2737415 | H27: =H24 -> 10500 | I27: =SUM(I15:I24) -> 39297984 | K27: =SUM(K15:K24) -> 2446725971 | N27: =K27-'- 3 -'!D48 -> 0
A30: (1) | B30: Reallocation of administration costs associated with Adult Learning Centre operations from Function 500 to Function 300.
A31: (2) | B31: Reallocation of school building costs associated with Adult Learning Centre operations to Function 300
A32: (2) | B32: Health and Post Secondary Education Tax Levy.

Sheet - 11 -
U23: - 11 -
G25: 2794500

Sheet - 12 -
D2: =OPYEAR -> OPERATING FUND 2019/2020 BUDGET | K2: PAGE 1 OF 2
B4: =IF(Lang=1,BA4,BB4) -> EXPENSE BY 2ND LEVEL OBJECT | BA4: EXPENSE BY 2ND LEVEL OBJECT | BB4: DÉPENSES PAR OBJET DE DEUXIÈME CATÉGORIE EXPRIMÉES
B5: =IF(Lang=1,BA5,BB5) -> AS A PERCENTAGE OF TOTAL OPERATING FUND EXPENSES | BA5: AS A PERCENTAGE OF TOTAL OPERATING FUND EXPENSES | BB5: EN POURCENTAGE DU TOTAL DES DÉPENSES DU FONDS DE FONCTIONNEMENT
B7: FUNCTION
B9: REGULAR INSTRUCTION | D9: STUDENT SUPPORT SERVICES | F9: ADULT LEARNING CENTRES | H9: COMMUNITY EDUCATION | J9: DIVISIONAL ADMINISTRATION
A11: OBJECT | B11: AMOUNT | C11: % | D11: AMOUNT | E11: % | F11: AMOUNT | G11: % | H11: AMOUNT | I11: % | J11: AMOUNT | K11: %
A13: SALARIES
A14: TRUSTEES REMUNERATION | J14: 4141418
A15: EXECUTIVE, MANAGERIAL, & SUPERVISORY | B15: 96944256 | C15: =B15/'- 13 -'!$J$54*100 -> 3.962203252 | D15: 7382698 | E15: =D15/'- 13 -'!$J$54*100 -> 0.3017378361 | F15: 861680 | G15: =F15/'- 13 -'!$J$54*100 -> 0.03521767498 | H15: 839012 | I15: =H15/'- 13 -'!$J$54*100 -> 0.03429121242 | J15: 22382870 | K15: =J15/'- 13 -'!$J$54*100 -> 0.914809025
A16: INSTRUCTIONAL - TEACHING | B16: 987525938 | C16: =B16/'- 13 -'!$J$54*100 -> 40.36111725 | D16: 166549091 | E16: =D16/'- 13 -'!$J$54*100 -> 6.807018562 | F16: 6004207 | G16: =F16/'- 13 -'!$J$54*100 -> 0.2453976077 | H16: 8538101 | I16: =H16/'- 13 -'!$J$54*100 -> 0.3489602473 | K16: =J16/'- 13 -'!$J$54*100 -> 0
A17: INSTRUCTIONAL - OTHER | B17: 25670577 | C17: =B17/'- 13 -'!$J$54*100 -> 1.049180714 | D17: 176169375 | E17: =D17/'- 13 -'!$J$54*100 -> 7.20020865 | F17: 390109 | G17: =F17/'- 13 -'!$J$54*100 -> 0.01594412307 | H17: 4055244 | I17: =H17/'- 13 -'!$J$54*100 -> 0.1657416502 | K17: =J17/'- 13 -'!$J$54*100 -> 0
A18: TECHNICAL, SPECIALIZED AND SERVICE | B18: 6599515 | C18: =B18/'- 13 -'!$J$54*100 -> 0.2697284076 | D18: 1999434 | E18: =D18/'- 13 -'!$J$54*100 -> 0.08171875493 | F18: 179857 | G18: =F18/'- 13 -'!$J$54*100 -> 0.007350925364 | H18: 2248377 | I18: =H18/'- 13 -'!$J$54*100 -> 0.09189329033 | J18: 6667861 | K18: =J18/'- 13 -'!$J$54*100 -> 0.2725217731
A19: SECRETARIAL, CLERICAL AND OTHER | B19: 42583013 | C19: =B19/'- 13 -'!$J$54*100 -> 1.740407937 | D19: 2998765 | E19: =D19/'- 13 -'!$J$54*100 -> 0.1225623562 | F19: 417763 | G19: =F19/'- 13 -'!$J$54*100 -> 0.01707436815 | H19: 710123 | I19: =H19/'- 13 -'!$J$54*100 -> 0.02902339732 | J19: 15994947 | K19: =J19/'- 13 -'!$J$54*100 -> 0.6537285822
A20: CLINICIAN | D20: 42805727 | E20: =D20/'- 13 -'!$J$54*100 -> 1.749510469 | H20: 783129
A21: INFORMATION TECHNOLOGY | B21: 13064372 | C21: =B21/'- 13 -'!$J$54*100 -> 0.5339532156 | D21: 148369 | E21: =D21/'- 13 -'!$J$54*100 -> 0.006063981082 | F21: 0 | G21: =F21/'- 13 -'!$J$54*100 -> 0 | H21: 35000 | I21: =H21/'- 13 -'!$J$54*100 -> 0.001430483038 | J21: 2607013 | K21: =J21/'- 13 -'!$J$54*100 -> 0.1065510822
A22: TOTAL SALARIES | B22: =SUM(B14:B21) -> 1172387671 | C22: =B22/'- 13 -'!$J$54*100 -> 47.91659078 | D22: =SUM(D14:D21) -> 398053459 | E22: =D22/'- 13 -'!$J$54*100 -> 16.26882061 | F22: =SUM(F14:F21) -> 7853616 | G22: =F22/'- 13 -'!$J$54*100 -> 0.3209846993 | H22: =SUM(H14:H21) -> 17208986 | I22: =H22/'- 13 -'!$J$54*100 -> 0.7033475021 | J22: =SUM(J14:J21) -> 51794109 | K22: =J22/'- 13 -'!$J$54*100 -> 2.116874125
A23: EMPLOYEE BENEFITS AND ALLOWANCES | B23: 72857472 | C23: =B23/'- 13 -'!$J$54*100 -> 2.977753654 | D23: 41139716 | E23: =D23/'- 13 -'!$J$54*100 -> 1.681419026 | F23: 531094 | G23: =F23/'- 13 -'!$J$54*100 -> 0.0217063131 | H23: 1715584 | I23: =H23/'- 13 -'!$J$54*100 -> 0.07011753749 | J23: 7316967 | K23: =J23/'- 13 -'!$J$54*100 -> 0.2990513481
A24: SERVICES
A25: PROFESSIONAL, TECHNICAL & SPECIALIZED | B25: 6160131 | C25: =B25/'- 13 -'!$J$54*100 -> 0.2517703688 | D25: 7271346 | E25: =D25/'- 13 -'!$J$54*100 -> 0.2971867747 | F25: 57165 | G25: =F25/'- 13 -'!$J$54*100 -> 0.00233638751 | H25: 1562599 | I25: =H25/'- 13 -'!$J$54*100 -> 0.06386489613 | J25: 4258041 | K25: =J25/'- 13 -'!$J$54*100 -> 0.174030155
A26: COMMUNICATIONS | B26: 3990237 | C26: =B26/'- 13 -'!$J$54*100 -> 0.1630847527 | D26: 338695 | E26: =D26/'- 13 -'!$J$54*100 -> 0.01384278436 | F26: 66450 | G26: =F26/'- 13 -'!$J$54*100 -> 0.002715874225 | H26: 30120 | I26: =H26/'- 13 -'!$J$54*100 -> 0.001231032832 | J26: 1237339 | K26: =J26/'- 13 -'!$J$54*100 -> 0.05057121291 | L26: - 12 -
A27: UTILITY SERVICES | C27: =B27/'- 13 -'!$J$54*100 -> 0 | E27: =D27/'- 13 -'!$J$54*100 -> 0 | F27: 61751 | G27: =F27/'- 13 -'!$J$54*100 -> 0.002523821659 | I27: =H27/'- 13 -'!$J$54*100 -> 0 | K27: =J27/'- 13 -'!$J$54*100 -> 0
A28: TRAVEL AND MEETINGS | B28: 2826526 | C28: =B28/'- 13 -'!$J$54*100 -> 0.1155227857 | D28: 2448378 | E28: =D28/'- 13 -'!$J$54*100 -> 0.10006752 | F28: 79128 | G28: =F28/'- 13 -'!$J$54*100 -> 0.003234036052 | H28: 93456 | I28: =H28/'- 13 -'!$J$54*100 -> 0.003819634937 | J28: 2453191 | K28: =J28/'- 13 -'!$J$54*100 -> 0.1002642318
A29: TRANSPORTATION OF PUPILS | C29: =B29/'- 13 -'!$J$54*100 -> 0 | E29: =D29/'- 13 -'!$J$54*100 -> 0 | G29: =F29/'- 13 -'!$J$54*100 -> 0 | I29: =H29/'- 13 -'!$J$54*100 -> 0 | K29: =J29/'- 13 -'!$J$54*100 -> 0
A30: TUITION | B30: 1274267 | C30: =B30/'- 13 -'!$J$54*100 -> 0.05208049512 | D30: 987120 | E30: =D30/'- 13 -'!$J$54*100 -> 0.04034452618 | F30: 0 | G30: =F30/'- 13 -'!$J$54*100 -> 0 | I30: =H30/'- 13 -'!$J$54*100 -> 0 | K30: =J30/'- 13 -'!$J$54*100 -> 0
A31: PRINTING AND BINDING | B31: 518710 | C31: =B31/'- 13 -'!$J$54*100 -> 0.02120016733 | D31: 28275 | E31: =D31/'- 13 -'!$J$54*100 -> 0.00115562594 | F31: 5021 | G31: =F31/'- 13 -'!$J$54*100 -> 0.0002052130095 | H31: 62700 | I31: =H31/'- 13 -'!$J$54*100 -> 0.002562608185 | J31: 225293 | K31: =J31/'- 13 -'!$J$54*100 -> 0.009207937573
A32: INSURANCE AND BOND PREMIUMS | B32: 320217 | C32: =B32/'- 13 -'!$J$54*100 -> 0.01308757106 | D32: 20007 | E32: =D32/'- 13 -'!$J$54*100 -> 0.0008177049754 | F32: 8198 | G32: =F32/'- 13 -'!$J$54*100 -> 0.0003350599984 | H32: 0 | I32: =H32/'- 13 -'!$J$54*100 -> 0 | J32: 1675745 | K32: =J32/'- 13 -'!$J$54*100 -> 0.06848927995
A33: MAINTENANCE AND REPAIR SERVICES | B33: 2501292 | C33: =B33/'- 13 -'!$J$54*100 -> 0.1022301651 | D33: 77660 | E33: =D33/'- 13 -'!$J$54*100 -> 0.003174037506 | F33: 66002 | G33: =F33/'- 13 -'!$J$54*100 -> 0.002697564042 | H33: 120880 | I33: =H33/'- 13 -'!$J$54*100 -> 0.004940479704 | J33: 215836 | K33: =J33/'- 13 -'!$J$54*100 -> 0.008821421056
A34: RENTALS | B34: 2934590 | C34: =B34/'- 13 -'!$J$54*100 -> 0.1199394634 | D34: 253373 | E34: =D34/'- 13 -'!$J$54*100 -> 0.01035559368 | F34: 486070 | G34: =F34/'- 13 -'!$J$54*100 -> 0.01986613972 | H34: 498230 | I34: =H34/'- 13 -'!$J$54*100 -> 0.0203631304 | J34: 372241 | K34: =J34/'- 13 -'!$J$54*100 -> 0.01521384104
A35: PROPERTY TAXES | C35: =B35/'- 13 -'!$J$54*100 -> 0 | E35: =D35/'- 13 -'!$J$54*100 -> 0 | F35: 18803 | G35: =F35/'- 13 -'!$J$54*100 -> 0.0007684963589 | I35: =H35/'- 13 -'!$J$54*100 -> 0 | K35: =J35/'- 13 -'!$J$54*100 -> 0
A36: ADVERTISING | B36: 315162 | C36: =B36/'- 13 -'!$J$54*100 -> 0.01288096843 | D36: 59130 | E36: =D36/'- 13 -'!$J$54*100 -> 0.002416698915 | F36: 24187 | G36: =F36/'- 13 -'!$J$54*100 -> 0.0009885455211 | H36: 71780 | I36: =H36/'- 13 -'!$J$54*100 -> 0.002933716356 | J36: 688642 | K36: =J36/'- 13 -'!$J$54*100 -> 0.02814544858
A37: DUES AND FEES | B37: 899090 | C37: =B37/'- 13 -'!$J$54*100 -> 0.03674665699 | D37: 120485 | E37: =D37/'- 13 -'!$J$54*100 -> 0.004924335681 | F37: 472 | G37: =F37/'- 13 -'!$J$54*100 -> 1.929108554e-05 | H37: 5155 | I37: =H37/'- 13 -'!$J$54*100 -> 0.000210689716 | J37: 3003619 | K37: =J37/'- 13 -'!$J$54*100 -> 0.1227607438
A38: PROFESSIONAL AND STAFF DEVELOPMENT | B38: 539789 | C38: =B38/'- 13 -'!$J$54*100 -> 0.02206168596 | D38: 252160 | E38: =D38/'- 13 -'!$J$54*100 -> 0.01030601722 | F38: 39325 | G38: =F38/'- 13 -'!$J$54*100 -> 0.00160724987 | H38: 31777 | I38: =H38/'- 13 -'!$J$54*100 -> 0.001298755986 | J38: 1449322 | K38: =J38/'- 13 -'!$J$54*100 -> 0.05923515821
A39: INFORMATION TECHNOLOGY SERVICES | B39: 11385482 | C39: =B39/'- 13 -'!$J$54*100 -> 0.4653353966 | D39: 204165 | E39: =D39/'- 13 -'!$J$54*100 -> 0.00834441627 | F39: 16233 | G39: =F39/'- 13 -'!$J$54*100 -> 0.000663458033 | H39: 17900 | I39: =H39/'- 13 -'!$J$54*100 -> 0.0007315898965 | J39: 2550252 | K39: =J39/'- 13 -'!$J$54*100 -> 0.1042312065
A40: TOTAL SERVICES | B40: =SUM(B25:B39) -> 33665493 | C40: =B40/'- 13 -'!$J$54*100 -> 1.375940477 | D40: =SUM(D25:D39) -> 12060794 | E40: =D40/'- 13 -'!$J$54*100 -> 0.4929360355 | F40: =SUM(F25:F39) -> 928805 | G40: =F40/'- 13 -'!$J$54*100 -> 0.03796113709 | H40: =SUM(H25:H39) -> 2494597 | I40: =H40/'- 13 -'!$J$54*100 -> 0.1019565341 | J40: =SUM(J25:J39) -> 18129521 | K40: =J40/'- 13 -'!$J$54*100 -> 0.7409706365
A41: SUPPLIES AND EQUIPMENT
A42: SUPPLIES | B42: 37692444 | C42: =B42/'- 13 -'!$J$54*100 -> 1.540525766 | D42: 3382131 | E42: =D42/'- 13 -'!$J$54*100 -> 0.1382308865 | F42: 160223 | G42: =F42/'- 13 -'!$J$54*100 -> 0.006548465251 | H42: 1491610 | I42: =H42/'- 13 -'!$J$54*100 -> 0.06096350869 | J42: 1218511 | K42: =J42/'- 13 -'!$J$54*100 -> 0.04980169477
A43: CURRICULAR AND MEDIA MATERIALS | B43: 11324780 | C43: =B43/'- 13 -'!$J$54*100 -> 0.4628544485 | D43: 785487 | E43: =D43/'- 13 -'!$J$54*100 -> 0.03210359514 | F43: 58113 | G43: =F43/'- 13 -'!$J$54*100 -> 0.002375133165 | H43: 70453 | I43: =H43/'- 13 -'!$J$54*100 -> 0.002879480613 | J43: 113560 | K43: =J43/'- 13 -'!$J$54*100 -> 0.004641304394
A44: MINOR EQUIPMENT | B44: 12652063 | C44: =B44/'- 13 -'!$J$54*100 -> 0.5171017576 | D44: 416515 | E44: =D44/'- 13 -'!$J$54*100 -> 0.01702336122 | F44: 41744 | G44: =F44/'- 13 -'!$J$54*100 -> 0.001706116684 | H44: 114781 | I44: =H44/'- 13 -'!$J$54*100 -> 0.004691207817 | J44: 297890 | K44: =J44/'- 13 -'!$J$54*100 -> 0.01217504549
A45: INFORMATION TECHNOLOGY EQUIPMENT | B45: 20773835 | C45: =B45/'- 13 -'!$J$54*100 -> 0.8490462457 | D45: 743167 | E45: =D45/'- 13 -'!$J$54*100 -> 0.0303739368 | F45: 59250 | G45: =F45/'- 13 -'!$J$54*100 -> 0.002421603429 | H45: 3700 | I45: =H45/'- 13 -'!$J$54*100 -> 0.0001512224926 | J45: 796184 | K45: =J45/'- 13 -'!$J$54*100 -> 0.03254079163
A46: TOTAL SUPPLIES AND EQUIPMENT | B46: =SUM(B42:B45) -> 82443122 | C46: =B46/'- 13 -'!$J$54*100 -> 3.369528218 | D46: =SUM(D42:D45) -> 5327300 | E46: =D46/'- 13 -'!$J$54*100 -> 0.2177317797 | F46: =SUM(F42:F45) -> 319330 | G46: =F46/'- 13 -'!$J$54*100 -> 0.01305131853 | H46: =SUM(H42:H45) -> 1680544 | I46: =H46/'- 13 -'!$J$54*100 -> 0.06868541961 | J46: =SUM(J42:J45) -> 2426145 | K46: =J46/'- 13 -'!$J$54*100 -> 0.09915883629
A47: TRANSFERS
A48: RECHARGE (1) | F48: 27000 | J48: -27000 | M48: =F48+J48+'- 13 -'!F48 -> 0
A49: TOTAL TRANSFERS | F49: =F48 -> 27000 | J49: =J48 -> -27000
A51: PROVINCE | B51: =SUM(B47,B46,B40,B23,B22) -> 1361353758 | C51: =B51/'- 13 -'!$J$54*100 -> 55.63981313 | D51: =SUM(D47,D46,D40,D23,D22) -> 456581269 | E51: =D51/'- 13 -'!$J$54*100 -> 18.66090745 | F51: =SUM(F49,F46,F40,F23,F22) -> 9659845 | G51: =F51/'- 13 -'!$J$54*100 -> 0.3948069835 | H51: =SUM(H47,H46,H40,H23,H22) -> 23099711 | I51: =H51/'- 13 -'!$J$54*100 -> 0.9441069933 | J51: =SUM(J49,J46,J40,J23,J22) -> 79639742 | K51: =J51/'- 13 -'!$J$54*100 -> 3.254951431
A52: (1) Reallocation of administration costs associated with Adult Learning Centre operations from Function 500 to Function 300.

Sheet - 13 -
C2: =OPYEAR -> OPERATING FUND 2019/2020 BUDGET | K2: PAGE 2 OF 2
B4: =+'- 12 -'!B4 -> EXPENSE BY 2ND LEVEL OBJECT
B5: =+'- 12 -'!B5 -> AS A PERCENTAGE OF TOTAL OPERATING FUND EXPENSES
B7: FUNCTION
B9: INSTRUCTIONAL & OTHER SUPPORT SERVICES | D9: TRANSPORTATION OF PUPILS | F9: OPERATIONS AND MAINTENANCE | H9: FISCAL | J9: TOTAL
A11: OBJECT | B11: AMOUNT | C11: % | D11: AMOUNT | E11: % | F11: AMOUNT | G11: % | H11: AMOUNT | I11: % | J11: AMOUNT | K11: %
A13: SALARIES | M13: SALARIES | N13: =K22 -> 76.67269646
A14: TRUSTEES REMUNERATION | J14: =SUM(F14,D14,B14,'- 12 -'!J14,'- 12 -'!H14,'- 12 -'!F14,'- 12 -'!D14,'- 12 -'!B14) -> 4141418 | K14: =J14/$J$54*100 -> 0.1692636629 | M14: EMPLOYEE BENEFITS | N14: =K23 -> 6.475076975
A15: EXECUTIVE, MANAGERIAL, & SUPERVISORY | B15: 4683792 | C15: =B15/$J$54*100 -> 0.1914310003 | D15: 3234975 | E15: =D15/$J$54*100 -> 0.1322164819 | F15: 5246223 | G15: =F15/$J$54*100 -> 0.2144180861 | J15: =SUM(F15,D15,B15,'- 12 -'!J15,'- 12 -'!H15,'- 12 -'!F15,'- 12 -'!D15,'- 12 -'!B15) -> 141575506 | K15: 5.786324569 | M15: SERVICES | N15: =K40 -> 9.079979149
A16: INSTRUCTIONAL - TEACHING | B16: 27260485 | C16: =B16/$J$54*100 -> 1.114161754 | E16: =D16/$J$54*100 -> 0 | G16: =F16/$J$54*100 -> 0 | J16: =SUM(F16,D16,B16,'- 12 -'!J16,'- 12 -'!H16,'- 12 -'!F16,'- 12 -'!D16,'- 12 -'!B16) -> 1195877822 | K16: 48.87665542 | M16: SUPPLIES & MATERIALS | N16: =K46 -> 6.053791833
A17: INSTRUCTIONAL - OTHER | B17: 16036890 | C17: =B17/$J$54*100 -> 0.6554428322 | D17: 453737 | E17: =D17/$J$54*100 -> 0.01854465949 | G17: =F17/$J$54*100 -> 0 | J17: =SUM(F17,D17,B17,'- 12 -'!J17,'- 12 -'!H17,'- 12 -'!F17,'- 12 -'!D17,'- 12 -'!B17) -> 222775932 | K17: 9.105062628 | M17: DEBT SERVICES | N17: =K49 -> 0.111880735
A18: TECHNICAL, SPECIALIZED AND SERVICE | B18: 4443590 | C18: =B18/$J$54*100 -> 0.1816137178 | D18: 43764880 | E18: =D18/$J$54*100 -> 1.788711957 | F18: 116927448 | G18: =F18/$J$54*100 -> 4.778935172 | J18: =SUM(F18,D18,B18,'- 12 -'!J18,'- 12 -'!H18,'- 12 -'!F18,'- 12 -'!D18,'- 12 -'!B18) -> 182830962 | K18: 7.472473999 | M18: TRANSFERS | N18: =K52-N17 -> 1.606574846
A19: SECRETARIAL, CLERICAL AND OTHER | B19: 2489471 | C19: =B19/$J$54*100 -> 0.1017470297 | D19: 1911281 | E19: =D19/$J$54*100 -> 0.07811585861 | F19: 1944711 | G19: =F19/$J$54*100 -> 0.07948217426 | J19: =SUM(F19,D19,B19,'- 12 -'!J19,'- 12 -'!H19,'- 12 -'!F19,'- 12 -'!D19,'- 12 -'!B19) -> 69050074 | K19: 2.822141704
A20: CLINICIAN | J20: =SUM(F20,D20,B20,'- 12 -'!J20,'- 12 -'!H20,'- 12 -'!F20,'- 12 -'!D20,'- 12 -'!B20) -> 43588856 | K20: 1.78151769 | N20: =SUM(N13:N18) -> 100
A21: INFORMATION TECHNOLOGY | B21: 275453 | C21: =B21/'- 13 -'!$J$54*100 -> 0.01125802412 | D21: 0 | E21: =D21/'- 13 -'!$J$54*100 -> 0 | F21: 0 | G21: =F21/'- 13 -'!$J$54*100 -> 0 | J21: =SUM(F21,D21,B21,'- 12 -'!J21,'- 12 -'!H21,'- 12 -'!F21,'- 12 -'!D21,'- 12 -'!B21) -> 16130207 | K21: 0.6592567861
A22: TOTAL SALARIES | B22: =SUM(B14:B21) -> 55189681 | C22: =B22/$J$54*100 -> 2.255654358 | D22: =SUM(D14:D21) -> 49364873 | E22: =D22/$J$54*100 -> 2.017588957 | F22: =SUM(F14:F21) -> 124118382 | G22: =F22/$J$54*100 -> 5.072835433 | J22: =SUM(F22,D22,B22,'- 12 -'!J22,'- 12 -'!H22,'- 12 -'!F22,'- 12 -'!D22,'- 12 -'!B22) -> 1875970777 | K22: 76.67269646
A23: EMPLOYEE BENEFITS AND ALLOWANCES | B23: 5368601 | C23: =B23/$J$54*100 -> 0.2194197905 | D23: 7935873 | E23: =D23/$J$54*100 -> 0.3243466205 | F23: 21562083 | G23: =F23/$J$54*100 -> 0.8812626855 | J23: =SUM(F23,D23,B23,'- 12 -'!J23,'- 12 -'!H23,'- 12 -'!F23,'- 12 -'!D23,'- 12 -'!B23) -> 158427390 | K23: 6.475076975
A24: SERVICES | M24: REGULAR INSTRUCTION | N24: ='- 12 -'!C51 -> 55.63981313
A25: PROFESSIONAL, TECHNICAL & SPECIALIZED | B25: 2100473 | C25: =B25/$J$54*100 -> 0.08584831423 | D25: 348020 | E25: =D25/$J$54*100 -> 0.01422390591 | F25: 6261506 | G25: =F25/$J$54*100 -> 0.2559136607 | J25: =SUM(F25,D25,B25,'- 12 -'!J25,'- 12 -'!H25,'- 12 -'!F25,'- 12 -'!D25,'- 12 -'!B25) -> 28019281 | K25: =J25/$J$54*100 -> 1.145174463 | L25: - 13 - | M25: STUDENT SUPPORT SERVICES | N25: ='- 12 -'!E51 -> 18.66090745
A26: COMMUNICATIONS | B26: 120843 | C26: 0.004938967479 | D26: 362965 | E26: 0.01483472217 | F26: 826635 | G26: 0.03378535274 | J26: =SUM(F26,D26,B26,'- 12 -'!J26,'- 12 -'!H26,'- 12 -'!F26,'- 12 -'!D26,'- 12 -'!B26) -> 6973284 | K26: 0.2850046994 | M26: ADULT LEARNING CENTRES | N26: ='- 12 -'!G51 -> 0.3948069835
A27: UTILITY SERVICES | C27: 0 | E27: 0 | F27: 48579854 | G27: 1.98550449 | J27: =SUM(F27,D27,B27,'- 12 -'!J27,'- 12 -'!H27,'- 12 -'!F27,'- 12 -'!D27,'- 12 -'!B27) -> 48641605 | K27: 1.988028311 | M27: COMMUNITY EDUCATION | N27: ='- 12 -'!I51 -> 0.9441069933
A28: TRAVEL AND MEETINGS | B28: 1052245 | C28: 0.04300624641 | D28: 1547120 | E28: 0.06323225479 | F28: 888532 | G28: 0.03631514156 | J28: =SUM(F28,D28,B28,'- 12 -'!J28,'- 12 -'!H28,'- 12 -'!F28,'- 12 -'!D28,'- 12 -'!B28) -> 11388576 | K28: 0.4654618513 | M28: DIVISIONAL ADMINISTRATION | N28: ='- 12 -'!K51 -> 3.254951431
A29: TRANSPORTATION OF PUPILS | C29: 0 | D29: 20400851 | E29: 0.8338020376 | G29: 0 | J29: =SUM(F29,D29,B29,'- 12 -'!J29,'- 12 -'!H29,'- 12 -'!F29,'- 12 -'!D29,'- 12 -'!B29) -> 20400851 | K29: 0.8338020376 | M29: INSTRUCTIONAL & PUPIL SUPPORT SERVICES | N29: =C54 -> 3.436600665
A30: TUITION | B30: 6600 | C30: 0.00026974823 | E30: 0 | G30: 0 | J30: =SUM(F30,D30,B30,'- 12 -'!J30,'- 12 -'!H30,'- 12 -'!F30,'- 12 -'!D30,'- 12 -'!B30) -> 2267987 | K30: 0.09269476954 | M30: TRANSPORTATION OF PUPILS | N30: =E54 -> 4.362376223
A31: PRINTING AND BINDING | B31: 50245 | C31: 0.002053560578 | D31: 7785 | E31: 0.0003181802986 | F31: 10600 | G31: 0.0004332320058 | J31: =SUM(F31,D31,B31,'- 12 -'!J31,'- 12 -'!H31,'- 12 -'!F31,'- 12 -'!D31,'- 12 -'!B31) -> 908629 | K31: 0.03713652492 | M31: OPERATIONS & MAINTENANCE | N31: =G54 -> 11.58798155
A32: INSURANCE AND BOND PREMIUMS | B32: 130267 | C32: 0.005324135254 | D32: 1342049 | E32: 0.05485080945 | F32: 10262937 | G32: 0.4194559228 | J32: =SUM(F32,D32,B32,'- 12 -'!J32,'- 12 -'!H32,'- 12 -'!F32,'- 12 -'!D32,'- 12 -'!B32) -> 13759420 | K32: 0.5623604835 | M32: FISCAL | N32: =I54 -> 1.718455581
A33: MAINTENANCE AND REPAIR SERVICES | B33: 52870 | C33: 0.002160846806 | D33: 3132802 | E33: 0.1280405749 | F33: 33221846 | G33: 1.357808205 | J33: =SUM(F33,D33,B33,'- 12 -'!J33,'- 12 -'!H33,'- 12 -'!F33,'- 12 -'!D33,'- 12 -'!B33) -> 39389188 | K33: 1.609873295
A34: RENTALS | B34: 206128 | C34: 0.008424645933 | D34: 1074208 | E34: 0.04390389495 | F34: 3657300 | G34: 0.1494773033 | J34: =SUM(F34,D34,B34,'- 12 -'!J34,'- 12 -'!H34,'- 12 -'!F34,'- 12 -'!D34,'- 12 -'!B34) -> 9482140 | K34: 0.3875440124 | N34: =SUM(N24:N32) -> 100
A35: PROPERTY TAXES | C35: 0 | E35: 0 | F35: 5765773 | G35: 0.2356525851 | J35: =SUM(F35,D35,B35,'- 12 -'!J35,'- 12 -'!H35,'- 12 -'!F35,'- 12 -'!D35,'- 12 -'!B35) -> 5784576 | K35: 0.2364210814
A36: ADVERTISING | B36: 21700 | C36: =B36/J54 -> 8.868994835e-06 | D36: 31550 | E36: =D36/J54 -> 1.289478281e-05 | F36: 83350 | G36: =F36/J54 -> 3.406593177e-05 | J36: =SUM(F36,D36,B36,'- 12 -'!J36,'- 12 -'!H36,'- 12 -'!F36,'- 12 -'!D36,'- 12 -'!B36) -> 1295501 | K36: 0.05294834875
A37: DUES AND FEES | B37: 220160 | C37: =B37/$J$54*100 -> 0.008998147018 | D37: 83833 | E37: =D37/$J$54*100 -> 0.003426333843 | F37: 136582 | G37: =F37/$J$54*100 -> 0.005582235265 | J37: =SUM(F37,D37,B37,'- 12 -'!J37,'- 12 -'!H37,'- 12 -'!F37,'- 12 -'!D37,'- 12 -'!B37) -> 4469396 | K37: 0.1826684334
A38: PROFESSIONAL AND STAFF DEVELOPMENT | B38: 10409181 | C38: =B38/'- 13 -'!$J$54*100 -> 0.4254330531 | D38: 288835 | E38: =D38/'- 13 -'!$J$54*100 -> 0.01180495909 | F38: 383502 | G38: =F38/'- 13 -'!$J$54*100 -> 0.01567408874 | J38: =SUM(F38,D38,B38,'- 12 -'!J38,'- 12 -'!H38,'- 12 -'!F38,'- 12 -'!D38,'- 12 -'!B38) -> 13393891 | K38: 0.5474209682
A39: INFORMATION TECHNOLOGY SERVICES | B39: 945016 | C39: =B39/$J$54*100 -> 0.03862369596 | D39: 527196 | E39: =D39/$J$54*100 -> 0.02154699816 | F39: 341639 | G39: =F39/$J$54*100 -> 0.01396310842 | J39: =SUM(F39,D39,B39,'- 12 -'!J39,'- 12 -'!H39,'- 12 -'!F39,'- 12 -'!D39,'- 12 -'!B39) -> 15987883 | K39: 0.6534398698
A40: TOTAL SERVICES | B40: =SUM(B25:B39) -> 15315728 | C40: =B40/$J$54*100 -> 0.6259682605 | D40: =SUM(D25:D39) -> 29147214 | E40: =D40/$J$54*100 -> 1.191274149 | F40: =SUM(F25:F39) -> 110420056 | G40: =F40/$J$54*100 -> 4.512971919 | J40: =SUM(F40,D40,B40,'- 12 -'!J40,'- 12 -'!H40,'- 12 -'!F40,'- 12 -'!D40,'- 12 -'!B40) -> 222162208 | K40: 9.079979149
A41: SUPPLIES AND EQUIPMENT
A42: SUPPLIES | B42: 4687505 | C42: =B42/$J$54*100 -> 0.1915827541 | D42: 19693433 | E42: =D42/$J$54*100 -> 0.8048891962 | F42: 23532532 | G42: =F42/$J$54*100 -> 0.9617967962 | J42: =SUM(F42,D42,B42,'- 12 -'!J42,'- 12 -'!H42,'- 12 -'!F42,'- 12 -'!D42,'- 12 -'!B42) -> 91858389 | K42: =J42/$J$54*100 -> 3.754339067
A43: CURRICULAR AND MEDIA MATERIALS | B43: 2956788 | C43: =B43/$J$54*100 -> 0.1208467166 | D43: 30750 | E43: =D43/$J$54*100 -> 0.001256781526 | F43: 258000 | G43: =F43/$J$54*100 -> 0.01054470354 | J43: =SUM(F43,D43,B43,'- 12 -'!J43,'- 12 -'!H43,'- 12 -'!F43,'- 12 -'!D43,'- 12 -'!B43) -> 15597931 | K43: =J43/$J$54*100 -> 0.6375021635
A44: MINOR EQUIPMENT | B44: 231617 | C44: =B44/$J$54*100 -> 0.009466405423 | D44: 436067 | E44: =D44/$J$54*100 -> 0.01782246991 | F44: 3510185 | G44: =F44/$J$54*100 -> 0.1434645744 | J44: =SUM(F44,D44,B44,'- 12 -'!J44,'- 12 -'!H44,'- 12 -'!F44,'- 12 -'!D44,'- 12 -'!B44) -> 17700862 | K44: =J44/$J$54*100 -> 0.7234509385
A45: INFORMATION TECHNOLOGY EQUIPMENT | B45: 334281 | C45: =B45/$J$54*100 -> 0.01366238001 | D45: 127182 | E45: =D45/$J$54*100 -> 0.005198048392 | F45: 124916 | G45: =F45/$J$54*100 -> 0.005105434833 | J45: =SUM(F45,D45,B45,'- 12 -'!J45,'- 12 -'!H45,'- 12 -'!F45,'- 12 -'!D45,'- 12 -'!B45) -> 22962515 | K45: =J45/$J$54*100 -> 0.9384996633
A46: TOTAL SUPPLIES AND EQUIPMENT | B46: =SUM(B42:B45) -> 8210191 | C46: =B46/$J$54*100 -> 0.3355582561 | D46: =SUM(D42:D45) -> 20287432 | E46: =D46/$J$54*100 -> 0.829166496 | F46: =SUM(F42:F45) -> 27425633 | G46: =F46/$J$54*100 -> 1.120911509 | J46: =SUM(F46,D46,B46,'- 12 -'!J46,'- 12 -'!H46,'- 12 -'!F46,'- 12 -'!D46,'- 12 -'!B46) -> 148119697 | K46: =J46/$J$54*100 -> 6.053791833
A47: TRANSFERS
A48: RECHARGE | F48: 0 | J48: ='- 12 -'!F48+'- 12 -'!J48+'- 13 -'!F48 -> 0
A49: DEBT SERVICES | H49: ='- 10 -'!G24 -> 2737415 | I49: =H49/$J$54*100 -> 0.111880735 | J49: =H49 -> 2737415 | K49: =J49/$J$54*100 -> 0.111880735
A50: BAD DEBT EXPENSE | H50: ='- 10 -'!H24 -> 10500 | J50: =H50 -> 10500
A51: OTHER GOVERNMENT AUTHORITIES | H51: ='- 10 -'!I24 -> 39297984 | I51: =H51/$J$54*100 -> 1.606145701 | J51: =H51 -> 39297984 | K51: =J51/$J$54*100 -> 1.606145701
A52: TOTAL TRANSFERS | F52: =F48 -> 0 | H52: =SUM(H49:H51) -> 42045899 | I52: =H52/$J$54*100 -> 1.718455581 | J52: =SUM(J48:J51) -> 42045899 | K52: =J52/$J$54*100 -> 1.718455581
A54: PROVINCE | B54: =SUM(B52,B46,B40,B23,B22) -> 84084201 | C54: =B54/$J$54*100 -> 3.436600665 | D54: =SUM(D52,D46,D40,D23,D22) -> 106735392 | E54: =D54/$J$54*100 -> 4.362376223 | F54: =SUM(F52,F46,F40,F23,F22) -> 283526154 | G54: =F54/$J$54*100 -> 11.58798155 | H54: =SUM(H52,H46,H40,H23,H22) -> 42045899 | I54: =H54/$J$54*100 -> 1.718455581 | J54: =SUM(J52,J46,J40,J23,J22) -> 2446725971 | K54: =J54/$J$54*100 -> 100

Sheet - 14 -
U23: - 14 -
G25: 2794500

Sheet - 15 -
B2: =IF(Lang=1,BA2,BB2) -> ANALYSIS OF EXPENSE BY FUNCTION | I2: PAGE 1 OF 3 | BA2: ANALYSIS OF EXPENSE BY FUNCTION | BB2: ANALYSE DES DÉPENSES PAR FONCTION
B3: =OPYEAR -> OPERATING FUND 2019/2020 BUDGET
B6: REGULAR INSTRUCTION | E6: STUDENT SUPPORT SERVICES | H6: ADULT LEARNING CENTRES
D8: PER PUPIL | G8: PER PUPIL
A9: DIVISION / DISTRICT | B9: AMOUNT | C9: % | E9: AMOUNT | F9: % | H9: AMOUNT | I9: %
A11: BEAUTIFUL PLAINS | B11: =SUM('- 18 -'!B11,'- 18 -'!E11,'- 19 -'!B11,'- 19 -'!E11,'- 19 -'!H11,'- 20 -'!B11) -> 13030079 | C11: =B11/'- 3 -'!D11*100 -> 62.58680504 | D11: =B11/'- 7 -'!C11 -> 7232.905357 | E11: =SUM('- 21 -'!B11,'- 21 -'!E11,'- 21 -'!H11,'- 22 -'!B11,'- 22 -'!E11,'- 22 -'!H11) -> 2777832 | F11: =E11/'- 3 -'!D11*100 -> 13.3426382 | G11: =E11/'- 7 -'!E11 -> 1541.955037 | H11: =SUM('- 23 -'!D11,'- 23 -'!B11) -> 0 | I11: =H11/'- 3 -'!D11*100 -> 0
A12: BORDER LAND | B12: =SUM('- 18 -'!B12,'- 18 -'!E12,'- 19 -'!B12,'- 19 -'!E12,'- 19 -'!H12,'- 20 -'!B12) -> 19936462 | C12: =B12/'- 3 -'!D12*100 -> 57.19790853 | D12: =B12/'- 7 -'!C12 -> 9322.376739 | E12: =SUM('- 21 -'!B12,'- 21 -'!E12,'- 21 -'!H12,'- 22 -'!B12,'- 22 -'!E12,'- 22 -'!H12) -> 5552169 | F12: =E12/'- 3 -'!D12*100 -> 15.92922829 | G12: =E12/'- 7 -'!E12 -> 2596.218483 | H12: =SUM('- 23 -'!D12,'- 23 -'!B12) -> 617056 | I12: =H12/'- 3 -'!D12*100 -> 1.770339825
A13: BRANDON | B13: =SUM('- 18 -'!B13,'- 18 -'!E13,'- 19 -'!B13,'- 19 -'!E13,'- 19 -'!H13,'- 20 -'!B13) -> 63156300 | C13: =B13/'- 3 -'!D13*100 -> 59.7552691 | D13: =B13/'- 7 -'!C13 -> 7281.524183 | E13: =SUM('- 21 -'!B13,'- 21 -'!E13,'- 21 -'!H13,'- 22 -'!B13,'- 22 -'!E13,'- 22 -'!H13) -> 22272500 | F13: =E13/'- 3 -'!D13*100 -> 21.07310326 | G13: =E13/'- 7 -'!E13 -> 2567.879172 | H13: =SUM('- 23 -'!D13,'- 23 -'!B13) -> 0 | I13: =H13/'- 3 -'!D13*100 -> 0
A14: DSFM | B14: =SUM('- 18 -'!B14,'- 18 -'!E14,'- 19 -'!B14,'- 19 -'!E14,'- 19 -'!H14,'- 20 -'!B14) -> 53264045 | C14: =B14/'- 3 -'!D14*100 -> 55.7715816 | D14: =B14/'- 7 -'!C14 -> 9218.422465 | E14: =SUM('- 21 -'!B14,'- 21 -'!E14,'- 21 -'!H14,'- 22 -'!B14,'- 22 -'!E14,'- 22 -'!H14) -> 11100495 | F14: =E14/'- 3 -'!D14*100 -> 11.62307825 | G14: =E14/'- 7 -'!E14 -> 1921.165628 | H14: =SUM('- 23 -'!D14,'- 23 -'!B14) -> 258919 | I14: =H14/'- 3 -'!D14*100 -> 0.271108252
A15: EVERGREEN | B15: =SUM('- 18 -'!B15,'- 18 -'!E15,'- 19 -'!B15,'- 19 -'!E15,'- 19 -'!H15,'- 20 -'!B15) -> 10954649 | C15: =B15/'- 3 -'!D15*100 -> 52.11284517 | D15: =B15/'- 7 -'!C15 -> 7813.587019 | E15: =SUM('- 21 -'!B15,'- 21 -'!E15,'- 21 -'!H15,'- 22 -'!B15,'- 22 -'!E15,'- 22 -'!H15) -> 3696190 | F15: =E15/'- 3 -'!D15*100 -> 17.58330889 | G15: =E15/'- 7 -'!E15 -> 2636.369472 | H15: =SUM('- 23 -'!D15,'- 23 -'!B15) -> 0 | I15: =H15/'- 3 -'!D15*100 -> 0
A16: FLIN FLON | B16: =SUM('- 18 -'!B16,'- 18 -'!E16,'- 19 -'!B16,'- 19 -'!E16,'- 19 -'!H16,'- 20 -'!B16) -> 7808166 | C16: =B16/'- 3 -'!D16*100 -> 52.35706383 | D16: =B16/'- 7 -'!C16 -> 8310.980309 | E16: =SUM('- 21 -'!B16,'- 21 -'!E16,'- 21 -'!H16,'- 22 -'!B16,'- 22 -'!E16,'- 22 -'!H16) -> 2945214 | F16: =E16/'- 3 -'!D16*100 -> 19.74890869 | G16: =E16/'- 7 -'!E16 -> 3134.873869 | H16: =SUM('- 23 -'!D16,'- 23 -'!B16) -> 94000 | I16: =H16/'- 3 -'!D16*100 -> 0.6303098576
A17: FORT LA BOSSE | B17: =SUM('- 18 -'!B17,'- 18 -'!E17,'- 19 -'!B17,'- 19 -'!E17,'- 19 -'!H17,'- 20 -'!B17) -> 11110015 | C17: =B17/'- 3 -'!D17*100 -> 59.29419193 | D17: =B17/'- 7 -'!C17 -> 7728.706087 | E17: =SUM('- 21 -'!B17,'- 21 -'!E17,'- 21 -'!H17,'- 22 -'!B17,'- 22 -'!E17,'- 22 -'!H17) -> 2431620 | F17: =E17/'- 3 -'!D17*100 -> 12.9775651 | G17: =E17/'- 7 -'!E17 -> 1691.561739 | H17: =SUM('- 23 -'!D17,'- 23 -'!B17) -> 0 | I17: =H17/'- 3 -'!D17*100 -> 0
A18: FRONTIER | B18: =SUM('- 18 -'!B18,'- 18 -'!E18,'- 19 -'!B18,'- 19 -'!E18,'- 19 -'!H18,'- 20 -'!B18) -> 58096456 | C18: =B18/'- 3 -'!D18*100 -> 42.58715368 | D18: =B18/'- 7 -'!C18 -> 9430.171247 | E18: =SUM('- 21 -'!B18,'- 21 -'!E18,'- 21 -'!H18,'- 22 -'!B18,'- 22 -'!E18,'- 22 -'!H18) -> 21858988 | F18: =E18/'- 3 -'!D18*100 -> 16.02356056 | G18: =E18/'- 7 -'!E18 -> 3548.133816 | H18: =SUM('- 23 -'!D18,'- 23 -'!B18) -> 2093907 | I18: =H18/'- 3 -'!D18*100 -> 1.534922185
A19: GARDEN VALLEY | B19: =SUM('- 18 -'!B19,'- 18 -'!E19,'- 19 -'!B19,'- 19 -'!E19,'- 19 -'!H19,'- 20 -'!B19) -> 28493800 | C19: =B19/'- 3 -'!D19*100 -> 55.85869576 | D19: =B19/'- 7 -'!C19 -> 6559.346225 | E19: =SUM('- 21 -'!B19,'- 21 -'!E19,'- 21 -'!H19,'- 22 -'!B19,'- 22 -'!E19,'- 22 -'!H19) -> 10258200 | F19: =E19/'- 3 -'!D19*100 -> 20.10997736 | G19: =E19/'- 7 -'!E19 -> 2361.464088 | H19: =SUM('- 23 -'!D19,'- 23 -'!B19) -> 0 | I19: =H19/'- 3 -'!D19*100 -> 0
A20: HANOVER | B20: =SUM('- 18 -'!B20,'- 18 -'!E20,'- 19 -'!B20,'- 19 -'!E20,'- 19 -'!H20,'- 20 -'!B20) -> 54386300 | C20: =B20/'- 3 -'!D20*100 -> 61.04633282 | D20: =B20/'- 7 -'!C20 -> 6848.366178 | E20: =SUM('- 21 -'!B20,'- 21 -'!E20,'- 21 -'!H20,'- 22 -'!B20,'- 22 -'!E20,'- 22 -'!H20) -> 13976900 | F20: =E20/'- 3 -'!D20*100 -> 15.68848201 | G20: =E20/'- 7 -'!E20 -> 1759.982371 | H20: =SUM('- 23 -'!D20,'- 23 -'!B20) -> 0 | I20: =H20/'- 3 -'!D20*100 -> 0
A21: INTERLAKE | B21: =SUM('- 18 -'!B21,'- 18 -'!E21,'- 19 -'!B21,'- 19 -'!E21,'- 19 -'!H21,'- 20 -'!B21) -> 21851500 | C21: =B21/'- 3 -'!D21*100 -> 57.85028791 | D21: =B21/'- 7 -'!C21 -> 7765.280739 | E21: =SUM('- 21 -'!B21,'- 21 -'!E21,'- 21 -'!H21,'- 22 -'!B21,'- 22 -'!E21,'- 22 -'!H21) -> 6606000 | F21: =E21/'- 3 -'!D21*100 -> 17.48891389 | G21: =E21/'- 7 -'!E21 -> 2347.547974 | H21: =SUM('- 23 -'!D21,'- 23 -'!B21) -> 0 | I21: =H21/'- 3 -'!D21*100 -> 0
A22: KELSEY | B22: =SUM('- 18 -'!B22,'- 18 -'!E22,'- 19 -'!B22,'- 19 -'!E22,'- 19 -'!H22,'- 20 -'!B22) -> 10728176 | C22: =B22/'- 3 -'!D22*100 -> 52.2327834 | D22: =B22/'- 7 -'!C22 -> 7516.939462 | E22: =SUM('- 21 -'!B22,'- 21 -'!E22,'- 21 -'!H22,'- 22 -'!B22,'- 22 -'!E22,'- 22 -'!H22) -> 4111365 | F22: =E22/'- 3 -'!D22*100 -> 20.01719934 | G22: =E22/'- 7 -'!E22 -> 2880.720992 | H22: =SUM('- 23 -'!D22,'- 23 -'!B22) -> 560185 | I22: =H22/'- 3 -'!D22*100 -> 2.727399492
A23: LAKESHORE | B23: =SUM('- 18 -'!B23,'- 18 -'!E23,'- 19 -'!B23,'- 19 -'!E23,'- 19 -'!H23,'- 20 -'!B23) -> 8281441 | C23: =B23/'- 3 -'!D23*100 -> 50.55663054 | D23: =B23/'- 7 -'!C23 -> 8749.541469 | E23: =SUM('- 21 -'!B23,'- 21 -'!E23,'- 21 -'!H23,'- 22 -'!B23,'- 22 -'!E23,'- 22 -'!H23) -> 2868250 | F23: =E23/'- 3 -'!D23*100 -> 17.51012361 | G23: =E23/'- 7 -'!E23 -> 3030.375066 | H23: =SUM('- 23 -'!D23,'- 23 -'!B23) -> 272000 | I23: =H23/'- 3 -'!D23*100 -> 1.660508541
A24: LORD SELKIRK | B24: =SUM('- 18 -'!B24,'- 18 -'!E24,'- 19 -'!B24,'- 19 -'!E24,'- 19 -'!H24,'- 20 -'!B24) -> 33647515 | C24: =B24/'- 3 -'!D24*100 -> 57.44941773 | D24: =B24/'- 7 -'!C24 -> 8866.275362 | E24: =SUM('- 21 -'!B24,'- 21 -'!E24,'- 21 -'!H24,'- 22 -'!B24,'- 22 -'!E24,'- 22 -'!H24) -> 10318170 | F24: =E24/'- 3 -'!D24*100 -> 17.61713632 | G24: =E24/'- 7 -'!E24 -> 2718.885375 | H24: =SUM('- 23 -'!D24,'- 23 -'!B24) -> 356050 | I24: =H24/'- 3 -'!D24*100 -> 0.6079160729
A25: LOUIS RIEL | B25: =SUM('- 18 -'!B25,'- 18 -'!E25,'- 19 -'!B25,'- 19 -'!E25,'- 19 -'!H25,'- 20 -'!B25) -> 108440666 | C25: =B25/'- 3 -'!D25*100 -> 56.36194458 | D25: =B25/'- 7 -'!C25 -> 7265.706265 | E25: =SUM('- 21 -'!B25,'- 21 -'!E25,'- 21 -'!H25,'- 22 -'!B25,'- 22 -'!E25,'- 22 -'!H25) -> 39143648 | F25: =E25/'- 3 -'!D25*100 -> 20.34487799 | G25: =E25/'- 7 -'!E25 -> 2622.689983 | H25: =SUM('- 23 -'!D25,'- 23 -'!B25) -> 567783 | I25: =H25/'- 3 -'!D25*100 -> 0.2951047348
A26: MOUNTAIN VIEW | B26: =SUM('- 18 -'!B26,'- 18 -'!E26,'- 19 -'!B26,'- 19 -'!E26,'- 19 -'!H26,'- 20 -'!B26) -> 23180494 | C26: =B26/'- 3 -'!D26*100 -> 56.02829083 | D26: =B26/'- 7 -'!C26 -> 7708.844031 | E26: =SUM('- 21 -'!B26,'- 21 -'!E26,'- 21 -'!H26,'- 22 -'!B26,'- 22 -'!E26,'- 22 -'!H26) -> 6217667 | F26: =E26/'- 3 -'!D26*100 -> 15.02837925 | G26: =E26/'- 7 -'!E26 -> 2067.730961 | H26: =SUM('- 23 -'!D26,'- 23 -'!B26) -> 0 | I26: =H26/'- 3 -'!D26*100 -> 0
A27: MYSTERY LAKE | B27: =SUM('- 18 -'!B27,'- 18 -'!E27,'- 19 -'!B27,'- 19 -'!E27,'- 19 -'!H27,'- 20 -'!B27) -> 23497935 | C27: =B27/'- 3 -'!D27*100 -> 56.01397822 | D27: =B27/'- 7 -'!C27 -> 7864.101406 | E27: =SUM('- 21 -'!B27,'- 21 -'!E27,'- 21 -'!H27,'- 22 -'!B27,'- 22 -'!E27,'- 22 -'!H27) -> 8686638 | F27: =E27/'- 3 -'!D27*100 -> 20.70706008 | G27: =E27/'- 7 -'!E27 -> 2907.174699 | H27: =SUM('- 23 -'!D27,'- 23 -'!B27) -> 0 | I27: =H27/'- 3 -'!D27*100 -> 0
A28: PARK WEST | B28: =SUM('- 18 -'!B28,'- 18 -'!E28,'- 19 -'!B28,'- 19 -'!E28,'- 19 -'!H28,'- 20 -'!B28) -> 17090702 | C28: =B28/'- 3 -'!D28*100 -> 59.36299557 | D28: =B28/'- 7 -'!C28 -> 8517.668577 | E28: =SUM('- 21 -'!B28,'- 21 -'!E28,'- 21 -'!H28,'- 22 -'!B28,'- 22 -'!E28,'- 22 -'!H28) -> 3764442 | F28: =E28/'- 3 -'!D28*100 -> 13.07544616 | G28: =E28/'- 7 -'!E28 -> 1876.123598 | H28: =SUM('- 23 -'!D28,'- 23 -'!B28) -> 116817 | I28: =H28/'- 3 -'!D28*100 -> 0.4057532016
A29: PEMBINA TRAILS | B29: =SUM('- 18 -'!B29,'- 18 -'!E29,'- 19 -'!B29,'- 19 -'!E29,'- 19 -'!H29,'- 20 -'!B29) -> 100893142 | C29: =B29/'- 3 -'!D29*100 -> 57.56049043 | D29: =B29/'- 7 -'!C29 -> 7276.822358 | E29: =SUM('- 21 -'!B29,'- 21 -'!E29,'- 21 -'!H29,'- 22 -'!B29,'- 22 -'!E29,'- 22 -'!H29) -> 32137428 | F29: =E29/'- 3 -'!D29*100 -> 18.33470621 | G29: =E29/'- 7 -'!E29 -> 2317.881572 | H29: =SUM('- 23 -'!D29,'- 23 -'!B29) -> 0 | I29: =H29/'- 3 -'!D29*100 -> 0
A30: PINE CREEK | B30: =SUM('- 18 -'!B30,'- 18 -'!E30,'- 19 -'!B30,'- 19 -'!E30,'- 19 -'!H30,'- 20 -'!B30) -> 9282340 | C30: =B30/'- 3 -'!D30*100 -> 60.23392515 | D30: =B30/'- 7 -'!C30 -> 8819.325416 | E30: =SUM('- 21 -'!B30,'- 21 -'!E30,'- 21 -'!H30,'- 22 -'!B30,'- 22 -'!E30,'- 22 -'!H30) -> 1859757 | F30: =E30/'- 3 -'!D30*100 -> 12.06812764 | G30: =E30/'- 7 -'!E30 -> 1766.990024 | H30: =SUM('- 23 -'!D30,'- 23 -'!B30) -> 0 | I30: =H30/'- 3 -'!D30*100 -> 0
A31: PORTAGE LA PRAIRIE | B31: =SUM('- 18 -'!B31,'- 18 -'!E31,'- 19 -'!B31,'- 19 -'!E31,'- 19 -'!H31,'- 20 -'!B31) -> 23856928 | C31: =B31/'- 3 -'!D31*100 -> 59.76260419 | D31: =B31/'- 7 -'!C31 -> 7150.285629 | E31: =SUM('- 21 -'!B31,'- 21 -'!E31,'- 21 -'!H31,'- 22 -'!B31,'- 22 -'!E31,'- 22 -'!H31) -> 7642070 | F31: =E31/'- 3 -'!D31*100 -> 19.14370554 | G31: =E31/'- 7 -'!E31 -> 2290.445077 | H31: =SUM('- 23 -'!D31,'- 23 -'!B31) -> 0 | I31: =H31/'- 3 -'!D31*100 -> 0
A32: PRAIRIE ROSE | B32: =SUM('- 18 -'!B32,'- 18 -'!E32,'- 19 -'!B32,'- 19 -'!E32,'- 19 -'!H32,'- 20 -'!B32) -> 18412040 | C32: =B32/'- 3 -'!D32*100 -> 58.9104125 | D32: =B32/'- 7 -'!C32 -> 8250.970199 | E32: =SUM('- 21 -'!B32,'- 21 -'!E32,'- 21 -'!H32,'- 22 -'!B32,'- 22 -'!E32,'- 22 -'!H32) -> 4312507 | F32: =E32/'- 3 -'!D32*100 -> 13.79812157 | G32: =E32/'- 7 -'!E32 -> 1932.559713 | H32: =SUM('- 23 -'!D32,'- 23 -'!B32) -> 279114 | I32: =H32/'- 3 -'!D32*100 -> 0.8930417746
A33: PRAIRIE SPIRIT | B33: =SUM('- 18 -'!B33,'- 18 -'!E33,'- 19 -'!B33,'- 19 -'!E33,'- 19 -'!H33,'- 20 -'!B33) -> 16663077 | C33: =B33/'- 3 -'!D33*100 -> 58.30537571 | D33: =B33/'- 7 -'!C33 -> 8221.777767 | E33: =SUM('- 21 -'!B33,'- 21 -'!E33,'- 21 -'!H33,'- 22 -'!B33,'- 22 -'!E33,'- 22 -'!H33) -> 3953802 | F33: =E33/'- 3 -'!D33*100 -> 13.83465437 | G33: =E33/'- 7 -'!E33 -> 1950.857058 | H33: =SUM('- 23 -'!D33,'- 23 -'!B33) -> 0 | I33: =H33/'- 3 -'!D33*100 -> 0
A34: RED RIVER VALLEY | B34: =SUM('- 18 -'!B34,'- 18 -'!E34,'- 19 -'!B34,'- 19 -'!E34,'- 19 -'!H34,'- 20 -'!B34) -> 17741336 | C34: =B34/'- 3 -'!D34*100 -> 56.02977932 | D34: =B34/'- 7 -'!C34 -> 7945.067622 | E34: =SUM('- 21 -'!B34,'- 21 -'!E34,'- 21 -'!H34,'- 22 -'!B34,'- 22 -'!E34,'- 22 -'!H34) -> 5605771 | F34: =E34/'- 3 -'!D34*100 -> 17.70385906 | G34: =E34/'- 7 -'!E34 -> 2510.421406 | H34: =SUM('- 23 -'!D34,'- 23 -'!B34) -> 0 | I34: =H34/'- 3 -'!D34*100 -> 0
A35: RIVER EAST TRANSCONA | B35: =SUM('- 18 -'!B35,'- 18 -'!E35,'- 19 -'!B35,'- 19 -'!E35,'- 19 -'!H35,'- 20 -'!B35) -> 112743355 | C35: =B35/'- 3 -'!D35*100 -> 58.0967073 | D35: =B35/'- 7 -'!C35 -> 6923.141234 | E35: =SUM('- 21 -'!B35,'- 21 -'!E35,'- 21 -'!H35,'- 22 -'!B35,'- 22 -'!E35,'- 22 -'!H35) -> 36219508 | F35: =E35/'- 3 -'!D35*100 -> 18.66393061 | G35: =E35/'- 7 -'!E35 -> 2224.102426 | H35: =SUM('- 23 -'!D35,'- 23 -'!B35) -> 0 | I35: =H35/'- 3 -'!D35*100 -> 0
A36: ROLLING RIVER | B36: =SUM('- 18 -'!B36,'- 18 -'!E36,'- 19 -'!B36,'- 19 -'!E36,'- 19 -'!H36,'- 20 -'!B36) -> 14254790 | C36: =B36/'- 3 -'!D36*100 -> 58.97737395 | D36: =B36/'- 7 -'!C36 -> 8294.902531 | E36: =SUM('- 21 -'!B36,'- 21 -'!E36,'- 21 -'!H36,'- 22 -'!B36,'- 22 -'!E36,'- 22 -'!H36) -> 3253000 | F36: =E36/'- 3 -'!D36*100 -> 13.45887224 | G36: =E36/'- 7 -'!E36 -> 1892.929881 | H36: =SUM('- 23 -'!D36,'- 23 -'!B36) -> 0 | I36: =H36/'- 3 -'!D36*100 -> 0
A37: SEINE RIVER | B37: =SUM('- 18 -'!B37,'- 18 -'!E37,'- 19 -'!B37,'- 19 -'!E37,'- 19 -'!H37,'- 20 -'!B37) -> 30958468 | C37: =B37/'- 3 -'!D37*100 -> 57.20380047 | D37: =B37/'- 7 -'!C37 -> 7138.221812 | E37: =SUM('- 21 -'!B37,'- 21 -'!E37,'- 21 -'!H37,'- 22 -'!B37,'- 22 -'!E37,'- 22 -'!H37) -> 9732100 | F37: =E37/'- 3 -'!D37*100 -> 17.98257932 | G37: =E37/'- 7 -'!E37 -> 2243.970487 | H37: =SUM('- 23 -'!D37,'- 23 -'!B37) -> 0 | I37: =H37/'- 3 -'!D37*100 -> 0
A38: SEVEN OAKS | B38: =SUM('- 18 -'!B38,'- 18 -'!E38,'- 19 -'!B38,'- 19 -'!E38,'- 19 -'!H38,'- 20 -'!B38) -> 87598433 | C38: =B38/'- 3 -'!D38*100 -> 59.10877288 | D38: =B38/'- 7 -'!C38 -> 7637.444462 | E38: =SUM('- 21 -'!B38,'- 21 -'!E38,'- 21 -'!H38,'- 22 -'!B38,'- 22 -'!E38,'- 22 -'!H38) -> 25171210 | F38: =E38/'- 3 -'!D38*100 -> 16.98477112 | G38: =E38/'- 7 -'!E38 -> 2194.602253 | H38: =SUM('- 23 -'!D38,'- 23 -'!B38) -> 2027377 | I38: =H38/'- 3 -'!D38*100 -> 1.368012675
A39: SOUTHWEST HORIZON | B39: =SUM('- 18 -'!B39,'- 18 -'!E39,'- 19 -'!B39,'- 19 -'!E39,'- 19 -'!H39,'- 20 -'!B39) -> 13381800 | C39: =B39/'- 3 -'!D39*100 -> 57.22900068 | D39: =B39/'- 7 -'!C39 -> 8903.393214 | E39: =SUM('- 21 -'!B39,'- 21 -'!E39,'- 21 -'!H39,'- 22 -'!B39,'- 22 -'!E39,'- 22 -'!H39) -> 3219550 | F39: =E39/'- 3 -'!D39*100 -> 13.76882252 | G39: =E39/'- 7 -'!E39 -> 2142.082502 | H39: =SUM('- 23 -'!D39,'- 23 -'!B39) -> 0 | I39: =H39/'- 3 -'!D39*100 -> 0
A40: ST. JAMES-ASSINIBOIA | B40: =SUM('- 18 -'!B40,'- 18 -'!E40,'- 19 -'!B40,'- 19 -'!E40,'- 19 -'!H40,'- 20 -'!B40) -> 60428134 | C40: =B40/'- 3 -'!D40*100 -> 55.42453806 | D40: =B40/'- 7 -'!C40 -> 7229.975353 | E40: =SUM('- 21 -'!B40,'- 21 -'!E40,'- 21 -'!H40,'- 22 -'!B40,'- 22 -'!E40,'- 22 -'!H40) -> 24468435 | F40: =E40/'- 3 -'!D40*100 -> 22.44238928 | G40: =E40/'- 7 -'!E40 -> 2927.546662 | H40: =SUM('- 23 -'!D40,'- 23 -'!B40) -> 0 | I40: =H40/'- 3 -'!D40*100 -> 0
A41: SUNRISE | B41: =SUM('- 18 -'!B41,'- 18 -'!E41,'- 19 -'!B41,'- 19 -'!E41,'- 19 -'!H41,'- 20 -'!B41) -> 34177385 | C41: =B41/'- 3 -'!D41*100 -> 52.4508362 | D41: =B41/'- 7 -'!C41 -> 7688.950506 | E41: =SUM('- 21 -'!B41,'- 21 -'!E41,'- 21 -'!H41,'- 22 -'!B41,'- 22 -'!E41,'- 22 -'!H41) -> 12783148 | F41: =E41/'- 3 -'!D41*100 -> 19.61784969 | G41: =E41/'- 7 -'!E41 -> 2875.848819 | H41: =SUM('- 23 -'!D41,'- 23 -'!B41) -> 994120 | I41: =H41/'- 3 -'!D41*100 -> 1.52564116
A42: SWAN VALLEY | B42: =SUM('- 18 -'!B42,'- 18 -'!E42,'- 19 -'!B42,'- 19 -'!E42,'- 19 -'!H42,'- 20 -'!B42) -> 11715851 | C42: =B42/'- 3 -'!D42*100 -> 55.0628324 | D42: =B42/'- 7 -'!C42 -> 8511.333818 | E42: =SUM('- 21 -'!B42,'- 21 -'!E42,'- 21 -'!H42,'- 22 -'!B42,'- 22 -'!E42,'- 22 -'!H42) -> 3514793 | F42: =E42/'- 3 -'!D42*100 -> 16.5190269 | G42: =E42/'- 7 -'!E42 -> 2553.427534 | H42: =SUM('- 23 -'!D42,'- 23 -'!B42) -> 0 | I42: =H42/'- 3 -'!D42*100 -> 0
A43: TURTLE MOUNTAIN | B43: =SUM('- 18 -'!B43,'- 18 -'!E43,'- 19 -'!B43,'- 19 -'!E43,'- 19 -'!H43,'- 20 -'!B43) -> 7675297 | C43: =B43/'- 3 -'!D43*100 -> 55.35557241 | D43: =B43/'- 7 -'!C43 -> 7717.744595 | E43: =SUM('- 21 -'!B43,'- 21 -'!E43,'- 21 -'!H43,'- 22 -'!B43,'- 22 -'!E43,'- 22 -'!H43) -> 2437856 | F43: =E43/'- 3 -'!D43*100 -> 17.58224005 | G43: =E43/'- 7 -'!E43 -> 2451.338361 | H43: =SUM('- 23 -'!D43,'- 23 -'!B43) -> 199256 | I43: =H43/'- 3 -'!D43*100 -> 1.437068811
A44: TURTLE RIVER | B44: =SUM('- 18 -'!B44,'- 18 -'!E44,'- 19 -'!B44,'- 19 -'!E44,'- 19 -'!H44,'- 20 -'!B44) -> 6177931 | C44: =B44/'- 3 -'!D44*100 -> 54.31136673 | D44: =B44/'- 7 -'!C44 -> 8831.924232 | E44: =SUM('- 21 -'!B44,'- 21 -'!E44,'- 21 -'!H44,'- 22 -'!B44,'- 22 -'!E44,'- 22 -'!H44) -> 1825513 | F44: =E44/'- 3 -'!D44*100 -> 16.04843207 | G44: =E44/'- 7 -'!E44 -> 2609.739814 | H44: =SUM('- 23 -'!D44,'- 23 -'!B44) -> 0 | I44: =H44/'- 3 -'!D44*100 -> 0
A45: WESTERN | B45: =SUM('- 18 -'!B45,'- 18 -'!E45,'- 19 -'!B45,'- 19 -'!E45,'- 19 -'!H45,'- 20 -'!B45) -> 13052524 | C45: =B45/'- 3 -'!D45*100 -> 61.30203066 | D45: =B45/'- 7 -'!C45 -> 6998.672386 | E45: =SUM('- 21 -'!B45,'- 21 -'!E45,'- 21 -'!H45,'- 22 -'!B45,'- 22 -'!E45,'- 22 -'!H45) -> 3196869 | F45: =E45/'- 3 -'!D45*100 -> 15.01430386 | G45: =E45/'- 7 -'!E45 -> 1714.138874 | H45: =SUM('- 23 -'!D45,'- 23 -'!B45) -> 427461 | I45: =H45/'- 3 -'!D45*100 -> 2.007598479
A46: WINNIPEG | B46: =SUM('- 18 -'!B46,'- 18 -'!E46,'- 19 -'!B46,'- 19 -'!E46,'- 19 -'!H46,'- 20 -'!B46) -> 215386226 | C46: =B46/'- 3 -'!D46*100 -> 52.17045667 | D46: =B46/'- 7 -'!C46 -> 7139.677666 | E46: =SUM('- 21 -'!B46,'- 21 -'!E46,'- 21 -'!H46,'- 22 -'!B46,'- 22 -'!E46,'- 22 -'!H46) -> 96661664 | F46: =E46/'- 3 -'!D46*100 -> 23.41321099 | G46: =E46/'- 7 -'!E46 -> 3204.165542 | H46: =SUM('- 23 -'!D46,'- 23 -'!B46) -> 795800 | I46: =H46/'- 3 -'!D46*100 -> 0.1927572166
A48: PROVINCE | B48: =SUM(B11:B46) -> 1361353758 | C48: =B48/'- 3 -'!D48*100 -> 55.63981313 | D48: =B48/'- 7 -'!C48 -> 7542.533087 | E48: =SUM(E11:E46) -> 456581269 | F48: =E48/'- 3 -'!D48*100 -> 18.66090745 | G48: =E48/'- 7 -'!E48 -> 2529.672621 | H48: =SUM(H11:H46) -> 9659845 | I48: =H48/'- 3 -'!D48*100 -> 0.3948069835
A50: WHITESHELL | B50: =SUM('- 18 -'!B50,'- 18 -'!E50,'- 19 -'!B50,'- 19 -'!E50,'- 19 -'!H50,'- 20 -'!B50) -> 2146000 | C50: =B50/'- 3 -'!D50*100 -> 59.40078284 | D50: =B50/'- 7 -'!C50 -> 12811.9403 | E50: =SUM('- 21 -'!B50,'- 21 -'!E50,'- 21 -'!H50,'- 22 -'!B50,'- 22 -'!E50,'- 22 -'!H50) -> 366400 | F50: =E50/'- 3 -'!D50*100 -> 10.14186712 | G50: =E50/'- 7 -'!E50 -> 2187.462687 | H50: =SUM('- 23 -'!D50,'- 23 -'!B50) -> 0 | I50: =H50/'- 3 -'!D50*100 -> 0
A51: MITT | B51: =SUM('- 18 -'!B51,'- 18 -'!E51,'- 19 -'!B51,'- 19 -'!E51,'- 19 -'!H51,'- 20 -'!B51) -> 6576701 | C51: =B51/'- 3 -'!D51*100 -> 19.80253592 | D51: =B51/'- 7 -'!C51 -> 4684.259972 | E51: =SUM('- 21 -'!B51,'- 21 -'!E51,'- 21 -'!H51,'- 22 -'!B51,'- 22 -'!E51,'- 22 -'!H51) -> 920873 | F51: =E51/'- 3 -'!D51*100 -> 2.772761095 | G51: =E51/'- 7 -'!E51 -> 655.8924501 | H51: =SUM('- 23 -'!D51,'- 23 -'!B51) -> 2793338 | I51: =H51/'- 3 -'!D51*100 -> 8.41077861

Sheet - 16 -
B2: =AEXP_BF -> ANALYSIS OF EXPENSE BY FUNCTION | I2: PAGE 2 OF 3
B3: =+'- 15 -'!B3 -> OPERATING FUND 2019/2020 BUDGET
B6: COMMUNITY EDUCATION AND SERVICES | D6: DIVISIONAL ADMINISTRATION | G6: INSTRUCTIONAL & OTHER SUPPORT SERVICES
F8: PER PUPIL | I8: PER PUPIL
A9: DIVISION / DISTRICT | B9: AMOUNT | C9: % | D9: AMOUNT | E9: % | G9: AMOUNT | H9: %
A11: BEAUTIFUL PLAINS | B11: =SUM('- 24 -'!H11,'- 24 -'!F11,'- 24 -'!D11,'- 24 -'!B11) -> 25330 | C11: =B11/'- 3 -'!D11*100 -> 0.1216664743 | D11: =SUM('- 25 -'!B11,'- 25 -'!E11,'- 25 -'!H11,'- 26 -'!B11) -> 651952 | E11: =D11/'- 3 -'!D11*100 -> 3.131492351 | F11: =D11/'- 7 -'!E11 -> 361.8939772 | G11: =SUM('- 27 -'!B11,'- 27 -'!E11,'- 27 -'!H11,'- 28 -'!B11,'- 28 -'!E11) -> 616061 | H11: =G11/'- 3 -'!D11*100 -> 2.95909869 | I11: =G11/'- 7 -'!E11 -> 341.9711352
A12: BORDER LAND | B12: =SUM('- 24 -'!H12,'- 24 -'!F12,'- 24 -'!D12,'- 24 -'!B12) -> 57887 | C12: =B12/'- 3 -'!D12*100 -> 0.166078381 | D12: =SUM('- 25 -'!B12,'- 25 -'!E12,'- 25 -'!H12,'- 26 -'!B12) -> 1217250 | E12: =D12/'- 3 -'!D12*100 -> 3.492302403 | F12: =D12/'- 7 -'!E12 -> 569.1914185 | G12: =SUM('- 27 -'!B12,'- 27 -'!E12,'- 27 -'!H12,'- 28 -'!B12,'- 28 -'!E12) -> 929592 | H12: =G12/'- 3 -'!D12*100 -> 2.667008729 | I12: =G12/'- 7 -'!E12 -> 434.6812809
A13: BRANDON | B13: =SUM('- 24 -'!H13,'- 24 -'!F13,'- 24 -'!D13,'- 24 -'!B13) -> 346600 | C13: =B13/'- 3 -'!D13*100 -> 0.327935238 | D13: =SUM('- 25 -'!B13,'- 25 -'!E13,'- 25 -'!H13,'- 26 -'!B13) -> 3131000 | E13: =D13/'- 3 -'!D13*100 -> 2.96239247 | F13: =D13/'- 7 -'!E13 -> 360.9846083 | G13: =SUM('- 27 -'!B13,'- 27 -'!E13,'- 27 -'!H13,'- 28 -'!B13,'- 28 -'!E13) -> 3386500 | H13: =G13/'- 3 -'!D13*100 -> 3.204133536 | I13: =G13/'- 7 -'!E13 -> 390.4421514
A14: DSFM | B14: =SUM('- 24 -'!H14,'- 24 -'!F14,'- 24 -'!D14,'- 24 -'!B14) -> 1677051 | C14: =B14/'- 3 -'!D14*100 -> 1.756002322 | D14: =SUM('- 25 -'!B14,'- 25 -'!E14,'- 25 -'!H14,'- 26 -'!B14) -> 3751367 | E14: =D14/'- 3 -'!D14*100 -> 3.927971876 | F14: =D14/'- 7 -'!E14 -> 649.2500865 | G14: =SUM('- 27 -'!B14,'- 27 -'!E14,'- 27 -'!H14,'- 28 -'!B14,'- 28 -'!E14) -> 3329886 | H14: =G14/'- 3 -'!D14*100 -> 3.486648616 | I14: =G14/'- 7 -'!E14 -> 576.3042575
A15: EVERGREEN | B15: =SUM('- 24 -'!H15,'- 24 -'!F15,'- 24 -'!D15,'- 24 -'!B15) -> 78400 | C15: =B15/'- 3 -'!D15*100 -> 0.3729601068 | D15: =SUM('- 25 -'!B15,'- 25 -'!E15,'- 25 -'!H15,'- 26 -'!B15) -> 764390 | E15: =D15/'- 3 -'!D15*100 -> 3.63631347 | F15: =D15/'- 7 -'!E15 -> 545.21398 | G15: =SUM('- 27 -'!B15,'- 27 -'!E15,'- 27 -'!H15,'- 28 -'!B15,'- 28 -'!E15) -> 702156 | H15: =G15/'- 3 -'!D15*100 -> 3.340257357 | I15: =G15/'- 7 -'!E15 -> 500.8245364
A16: FLIN FLON | B16: =SUM('- 24 -'!H16,'- 24 -'!F16,'- 24 -'!D16,'- 24 -'!B16) -> 13940 | C16: =B16/'- 3 -'!D16*100 -> 0.0934736108 | D16: =SUM('- 25 -'!B16,'- 25 -'!E16,'- 25 -'!H16,'- 26 -'!B16) -> 657913 | E16: =D16/'- 3 -'!D16*100 -> 4.411585632 | F16: =D16/'- 7 -'!E16 -> 700.2799361 | G16: =SUM('- 27 -'!B16,'- 27 -'!E16,'- 27 -'!H16,'- 28 -'!B16,'- 28 -'!E16) -> 307586 | H16: =G16/'- 3 -'!D16*100 -> 2.062494552 | I16: =G16/'- 7 -'!E16 -> 327.3932943
A17: FORT LA BOSSE | B17: =SUM('- 24 -'!H17,'- 24 -'!F17,'- 24 -'!D17,'- 24 -'!B17) -> 285520 | C17: =B17/'- 3 -'!D17*100 -> 1.523821316 | D17: =SUM('- 25 -'!B17,'- 25 -'!E17,'- 25 -'!H17,'- 26 -'!B17) -> 681050 | E17: =D17/'- 3 -'!D17*100 -> 3.634766417 | F17: =D17/'- 7 -'!E17 -> 473.773913 | G17: =SUM('- 27 -'!B17,'- 27 -'!E17,'- 27 -'!H17,'- 28 -'!B17,'- 28 -'!E17) -> 442500 | H17: =G17/'- 3 -'!D17*100 -> 2.361624168 | I17: =G17/'- 7 -'!E17 -> 307.826087
A18: FRONTIER | B18: =SUM('- 24 -'!H18,'- 24 -'!F18,'- 24 -'!D18,'- 24 -'!B18) -> 2114143 | C18: =B18/'- 3 -'!D18*100 -> 1.549756027 | D18: =SUM('- 25 -'!B18,'- 25 -'!E18,'- 25 -'!H18,'- 26 -'!B18) -> 7330911 | E18: =D18/'- 3 -'!D18*100 -> 5.373867097 | F18: =D18/'- 7 -'!E18 -> 1189.947733 | G18: =SUM('- 27 -'!B18,'- 27 -'!E18,'- 27 -'!H18,'- 28 -'!B18,'- 28 -'!E18) -> 7603024 | H18: =G18/'- 3 -'!D18*100 -> 5.573337408 | I18: =G18/'- 7 -'!E18 -> 1234.116902
A19: GARDEN VALLEY | B19: =SUM('- 24 -'!H19,'- 24 -'!F19,'- 24 -'!D19,'- 24 -'!B19) -> 91500 | C19: =B19/'- 3 -'!D19*100 -> 0.1793748346 | D19: =SUM('- 25 -'!B19,'- 25 -'!E19,'- 25 -'!H19,'- 26 -'!B19) -> 1568200 | E19: =D19/'- 3 -'!D19*100 -> 3.074269023 | F19: =D19/'- 7 -'!E19 -> 361.0036832 | G19: =SUM('- 27 -'!B19,'- 27 -'!E19,'- 27 -'!H19,'- 28 -'!B19,'- 28 -'!E19) -> 1769200 | H19: =G19/'- 3 -'!D19*100 -> 3.468305545 | I19: =G19/'- 7 -'!E19 -> 407.2744015
A20: HANOVER | B20: =SUM('- 24 -'!H20,'- 24 -'!F20,'- 24 -'!D20,'- 24 -'!B20) -> 142400 | C20: =B20/'- 3 -'!D20*100 -> 0.1598380069 | D20: =SUM('- 25 -'!B20,'- 25 -'!E20,'- 25 -'!H20,'- 26 -'!B20) -> 2339400 | E20: =D20/'- 3 -'!D20*100 -> 2.625878043 | F20: =D20/'- 7 -'!E20 -> 294.5791097 | G20: =SUM('- 27 -'!B20,'- 27 -'!E20,'- 27 -'!H20,'- 28 -'!B20,'- 28 -'!E20) -> 2748800 | H20: =G20/'- 3 -'!D20*100 -> 3.085412312 | I20: =G20/'- 7 -'!E20 -> 346.1310835
A21: INTERLAKE | B21: =SUM('- 24 -'!H21,'- 24 -'!F21,'- 24 -'!D21,'- 24 -'!B21) -> 300000 | C21: =B21/'- 3 -'!D21*100 -> 0.7942286055 | D21: =SUM('- 25 -'!B21,'- 25 -'!E21,'- 25 -'!H21,'- 26 -'!B21) -> 1294000 | E21: =D21/'- 3 -'!D21*100 -> 3.425772718 | F21: =D21/'- 7 -'!E21 -> 459.8436389 | G21: =SUM('- 27 -'!B21,'- 27 -'!E21,'- 27 -'!H21,'- 28 -'!B21,'- 28 -'!E21) -> 1088000 | H21: =G21/'- 3 -'!D21*100 -> 2.880402409 | I21: =G21/'- 7 -'!E21 -> 386.6382374
A22: KELSEY | B22: =SUM('- 24 -'!H22,'- 24 -'!F22,'- 24 -'!D22,'- 24 -'!B22) -> 87890 | C22: =B22/'- 3 -'!D22*100 -> 0.427914245 | D22: =SUM('- 25 -'!B22,'- 25 -'!E22,'- 25 -'!H22,'- 26 -'!B22) -> 877355 | E22: =D22/'- 3 -'!D22*100 -> 4.271620235 | F22: =D22/'- 7 -'!E22 -> 614.7386491 | G22: =SUM('- 27 -'!B22,'- 27 -'!E22,'- 27 -'!H22,'- 28 -'!B22,'- 28 -'!E22) -> 493193 | H22: =G22/'- 3 -'!D22*100 -> 2.401232338 | I22: =G22/'- 7 -'!E22 -> 345.5668442
A23: LAKESHORE | B23: =SUM('- 24 -'!H23,'- 24 -'!F23,'- 24 -'!D23,'- 24 -'!B23) -> 277000 | C23: =B23/'- 3 -'!D23*100 -> 1.691032595 | D23: =SUM('- 25 -'!B23,'- 25 -'!E23,'- 25 -'!H23,'- 26 -'!B23) -> 588650 | E23: =D23/'- 3 -'!D23*100 -> 3.593596884 | F23: =D23/'- 7 -'!E23 -> 621.9228737 | G23: =SUM('- 27 -'!B23,'- 27 -'!E23,'- 27 -'!H23,'- 28 -'!B23,'- 28 -'!E23) -> 424800 | H23: =G23/'- 3 -'!D23*100 -> 2.593323632 | I23: =G23/'- 7 -'!E23 -> 448.8114105
A24: LORD SELKIRK | B24: =SUM('- 24 -'!H24,'- 24 -'!F24,'- 24 -'!D24,'- 24 -'!B24) -> 427640 | C24: =B24/'- 3 -'!D24*100 -> 0.7301480956 | D24: =SUM('- 25 -'!B24,'- 25 -'!E24,'- 25 -'!H24,'- 26 -'!B24) -> 1878010 | E24: =D24/'- 3 -'!D24*100 -> 3.206494774 | F24: =D24/'- 7 -'!E24 -> 494.8642951 | G24: =SUM('- 27 -'!B24,'- 27 -'!E24,'- 27 -'!H24,'- 28 -'!B24,'- 28 -'!E24) -> 1664220 | H24: =G24/'- 3 -'!D24*100 -> 2.841471947 | I24: =G24/'- 7 -'!E24 -> 438.5296443
A25: LOUIS RIEL | B25: =SUM('- 24 -'!H25,'- 24 -'!F25,'- 24 -'!D25,'- 24 -'!B25) -> 2079951 | C25: =B25/'- 3 -'!D25*100 -> 1.081052776 | D25: =SUM('- 25 -'!B25,'- 25 -'!E25,'- 25 -'!H25,'- 26 -'!B25) -> 6359970 | E25: =D25/'- 3 -'!D25*100 -> 3.305589037 | F25: =D25/'- 7 -'!E25 -> 426.1286432 | G25: =SUM('- 27 -'!B25,'- 27 -'!E25,'- 27 -'!H25,'- 28 -'!B25,'- 28 -'!E25) -> 7443998 | H25: =G25/'- 3 -'!D25*100 -> 3.869011674 | I25: =G25/'- 7 -'!E25 -> 498.760335
A26: MOUNTAIN VIEW | B26: =SUM('- 24 -'!H26,'- 24 -'!F26,'- 24 -'!D26,'- 24 -'!B26) -> 100209 | C26: =B26/'- 3 -'!D26*100 -> 0.2422096352 | D26: =SUM('- 25 -'!B26,'- 25 -'!E26,'- 25 -'!H26,'- 26 -'!B26) -> 1359614 | E26: =D26/'- 3 -'!D26*100 -> 3.286247852 | F26: =D26/'- 7 -'!E26 -> 452.1496508 | G26: =SUM('- 27 -'!B26,'- 27 -'!E26,'- 27 -'!H26,'- 28 -'!B26,'- 28 -'!E26) -> 1535983 | H26: =G26/'- 3 -'!D26*100 -> 3.712539614 | I26: =G26/'- 7 -'!E26 -> 510.8024609
A27: MYSTERY LAKE | B27: =SUM('- 24 -'!H27,'- 24 -'!F27,'- 24 -'!D27,'- 24 -'!B27) -> 50886 | C27: =B27/'- 3 -'!D27*100 -> 0.1213011822 | D27: =SUM('- 25 -'!B27,'- 25 -'!E27,'- 25 -'!H27,'- 26 -'!B27) -> 1803612 | E27: =D27/'- 3 -'!D27*100 -> 4.299419642 | F27: =D27/'- 7 -'!E27 -> 603.6184739 | G27: =SUM('- 27 -'!B27,'- 27 -'!E27,'- 27 -'!H27,'- 28 -'!B27,'- 28 -'!E27) -> 1661869 | H27: =G27/'- 3 -'!D27*100 -> 3.961535087 | I27: =G27/'- 7 -'!E27 -> 556.1810576
A28: PARK WEST | B28: =SUM('- 24 -'!H28,'- 24 -'!F28,'- 24 -'!D28,'- 24 -'!B28) -> 193260 | C28: =B28/'- 3 -'!D28*100 -> 0.6712709943 | D28: =SUM('- 25 -'!B28,'- 25 -'!E28,'- 25 -'!H28,'- 26 -'!B28) -> 1103342 | E28: =D28/'- 3 -'!D28*100 -> 3.832357867 | F28: =D28/'- 7 -'!E28 -> 549.8838774 | G28: =SUM('- 27 -'!B28,'- 27 -'!E28,'- 27 -'!H28,'- 28 -'!B28,'- 28 -'!E28) -> 655293 | H28: =G28/'- 3 -'!D28*100 -> 2.276100505 | I28: =G28/'- 7 -'!E28 -> 326.5850984
A29: PEMBINA TRAILS | B29: =SUM('- 24 -'!H29,'- 24 -'!F29,'- 24 -'!D29,'- 24 -'!B29) -> 670268 | C29: =B29/'- 3 -'!D29*100 -> 0.3823942246 | D29: =SUM('- 25 -'!B29,'- 25 -'!E29,'- 25 -'!H29,'- 26 -'!B29) -> 5833190 | E29: =D29/'- 3 -'!D29*100 -> 3.327889989 | F29: =D29/'- 7 -'!E29 -> 420.7133069 | G29: =SUM('- 27 -'!B29,'- 27 -'!E29,'- 27 -'!H29,'- 28 -'!B29,'- 28 -'!E29) -> 7257472 | H29: =G29/'- 3 -'!D29*100 -> 4.140456322 | I29: =G29/'- 7 -'!E29 -> 523.4382979
A30: PINE CREEK | B30: =SUM('- 24 -'!H30,'- 24 -'!F30,'- 24 -'!D30,'- 24 -'!B30) -> 14790 | C30: =B30/'- 3 -'!D30*100 -> 0.09597361796 | D30: =SUM('- 25 -'!B30,'- 25 -'!E30,'- 25 -'!H30,'- 26 -'!B30) -> 550264 | E30: =D30/'- 3 -'!D30*100 -> 3.570711759 | F30: =D30/'- 7 -'!E30 -> 522.816152 | G30: =SUM('- 27 -'!B30,'- 27 -'!E30,'- 27 -'!H30,'- 28 -'!B30,'- 28 -'!E30) -> 610322 | H30: =G30/'- 3 -'!D30*100 -> 3.960433432 | I30: =G30/'- 7 -'!E30 -> 579.8783848
A31: PORTAGE LA PRAIRIE | B31: =SUM('- 24 -'!H31,'- 24 -'!F31,'- 24 -'!D31,'- 24 -'!B31) -> 59500 | C31: =B31/'- 3 -'!D31*100 -> 0.1490499929 | D31: =SUM('- 25 -'!B31,'- 25 -'!E31,'- 25 -'!H31,'- 26 -'!B31) -> 1070120 | E31: =D31/'- 3 -'!D31*100 -> 2.680695436 | F31: =D31/'- 7 -'!E31 -> 320.7313053 | G31: =SUM('- 27 -'!B31,'- 27 -'!E31,'- 27 -'!H31,'- 28 -'!B31,'- 28 -'!E31) -> 1417820 | H31: =G31/'- 3 -'!D31*100 -> 3.551698504 | I31: =G31/'- 7 -'!E31 -> 424.9423048
A32: PRAIRIE ROSE | B32: =SUM('- 24 -'!H32,'- 24 -'!F32,'- 24 -'!D32,'- 24 -'!B32) -> 32640 | C32: =B32/'- 3 -'!D32*100 -> 0.1044336132 | D32: =SUM('- 25 -'!B32,'- 25 -'!E32,'- 25 -'!H32,'- 26 -'!B32) -> 1090060 | E32: =D32/'- 3 -'!D32*100 -> 3.487711533 | F32: =D32/'- 7 -'!E32 -> 488.4875644 | G32: =SUM('- 27 -'!B32,'- 27 -'!E32,'- 27 -'!H32,'- 28 -'!B32,'- 28 -'!E32) -> 924403 | H32: =G32/'- 3 -'!D32*100 -> 2.95768215 | I32: =G32/'- 7 -'!E32 -> 414.2518485
A33: PRAIRIE SPIRIT | B33: =SUM('- 24 -'!H33,'- 24 -'!F33,'- 24 -'!D33,'- 24 -'!B33) -> 28393 | C33: =B33/'- 3 -'!D33*100 -> 0.09934926981 | D33: =SUM('- 25 -'!B33,'- 25 -'!E33,'- 25 -'!H33,'- 26 -'!B33) -> 898275 | E33: =D33/'- 3 -'!D33*100 -> 3.14313265 | F33: =D33/'- 7 -'!E33 -> 443.2205062 | G33: =SUM('- 27 -'!B33,'- 27 -'!E33,'- 27 -'!H33,'- 28 -'!B33,'- 28 -'!E33) -> 728650 | H33: =G33/'- 3 -'!D33*100 -> 2.549601854 | I33: =G33/'- 7 -'!E33 -> 359.5253368
A34: RED RIVER VALLEY | B34: =SUM('- 24 -'!H34,'- 24 -'!F34,'- 24 -'!D34,'- 24 -'!B34) -> 58518 | C34: =B34/'- 3 -'!D34*100 -> 0.1848085525 | D34: =SUM('- 25 -'!B34,'- 25 -'!E34,'- 25 -'!H34,'- 26 -'!B34) -> 1139338 | E34: =D34/'- 3 -'!D34*100 -> 3.598198958 | F34: =D34/'- 7 -'!E34 -> 510.2274966 | G34: =SUM('- 27 -'!B34,'- 27 -'!E34,'- 27 -'!H34,'- 28 -'!B34,'- 28 -'!E34) -> 799733 | H34: =G34/'- 3 -'!D34*100 -> 2.525675829 | I34: =G34/'- 7 -'!E34 -> 358.1428571
A35: RIVER EAST TRANSCONA | B35: =SUM('- 24 -'!H35,'- 24 -'!F35,'- 24 -'!D35,'- 24 -'!B35) -> 572788 | C35: =B35/'- 3 -'!D35*100 -> 0.2951579433 | D35: =SUM('- 25 -'!B35,'- 25 -'!E35,'- 25 -'!H35,'- 26 -'!B35) -> 5036540 | E35: =D35/'- 3 -'!D35*100 -> 2.595331585 | F35: =D35/'- 7 -'!E35 -> 309.2747928 | G35: =SUM('- 27 -'!B35,'- 27 -'!E35,'- 27 -'!H35,'- 28 -'!B35,'- 28 -'!E35) -> 8817277 | H35: =G35/'- 3 -'!D35*100 -> 4.543547254 | I35: =G35/'- 7 -'!E35 -> 541.4354928
A36: ROLLING RIVER | B36: =SUM('- 24 -'!H36,'- 24 -'!F36,'- 24 -'!D36,'- 24 -'!B36) -> 32275 | C36: =B36/'- 3 -'!D36*100 -> 0.1335336925 | D36: =SUM('- 25 -'!B36,'- 25 -'!E36,'- 25 -'!H36,'- 26 -'!B36) -> 887385 | E36: =D36/'- 3 -'!D36*100 -> 3.67144216 | F36: =D36/'- 7 -'!E36 -> 516.3718359 | G36: =SUM('- 27 -'!B36,'- 27 -'!E36,'- 27 -'!H36,'- 28 -'!B36,'- 28 -'!E36) -> 526360 | H36: =G36/'- 3 -'!D36*100 -> 2.177747308 | I36: =G36/'- 7 -'!E36 -> 306.2903695
A37: SEINE RIVER | B37: =SUM('- 24 -'!H37,'- 24 -'!F37,'- 24 -'!D37,'- 24 -'!B37) -> 435529 | C37: =B37/'- 3 -'!D37*100 -> 0.8047528067 | D37: =SUM('- 25 -'!B37,'- 25 -'!E37,'- 25 -'!H37,'- 26 -'!B37) -> 1644600 | E37: =D37/'- 3 -'!D37*100 -> 3.038825121 | F37: =D37/'- 7 -'!E37 -> 379.2022135 | G37: =SUM('- 27 -'!B37,'- 27 -'!E37,'- 27 -'!H37,'- 28 -'!B37,'- 28 -'!E37) -> 1770332 | H37: =G37/'- 3 -'!D37*100 -> 3.271147606 | I37: =G37/'- 7 -'!E37 -> 408.19276
A38: SEVEN OAKS | B38: =SUM('- 24 -'!H38,'- 24 -'!F38,'- 24 -'!D38,'- 24 -'!B38) -> 1971532 | C38: =B38/'- 3 -'!D38*100 -> 1.330330158 | D38: =SUM('- 25 -'!B38,'- 25 -'!E38,'- 25 -'!H38,'- 26 -'!B38) -> 4143080 | E38: =D38/'- 3 -'!D38*100 -> 2.795625063 | F38: =D38/'- 7 -'!E38 -> 361.2227105 | G38: =SUM('- 27 -'!B38,'- 27 -'!E38,'- 27 -'!H38,'- 28 -'!B38,'- 28 -'!E38) -> 6022373 | H38: =G38/'- 3 -'!D38*100 -> 4.063715134 | I38: =G38/'- 7 -'!E38 -> 525.0726268
A39: SOUTHWEST HORIZON | B39: =SUM('- 24 -'!H39,'- 24 -'!F39,'- 24 -'!D39,'- 24 -'!B39) -> 159600 | C39: =B39/'- 3 -'!D39*100 -> 0.6825500686 | D39: =SUM('- 25 -'!B39,'- 25 -'!E39,'- 25 -'!H39,'- 26 -'!B39) -> 857900 | E39: =D39/'- 3 -'!D39*100 -> 3.66892045 | F39: =D39/'- 7 -'!E39 -> 570.7917498 | G39: =SUM('- 27 -'!B39,'- 27 -'!E39,'- 27 -'!H39,'- 28 -'!B39,'- 28 -'!E39) -> 516050 | H39: =G39/'- 3 -'!D39*100 -> 2.206954655 | I39: =G39/'- 7 -'!E39 -> 343.3466401
A40: ST. JAMES-ASSINIBOIA | B40: =SUM('- 24 -'!H40,'- 24 -'!F40,'- 24 -'!D40,'- 24 -'!B40) -> 980756 | C40: =B40/'- 3 -'!D40*100 -> 0.8995470264 | D40: =SUM('- 25 -'!B40,'- 25 -'!E40,'- 25 -'!H40,'- 26 -'!B40) -> 3334737 | E40: =D40/'- 3 -'!D40*100 -> 3.058612695 | F40: =D40/'- 7 -'!E40 -> 398.9874372 | G40: =SUM('- 27 -'!B40,'- 27 -'!E40,'- 27 -'!H40,'- 28 -'!B40,'- 28 -'!E40) -> 4052401 | H40: =G40/'- 3 -'!D40*100 -> 3.716852376 | I40: =G40/'- 7 -'!E40 -> 484.8529553
A41: SUNRISE | B41: =SUM('- 24 -'!H41,'- 24 -'!F41,'- 24 -'!D41,'- 24 -'!B41) -> 354954 | C41: =B41/'- 3 -'!D41*100 -> 0.5447354768 | D41: =SUM('- 25 -'!B41,'- 25 -'!E41,'- 25 -'!H41,'- 26 -'!B41) -> 2052474 | E41: =D41/'- 3 -'!D41*100 -> 3.14985999 | F41: =D41/'- 7 -'!E41 -> 461.7489314 | G41: =SUM('- 27 -'!B41,'- 27 -'!E41,'- 27 -'!H41,'- 28 -'!B41,'- 28 -'!E41) -> 1736497 | H41: =G41/'- 3 -'!D41*100 -> 2.664941151 | I41: =G41/'- 7 -'!E41 -> 390.6629921
A42: SWAN VALLEY | B42: =SUM('- 24 -'!H42,'- 24 -'!F42,'- 24 -'!D42,'- 24 -'!B42) -> 63985 | C42: =B42/'- 3 -'!D42*100 -> 0.3007203942 | D42: =SUM('- 25 -'!B42,'- 25 -'!E42,'- 25 -'!H42,'- 26 -'!B42) -> 771508 | E42: =D42/'- 3 -'!D42*100 -> 3.625977805 | F42: =D42/'- 7 -'!E42 -> 560.4852888 | G42: =SUM('- 27 -'!B42,'- 27 -'!E42,'- 27 -'!H42,'- 28 -'!B42,'- 28 -'!E42) -> 514787 | H42: =G42/'- 3 -'!D42*100 -> 2.41942564 | I42: =G42/'- 7 -'!E42 -> 373.9825645
A43: TURTLE MOUNTAIN | B43: =SUM('- 24 -'!H43,'- 24 -'!F43,'- 24 -'!D43,'- 24 -'!B43) -> 13090 | C43: =B43/'- 3 -'!D43*100 -> 0.09440734903 | D43: =SUM('- 25 -'!B43,'- 25 -'!E43,'- 25 -'!H43,'- 26 -'!B43) -> 478287 | E43: =D43/'- 3 -'!D43*100 -> 3.449488751 | F43: =D43/'- 7 -'!E43 -> 480.9321267 | G43: =SUM('- 27 -'!B43,'- 27 -'!E43,'- 27 -'!H43,'- 28 -'!B43,'- 28 -'!E43) -> 450620 | H43: =G43/'- 3 -'!D43*100 -> 3.249949551 | I43: =G43/'- 7 -'!E43 -> 453.1121166
A44: TURTLE RIVER | B44: =SUM('- 24 -'!H44,'- 24 -'!F44,'- 24 -'!D44,'- 24 -'!B44) -> 24879 | C44: =B44/'- 3 -'!D44*100 -> 0.218716022 | D44: =SUM('- 25 -'!B44,'- 25 -'!E44,'- 25 -'!H44,'- 26 -'!B44) -> 397202 | E44: =D44/'- 3 -'!D44*100 -> 3.491878347 | F44: =D44/'- 7 -'!E44 -> 567.8370264 | G44: =SUM('- 27 -'!B44,'- 27 -'!E44,'- 27 -'!H44,'- 28 -'!B44,'- 28 -'!E44) -> 246690 | H44: =G44/'- 3 -'!D44*100 -> 2.168698721 | I44: =G44/'- 7 -'!E44 -> 352.6661901
A45: WESTERN | B45: =SUM('- 24 -'!H45,'- 24 -'!F45,'- 24 -'!D45,'- 24 -'!B45) -> 45707 | C45: =B45/'- 3 -'!D45*100 -> 0.214665908 | D45: =SUM('- 25 -'!B45,'- 25 -'!E45,'- 25 -'!H45,'- 26 -'!B45) -> 753969 | E45: =D45/'- 3 -'!D45*100 -> 3.541064606 | F45: =D45/'- 7 -'!E45 -> 404.2729223 | G45: =SUM('- 27 -'!B45,'- 27 -'!E45,'- 27 -'!H45,'- 28 -'!B45,'- 28 -'!E45) -> 552127 | H45: =G45/'- 3 -'!D45*100 -> 2.593100483 | I45: =G45/'- 7 -'!E45 -> 296.0466488
A46: WINNIPEG | B46: =SUM('- 24 -'!H46,'- 24 -'!F46,'- 24 -'!D46,'- 24 -'!B46) -> 9230900 | C46: =B46/'- 3 -'!D46*100 -> 2.23589167 | D46: =SUM('- 25 -'!B46,'- 25 -'!E46,'- 25 -'!H46,'- 26 -'!B46) -> 11342827 | E46: =D46/'- 3 -'!D46*100 -> 2.747438755 | F46: =D46/'- 7 -'!E46 -> 375.9949283 | G46: =SUM('- 27 -'!B46,'- 27 -'!E46,'- 27 -'!H46,'- 28 -'!B46,'- 28 -'!E46) -> 10337626 | H46: =G46/'- 3 -'!D46*100 -> 2.503960812 | I46: =G46/'- 7 -'!E46 -> 342.6742687
A48: PROVINCE | B48: =SUM(B11:B46) -> 23099711 | C48: =B48/'- 3 -'!D48*100 -> 0.9441069933 | D48: =SUM(D11:D46) -> 79639742 | E48: =D48/'- 3 -'!D48*100 -> 3.254951431 | F48: =D48/'- 7 -'!E48 -> 441.2412171 | G48: =SUM(G11:G46) -> 84084201 | H48: =G48/'- 3 -'!D48*100 -> 3.436600665 | I48: =G48/'- 7 -'!E48 -> 465.8655874
A50: WHITESHELL | B50: =SUM('- 24 -'!H50,'- 24 -'!F50,'- 24 -'!D50,'- 24 -'!B50) -> 191000 | C50: =B50/'- 3 -'!D50*100 -> 5.286835751 | D50: =SUM('- 25 -'!B50,'- 25 -'!E50,'- 25 -'!H50,'- 26 -'!B50) -> 142000 | E50: =D50/'- 3 -'!D50*100 -> 3.930527103 | F50: =D50/'- 7 -'!E50 -> 847.761194 | G50: =SUM('- 27 -'!B50,'- 27 -'!E50,'- 27 -'!H50,'- 28 -'!B50,'- 28 -'!E50) -> 134900 | H50: =G50/'- 3 -'!D50*100 -> 3.734000748 | I50: =G50/'- 7 -'!E50 -> 805.3731343
A51: MITT | B51: =SUM('- 24 -'!H51,'- 24 -'!F51,'- 24 -'!D51,'- 24 -'!B51) -> 10582774 | C51: =B51/'- 3 -'!D51*100 -> 31.86487607 | D51: =SUM('- 25 -'!B51,'- 25 -'!E51,'- 25 -'!H51,'- 26 -'!B51) -> 6754708 | E51: =D51/'- 3 -'!D51*100 -> 20.33851742 | F51: =D51/'- 7 -'!E51 -> 4811.045584 | G51: =SUM('- 27 -'!B51,'- 27 -'!E51,'- 27 -'!H51,'- 28 -'!B51,'- 28 -'!E51) -> 950617 | H51: =G51/'- 3 -'!D51*100 -> 2.862320682 | I51: =G51/'- 7 -'!E51 -> 677.0776353

Sheet - 17 -
B2: =AEXP_BF -> ANALYSIS OF EXPENSE BY FUNCTION | J2: PAGE 3 OF 3
B3: =+'- 16 -'!B3 -> OPERATING FUND 2019/2020 BUDGET
B6: TRANSPORTATION OF PUPILS | E6: OPERATIONS AND MAINTENANCE | H6: FISCAL
D8: PER PUPIL | G8: PER PUPIL | J8: PER PUPIL
A9: DIVISION / DISTRICT | B9: AMOUNT | C9: % | E9: AMOUNT | F9: % | H9: AMOUNT | I9: %
A11: BEAUTIFUL PLAINS | B11: =SUM('- 30 -'!D11,'- 30 -'!B11,'- 29 -'!F11,'- 29 -'!D11,'- 29 -'!B11) -> 1343297 | C11: =B11/'- 3 -'!D11*100 -> 6.452199365 | D11: =B11/'- 7 -'!E11 -> 745.6547322 | E11: =SUM('- 32 -'!D11,'- 32 -'!B11,'- 31 -'!F11,'- 31 -'!D11,'- 31 -'!B11) -> 2009660 | F11: =E11/'- 3 -'!D11*100 -> 9.652911438 | G11: =E11/'- 7 -'!E11 -> 1115.548154 | H11: =SUM('- 33 -'!B11,'- 33 -'!D11) -> 365000 | I11: =H11/'- 3 -'!D11*100 -> 1.753188437 | J11: =H11/'- 7 -'!E11 -> 202.608937
A12: BORDER LAND | B12: =SUM('- 30 -'!D12,'- 30 -'!B12,'- 29 -'!F12,'- 29 -'!D12,'- 29 -'!B12) -> 2517887 | C12: =B12/'- 3 -'!D12*100 -> 7.223842942 | D12: =B12/'- 7 -'!E12 -> 1177.374963 | E12: =SUM('- 32 -'!D12,'- 32 -'!B12,'- 31 -'!F12,'- 31 -'!D12,'- 31 -'!B12) -> 3462199 | F12: =E12/'- 3 -'!D12*100 -> 9.933083498 | G12: =E12/'- 7 -'!E12 -> 1618.93938 | H12: =SUM('- 33 -'!B12,'- 33 -'!D12) -> 564727 | I12: =H12/'- 3 -'!D12*100 -> 1.620207401 | J12: =H12/'- 7 -'!E12 -> 264.0688127
A13: BRANDON | B13: =SUM('- 30 -'!D13,'- 30 -'!B13,'- 29 -'!F13,'- 29 -'!D13,'- 29 -'!B13) -> 2653300 | C13: =B13/'- 3 -'!D13*100 -> 2.5104171 | D13: =B13/'- 7 -'!E13 -> 305.9088027 | E13: =SUM('- 32 -'!D13,'- 32 -'!B13,'- 31 -'!F13,'- 31 -'!D13,'- 31 -'!B13) -> 8937300 | F13: =E13/'- 3 -'!D13*100 -> 8.456017318 | G13: =E13/'- 7 -'!E13 -> 1030.414481 | H13: =SUM('- 33 -'!B13,'- 33 -'!D13) -> 1808100 | I13: =H13/'- 3 -'!D13*100 -> 1.710731979 | J13: =H13/'- 7 -'!E13 -> 208.4625584
A14: DSFM | B14: =SUM('- 30 -'!D14,'- 30 -'!B14,'- 29 -'!F14,'- 29 -'!D14,'- 29 -'!B14) -> 9790676 | C14: =B14/'- 3 -'!D14*100 -> 10.25159628 | D14: =B14/'- 7 -'!E14 -> 1694.474905 | E14: =SUM('- 32 -'!D14,'- 32 -'!B14,'- 31 -'!F14,'- 31 -'!D14,'- 31 -'!B14) -> 10886129 | F14: =E14/'- 3 -'!D14*100 -> 11.39862044 | G14: =E14/'- 7 -'!E14 -> 1884.065247 | H14: =SUM('- 33 -'!B14,'- 33 -'!D14) -> 1445349 | I14: =H14/'- 3 -'!D14*100 -> 1.513392377 | J14: =H14/'- 7 -'!E14 -> 250.1469367
A15: EVERGREEN | B15: =SUM('- 30 -'!D15,'- 30 -'!B15,'- 29 -'!F15,'- 29 -'!D15,'- 29 -'!B15) -> 1772100 | C15: =B15/'- 3 -'!D15*100 -> 8.430135272 | D15: =B15/'- 7 -'!E15 -> 1263.980029 | E15: =SUM('- 32 -'!D15,'- 32 -'!B15,'- 31 -'!F15,'- 31 -'!D15,'- 31 -'!B15) -> 2724630 | F15: =E15/'- 3 -'!D15*100 -> 12.96145786 | G15: =E15/'- 7 -'!E15 -> 1943.388017 | H15: =SUM('- 33 -'!B15,'- 33 -'!D15) -> 328500 | I15: =H15/'- 3 -'!D15*100 -> 1.562721876 | J15: =H15/'- 7 -'!E15 -> 234.3081312
A16: FLIN FLON | B16: =SUM('- 30 -'!D16,'- 30 -'!B16,'- 29 -'!F16,'- 29 -'!D16,'- 29 -'!B16) -> 566441 | C16: =B16/'- 3 -'!D16*100 -> 3.798227086 | D16: =B16/'- 7 -'!E16 -> 602.9175093 | E16: =SUM('- 32 -'!D16,'- 32 -'!B16,'- 31 -'!F16,'- 31 -'!D16,'- 31 -'!B16) -> 2276720 | F16: =E16/'- 3 -'!D16*100 -> 15.26637297 | G16: =E16/'- 7 -'!E16 -> 2423.331559 | H16: =SUM('- 33 -'!B16,'- 33 -'!D16) -> 243320 | I16: =H16/'- 3 -'!D16*100 -> 1.631563772 | J16: =H16/'- 7 -'!E16 -> 258.9888238
A17: FORT LA BOSSE | B17: =SUM('- 30 -'!D17,'- 30 -'!B17,'- 29 -'!F17,'- 29 -'!D17,'- 29 -'!B17) -> 1421430 | C17: =B17/'- 3 -'!D17*100 -> 7.586177267 | D17: =B17/'- 7 -'!E17 -> 988.8208696 | E17: =SUM('- 32 -'!D17,'- 32 -'!B17,'- 31 -'!F17,'- 31 -'!D17,'- 31 -'!B17) -> 1978970 | F17: =E17/'- 3 -'!D17*100 -> 10.56177035 | G17: =E17/'- 7 -'!E17 -> 1376.674783 | H17: =SUM('- 33 -'!B17,'- 33 -'!D17) -> 386000 | I17: =H17/'- 3 -'!D17*100 -> 2.060083455 | J17: =H17/'- 7 -'!E17 -> 268.5217391
A18: FRONTIER | B18: =SUM('- 30 -'!D18,'- 30 -'!B18,'- 29 -'!F18,'- 29 -'!D18,'- 29 -'!B18) -> 11782580 | C18: =B18/'- 3 -'!D18*100 -> 8.637128316 | D18: =B18/'- 7 -'!E18 -> 1912.53916 | E18: =SUM('- 32 -'!D18,'- 32 -'!B18,'- 31 -'!F18,'- 31 -'!D18,'- 31 -'!B18) -> 24272786 | F18: =E18/'- 3 -'!D18*100 -> 17.79297635 | G18: =E18/'- 7 -'!E18 -> 3939.939617 | H18: =SUM('- 33 -'!B18,'- 33 -'!D18) -> 1265000 | I18: =H18/'- 3 -'!D18*100 -> 0.9272983778 | J18: =H18/'- 7 -'!E18 -> 205.3338095
A19: GARDEN VALLEY | B19: =SUM('- 30 -'!D19,'- 30 -'!B19,'- 29 -'!F19,'- 29 -'!D19,'- 29 -'!B19) -> 3195100 | C19: =B19/'- 3 -'!D19*100 -> 6.263612394 | D19: =B19/'- 7 -'!E19 -> 735.5202578 | E19: =SUM('- 32 -'!D19,'- 32 -'!B19,'- 31 -'!F19,'- 31 -'!D19,'- 31 -'!B19) -> 4783500 | F19: =E19/'- 3 -'!D19*100 -> 9.377481107 | G19: =E19/'- 7 -'!E19 -> 1101.174033 | H19: =SUM('- 33 -'!B19,'- 33 -'!D19) -> 851000 | I19: =H19/'- 3 -'!D19*100 -> 1.668283981 | J19: =H19/'- 7 -'!E19 -> 195.9023941
A20: HANOVER | B20: =SUM('- 30 -'!D20,'- 30 -'!B20,'- 29 -'!F20,'- 29 -'!D20,'- 29 -'!B20) -> 4269400 | C20: =B20/'- 3 -'!D20*100 -> 4.792221816 | D20: =B20/'- 7 -'!E20 -> 537.6062457 | E20: =SUM('- 32 -'!D20,'- 32 -'!B20,'- 31 -'!F20,'- 31 -'!D20,'- 31 -'!B20) -> 9579300 | F20: =E20/'- 3 -'!D20*100 -> 10.75236109 | G20: =E20/'- 7 -'!E20 -> 1206.233079 | H20: =SUM('- 33 -'!B20,'- 33 -'!D20) -> 1647700 | I20: =H20/'- 3 -'!D20*100 -> 1.849473904 | J20: =H20/'- 7 -'!E20 -> 207.4796953
A21: INTERLAKE | B21: =SUM('- 30 -'!D21,'- 30 -'!B21,'- 29 -'!F21,'- 29 -'!D21,'- 29 -'!B21) -> 2300000 | C21: =B21/'- 3 -'!D21*100 -> 6.089085975 | D21: =B21/'- 7 -'!E21 -> 817.3418621 | E21: =SUM('- 32 -'!D21,'- 32 -'!B21,'- 31 -'!F21,'- 31 -'!D21,'- 31 -'!B21) -> 3649000 | F21: =E21/'- 3 -'!D21*100 -> 9.660467271 | G21: =E21/'- 7 -'!E21 -> 1296.730633 | H21: =SUM('- 33 -'!B21,'- 33 -'!D21) -> 684000 | I21: =H21/'- 3 -'!D21*100 -> 1.81084122 | J21: =H21/'- 7 -'!E21 -> 243.0703625
A22: KELSEY | B22: =SUM('- 30 -'!D22,'- 30 -'!B22,'- 29 -'!F22,'- 29 -'!D22,'- 29 -'!B22) -> 652934 | C22: =B22/'- 3 -'!D22*100 -> 3.178970982 | D22: =B22/'- 7 -'!E22 -> 457.4929933 | E22: =SUM('- 32 -'!D22,'- 32 -'!B22,'- 31 -'!F22,'- 31 -'!D22,'- 31 -'!B22) -> 2668064 | F22: =E22/'- 3 -'!D22*100 -> 12.99013076 | G22: =E22/'- 7 -'!E22 -> 1869.439462 | H22: =SUM('- 33 -'!B22,'- 33 -'!D22) -> 360000 | I22: =H22/'- 3 -'!D22*100 -> 1.752749211 | J22: =H22/'- 7 -'!E22 -> 252.2421525
A23: LAKESHORE | B23: =SUM('- 30 -'!D23,'- 30 -'!B23,'- 29 -'!F23,'- 29 -'!D23,'- 29 -'!B23) -> 1727415 | C23: =B23/'- 3 -'!D23*100 -> 10.54554177 | D23: =B23/'- 7 -'!E23 -> 1825.055468 | E23: =SUM('- 32 -'!D23,'- 32 -'!B23,'- 31 -'!F23,'- 31 -'!D23,'- 31 -'!B23) -> 1679580 | F23: =E23/'- 3 -'!D23*100 -> 10.25351814 | G23: =E23/'- 7 -'!E23 -> 1774.51664 | H23: =SUM('- 33 -'!B23,'- 33 -'!D23) -> 261388 | I23: =H23/'- 3 -'!D23*100 -> 1.595724288 | J23: =H23/'- 7 -'!E23 -> 276.1627047
A24: LORD SELKIRK | B24: =SUM('- 30 -'!D24,'- 30 -'!B24,'- 29 -'!F24,'- 29 -'!D24,'- 29 -'!B24) -> 2754190 | C24: =B24/'- 3 -'!D24*100 -> 4.702475408 | D24: =B24/'- 7 -'!E24 -> 725.7417655 | E24: =SUM('- 32 -'!D24,'- 32 -'!B24,'- 31 -'!F24,'- 31 -'!D24,'- 31 -'!B24) -> 6503145 | F24: =E24/'- 3 -'!D24*100 -> 11.10340225 | G24: =E24/'- 7 -'!E24 -> 1713.608696 | H24: =SUM('- 33 -'!B24,'- 33 -'!D24) -> 1020000 | I24: =H24/'- 3 -'!D24*100 -> 1.741537409 | J24: =H24/'- 7 -'!E24 -> 268.7747036
A25: LOUIS RIEL | B25: =SUM('- 30 -'!D25,'- 30 -'!B25,'- 29 -'!F25,'- 29 -'!D25,'- 29 -'!B25) -> 4630570 | C25: =B25/'- 3 -'!D25*100 -> 2.406734847 | D25: =B25/'- 7 -'!E25 -> 310.2559464 | E25: =SUM('- 32 -'!D25,'- 32 -'!B25,'- 31 -'!F25,'- 31 -'!D25,'- 31 -'!B25) -> 20320408 | F25: =E25/'- 3 -'!D25*100 -> 10.5615149 | G25: =E25/'- 7 -'!E25 -> 1361.501374 | H25: =SUM('- 33 -'!B25,'- 33 -'!D25) -> 3413511 | I25: =H25/'- 3 -'!D25*100 -> 1.77416946 | J25: =H25/'- 7 -'!E25 -> 228.7109548
A26: MOUNTAIN VIEW | B26: =SUM('- 30 -'!D26,'- 30 -'!B26,'- 29 -'!F26,'- 29 -'!D26,'- 29 -'!B26) -> 2957921 | C26: =B26/'- 3 -'!D26*100 -> 7.149427361 | D26: =B26/'- 7 -'!E26 -> 983.678417 | E26: =SUM('- 32 -'!D26,'- 32 -'!B26,'- 31 -'!F26,'- 31 -'!D26,'- 31 -'!B26) -> 5236930 | F26: =E26/'- 3 -'!D26*100 -> 12.65789405 | G26: =E26/'- 7 -'!E26 -> 1741.579647 | H26: =SUM('- 33 -'!B26,'- 33 -'!D26) -> 784020 | I26: =H26/'- 3 -'!D26*100 -> 1.895011408 | J26: =H26/'- 7 -'!E26 -> 260.7316262
A27: MYSTERY LAKE | B27: =SUM('- 30 -'!D27,'- 30 -'!B27,'- 29 -'!F27,'- 29 -'!D27,'- 29 -'!B27) -> 355000 | C27: =B27/'- 3 -'!D27*100 -> 0.8462429685 | D27: =B27/'- 7 -'!E27 -> 118.8085676 | E27: =SUM('- 32 -'!D27,'- 32 -'!B27,'- 31 -'!F27,'- 31 -'!D27,'- 31 -'!B27) -> 5188287 | F27: =E27/'- 3 -'!D27*100 -> 12.3677504 | G27: =E27/'- 7 -'!E27 -> 1736.374498 | H27: =SUM('- 33 -'!B27,'- 33 -'!D27) -> 705900 | I27: =H27/'- 3 -'!D27*100 -> 1.682712427 | J27: =H27/'- 7 -'!E27 -> 236.2449799
A28: PARK WEST | B28: =SUM('- 30 -'!D28,'- 30 -'!B28,'- 29 -'!F28,'- 29 -'!D28,'- 29 -'!B28) -> 1944019 | C28: =B28/'- 3 -'!D28*100 -> 6.752372798 | D28: =B28/'- 7 -'!E28 -> 968.8607027 | E28: =SUM('- 32 -'!D28,'- 32 -'!B28,'- 31 -'!F28,'- 31 -'!D28,'- 31 -'!B28) -> 3411686 | F28: =E28/'- 3 -'!D28*100 -> 11.85018034 | G28: =E28/'- 7 -'!E28 -> 1700.31697 | H28: =SUM('- 33 -'!B28,'- 33 -'!D28) -> 510600 | I28: =H28/'- 3 -'!D28*100 -> 1.773522559 | J28: =H28/'- 7 -'!E28 -> 254.4729629
A29: PEMBINA TRAILS | B29: =SUM('- 30 -'!D29,'- 30 -'!B29,'- 29 -'!F29,'- 29 -'!D29,'- 29 -'!B29) -> 3656473 | C29: =B29/'- 3 -'!D29*100 -> 2.086052381 | D29: =B29/'- 7 -'!E29 -> 263.7196538 | E29: =SUM('- 32 -'!D29,'- 32 -'!B29,'- 31 -'!F29,'- 31 -'!D29,'- 31 -'!B29) -> 21733963 | F29: =E29/'- 3 -'!D29*100 -> 12.39943117 | G29: =E29/'- 7 -'!E29 -> 1567.541507 | H29: =SUM('- 33 -'!B29,'- 33 -'!D29) -> 3100000 | I29: =H29/'- 3 -'!D29*100 -> 1.768579279 | J29: =H29/'- 7 -'!E29 -> 223.5845655
A30: PINE CREEK | B30: =SUM('- 30 -'!D30,'- 30 -'!B30,'- 29 -'!F30,'- 29 -'!D30,'- 29 -'!B30) -> 1255022 | C30: =B30/'- 3 -'!D30*100 -> 8.143948747 | D30: =B30/'- 7 -'!E30 -> 1192.419952 | E30: =SUM('- 32 -'!D30,'- 32 -'!B30,'- 31 -'!F30,'- 31 -'!D30,'- 31 -'!B30) -> 1580735 | F30: =E30/'- 3 -'!D30*100 -> 10.25752921 | G30: =E30/'- 7 -'!E30 -> 1501.885986 | H30: =SUM('- 33 -'!B30,'- 33 -'!D30) -> 257255 | I30: =H30/'- 3 -'!D30*100 -> 1.669350445 | J30: =H30/'- 7 -'!E30 -> 244.4228029
A31: PORTAGE LA PRAIRIE | B31: =SUM('- 30 -'!D31,'- 30 -'!B31,'- 29 -'!F31,'- 29 -'!D31,'- 29 -'!B31) -> 1175308 | C31: =B31/'- 3 -'!D31*100 -> 2.944195783 | D31: =B31/'- 7 -'!E31 -> 352.2577551 | E31: =SUM('- 32 -'!D31,'- 32 -'!B31,'- 31 -'!F31,'- 31 -'!D31,'- 31 -'!B31) -> 4002746 | F31: =E31/'- 3 -'!D31*100 -> 10.02704644 | G31: =E31/'- 7 -'!E31 -> 1199.6841 | H31: =SUM('- 33 -'!B31,'- 33 -'!D31) -> 695000 | I31: =H31/'- 3 -'!D31*100 -> 1.741004119 | J31: =H31/'- 7 -'!E31 -> 208.302113
A32: PRAIRIE ROSE | B32: =SUM('- 30 -'!D32,'- 30 -'!B32,'- 29 -'!F32,'- 29 -'!D32,'- 29 -'!B32) -> 2410918 | C32: =B32/'- 3 -'!D32*100 -> 7.713874937 | D32: =B32/'- 7 -'!E32 -> 1080.40242 | E32: =SUM('- 32 -'!D32,'- 32 -'!B32,'- 31 -'!F32,'- 31 -'!D32,'- 31 -'!B32) -> 3184613 | F32: =E32/'- 3 -'!D32*100 -> 10.18935791 | G32: =E32/'- 7 -'!E32 -> 1427.117634 | H32: =SUM('- 33 -'!B32,'- 33 -'!D32) -> 608010 | I32: =H32/'- 3 -'!D32*100 -> 1.945364007 | J32: =H32/'- 7 -'!E32 -> 272.4669505
A33: PRAIRIE SPIRIT | B33: =SUM('- 30 -'!D33,'- 30 -'!B33,'- 29 -'!F33,'- 29 -'!D33,'- 29 -'!B33) -> 2450725 | C33: =B33/'- 3 -'!D33*100 -> 8.575273456 | D33: =B33/'- 7 -'!E33 -> 1209.219421 | E33: =SUM('- 32 -'!D33,'- 32 -'!B33,'- 31 -'!F33,'- 31 -'!D33,'- 31 -'!B33) -> 3381050 | F33: =E33/'- 3 -'!D33*100 -> 11.8305515 | G33: =E33/'- 7 -'!E33 -> 1668.253812 | H33: =SUM('- 33 -'!B33,'- 33 -'!D33) -> 475000 | I33: =H33/'- 3 -'!D33*100 -> 1.662061183 | J33: =H33/'- 7 -'!E33 -> 234.3711452
A34: RED RIVER VALLEY | B34: =SUM('- 30 -'!D34,'- 30 -'!B34,'- 29 -'!F34,'- 29 -'!D34,'- 29 -'!B34) -> 2776190 | C34: =B34/'- 3 -'!D34*100 -> 8.767621168 | D34: =B34/'- 7 -'!E34 -> 1243.25571 | E34: =SUM('- 32 -'!D34,'- 32 -'!B34,'- 31 -'!F34,'- 31 -'!D34,'- 31 -'!B34) -> 2898644 | F34: =E34/'- 3 -'!D34*100 -> 9.154349123 | G34: =E34/'- 7 -'!E34 -> 1298.094044 | H34: =SUM('- 33 -'!B34,'- 33 -'!D34) -> 644589 | I34: =H34/'- 3 -'!D34*100 -> 2.035707989 | J34: =H34/'- 7 -'!E34 -> 288.6650246
A35: RIVER EAST TRANSCONA | B35: =SUM('- 30 -'!D35,'- 30 -'!B35,'- 29 -'!F35,'- 29 -'!D35,'- 29 -'!B35) -> 4864640 | C35: =B35/'- 3 -'!D35*100 -> 2.506751429 | D35: =B35/'- 7 -'!E35 -> 298.7190666 | E35: =SUM('- 32 -'!D35,'- 32 -'!B35,'- 31 -'!F35,'- 31 -'!D35,'- 31 -'!B35) -> 22398415 | F35: =E35/'- 3 -'!D35*100 -> 11.54191447 | G35: =E35/'- 7 -'!E35 -> 1375.401597 | H35: =SUM('- 33 -'!B35,'- 33 -'!D35) -> 3409000 | I35: =H35/'- 3 -'!D35*100 -> 1.756659407 | J35: =H35/'- 7 -'!E35 -> 209.3337427
A36: ROLLING RIVER | B36: =SUM('- 30 -'!D36,'- 30 -'!B36,'- 29 -'!F36,'- 29 -'!D36,'- 29 -'!B36) -> 1799990 | C36: =B36/'- 3 -'!D36*100 -> 7.44722885 | D36: =B36/'- 7 -'!E36 -> 1047.419261 | E36: =SUM('- 32 -'!D36,'- 32 -'!B36,'- 31 -'!F36,'- 31 -'!D36,'- 31 -'!B36) -> 2973130 | F36: =E36/'- 3 -'!D36*100 -> 12.30094584 | G36: =E36/'- 7 -'!E36 -> 1730.072738 | H36: =SUM('- 33 -'!B36,'- 33 -'!D36) -> 443000 | I36: =H36/'- 3 -'!D36*100 -> 1.83285595 | J36: =H36/'- 7 -'!E36 -> 257.7829502
A37: SEINE RIVER | B37: =SUM('- 30 -'!D37,'- 30 -'!B37,'- 29 -'!F37,'- 29 -'!D37,'- 29 -'!B37) -> 3429071 | C37: =B37/'- 3 -'!D37*100 -> 6.336098197 | D37: =B37/'- 7 -'!E37 -> 790.6550611 | E37: =SUM('- 32 -'!D37,'- 32 -'!B37,'- 31 -'!F37,'- 31 -'!D37,'- 31 -'!B37) -> 5249500 | F37: =E37/'- 3 -'!D37*100 -> 9.699813007 | G37: =E37/'- 7 -'!E37 -> 1210.398893 | H37: =SUM('- 33 -'!B37,'- 33 -'!D37) -> 900000 | I37: =H37/'- 3 -'!D37*100 -> 1.662983466 | J37: =H37/'- 7 -'!E37 -> 207.5167166
A38: SEVEN OAKS | B38: =SUM('- 30 -'!D38,'- 30 -'!B38,'- 29 -'!F38,'- 29 -'!D38,'- 29 -'!B38) -> 3934390 | C38: =B38/'- 3 -'!D38*100 -> 2.654807363 | D38: =B38/'- 7 -'!E38 -> 343.0276557 | E38: =SUM('- 32 -'!D38,'- 32 -'!B38,'- 31 -'!F38,'- 31 -'!D38,'- 31 -'!B38) -> 14649955 | F38: =E38/'- 3 -'!D38*100 -> 9.885346498 | G38: =E38/'- 7 -'!E38 -> 1277.285607 | H38: =SUM('- 33 -'!B38,'- 33 -'!D38) -> 2680350 | I38: =H38/'- 3 -'!D38*100 -> 1.808619104 | J38: =H38/'- 7 -'!E38 -> 233.6916719
A39: SOUTHWEST HORIZON | B39: =SUM('- 30 -'!D39,'- 30 -'!B39,'- 29 -'!F39,'- 29 -'!D39,'- 29 -'!B39) -> 2235600 | C39: =B39/'- 3 -'!D39*100 -> 9.560832916 | D39: =B39/'- 7 -'!E39 -> 1487.42515 | E39: =SUM('- 32 -'!D39,'- 32 -'!B39,'- 31 -'!F39,'- 31 -'!D39,'- 31 -'!B39) -> 2576200 | F39: =E39/'- 3 -'!D39*100 -> 11.01745293 | G39: =E39/'- 7 -'!E39 -> 1714.038589 | H39: =SUM('- 33 -'!B39,'- 33 -'!D39) -> 436200 | I39: =H39/'- 3 -'!D39*100 -> 1.865465789 | J39: =H39/'- 7 -'!E39 -> 290.2195609
A40: ST. JAMES-ASSINIBOIA | B40: =SUM('- 30 -'!D40,'- 30 -'!B40,'- 29 -'!F40,'- 29 -'!D40,'- 29 -'!B40) -> 2284032 | C40: =B40/'- 3 -'!D40*100 -> 2.094908615 | D40: =B40/'- 7 -'!E40 -> 273.2749462 | E40: =SUM('- 32 -'!D40,'- 32 -'!B40,'- 31 -'!F40,'- 31 -'!D40,'- 31 -'!B40) -> 11600984 | F40: =E40/'- 3 -'!D40*100 -> 10.64039441 | G40: =E40/'- 7 -'!E40 -> 1388.009572 | H40: =SUM('- 33 -'!B40,'- 33 -'!D40) -> 1878284 | I40: =H40/'- 3 -'!D40*100 -> 1.722757533 | J40: =H40/'- 7 -'!E40 -> 224.7288825
A41: SUNRISE | B41: =SUM('- 30 -'!D41,'- 30 -'!B41,'- 29 -'!F41,'- 29 -'!D41,'- 29 -'!B41) -> 5200637 | C41: =B41/'- 3 -'!D41*100 -> 7.981235528 | D41: =B41/'- 7 -'!E41 -> 1169.997075 | E41: =SUM('- 32 -'!D41,'- 32 -'!B41,'- 31 -'!F41,'- 31 -'!D41,'- 31 -'!B41) -> 6654991 | F41: =E41/'- 3 -'!D41*100 -> 10.21318169 | G41: =E41/'- 7 -'!E41 -> 1497.185827 | H41: =SUM('- 33 -'!B41,'- 33 -'!D41) -> 1206595 | I41: =H41/'- 3 -'!D41*100 -> 1.851719103 | J41: =H41/'- 7 -'!E41 -> 271.4499438
A42: SWAN VALLEY | B42: =SUM('- 30 -'!D42,'- 30 -'!B42,'- 29 -'!F42,'- 29 -'!D42,'- 29 -'!B42) -> 1905376 | C42: =B42/'- 3 -'!D42*100 -> 8.954996043 | D42: =B42/'- 7 -'!E42 -> 1384.217944 | E42: =SUM('- 32 -'!D42,'- 32 -'!B42,'- 31 -'!F42,'- 31 -'!D42,'- 31 -'!B42) -> 2448940 | F42: =E42/'- 3 -'!D42*100 -> 11.50966949 | G42: =E42/'- 7 -'!E42 -> 1779.106429 | H42: =SUM('- 33 -'!B42,'- 33 -'!D42) -> 342000 | I42: =H42/'- 3 -'!D42*100 -> 1.607351329 | J42: =H42/'- 7 -'!E42 -> 248.4562296
A43: TURTLE MOUNTAIN | B43: =SUM('- 30 -'!D43,'- 30 -'!B43,'- 29 -'!F43,'- 29 -'!D43,'- 29 -'!B43) -> 1247640 | C43: =B43/'- 3 -'!D43*100 -> 8.998195947 | D43: =B43/'- 7 -'!E43 -> 1254.53997 | E43: =SUM('- 32 -'!D43,'- 32 -'!B43,'- 31 -'!F43,'- 31 -'!D43,'- 31 -'!B43) -> 1094099 | F43: =E43/'- 3 -'!D43*100 -> 7.89083164 | G43: =E43/'- 7 -'!E43 -> 1100.149824 | H43: =SUM('- 33 -'!B43,'- 33 -'!D43) -> 269301 | I43: =H43/'- 3 -'!D43*100 -> 1.942245493 | J43: =H43/'- 7 -'!E43 -> 270.7903469
A44: TURTLE RIVER | B44: =SUM('- 30 -'!D44,'- 30 -'!B44,'- 29 -'!F44,'- 29 -'!D44,'- 29 -'!B44) -> 1232659 | C44: =B44/'- 3 -'!D44*100 -> 10.83653977 | D44: =B44/'- 7 -'!E44 -> 1762.200143 | E44: =SUM('- 32 -'!D44,'- 32 -'!B44,'- 31 -'!F44,'- 31 -'!D44,'- 31 -'!B44) -> 1284318 | F44: =E44/'- 3 -'!D44*100 -> 11.29068387 | G44: =E44/'- 7 -'!E44 -> 1836.051465 | H44: =SUM('- 33 -'!B44,'- 33 -'!D44) -> 185832 | I44: =H44/'- 3 -'!D44*100 -> 1.633684465 | J44: =H44/'- 7 -'!E44 -> 265.6640457
A45: WESTERN | B45: =SUM('- 30 -'!D45,'- 30 -'!B45,'- 29 -'!F45,'- 29 -'!D45,'- 29 -'!B45) -> 896961 | C45: =B45/'- 3 -'!D45*100 -> 4.212635865 | D45: =B45/'- 7 -'!E45 -> 480.9442359 | E45: =SUM('- 32 -'!D45,'- 32 -'!B45,'- 31 -'!F45,'- 31 -'!D45,'- 31 -'!B45) -> 1978470 | F45: =E45/'- 3 -'!D45*100 -> 9.292013453 | G45: =E45/'- 7 -'!E45 -> 1060.841823 | H45: =SUM('- 33 -'!B45,'- 33 -'!D45) -> 388068 | I45: =H45/'- 3 -'!D45*100 -> 1.822586684 | J45: =H45/'- 7 -'!E45 -> 208.0793566
A46: WINNIPEG | B46: =SUM('- 30 -'!D46,'- 30 -'!B46,'- 29 -'!F46,'- 29 -'!D46,'- 29 -'!B46) -> 7345500 | C46: =B46/'- 3 -'!D46*100 -> 1.779213539 | D46: =B46/'- 7 -'!E46 -> 243.4905113 | E46: =SUM('- 32 -'!D46,'- 32 -'!B46,'- 31 -'!F46,'- 31 -'!D46,'- 31 -'!B46) -> 54267107 | F46: =E46/'- 3 -'!D46*100 -> 13.14447914 | G46: =E46/'- 7 -'!E46 -> 1798.859932 | H46: =SUM('- 33 -'!B46,'- 33 -'!D46) -> 7483300 | I46: =H46/'- 3 -'!D46*100 -> 1.812591203 | J46: =H46/'- 7 -'!E46 -> 248.0583409
A48: PROVINCE | B48: =SUM(B11:B46) -> 106735392 | C48: =B48/'- 3 -'!D48*100 -> 4.362376223 | D48: =B48/'- 7 -'!E48 -> 591.3637223 | E48: =SUM(E11:E46) -> 283526154 | F48: =E48/'- 3 -'!D48*100 -> 11.58798155 | G48: =E48/'- 7 -'!E48 -> 1570.866783 | H48: =SUM(H11:H46) -> 42045899 | I48: =H48/'- 3 -'!D48*100 -> 1.718455581 | J48: =H48/'- 7 -'!E48 -> 232.9538392
A50: WHITESHELL | B50: =SUM('- 30 -'!D50,'- 30 -'!B50,'- 29 -'!F50,'- 29 -'!D50,'- 29 -'!B50) -> 69700 | C50: =B50/'- 3 -'!D50*100 -> 1.929279853 | D50: =B50/'- 7 -'!E50 -> 416.119403 | E50: =SUM('- 32 -'!D50,'- 32 -'!B50,'- 31 -'!F50,'- 31 -'!D50,'- 31 -'!B50) -> 514300 | F50: =E50/'- 3 -'!D50*100 -> 14.23570485 | G50: =E50/'- 7 -'!E50 -> 3070.447761 | H50: =SUM('- 33 -'!B50,'- 33 -'!D50) -> 48447 | I50: =H50/'- 3 -'!D50*100 -> 1.341001736 | J50: =H50/'- 7 -'!E50 -> 289.2358209
A51: MITT | B51: =SUM('- 30 -'!D51,'- 30 -'!B51,'- 29 -'!F51,'- 29 -'!D51,'- 29 -'!B51) -> 0 | C51: =B51/'- 3 -'!D51*100 -> 0 | D51: =B51/'- 7 -'!E51 -> 0 | E51: =SUM('- 32 -'!D51,'- 32 -'!B51,'- 31 -'!F51,'- 31 -'!D51,'- 31 -'!B51) -> 4021722 | F51: =E51/'- 3 -'!D51*100 -> 12.1094595 | G51: =E51/'- 7 -'!E51 -> 2864.474359 | H51: =SUM('- 33 -'!B51,'- 33 -'!D51) -> 610675 | I51: =H51/'- 3 -'!D51*100 -> 1.838750709 | J51: =H51/'- 7 -'!E51 -> 434.9537037
B52: =IF(B48='- 10 -'!K22,"","check with page 10") ->  | H52: =IF($H$48='- 10 -'!K24," ","check with page 10") -> 
B53: =B48-'- 10 -'!K22 -> 0

Sheet - 18 -
B2: =IF(Lang=1,BA2,BB2) -> ANALYSIS OF EXPENSE BY PROGRAM | G2: PAGE 1 OF 16 | BA2: ANALYSIS OF EXPENSE BY PROGRAM | BB2: ANALYSE DES DÉPENSES PAR PROGRAMME
B3: =OPYEAR -> OPERATING FUND 2019/2020 BUDGET
B5: FUNCTION 100: REGULAR INSTRUCTION
B6: ADMINISTRATION | E6: SENIOR YEARS TECHNOLOGY EDUCATION
D8: PER PUPIL | G8: PER PUPIL
A9: DIVISION / DISTRICT | B9: AMOUNT | C9: % | E9: AMOUNT | F9: %
A11: BEAUTIFUL PLAINS | B11: 1483509 | C11: =B11/'- 3 -'!$D11*100 -> 7.125673495 | D11: =B11/'- 7 -'!$C11 -> 823.4854288 | E11: 0 | F11: =E11/'- 3 -'!$D11*100 -> 0 | G11: =IF('- 7 -'!$B11=0,"",E11/'- 7 -'!$B11) -> 
A12: BORDER LAND | B12: 2812625 | C12: =B12/'- 3 -'!$D12*100 -> 8.069449207 | D12: =B12/'- 7 -'!$C12 -> 1315.195739 | E12: 1360033 | F12: =E12/'- 3 -'!$D12*100 -> 3.901948256 | G12: =IF('- 7 -'!$B12=0,"",E12/'- 7 -'!$B12) -> 7277.18444
A13: BRANDON | B13: 7522200 | C13: =B13/'- 3 -'!$D13*100 -> 7.11712189 | D13: =B13/'- 7 -'!$C13 -> 867.2623508 | E13: 3871500 | F13: =E13/'- 3 -'!$D13*100 -> 3.663015793 | G13: =IF('- 7 -'!$B13=0,"",E13/'- 7 -'!$B13) -> 8290.149893
A14: DSFM | B14: 6847729 | C14: =B14/'- 3 -'!$D14*100 -> 7.170102772 | D14: =B14/'- 7 -'!$C14 -> 1185.138283 | E14: 257076 | F14: =E14/'- 3 -'!$D14*100 -> 0.2691784882 | G14: =IF('- 7 -'!$B14=0,"",E14/'- 7 -'!$B14) -> 7561.058824
A15: EVERGREEN | B15: 1706750 | C15: =B15/'- 3 -'!$D15*100 -> 8.119255897 | D15: =B15/'- 7 -'!$C15 -> 1217.368046 | E15: 135500 | F15: =E15/'- 3 -'!$D15*100 -> 0.6445930418 | G15: =IF('- 7 -'!$B15=0,"",E15/'- 7 -'!$B15) -> 6775
A16: FLIN FLON | B16: 1239728 | C16: =B16/'- 3 -'!$D16*100 -> 8.312901906 | D16: =B16/'- 7 -'!$C16 -> 1319.561469 | E16: 0 | F16: =E16/'- 3 -'!$D16*100 -> 0 | G16: =IF('- 7 -'!$B16=0,"",E16/'- 7 -'!$B16) -> 
A17: FORT LA BOSSE | B17: 1423410 | C17: =B17/'- 3 -'!$D17*100 -> 7.596744534 | D17: =B17/'- 7 -'!$C17 -> 990.1982609 | E17: 205200 | F17: =E17/'- 3 -'!$D17*100 -> 1.095153173 | G17: =IF('- 7 -'!$B17=0,"",E17/'- 7 -'!$B17) -> 9327.272727
A18: FRONTIER | B18: 7371303 | C18: =B18/'- 3 -'!$D18*100 -> 5.403476137 | D18: =B18/'- 7 -'!$C18 -> 1196.504131 | E18: 691659 | F18: =E18/'- 3 -'!$D18*100 -> 0.5070152321 | G18: =IF('- 7 -'!$B18=0,"",E18/'- 7 -'!$B18) -> 12134.36842
A19: GARDEN VALLEY | B19: 3214700 | C19: =B19/'- 3 -'!$D19*100 -> 6.302035855 | D19: =B19/'- 7 -'!$C19 -> 740.0322284 | E19: 1226600 | F19: =E19/'- 3 -'!$D19*100 -> 2.404602974 | G19: =IF('- 7 -'!$B19=0,"",E19/'- 7 -'!$B19) -> 9435.384615
A20: HANOVER | B20: 6597700 | C20: =B20/'- 3 -'!$D20*100 -> 7.405640576 | D20: =B20/'- 7 -'!$C20 -> 830.7876346 | E20: 3394100 | F20: =E20/'- 3 -'!$D20*100 -> 3.809734404 | G20: =IF('- 7 -'!$B20=0,"",E20/'- 7 -'!$B20) -> 7993.641074
A21: INTERLAKE | B21: 3199917 | C21: =B21/'- 3 -'!$D21*100 -> 8.471552055 | D21: =B21/'- 7 -'!$C21 -> 1137.141791 | E21: 0 | F21: =E21/'- 3 -'!$D21*100 -> 0 | G21: =IF('- 7 -'!$B21=0,"",E21/'- 7 -'!$B21) -> 
A22: KELSEY | B22: 1521285 | C22: =B22/'- 3 -'!$D22*100 -> 7.406753012 | D22: =B22/'- 7 -'!$C22 -> 1065.922786 | E22: 0 | F22: =E22/'- 3 -'!$D22*100 -> 0 | G22: =IF('- 7 -'!$B22=0,"",E22/'- 7 -'!$B22) -> 
A23: LAKESHORE | B23: 1104800 | C23: =B23/'- 3 -'!$D23*100 -> 6.744594984 | D23: =B23/'- 7 -'!$C23 -> 1167.247755 | E23: 140500 | F23: =E23/'- 3 -'!$D23*100 -> 0.8577259189 | G23: =IF('- 7 -'!$B23=0,"",E23/'- 7 -'!$B23) -> 10035.71429
A24: LORD SELKIRK | B24: 4926675 | C24: =B24/'- 3 -'!$D24*100 -> 8.411753738 | D24: =B24/'- 7 -'!$C24 -> 1298.201581 | E24: 1901030 | F24: =E24/'- 3 -'!$D24*100 -> 3.245798882 | G24: =IF('- 7 -'!$B24=0,"",E24/'- 7 -'!$B24) -> 7665.443548
A25: LOUIS RIEL | B25: 14846949 | C25: =B25/'- 3 -'!$D25*100 -> 7.716689205 | D25: =B25/'- 7 -'!$C25 -> 994.7704523 | E25: 1999837 | F25: =E25/'- 3 -'!$D25*100 -> 1.039413592 | G25: =IF('- 7 -'!$B25=0,"",E25/'- 7 -'!$B25) -> 12868.96396
A26: MOUNTAIN VIEW | B26: 3531118 | C26: =B26/'- 3 -'!$D26*100 -> 8.534870148 | D26: =B26/'- 7 -'!$C26 -> 1174.299302 | E26: 912570 | F26: =E26/'- 3 -'!$D26*100 -> 2.205722508 | G26: =IF('- 7 -'!$B26=0,"",E26/'- 7 -'!$B26) -> 5451.433692
A27: MYSTERY LAKE | B27: 2800671 | C27: =B27/'- 3 -'!$D27*100 -> 6.676191946 | D27: =B27/'- 7 -'!$C27 -> 937.3062249 | E27: 1145334 | F27: =E27/'- 3 -'!$D27*100 -> 2.73022773 | G27: =IF('- 7 -'!$B27=0,"",E27/'- 7 -'!$B27) -> 6190.994595
A28: PARK WEST | B28: 2248949 | C28: =B28/'- 3 -'!$D28*100 -> 7.811519359 | D28: =B28/'- 7 -'!$C28 -> 1120.831797 | E28: 0 | F28: =E28/'- 3 -'!$D28*100 -> 0 | G28: =IF('- 7 -'!$B28=0,"",E28/'- 7 -'!$B28) -> 
A29: PEMBINA TRAILS | B29: 13134403 | C29: =B29/'- 3 -'!$D29*100 -> 7.493300964 | D29: =B29/'- 7 -'!$C29 -> 947.306383 | E29: 0 | F29: =E29/'- 3 -'!$D29*100 -> 0 | G29: =IF('- 7 -'!$B29=0,"",E29/'- 7 -'!$B29) -> 
A30: PINE CREEK | B30: 1110987 | C30: =B30/'- 3 -'!$D30*100 -> 7.209292894 | D30: =B30/'- 7 -'!$C30 -> 1055.569596 | E30: 96500 | F30: =E30/'- 3 -'!$D30*100 -> 0.626197034 | G30: =IF('- 7 -'!$B30=0,"",E30/'- 7 -'!$B30) -> 8041.666667
A31: PORTAGE LA PRAIRIE | B31: 3131558 | C31: =B31/'- 3 -'!$D31*100 -> 7.844683995 | D31: =B31/'- 7 -'!$C31 -> 938.575753 | E31: 752145 | F31: =E31/'- 3 -'!$D31*100 -> 1.884154738 | G31: =IF('- 7 -'!$B31=0,"",E31/'- 7 -'!$B31) -> 7302.378641
A32: PRAIRIE ROSE | B32: 2580614 | C32: =B32/'- 3 -'!$D32*100 -> 8.256827339 | D32: =B32/'- 7 -'!$C32 -> 1156.448129 | E32: 0 | F32: =E32/'- 3 -'!$D32*100 -> 0 | G32: =IF('- 7 -'!$B32=0,"",E32/'- 7 -'!$B32) -> 
A33: PRAIRIE SPIRIT | B33: 2887035 | C33: =B33/'- 3 -'!$D33*100 -> 10.10195538 | D33: =B33/'- 7 -'!$C33 -> 1424.500419 | E33: 0 | F33: =E33/'- 3 -'!$D33*100 -> 0 | G33: =IF('- 7 -'!$B33=0,"",E33/'- 7 -'!$B33) -> 
A34: RED RIVER VALLEY | B34: 2660995 | C34: =B34/'- 3 -'!$D34*100 -> 8.403818215 | D34: =B34/'- 7 -'!$C34 -> 1191.668159 | E34: 352880 | F34: =E34/'- 3 -'!$D34*100 -> 1.114447555 | G34: =IF('- 7 -'!$B34=0,"",E34/'- 7 -'!$B34) -> 15342.6087
A35: RIVER EAST TRANSCONA | B35: 14029897 | C35: =B35/'- 3 -'!$D35*100 -> 7.229612951 | D35: =B35/'- 7 -'!$C35 -> 861.5226896 | E35: 3973661 | F35: =E35/'- 3 -'!$D35*100 -> 2.047629504 | G35: =IF('- 7 -'!$B35=0,"",E35/'- 7 -'!$B35) -> 5549.805866
A36: ROLLING RIVER | B36: 2052750 | C36: =B36/'- 3 -'!$D36*100 -> 8.492991084 | D36: =B36/'- 7 -'!$C36 -> 1194.501018 | E36: 136475 | F36: =E36/'- 3 -'!$D36*100 -> 0.564647891 | G36: =IF('- 7 -'!$B36=0,"",E36/'- 7 -'!$B36) -> 19778.98551
A37: SEINE RIVER | B37: 4460137 | C37: =B37/'- 3 -'!$D37*100 -> 8.241260098 | D37: =B37/'- 7 -'!$C37 -> 1028.392207 | E37: 0 | F37: =E37/'- 3 -'!$D37*100 -> 0 | G37: =IF('- 7 -'!$B37=0,"",E37/'- 7 -'!$B37) -> 
A38: SEVEN OAKS | B38: 11149560 | C38: =B38/'- 3 -'!$D38*100 -> 7.523385833 | D38: =B38/'- 7 -'!$C38 -> 972.0966729 | E38: 1550450 | F38: =E38/'- 3 -'!$D38*100 -> 1.046196762 | G38: =IF('- 7 -'!$B38=0,"",E38/'- 7 -'!$B38) -> 8054.285714
A39: SOUTHWEST HORIZON | B39: 1536500 | C39: =B39/'- 3 -'!$D39*100 -> 6.571041231 | D39: =B39/'- 7 -'!$C39 -> 1022.288756 | E39: 0 | F39: =E39/'- 3 -'!$D39*100 -> 0 | G39: =IF('- 7 -'!$B39=0,"",E39/'- 7 -'!$B39) -> 
A40: ST. JAMES-ASSINIBOIA | B40: 8789214 | C40: =B40/'- 3 -'!$D40*100 -> 8.061445781 | D40: =B40/'- 7 -'!$C40 -> 1051.592965 | E40: 1653605 | F40: =E40/'- 3 -'!$D40*100 -> 1.516682499 | G40: =IF('- 7 -'!$B40=0,"",E40/'- 7 -'!$B40) -> 7066.688034
A41: SUNRISE | B41: 4345463 | C41: =B41/'- 3 -'!$D41*100 -> 6.66882993 | D41: =B41/'- 7 -'!$C41 -> 977.6069741 | E41: 0 | F41: =E41/'- 3 -'!$D41*100 -> 0 | G41: =IF('- 7 -'!$B41=0,"",E41/'- 7 -'!$B41) -> 
A42: SWAN VALLEY | B42: 1776179 | C42: =B42/'- 3 -'!$D42*100 -> 8.347788529 | D42: =B42/'- 7 -'!$C42 -> 1290.358881 | E42: 1068134 | F42: =E42/'- 3 -'!$D42*100 -> 5.020077792 | G42: =IF('- 7 -'!$B42=0,"",E42/'- 7 -'!$B42) -> 8893.705246
A43: TURTLE MOUNTAIN | B43: 826064 | C43: =B43/'- 3 -'!$D43*100 -> 5.957716759 | D43: =B43/'- 7 -'!$C43 -> 830.6324786 | E43: 108613 | F43: =E43/'- 3 -'!$D43*100 -> 0.7833357831 | G43: =IF('- 7 -'!$B43=0,"",E43/'- 7 -'!$B43) -> 3879.035714
A44: TURTLE RIVER | B44: 711880 | C44: =B44/'- 3 -'!$D44*100 -> 6.25827251 | D44: =B44/'- 7 -'!$C44 -> 1017.698356 | E44: 0 | F44: =E44/'- 3 -'!$D44*100 -> 0 | G44: =IF('- 7 -'!$B44=0,"",E44/'- 7 -'!$B44) -> 
A45: WESTERN | B45: 1564772 | C45: =B45/'- 3 -'!$D45*100 -> 7.349053802 | D45: =B45/'- 7 -'!$C45 -> 839.0198391 | E45: 352072 | F45: =E45/'- 3 -'!$D45*100 -> 1.653529121 | G45: =IF('- 7 -'!$B45=0,"",E45/'- 7 -'!$B45) -> 14082.88
A46: WINNIPEG | B46: 30377801 | C46: =B46/'- 3 -'!$D46*100 -> 7.35805525 | D46: =B46/'- 7 -'!$C46 -> 1006.971111 | E46: 6503000 | F46: =E46/'- 3 -'!$D46*100 -> 1.575144734 | G46: =IF('- 7 -'!$B46=0,"",E46/'- 7 -'!$B46) -> 11012.7011
A48: PROVINCE | B48: =SUM(B11:B46) -> 181525827 | C48: =B48/'- 3 -'!$D48*100 -> 7.419131899 | D48: =B48/'- 7 -'!$C48 -> 1005.737523 | E48: =SUM(E11:E46) -> 33788474 | F48: =E48/'- 3 -'!$D48*100 -> 1.380966827 | G48: =E48/'- 7 -'!$B48 -> 8117.760656
A50: WHITESHELL | B50: 227500 | C50: =B50/'- 3 -'!$D50*100 -> 6.297147295 | D50: =B50/'- 7 -'!$C50 -> 1358.208955 | E50: 0 | F50: =E50/'- 3 -'!$D50*100 -> 0 | G50: =IF('- 7 -'!$B50=0,"",E50/'- 7 -'!$B50) -> 
A51: MITT | B51: 1538342 | C51: =B51/'- 3 -'!$D51*100 -> 4.63196863 | D51: =B51/'- 7 -'!$C51 -> 1095.685185 | E51: 4590426 | F51: =E51/'- 3 -'!$D51*100 -> 13.82183496 | G51: =IF('- 7 -'!$B51=0,"",E51/'- 7 -'!$B51) -> 3586.270312

Sheet - 19 -
B2: =AEXP_BP -> ANALYSIS OF EXPENSE BY PROGRAM | J2: PAGE 2 OF 16
B3: =OPYEAR -> OPERATING FUND 2019/2020 BUDGET
B5: FUNCTION 100: REGULAR INSTRUCTION (CONT'D)
B6: SINGLE TRACK SCHOOLS (1)
B7: ENGLISH LANGUAGE | E7: FRANÇAIS | H7: FRENCH IMMERSION
D8: PER PUPIL | G8: PER PUPIL | J8: PER PUPIL
A9: DIVISION / DISTRICT | B9: AMOUNT | C9: % | E9: AMOUNT | F9: % | H9: AMOUNT | I9: %
A11: BEAUTIFUL PLAINS | B11: 11546570 | C11: =B11/'- 3 -'!$D11*100 -> 55.46113155 | D11: =B11/'- 6 -'!$B11 -> 6409.419928 | E11: 0 | F11: =E11/'- 3 -'!$D11*100 -> 0 | G11: =IF('- 6 -'!$C11=0,"",E11/'- 6 -'!$C11) ->  | H11: 0 | I11: =H11/'- 3 -'!$D11*100 -> 0 | J11: =IF('- 6 -'!$D11=0,"",H11/'- 6 -'!$D11) -> 
A12: BORDER LAND | B12: 11048310 | C12: =B12/'- 3 -'!$D12*100 -> 31.6977117 | D12: =B12/'- 6 -'!$B12 -> 8378.373664 | E12: 0 | F12: =E12/'- 3 -'!$D12*100 -> 0 | G12: =IF('- 6 -'!$C12=0,"",E12/'- 6 -'!$C12) ->  | H12: 0 | I12: =H12/'- 3 -'!$D12*100 -> 0 | J12: =IF('- 6 -'!$D12=0,"",H12/'- 6 -'!$D12) -> 
A13: BRANDON | B13: 42451000 | C13: =B13/'- 3 -'!$D13*100 -> 40.16497054 | D13: =B13/'- 6 -'!$B13 -> 6602.535189 | E13: 0 | F13: =E13/'- 3 -'!$D13*100 -> 0 | G13: =IF('- 6 -'!$C13=0,"",E13/'- 6 -'!$C13) ->  | H13: 1943200 | I13: =H13/'- 3 -'!$D13*100 -> 1.838556706 | J13: =IF('- 6 -'!$D13=0,"",H13/'- 6 -'!$D13) -> 5844.210526
A14: DSFM | B14: 0 | C14: =B14/'- 3 -'!$D14*100 -> 0 | E14: 46159240 | F14: =E14/'- 3 -'!$D14*100 -> 48.33230034 | G14: =IF('- 6 -'!$C14=0,"",E14/'- 6 -'!$C14) -> 8036.079387 | H14: 0 | I14: =H14/'- 3 -'!$D14*100 -> 0 | J14: =IF('- 6 -'!$D14=0,"",H14/'- 6 -'!$D14) -> 
A15: EVERGREEN | B15: 9112399 | C15: =B15/'- 3 -'!$D15*100 -> 43.34899623 | D15: =B15/'- 6 -'!$B15 -> 6593.631693 | E15: 0 | F15: =E15/'- 3 -'!$D15*100 -> 0 | G15: =IF('- 6 -'!$C15=0,"",E15/'- 6 -'!$C15) ->  | H15: 0 | I15: =H15/'- 3 -'!$D15*100 -> 0 | J15: =IF('- 6 -'!$D15=0,"",H15/'- 6 -'!$D15) -> 
A16: FLIN FLON | B16: 4201454 | C16: =B16/'- 3 -'!$D16*100 -> 28.17253056 | D16: =B16/'- 6 -'!$B16 -> 7462.618117 | E16: 0 | F16: =E16/'- 3 -'!$D16*100 -> 0 | G16: =IF('- 6 -'!$C16=0,"",E16/'- 6 -'!$C16) ->  | H16: 0 | I16: =H16/'- 3 -'!$D16*100 -> 0 | J16: =IF('- 6 -'!$D16=0,"",H16/'- 6 -'!$D16) -> 
A17: FORT LA BOSSE | B17: 9481405 | C17: =B17/'- 3 -'!$D17*100 -> 50.60229422 | D17: =B17/'- 6 -'!$B17 -> 6698.272695 | E17: 0 | F17: =E17/'- 3 -'!$D17*100 -> 0 | G17: =IF('- 6 -'!$C17=0,"",E17/'- 6 -'!$C17) ->  | H17: 0 | I17: =H17/'- 3 -'!$D17*100 -> 0 | J17: =IF('- 6 -'!$D17=0,"",H17/'- 6 -'!$D17) -> 
A18: FRONTIER | B18: 50033494 | C18: =B18/'- 3 -'!$D18*100 -> 36.67666231 | D18: =B18/'- 6 -'!$B18 -> 8197.240035 | E18: 0 | F18: =E18/'- 3 -'!$D18*100 -> 0 | G18: =IF('- 6 -'!$C18=0,"",E18/'- 6 -'!$C18) ->  | H18: 0 | I18: =H18/'- 3 -'!$D18*100 -> 0 | J18: =IF('- 6 -'!$D18=0,"",H18/'- 6 -'!$D18) -> 
A19: GARDEN VALLEY | B19: 24052500 | C19: =B19/'- 3 -'!$D19*100 -> 47.15205693 | D19: =B19/'- 6 -'!$B19 -> 5707.759848 | E19: 0 | F19: =E19/'- 3 -'!$D19*100 -> 0 | G19: =IF('- 6 -'!$C19=0,"",E19/'- 6 -'!$C19) ->  | H19: 0 | I19: =H19/'- 3 -'!$D19*100 -> 0 | J19: =IF('- 6 -'!$D19=0,"",H19/'- 6 -'!$D19) -> 
A20: HANOVER | B20: 44394500 | C20: =B20/'- 3 -'!$D20*100 -> 49.83095784 | D20: =B20/'- 6 -'!$B20 -> 5905.958573 | E20: 0 | F20: =E20/'- 3 -'!$D20*100 -> 0 | G20: =IF('- 6 -'!$C20=0,"",E20/'- 6 -'!$C20) ->  | H20: 0 | I20: =H20/'- 3 -'!$D20*100 -> 0 | J20: =IF('- 6 -'!$D20=0,"",H20/'- 6 -'!$D20) -> 
A21: INTERLAKE | B21: 14511276 | C21: =B21/'- 3 -'!$D21*100 -> 38.41756834 | D21: =B21/'- 6 -'!$B21 -> 6988.334216 | E21: 0 | F21: =E21/'- 3 -'!$D21*100 -> 0 | G21: =IF('- 6 -'!$C21=0,"",E21/'- 6 -'!$C21) ->  | H21: 0 | I21: =H21/'- 3 -'!$D21*100 -> 0 | J21: =IF('- 6 -'!$D21=0,"",H21/'- 6 -'!$D21) -> 
A22: KELSEY | B22: 4719670 | C22: =B22/'- 3 -'!$D22*100 -> 22.97888297 | D22: =B22/'- 6 -'!$B22 -> 5807.395103 | E22: 0 | F22: =E22/'- 3 -'!$D22*100 -> 0 | G22: =IF('- 6 -'!$C22=0,"",E22/'- 6 -'!$C22) ->  | H22: 0 | I22: =H22/'- 3 -'!$D22*100 -> 0 | J22: =IF('- 6 -'!$D22=0,"",H22/'- 6 -'!$D22) -> 
A23: LAKESHORE | B23: 7036141 | C23: =B23/'- 3 -'!$D23*100 -> 42.95430964 | D23: =B23/'- 6 -'!$B23 -> 7545.459517 | E23: 0 | F23: =E23/'- 3 -'!$D23*100 -> 0 | G23: =IF('- 6 -'!$C23=0,"",E23/'- 6 -'!$C23) ->  | H23: 0 | I23: =H23/'- 3 -'!$D23*100 -> 0 | J23: =IF('- 6 -'!$D23=0,"",H23/'- 6 -'!$D23) -> 
A24: LORD SELKIRK | B24: 20553855 | C24: =B24/'- 3 -'!$D24*100 -> 35.0934386 | D24: =B24/'- 6 -'!$B24 -> 7813.668504 | E24: 0 | F24: =E24/'- 3 -'!$D24*100 -> 0 | G24: =IF('- 6 -'!$C24=0,"",E24/'- 6 -'!$C24) ->  | H24: 1543140 | I24: =H24/'- 3 -'!$D24*100 -> 2.634741213 | J24: =IF('- 6 -'!$D24=0,"",H24/'- 6 -'!$D24) -> 6538.728814
A25: LOUIS RIEL | B25: 63144032 | C25: =B25/'- 3 -'!$D25*100 -> 32.81905731 | D25: =B25/'- 6 -'!$B25 -> 6649.820127 | E25: 0 | F25: =E25/'- 3 -'!$D25*100 -> 0 | G25: =IF('- 6 -'!$C25=0,"",E25/'- 6 -'!$C25) ->  | H25: 25091444 | I25: =H25/'- 3 -'!$D25*100 -> 13.04125683 | J25: =IF('- 6 -'!$D25=0,"",H25/'- 6 -'!$D25) -> 5444.010414
A26: MOUNTAIN VIEW | B26: 15085501 | C26: =B26/'- 3 -'!$D26*100 -> 36.46233067 | D26: =B26/'- 6 -'!$B26 -> 6946.721772 | E26: 0 | F26: =E26/'- 3 -'!$D26*100 -> 0 | G26: =IF('- 6 -'!$C26=0,"",E26/'- 6 -'!$C26) ->  | H26: 887544 | I26: =H26/'- 3 -'!$D26*100 -> 2.145233547 | J26: =IF('- 6 -'!$D26=0,"",H26/'- 6 -'!$D26) -> 5800.941176
A27: MYSTERY LAKE | B27: 17152206 | C27: =B27/'- 3 -'!$D27*100 -> 40.88713724 | D27: =B27/'- 6 -'!$B27 -> 6961.122565 | E27: 0 | F27: =E27/'- 3 -'!$D27*100 -> 0 | G27: =IF('- 6 -'!$C27=0,"",E27/'- 6 -'!$C27) ->  | H27: 0 | I27: =H27/'- 3 -'!$D27*100 -> 0 | J27: =IF('- 6 -'!$D27=0,"",H27/'- 6 -'!$D27) -> 
A28: PARK WEST | B28: 14841753 | C28: =B28/'- 3 -'!$D28*100 -> 51.55147621 | D28: =B28/'- 6 -'!$B28 -> 7396.83678 | E28: 0 | F28: =E28/'- 3 -'!$D28*100 -> 0 | G28: =IF('- 6 -'!$C28=0,"",E28/'- 6 -'!$C28) ->  | H28: 0 | I28: =H28/'- 3 -'!$D28*100 -> 0 | J28: =IF('- 6 -'!$D28=0,"",H28/'- 6 -'!$D28) -> 
A29: PEMBINA TRAILS | B29: 54019711 | C29: =B29/'- 3 -'!$D29*100 -> 30.81875533 | D29: =B29/'- 6 -'!$B29 -> 6625.665207 | E29: 0 | F29: =E29/'- 3 -'!$D29*100 -> 0 | G29: =IF('- 6 -'!$C29=0,"",E29/'- 6 -'!$C29) ->  | H29: 7971599 | I29: =H29/'- 3 -'!$D29*100 -> 4.54787252 | J29: =IF('- 6 -'!$D29=0,"",H29/'- 6 -'!$D29) -> 6232.681001
A30: PINE CREEK | B30: 8074853 | C30: =B30/'- 3 -'!$D30*100 -> 52.39843522 | D30: =B30/'- 6 -'!$B30 -> 7760.550697 | E30: 0 | F30: =E30/'- 3 -'!$D30*100 -> 0 | G30: =IF('- 6 -'!$C30=0,"",E30/'- 6 -'!$C30) ->  | H30: 0 | I30: =H30/'- 3 -'!$D30*100 -> 0 | J30: =IF('- 6 -'!$D30=0,"",H30/'- 6 -'!$D30) -> 
A31: PORTAGE LA PRAIRIE | B31: 16553486 | C31: =B31/'- 3 -'!$D31*100 -> 41.46717599 | D31: =B31/'- 6 -'!$B31 -> 6742.764155 | E31: 0 | F31: =E31/'- 3 -'!$D31*100 -> 0 | G31: =IF('- 6 -'!$C31=0,"",E31/'- 6 -'!$C31) ->  | H31: 0 | I31: =H31/'- 3 -'!$D31*100 -> 0 | J31: =IF('- 6 -'!$D31=0,"",H31/'- 6 -'!$D31) -> 
A32: PRAIRIE ROSE | B32: 13770601 | C32: =B32/'- 3 -'!$D32*100 -> 44.05985351 | D32: =B32/'- 6 -'!$B32 -> 7114.751227 | E32: 0 | F32: =E32/'- 3 -'!$D32*100 -> 0 | G32: =IF('- 6 -'!$C32=0,"",E32/'- 6 -'!$C32) ->  | H32: 758916 | I32: =H32/'- 3 -'!$D32*100 -> 2.428196692 | J32: =IF('- 6 -'!$D32=0,"",H32/'- 6 -'!$D32) -> 5883.069767
A33: PRAIRIE SPIRIT | B33: 10842977 | C33: =B33/'- 3 -'!$D33*100 -> 37.94040247 | D33: =B33/'- 6 -'!$B33 -> 6903.276883 | E33: 0 | F33: =E33/'- 3 -'!$D33*100 -> 0 | G33: =IF('- 6 -'!$C33=0,"",E33/'- 6 -'!$C33) ->  | H33: 0 | I33: =H33/'- 3 -'!$D33*100 -> 0 | J33: =IF('- 6 -'!$D33=0,"",H33/'- 6 -'!$D33) -> 
A34: RED RIVER VALLEY | B34: 11076365 | C34: =B34/'- 3 -'!$D34*100 -> 34.98080903 | D34: =B34/'- 6 -'!$B34 -> 6460.405366 | E34: 0 | F34: =E34/'- 3 -'!$D34*100 -> 0 | G34: =IF('- 6 -'!$C34=0,"",E34/'- 6 -'!$C34) ->  | H34: 1973934 | I34: =H34/'- 3 -'!$D34*100 -> 6.233977329 | J34: =IF('- 6 -'!$D34=0,"",H34/'- 6 -'!$D34) -> 7491.210626
A35: RIVER EAST TRANSCONA | B35: 59516074 | C35: =B35/'- 3 -'!$D35*100 -> 30.66866274 | D35: =B35/'- 6 -'!$B35 -> 6526.600943 | E35: 0 | F35: =E35/'- 3 -'!$D35*100 -> 0 | G35: =IF('- 6 -'!$C35=0,"",E35/'- 6 -'!$C35) ->  | H35: 7057399 | I35: =H35/'- 3 -'!$D35*100 -> 3.636681239 | J35: =IF('- 6 -'!$D35=0,"",H35/'- 6 -'!$D35) -> 5145.752096
A36: ROLLING RIVER | B36: 12065565 | C36: =B36/'- 3 -'!$D36*100 -> 49.91973498 | D36: =B36/'- 6 -'!$B36 -> 7049.290138 | E36: 0 | F36: =E36/'- 3 -'!$D36*100 -> 0 | G36: =IF('- 6 -'!$C36=0,"",E36/'- 6 -'!$C36) ->  | H36: 0 | I36: =H36/'- 3 -'!$D36*100 -> 0 | J36: =IF('- 6 -'!$D36=0,"",H36/'- 6 -'!$D36) -> 
A37: SEINE RIVER | B37: 13566373 | C37: =B37/'- 3 -'!$D37*100 -> 25.06739333 | D37: =B37/'- 6 -'!$B37 -> 6246.028085 | E37: 0 | F37: =E37/'- 3 -'!$D37*100 -> 0 | G37: =IF('- 6 -'!$C37=0,"",E37/'- 6 -'!$C37) ->  | H37: 4712071 | I37: =H37/'- 3 -'!$D37*100 -> 8.706773516 | J37: =IF('- 6 -'!$D37=0,"",H37/'- 6 -'!$D37) -> 6131.517241
A38: SEVEN OAKS | B38: 46083670 | C38: =B38/'- 3 -'!$D38*100 -> 31.09586656 | D38: =B38/'- 6 -'!$B38 -> 6979.730405 | E38: 0 | F38: =E38/'- 3 -'!$D38*100 -> 0 | G38: =IF('- 6 -'!$C38=0,"",E38/'- 6 -'!$C38) ->  | H38: 3890764 | I38: =H38/'- 3 -'!$D38*100 -> 2.625369858 | J38: =IF('- 6 -'!$D38=0,"",H38/'- 6 -'!$D38) -> 6106.991053
A39: SOUTHWEST HORIZON | B39: 11845300 | C39: =B39/'- 3 -'!$D39*100 -> 50.65795945 | D39: =B39/'- 6 -'!$B39 -> 7881.104458 | E39: 0 | F39: =E39/'- 3 -'!$D39*100 -> 0 | G39: =IF('- 6 -'!$C39=0,"",E39/'- 6 -'!$C39) ->  | H39: 0 | I39: =H39/'- 3 -'!$D39*100 -> 0 | J39: =IF('- 6 -'!$D39=0,"",H39/'- 6 -'!$D39) -> 
A40: ST. JAMES-ASSINIBOIA | B40: 36285280 | C40: =B40/'- 3 -'!$D40*100 -> 33.28077088 | D40: =B40/'- 6 -'!$B40 -> 6386.791755 | E40: 0 | F40: =E40/'- 3 -'!$D40*100 -> 0 | G40: =IF('- 6 -'!$C40=0,"",E40/'- 6 -'!$C40) ->  | H40: 7712993 | I40: =H40/'- 3 -'!$D40*100 -> 7.074338488 | J40: =IF('- 6 -'!$D40=0,"",H40/'- 6 -'!$D40) -> 5458.593772
A41: SUNRISE | B41: 14333102 | C41: =B41/'- 3 -'!$D41*100 -> 21.99650983 | D41: =B41/'- 6 -'!$B41 -> 6996.876739 | E41: 0 | F41: =E41/'- 3 -'!$D41*100 -> 0 | G41: =IF('- 6 -'!$C41=0,"",E41/'- 6 -'!$C41) ->  | H41: 0 | I41: =H41/'- 3 -'!$D41*100 -> 0 | J41: =IF('- 6 -'!$D41=0,"",H41/'- 6 -'!$D41) -> 
A42: SWAN VALLEY | B42: 6932852 | C42: =B42/'- 3 -'!$D42*100 -> 32.58341777 | D42: =B42/'- 6 -'!$B42 -> 7049.880008 | E42: 0 | F42: =E42/'- 3 -'!$D42*100 -> 0 | G42: =IF('- 6 -'!$C42=0,"",E42/'- 6 -'!$C42) ->  | H42: 0 | I42: =H42/'- 3 -'!$D42*100 -> 0 | J42: =IF('- 6 -'!$D42=0,"",H42/'- 6 -'!$D42) -> 
A43: TURTLE MOUNTAIN | B43: 6740620 | C43: =B43/'- 3 -'!$D43*100 -> 48.61451986 | D43: =B43/'- 6 -'!$B43 -> 6974.257631 | E43: 0 | F43: =E43/'- 3 -'!$D43*100 -> 0 | G43: =IF('- 6 -'!$C43=0,"",E43/'- 6 -'!$C43) ->  | H43: 0 | I43: =H43/'- 3 -'!$D43*100 -> 0 | J43: =IF('- 6 -'!$D43=0,"",H43/'- 6 -'!$D43) -> 
A44: TURTLE RIVER | B44: 5137694 | C44: =B44/'- 3 -'!$D44*100 -> 45.16644536 | D44: =B44/'- 6 -'!$B44 -> 7898.069178 | E44: 0 | F44: =E44/'- 3 -'!$D44*100 -> 0 | G44: =IF('- 6 -'!$C44=0,"",E44/'- 6 -'!$C44) ->  | H44: 328357 | I44: =H44/'- 3 -'!$D44*100 -> 2.886648855 | J44: =IF('- 6 -'!$D44=0,"",H44/'- 6 -'!$D44) -> 6701.163265
A45: WESTERN | B45: 5385326 | C45: =B45/'- 3 -'!$D45*100 -> 25.29253496 | D45: =B45/'- 6 -'!$B45 -> 6496.171291 | E45: 0 | F45: =E45/'- 3 -'!$D45*100 -> 0 | G45: =IF('- 6 -'!$C45=0,"",E45/'- 6 -'!$C45) ->  | H45: 0 | I45: =H45/'- 3 -'!$D45*100 -> 0 | J45: =IF('- 6 -'!$D45=0,"",H45/'- 6 -'!$D45) -> 
A46: WINNIPEG | B46: 129529225 | C46: =B46/'- 3 -'!$D46*100 -> 31.37433134 | D46: =B46/'- 6 -'!$B46 -> 6363.508966 | E46: 0 | F46: =E46/'- 3 -'!$D46*100 -> 0 | G46: =IF('- 6 -'!$C46=0,"",E46/'- 6 -'!$C46) ->  | H46: 7756200 | I46: =H46/'- 3 -'!$D46*100 -> 1.87869254 | J46: =IF('- 6 -'!$D46=0,"",H46/'- 6 -'!$D46) -> 5528.296507
A48: PROVINCE | B48: =SUM(B11:B46) -> 825125140 | C48: =B48/'- 3 -'!$D48*100 -> 33.72364334 | D48: =B48/'- 6 -'!$B48 -> 6717.822987 | E48: =SUM(E11:E46) -> 46159240 | F48: =E48/'- 3 -'!$D48*100 -> 1.88657171 | G48: =E48/'- 6 -'!$C48 -> 8036.079387 | H48: =SUM(H11:H46) -> 71627561 | I48: =H48/'- 3 -'!$D48*100 -> 2.92748603 | J48: =H48/'- 6 -'!$D48 -> 5664.899914
A50: WHITESHELL | B50: 1918500 | C50: =B50/'- 3 -'!$D50*100 -> 53.10363554 | D50: =B50/'- 6 -'!$B50 -> 11453.73134 | E50: 0 | F50: =E50/'- 3 -'!$D50*100 -> 0 | G50: =IF('- 6 -'!$C50=0,"",E50/'- 6 -'!$C50) ->  | H50: 0 | I50: =H50/'- 3 -'!$D50*100 -> 0 | J50: =IF('- 6 -'!$D50=0,"",H50/'- 6 -'!$D50) -> 
A51: MITT | B51: 447933 | C51: =B51/'- 3 -'!$D51*100 -> 1.348732339 | D51: =B51/'- 6 -'!$B51 -> 3612.362903 | E51: 0 | F51: =E51/'- 3 -'!$D51*100 -> 0 | G51: =IF('- 6 -'!$C51=0,"",E51/'- 6 -'!$C51) ->  | H51: 0 | I51: =H51/'- 3 -'!$D51*100 -> 0 | J51: =IF('- 6 -'!$D51=0,"",H51/'- 6 -'!$D51) -> 
A53: (1) 90% or more of Regular Instruction enrolment is in one language.

Sheet - 20 -
B2: =AEXP_BP -> ANALYSIS OF EXPENSE BY PROGRAM | I2: PAGE 3 OF 16
B3: =OPYEAR -> OPERATING FUND 2019/2020 BUDGET
B5: FUNCTION 100: REGULAR INSTRUCTION (CONT'D)
B6: DUAL TRACK SCHOOLS (1)
D7: PER PUPIL | E7: NO. OF F.T.E. PUPILS | F7: % IN DUAL TRACK SCHOOLS
F8: ENGLISH | G8: FRANÇAIS | H8: FRENCH IMMERSION | I8: OTHER
A9: DIVISION / DISTRICT | B9: AMOUNT | C9: %
A11: BEAUTIFUL PLAINS | B11: 0 | C11: =B11/'- 3 -'!$D11*100 -> 0 | D11: =IF(E11=0,"",B11/E11) ->  | E11: =SUM('- 6 -'!$E11:H11) -> 0 | F11: =IF(E11=0,"",'- 6 -'!$E11/E11*100) ->  | G11: =IF(E11=0,"",'- 6 -'!$F11/E11*100) ->  | H11: =IF(E11=0,"",'- 6 -'!$G11/E11*100) ->  | I11: =IF(E11=0,"",'- 6 -'!$H11/E11*100) -> 
A12: BORDER LAND | B12: 4715494 | C12: =B12/'- 3 -'!$D12*100 -> 13.52879937 | D12: =IF(E12=0,"",B12/E12) -> 7449.437599 | E12: =SUM('- 6 -'!$E12:H12) -> 633 | F12: =IF(E12=0,"",'- 6 -'!$E12/E12*100) -> 78.5150079 | G12: =IF(E12=0,"",'- 6 -'!$F12/E12*100) -> 0 | H12: =IF(E12=0,"",'- 6 -'!$G12/E12*100) -> 21.4849921 | I12: =IF(E12=0,"",'- 6 -'!$H12/E12*100) -> 0
A13: BRANDON | B13: 7368400 | C13: =B13/'- 3 -'!$D13*100 -> 6.971604177 | D13: 5101.003808 | E13: =SUM('- 6 -'!$E13:H13) -> 1444.5 | F13: =IF(E13=0,"",'- 6 -'!$E13/E13*100) -> 67.0128072 | G13: =IF(E13=0,"",'- 6 -'!$F13/E13*100) -> 0 | H13: =IF(E13=0,"",'- 6 -'!$G13/E13*100) -> 32.9871928 | I13: =IF(E13=0,"",'- 6 -'!$H13/E13*100) -> 0
A14: DSFM | B14: 0 | C14: =B14/'- 3 -'!$D14*100 -> 0 | E14: =SUM('- 6 -'!$E14:H14) -> 0 | F14: =IF(E14=0,"",'- 6 -'!$E14/E14*100) ->  | G14: =IF(E14=0,"",'- 6 -'!$F14/E14*100) ->  | H14: =IF(E14=0,"",'- 6 -'!$G14/E14*100) ->  | I14: =IF(E14=0,"",'- 6 -'!$H14/E14*100) -> 
A15: EVERGREEN | B15: 0 | C15: =B15/'- 3 -'!$D15*100 -> 0 | E15: =SUM('- 6 -'!$E15:H15) -> 0 | F15: =IF(E15=0,"",'- 6 -'!$E15/E15*100) ->  | G15: =IF(E15=0,"",'- 6 -'!$F15/E15*100) ->  | H15: =IF(E15=0,"",'- 6 -'!$G15/E15*100) ->  | I15: =IF(E15=0,"",'- 6 -'!$H15/E15*100) -> 
A16: FLIN FLON | B16: 2366984 | C16: =B16/'- 3 -'!$D16*100 -> 15.87163136 | D16: 6286.810093 | E16: =SUM('- 6 -'!$E16:H16) -> 376.5 | F16: =IF(E16=0,"",'- 6 -'!$E16/E16*100) -> 70.91633466 | G16: =IF(E16=0,"",'- 6 -'!$F16/E16*100) -> 0 | H16: =IF(E16=0,"",'- 6 -'!$G16/E16*100) -> 29.08366534 | I16: =IF(E16=0,"",'- 6 -'!$H16/E16*100) -> 0
A17: FORT LA BOSSE | B17: 0 | C17: =B17/'- 3 -'!$D17*100 -> 0 | E17: =SUM('- 6 -'!$E17:H17) -> 0 | F17: =IF(E17=0,"",'- 6 -'!$E17/E17*100) ->  | G17: =IF(E17=0,"",'- 6 -'!$F17/E17*100) ->  | H17: =IF(E17=0,"",'- 6 -'!$G17/E17*100) ->  | I17: =IF(E17=0,"",'- 6 -'!$H17/E17*100) -> 
A18: FRONTIER | B18: 0 | C18: =B18/'- 3 -'!$D18*100 -> 0 | E18: =SUM('- 6 -'!$E18:H18) -> 0 | F18: =IF(E18=0,"",'- 6 -'!$E18/E18*100) ->  | G18: =IF(E18=0,"",'- 6 -'!$F18/E18*100) ->  | H18: =IF(E18=0,"",'- 6 -'!$G18/E18*100) ->  | I18: =IF(E18=0,"",'- 6 -'!$H18/E18*100) -> 
A19: GARDEN VALLEY | B19: 0 | C19: =B19/'- 3 -'!$D19*100 -> 0 | E19: =SUM('- 6 -'!$E19:H19) -> 0 | F19: =IF(E19=0,"",'- 6 -'!$E19/E19*100) ->  | G19: =IF(E19=0,"",'- 6 -'!$F19/E19*100) ->  | H19: =IF(E19=0,"",'- 6 -'!$G19/E19*100) ->  | I19: =IF(E19=0,"",'- 6 -'!$H19/E19*100) -> 
A20: HANOVER | B20: 0 | C20: =B20/'- 3 -'!$D20*100 -> 0 | E20: =SUM('- 6 -'!$E20:H20) -> 0 | F20: =IF(E20=0,"",'- 6 -'!$E20/E20*100) ->  | G20: =IF(E20=0,"",'- 6 -'!$F20/E20*100) ->  | H20: =IF(E20=0,"",'- 6 -'!$G20/E20*100) ->  | I20: =IF(E20=0,"",'- 6 -'!$H20/E20*100) -> 
A21: INTERLAKE | B21: 4140307 | C21: =B21/'- 3 -'!$D21*100 -> 10.96116752 | D21: 5613.975593 | E21: =SUM('- 6 -'!$E21:H21) -> 737.5 | F21: =IF(E21=0,"",'- 6 -'!$E21/E21*100) -> 58.37288136 | G21: =IF(E21=0,"",'- 6 -'!$F21/E21*100) -> 0 | H21: =IF(E21=0,"",'- 6 -'!$G21/E21*100) -> 41.62711864 | I21: =IF(E21=0,"",'- 6 -'!$H21/E21*100) -> 0
A22: KELSEY | B22: 4487221 | C22: =B22/'- 3 -'!$D22*100 -> 21.84714742 | D22: 7302.231082 | E22: =SUM('- 6 -'!$E22:H22) -> 614.5 | F22: =IF(E22=0,"",'- 6 -'!$E22/E22*100) -> 78.27502034 | G22: =IF(E22=0,"",'- 6 -'!$F22/E22*100) -> 0 | H22: =IF(E22=0,"",'- 6 -'!$G22/E22*100) -> 21.72497966 | I22: =IF(E22=0,"",'- 6 -'!$H22/E22*100) -> 0
A23: LAKESHORE | B23: 0 | C23: =B23/'- 3 -'!$D23*100 -> 0 | E23: =SUM('- 6 -'!$E23:H23) -> 0 | F23: =IF(E23=0,"",'- 6 -'!$E23/E23*100) ->  | G23: =IF(E23=0,"",'- 6 -'!$F23/E23*100) ->  | H23: =IF(E23=0,"",'- 6 -'!$G23/E23*100) ->  | I23: =IF(E23=0,"",'- 6 -'!$H23/E23*100) -> 
A24: LORD SELKIRK | B24: 4722815 | C24: =B24/'- 3 -'!$D24*100 -> 8.063685291 | D24: 6940.213079 | E24: =SUM('- 6 -'!$E24:H24) -> 680.5 | F24: =IF(E24=0,"",'- 6 -'!$E24/E24*100) -> 71.56502572 | G24: =IF(E24=0,"",'- 6 -'!$F24/E24*100) -> 0 | H24: =IF(E24=0,"",'- 6 -'!$G24/E24*100) -> 16.16458486 | I24: =IF(E24=0,"",'- 6 -'!$H24/E24*100) -> 12.27038942
A25: LOUIS RIEL | B25: 3358404 | C25: =B25/'- 3 -'!$D25*100 -> 1.745527643 | D25: 5050.231579 | E25: =SUM('- 6 -'!$E25:H25) -> 665 | F25: =IF(E25=0,"",'- 6 -'!$E25/E25*100) -> 51.57894737 | G25: =IF(E25=0,"",'- 6 -'!$F25/E25*100) -> 0 | H25: =IF(E25=0,"",'- 6 -'!$G25/E25*100) -> 48.42105263 | I25: =IF(E25=0,"",'- 6 -'!$H25/E25*100) -> 0
A26: MOUNTAIN VIEW | B26: 2763761 | C26: =B26/'- 3 -'!$D26*100 -> 6.680133956 | D26: 5366.526214 | E26: =SUM('- 6 -'!$E26:H26) -> 515 | F26: =IF(E26=0,"",'- 6 -'!$E26/E26*100) -> 71.26213592 | G26: =IF(E26=0,"",'- 6 -'!$F26/E26*100) -> 0 | H26: =IF(E26=0,"",'- 6 -'!$G26/E26*100) -> 16.69902913 | I26: =IF(E26=0,"",'- 6 -'!$H26/E26*100) -> 12.03883495
A27: MYSTERY LAKE | B27: 2399724 | C27: =B27/'- 3 -'!$D27*100 -> 5.720421299 | D27: 7078.831858 | E27: =SUM('- 6 -'!$E27:H27) -> 339 | F27: =IF(E27=0,"",'- 6 -'!$E27/E27*100) -> 29.79351032 | G27: =IF(E27=0,"",'- 6 -'!$F27/E27*100) -> 0 | H27: =IF(E27=0,"",'- 6 -'!$G27/E27*100) -> 70.20648968 | I27: =IF(E27=0,"",'- 6 -'!$H27/E27*100) -> 0
A28: PARK WEST | B28: 0 | C28: =B28/'- 3 -'!$D28*100 -> 0 | E28: =SUM('- 6 -'!$E28:H28) -> 0 | F28: =IF(E28=0,"",'- 6 -'!$E28/E28*100) ->  | G28: =IF(E28=0,"",'- 6 -'!$F28/E28*100) ->  | H28: =IF(E28=0,"",'- 6 -'!$G28/E28*100) ->  | I28: =IF(E28=0,"",'- 6 -'!$H28/E28*100) -> 
A29: PEMBINA TRAILS | B29: 25767429 | C29: =B29/'- 3 -'!$D29*100 -> 14.70056161 | D29: 5812.770196 | E29: =SUM('- 6 -'!$E29:H29) -> 4432.9 | F29: =IF(E29=0,"",'- 6 -'!$E29/E29*100) -> 58.50346274 | G29: =IF(E29=0,"",'- 6 -'!$F29/E29*100) -> 0 | H29: =IF(E29=0,"",'- 6 -'!$G29/E29*100) -> 41.49653726 | I29: =IF(E29=0,"",'- 6 -'!$H29/E29*100) -> 0
A30: PINE CREEK | B30: 0 | C30: =B30/'- 3 -'!$D30*100 -> 0 | E30: =SUM('- 6 -'!$E30:H30) -> 0 | F30: =IF(E30=0,"",'- 6 -'!$E30/E30*100) ->  | G30: =IF(E30=0,"",'- 6 -'!$F30/E30*100) ->  | H30: =IF(E30=0,"",'- 6 -'!$G30/E30*100) ->  | I30: =IF(E30=0,"",'- 6 -'!$H30/E30*100) -> 
A31: PORTAGE LA PRAIRIE | B31: 3419739 | C31: =B31/'- 3 -'!$D31*100 -> 8.566589475 | D31: 4392.728324 | E31: =SUM('- 6 -'!$E31:H31) -> 778.5 | F31: =IF(E31=0,"",'- 6 -'!$E31/E31*100) -> 59.28066795 | G31: =IF(E31=0,"",'- 6 -'!$F31/E31*100) -> 0 | H31: =IF(E31=0,"",'- 6 -'!$G31/E31*100) -> 40.71933205 | I31: =IF(E31=0,"",'- 6 -'!$H31/E31*100) -> 0
A32: PRAIRIE ROSE | B32: 1301909 | C32: =B32/'- 3 -'!$D32*100 -> 4.165534956 | D32: 7795.862275 | E32: =SUM('- 6 -'!$E32:H32) -> 167 | F32: =IF(E32=0,"",'- 6 -'!$E32/E32*100) -> 69.46107784 | G32: =IF(E32=0,"",'- 6 -'!$F32/E32*100) -> 0 | H32: =IF(E32=0,"",'- 6 -'!$G32/E32*100) -> 30.53892216 | I32: =IF(E32=0,"",'- 6 -'!$H32/E32*100) -> 0
A33: PRAIRIE SPIRIT | B33: 2933065 | C33: =B33/'- 3 -'!$D33*100 -> 10.26301786 | D33: 6432.160088 | E33: =SUM('- 6 -'!$E33:H33) -> 456 | F33: =IF(E33=0,"",'- 6 -'!$E33/E33*100) -> 50.65789474 | G33: =IF(E33=0,"",'- 6 -'!$F33/E33*100) -> 26.20614035 | H33: =IF(E33=0,"",'- 6 -'!$G33/E33*100) -> 23.13596491 | I33: =IF(E33=0,"",'- 6 -'!$H33/E33*100) -> 0
A34: RED RIVER VALLEY | B34: 1677162 | C34: =B34/'- 3 -'!$D34*100 -> 5.296727188 | D34: 7229.146552 | E34: =SUM('- 6 -'!$E34:H34) -> 232 | F34: =IF(E34=0,"",'- 6 -'!$E34/E34*100) -> 31.68103448 | G34: =IF(E34=0,"",'- 6 -'!$F34/E34*100) -> 68.31896552 | H34: =IF(E34=0,"",'- 6 -'!$G34/E34*100) -> 0 | I34: =IF(E34=0,"",'- 6 -'!$H34/E34*100) -> 0
A35: RIVER EAST TRANSCONA | B35: 28166324 | C35: =B35/'- 3 -'!$D35*100 -> 14.51412086 | D35: 5546.189623 | E35: =SUM('- 6 -'!$E35:H35) -> 5078.5 | F35: =IF(E35=0,"",'- 6 -'!$E35/E35*100) -> 55.57743428 | G35: =IF(E35=0,"",'- 6 -'!$F35/E35*100) -> 0 | H35: =IF(E35=0,"",'- 6 -'!$G35/E35*100) -> 36.59545141 | I35: =IF(E35=0,"",'- 6 -'!$H35/E35*100) -> 7.827114305
A36: ROLLING RIVER | B36: 0 | C36: =B36/'- 3 -'!$D36*100 -> 0 | E36: =SUM('- 6 -'!$E36:H36) -> 0 | F36: =IF(E36=0,"",'- 6 -'!$E36/E36*100) ->  | G36: =IF(E36=0,"",'- 6 -'!$F36/E36*100) ->  | H36: =IF(E36=0,"",'- 6 -'!$G36/E36*100) ->  | I36: =IF(E36=0,"",'- 6 -'!$H36/E36*100) -> 
A37: SEINE RIVER | B37: 8219887 | C37: =B37/'- 3 -'!$D37*100 -> 15.18837353 | D37: 5886.063015 | E37: =SUM('- 6 -'!$E37:H37) -> 1396.5 | F37: =IF(E37=0,"",'- 6 -'!$E37/E37*100) -> 43.64482635 | G37: =IF(E37=0,"",'- 6 -'!$F37/E37*100) -> 0 | H37: =IF(E37=0,"",'- 6 -'!$G37/E37*100) -> 56.35517365 | I37: =IF(E37=0,"",'- 6 -'!$H37/E37*100) -> 0
A38: SEVEN OAKS | B38: 24923989 | C38: =B38/'- 3 -'!$D38*100 -> 16.81795387 | D38: 6173.124211 | E38: =SUM('- 6 -'!$E38:H38) -> 4037.5 | F38: =IF(E38=0,"",'- 6 -'!$E38/E38*100) -> 60.50773994 | G38: =IF(E38=0,"",'- 6 -'!$F38/E38*100) -> 0 | H38: =IF(E38=0,"",'- 6 -'!$G38/E38*100) -> 33.85758514 | I38: =IF(E38=0,"",'- 6 -'!$H38/E38*100) -> 5.634674923
A39: SOUTHWEST HORIZON | B39: 0 | C39: =B39/'- 3 -'!$D39*100 -> 0 | E39: =SUM('- 6 -'!$E39:H39) -> 0 | F39: =IF(E39=0,"",'- 6 -'!$E39/E39*100) ->  | G39: =IF(E39=0,"",'- 6 -'!$F39/E39*100) ->  | H39: =IF(E39=0,"",'- 6 -'!$G39/E39*100) ->  | I39: =IF(E39=0,"",'- 6 -'!$H39/E39*100) -> 
A40: ST. JAMES-ASSINIBOIA | B40: 5987042 | C40: =B40/'- 3 -'!$D40*100 -> 5.491300413 | D40: 5814.355638 | E40: =SUM('- 6 -'!$E40:H40) -> 1029.7 | F40: =IF(E40=0,"",'- 6 -'!$E40/E40*100) -> 68.43740895 | G40: =IF(E40=0,"",'- 6 -'!$F40/E40*100) -> 0 | H40: =IF(E40=0,"",'- 6 -'!$G40/E40*100) -> 31.56259105 | I40: =IF(E40=0,"",'- 6 -'!$H40/E40*100) -> 0
A41: SUNRISE | B41: 15498820 | C41: =B41/'- 3 -'!$D41*100 -> 23.78549644 | D41: 6467.273107 | E41: =SUM('- 6 -'!$E41:H41) -> 2396.5 | F41: =IF(E41=0,"",'- 6 -'!$E41/E41*100) -> 64.46901732 | G41: =IF(E41=0,"",'- 6 -'!$F41/E41*100) -> 0 | H41: =IF(E41=0,"",'- 6 -'!$G41/E41*100) -> 32.13018986 | I41: =IF(E41=0,"",'- 6 -'!$H41/E41*100) -> 3.400792823
A42: SWAN VALLEY | B42: 1938686 | C42: =B42/'- 3 -'!$D42*100 -> 9.111548302 | D42: 7101.413919 | E42: =SUM('- 6 -'!$E42:H42) -> 273 | F42: =IF(E42=0,"",'- 6 -'!$E42/E42*100) -> 76.55677656 | G42: =IF(E42=0,"",'- 6 -'!$F42/E42*100) -> 0 | H42: =IF(E42=0,"",'- 6 -'!$G42/E42*100) -> 23.44322344 | I42: =IF(E42=0,"",'- 6 -'!$H42/E42*100) -> 0
A43: TURTLE MOUNTAIN | B43: 0 | C43: =B43/'- 3 -'!$D43*100 -> 0 | E43: =SUM('- 6 -'!$E43:H43) -> 0 | F43: =IF(E43=0,"",'- 6 -'!$E43/E43*100) ->  | G43: =IF(E43=0,"",'- 6 -'!$F43/E43*100) ->  | H43: =IF(E43=0,"",'- 6 -'!$G43/E43*100) ->  | I43: =IF(E43=0,"",'- 6 -'!$H43/E43*100) -> 
A44: TURTLE RIVER | B44: 0 | C44: =B44/'- 3 -'!$D44*100 -> 0 | E44: =SUM('- 6 -'!$E44:H44) -> 0 | F44: =IF(E44=0,"",'- 6 -'!$E44/E44*100) ->  | G44: =IF(E44=0,"",'- 6 -'!$F44/E44*100) ->  | H44: =IF(E44=0,"",'- 6 -'!$G44/E44*100) ->  | I44: =IF(E44=0,"",'- 6 -'!$H44/E44*100) -> 
A45: WESTERN | B45: 5750354 | C45: =B45/'- 3 -'!$D45*100 -> 27.00691278 | D45: 5687.788328 | E45: =SUM('- 6 -'!$E45:H45) -> 1011 | F45: =IF(E45=0,"",'- 6 -'!$E45/E45*100) -> 71.26607319 | G45: =IF(E45=0,"",'- 6 -'!$F45/E45*100) -> 0 | H45: =IF(E45=0,"",'- 6 -'!$G45/E45*100) -> 28.73392681 | I45: =IF(E45=0,"",'- 6 -'!$H45/E45*100) -> 0
A46: WINNIPEG | B46: 41220000 | C46: =B46/'- 3 -'!$D46*100 -> 9.984232808 | D46: 5271.773884 | E46: =SUM('- 6 -'!$E46:H46) -> 7819 | F46: =IF(E46=0,"",'- 6 -'!$E46/E46*100) -> 59.51528328 | G46: =IF(E46=0,"",'- 6 -'!$F46/E46*100) -> 0 | H46: =IF(E46=0,"",'- 6 -'!$G46/E46*100) -> 37.47282261 | I46: =IF(E46=0,"",'- 6 -'!$H46/E46*100) -> 3.011894104
A48: PROVINCE | B48: =SUM(B11:B46) -> 203127516 | C48: =B48/'- 3 -'!$D48*100 -> 8.302013319 | D48: =B48/E48 -> 5784.867288 | E48: =SUM(E11:E46) -> 35113.6 | F48: =IF(E48=0,"",'- 6 -'!$E48/E48*100) -> 60.16073544 | G48: =IF(E48=0,"",'- 6 -'!$F48/E48*100) -> 0.7917160303 | H48: =IF(E48=0,"",'- 6 -'!$G48/E48*100) -> 35.95045794 | I48: =IF(E48=0,"",'- 6 -'!$H48/E48*100) -> 3.097090586
A50: WHITESHELL | B50: 0 | C50: =B50/'- 3 -'!$D50*100 -> 0 | D50: =IF(E50=0,"",B50/E50) ->  | E50: =SUM('- 6 -'!$E50:H50) -> 0 | F50: =IF(E50=0,"",'- 6 -'!$E50/E50*100) ->  | G50: =IF(E50=0,"",'- 6 -'!$F50/E50*100) ->  | H50: =IF(E50=0,"",'- 6 -'!$G50/E50*100) ->  | I50: =IF(E50=0,"",'- 6 -'!$H50/E50*100) -> 
A51: MITT | B51: 0 | C51: =B51/'- 3 -'!$D51*100 -> 0 | D51: =IF(E51=0,"",B51/E51) ->  | E51: =SUM('- 6 -'!$E51:H51) -> 0 | F51: =IF(E51=0,"",'- 6 -'!$E51/E51*100) ->  | G51: =IF(E51=0,"",'- 6 -'!$F51/E51*100) ->  | H51: =IF(E51=0,"",'- 6 -'!$G51/E51*100) ->  | I51: =IF(E51=0,"",'- 6 -'!$H51/E51*100) -> 
A53: (1) No one language program comprises 90% or more of Regular Instruction enrolment.

Sheet - 21 -
B2: =AEXP_BP -> ANALYSIS OF EXPENSE BY PROGRAM | I2: PAGE 4 OF 16
B3: =OPYEAR -> OPERATING FUND 2019/2020 BUDGET
B5: FUNCTION 200: STUDENT SUPPORT SERVICES
B6: ADMINISTRATION / COORDINATION | E6: CLINICAL AND RELATED SERVICES | H6: SPECIAL PLACEMENT
D8: PER PUPIL | G8: PER PUPIL | I8: %
A9: DIVISION / DISTRICT | B9: AMOUNT | C9: % | E9: AMOUNT | F9: % | H9: AMOUNT
A11: BEAUTIFUL PLAINS | B11: 142937 | C11: =B11/'- 3 -'!$D11*100 -> 0.6865630018 | D11: =B11/'- 7 -'!$E11 -> 79.34332501 | E11: 196844 | F11: =E11/'- 3 -'!$D11*100 -> 0.9454921226 | G11: =E11/'- 7 -'!$E11 -> 109.2667222 | H11: 267358 | I11: =H11/'- 3 -'!$D11*100 -> 1.284188916
A12: BORDER LAND | B12: 213065 | C12: =B12/'- 3 -'!$D12*100 -> 0.6112856123 | D12: =B12/'- 7 -'!$E12 -> 99.63012494 | E12: 867218 | F12: =E12/'- 3 -'!$D12*100 -> 2.4880571 | G12: =E12/'- 7 -'!$E12 -> 405.5149259 | H12: 0 | I12: =H12/'- 3 -'!$D12*100 -> 0
A13: BRANDON | B13: 252900 | C13: =B13/'- 3 -'!$D13*100 -> 0.2392810782 | D13: =B13/'- 7 -'!$E13 -> 29.15777944 | E13: 2874200 | F13: =E13/'- 3 -'!$D13*100 -> 2.719421411 | G13: =E13/'- 7 -'!$E13 -> 331.3771834 | H13: 1007500 | I13: =H13/'- 3 -'!$D13*100 -> 0.9532451018
A14: DSFM | B14: 423773 | C14: =B14/'- 3 -'!$D14*100 -> 0.4437231616 | D14: =B14/'- 7 -'!$E14 -> 73.34250606 | E14: 1137623 | F14: =E14/'- 3 -'!$D14*100 -> 1.191179415 | G14: =E14/'- 7 -'!$E14 -> 196.8887158 | H14: 1019880 | I14: =H14/'- 3 -'!$D14*100 -> 1.067893372
A15: EVERGREEN | B15: 236450 | C15: =B15/'- 3 -'!$D15*100 -> 1.124826751 | D15: =B15/'- 7 -'!$E15 -> 168.6519258 | E15: 353540 | F15: =E15/'- 3 -'!$D15*100 -> 1.681840767 | G15: =E15/'- 7 -'!$E15 -> 252.168331 | H15: 0 | I15: =H15/'- 3 -'!$D15*100 -> 0
A16: FLIN FLON | B16: 185663 | C16: =B16/'- 3 -'!$D16*100 -> 1.244949139 | D16: =B16/'- 7 -'!$E16 -> 197.6189462 | E16: 263908 | F16: =E16/'- 3 -'!$D16*100 -> 1.769615042 | G16: =E16/'- 7 -'!$E16 -> 280.9026078 | H16: 164303 | I16: =H16/'- 3 -'!$D16*100 -> 1.101721282
A17: FORT LA BOSSE | B17: 127060 | C17: =B17/'- 3 -'!$D17*100 -> 0.6781196989 | D17: =B17/'- 7 -'!$E17 -> 88.38956522 | E17: 288720 | F17: =E17/'- 3 -'!$D17*100 -> 1.540899728 | G17: =E17/'- 7 -'!$E17 -> 200.8486957 | H17: 189520 | I17: =H17/'- 3 -'!$D17*100 -> 1.011468954
A18: FRONTIER | B18: 0 | C18: =B18/'- 3 -'!$D18*100 -> 0 | D18: =B18/'- 7 -'!$E18 -> 0 | E18: 1699392 | F18: =E18/'- 3 -'!$D18*100 -> 1.245726043 | G18: =E18/'- 7 -'!$E18 -> 275.8439788 | H18: 0 | I18: =H18/'- 3 -'!$D18*100 -> 0
A19: GARDEN VALLEY | B19: 176800 | C19: =B19/'- 3 -'!$D19*100 -> 0.3465953088 | D19: =B19/'- 7 -'!$E19 -> 40.69981584 | E19: 1111100 | F19: =E19/'- 3 -'!$D19*100 -> 2.178179002 | G19: =E19/'- 7 -'!$E19 -> 255.7780847 | H19: 1408400 | I19: =H19/'- 3 -'!$D19*100 -> 2.761000186
A20: HANOVER | B20: 429600 | C20: =B20/'- 3 -'!$D20*100 -> 0.4822079196 | D20: =B20/'- 7 -'!$E20 -> 54.09557388 | E20: 1929800 | F20: =E20/'- 3 -'!$D20*100 -> 2.166119281 | G20: =E20/'- 7 -'!$E20 -> 243.0019518 | H20: 930700 | I20: =H20/'- 3 -'!$D20*100 -> 1.04467158
A21: INTERLAKE | B21: 167000 | C21: =B21/'- 3 -'!$D21*100 -> 0.4421205904 | D21: =B21/'- 7 -'!$E21 -> 59.34612651 | E21: 831560 | F21: =E21/'- 3 -'!$D21*100 -> 2.201495797 | G21: =E21/'- 7 -'!$E21 -> 295.5081734 | H21: 217668 | I21: =H21/'- 3 -'!$D21*100 -> 0.576260507
A22: KELSEY | B22: 33485 | C22: =B22/'- 3 -'!$D22*100 -> 0.1630300204 | D22: =B22/'- 7 -'!$E22 -> 23.46202354 | E22: 294785 | F22: =E22/'- 3 -'!$D22*100 -> 1.435233823 | G22: =E22/'- 7 -'!$E22 -> 206.5477859 | H22: 888457 | I22: =H22/'- 3 -'!$D22*100 -> 4.325673073
A23: LAKESHORE | B23: 149250 | C23: =B23/'- 3 -'!$D23*100 -> 0.9111430135 | D23: =B23/'- 7 -'!$E23 -> 157.6862124 | E23: 372000 | F23: =E23/'- 3 -'!$D23*100 -> 2.270989622 | G23: =E23/'- 7 -'!$E23 -> 393.0269414 | H23: 0 | I23: =H23/'- 3 -'!$D23*100 -> 0
A24: LORD SELKIRK | B24: 291930 | C24: =B24/'- 3 -'!$D24*100 -> 0.4984382507 | D24: =B24/'- 7 -'!$E24 -> 76.92490119 | E24: 1854165 | F24: =E24/'- 3 -'!$D24*100 -> 3.165782068 | G24: =E24/'- 7 -'!$E24 -> 488.5810277 | H24: 593815 | I24: =H24/'- 3 -'!$D24*100 -> 1.013873565
A25: LOUIS RIEL | B25: 1493834 | C25: =B25/'- 3 -'!$D25*100 -> 0.77641896 | D25: =B25/'- 7 -'!$E25 -> 100.0893802 | E25: 4305748 | F25: =E25/'- 3 -'!$D25*100 -> 2.237908887 | G25: =E25/'- 7 -'!$E25 -> 288.4923283 | H25: 10994120 | I25: =H25/'- 3 -'!$D25*100 -> 5.714184586
A26: MOUNTAIN VIEW | B26: 152829 | C26: =B26/'- 3 -'!$D26*100 -> 0.3693945288 | D26: =B26/'- 7 -'!$E26 -> 50.82440971 | E26: 732745 | F26: =E26/'- 3 -'!$D26*100 -> 1.77107744 | G26: =E26/'- 7 -'!$E26 -> 243.6797473 | H26: 105276 | I26: =H26/'- 3 -'!$D26*100 -> 0.2544568009
A27: MYSTERY LAKE | B27: 218039 | C27: =B27/'- 3 -'!$D27*100 -> 0.5197576637 | D27: =B27/'- 7 -'!$E27 -> 72.97155288 | E27: 564769 | F27: =E27/'- 3 -'!$D27*100 -> 1.346286747 | G27: =E27/'- 7 -'!$E27 -> 189.0123829 | H27: 2336545 | I27: =H27/'- 3 -'!$D27*100 -> 5.569816273
A28: PARK WEST | B28: 130406 | C28: =B28/'- 3 -'!$D28*100 -> 0.4529533544 | D28: =B28/'- 7 -'!$E28 -> 64.99177673 | E28: 423446 | F28: =E28/'- 3 -'!$D28*100 -> 1.470801084 | G28: =E28/'- 7 -'!$E28 -> 211.0371293 | H28: 0 | I28: =H28/'- 3 -'!$D28*100 -> 0
A29: PEMBINA TRAILS | B29: 583136 | C29: =B29/'- 3 -'!$D29*100 -> 0.3326845956 | D29: =B29/'- 7 -'!$E29 -> 42.05813199 | E29: 3112496 | F29: =E29/'- 3 -'!$D29*100 -> 1.775708365 | G29: =E29/'- 7 -'!$E29 -> 224.4858276 | H29: 571000 | I29: =H29/'- 3 -'!$D29*100 -> 0.325760893
A30: PINE CREEK | B30: 148212 | C30: =B30/'- 3 -'!$D30*100 -> 0.9617607752 | D30: =B30/'- 7 -'!$E30 -> 140.8190024 | E30: 191776 | F30: =E30/'- 3 -'!$D30*100 -> 1.244451424 | G30: =E30/'- 7 -'!$E30 -> 182.2099762 | H30: 0 | I30: =H30/'- 3 -'!$D30*100 -> 0
A31: PORTAGE LA PRAIRIE | B31: 179002 | C31: =B31/'- 3 -'!$D31*100 -> 0.4484075098 | D31: =B31/'- 7 -'!$E31 -> 53.64963285 | E31: 691112 | F31: =E31/'- 3 -'!$D31*100 -> 1.731264516 | G31: =E31/'- 7 -'!$E31 -> 207.13682 | H31: 1896245 | I31: =H31/'- 3 -'!$D31*100 -> 4.750173174
A32: PRAIRIE ROSE | B32: 155728 | C32: =B32/'- 3 -'!$D32*100 -> 0.4982609596 | D32: =B32/'- 7 -'!$E32 -> 69.78624244 | E32: 420840 | F32: =E32/'- 3 -'!$D32*100 -> 1.346502506 | G32: =E32/'- 7 -'!$E32 -> 188.5906341 | H32: 0 | I32: =H32/'- 3 -'!$D32*100 -> 0
A33: PRAIRIE SPIRIT | B33: 211700 | C33: =B33/'- 3 -'!$D33*100 -> 0.740754426 | D33: =B33/'- 7 -'!$E33 -> 104.4555188 | E33: 422627 | F33: =E33/'- 3 -'!$D33*100 -> 1.478804066 | G33: =E33/'- 7 -'!$E33 -> 208.5296294 | H33: 0 | I33: =H33/'- 3 -'!$D33*100 -> 0
A34: RED RIVER VALLEY | B34: 246015 | C34: =B34/'- 3 -'!$D34*100 -> 0.7769519815 | D34: =B34/'- 7 -'!$E34 -> 110.1724138 | E34: 506109 | F34: =E34/'- 3 -'!$D34*100 -> 1.59836754 | G34: =E34/'- 7 -'!$E34 -> 226.6497985 | H34: 890758 | I34: =H34/'- 3 -'!$D34*100 -> 2.813146325
A35: RIVER EAST TRANSCONA | B35: 1041373 | C35: =B35/'- 3 -'!$D35*100 -> 0.5366200285 | D35: =B35/'- 7 -'!$E35 -> 63.94676082 | E35: 3218120 | F35: =E35/'- 3 -'!$D35*100 -> 1.658298848 | G35: =E35/'- 7 -'!$E35 -> 197.6125269 | H35: 2496550 | I35: =H35/'- 3 -'!$D35*100 -> 1.286473465
A36: ROLLING RIVER | B36: 206650 | C36: =B36/'- 3 -'!$D36*100 -> 0.8549879954 | D36: =B36/'- 7 -'!$E36 -> 120.2502182 | E36: 359125 | F36: =E36/'- 3 -'!$D36*100 -> 1.485833844 | G36: =E36/'- 7 -'!$E36 -> 208.975851 | H36: 0 | I36: =H36/'- 3 -'!$D36*100 -> 0
A37: SEINE RIVER | B37: 233300 | C37: =B37/'- 3 -'!$D37*100 -> 0.4310822696 | D37: =B37/'- 7 -'!$E37 -> 53.79294443 | E37: 742600 | F37: =E37/'- 3 -'!$D37*100 -> 1.372146136 | G37: =E37/'- 7 -'!$E37 -> 171.2243486 | H37: 0 | I37: =H37/'- 3 -'!$D37*100 -> 0
A38: SEVEN OAKS | B38: 570760 | C38: =B38/'- 3 -'!$D38*100 -> 0.3851315835 | D38: =B38/'- 7 -'!$E38 -> 49.76285136 | E38: 2026380 | F38: =E38/'- 3 -'!$D38*100 -> 1.367339929 | G38: =E38/'- 7 -'!$E38 -> 176.6739904 | H38: 675590 | I38: =H38/'- 3 -'!$D38*100 -> 0.4558676965
A39: SOUTHWEST HORIZON | B39: 275600 | C39: =B39/'- 3 -'!$D39*100 -> 1.178639091 | D39: =B39/'- 7 -'!$E39 -> 183.3666001 | E39: 356300 | F39: =E39/'- 3 -'!$D39*100 -> 1.523763092 | G39: =E39/'- 7 -'!$E39 -> 237.0592149 | H39: 0 | I39: =H39/'- 3 -'!$D39*100 -> 0
A40: ST. JAMES-ASSINIBOIA | B40: 606048 | C40: =B40/'- 3 -'!$D40*100 -> 0.5558657569 | D40: =B40/'- 7 -'!$E40 -> 72.51112706 | E40: 2819794 | F40: =E40/'- 3 -'!$D40*100 -> 2.586308223 | G40: =E40/'- 7 -'!$E40 -> 337.3766451 | H40: 600 | I40: =H40/'- 3 -'!$D40*100 -> 0.0005503185459
A41: SUNRISE | B41: 384804 | C41: =B41/'- 3 -'!$D41*100 -> 0.5905452267 | D41: =B41/'- 7 -'!$E41 -> 86.57007874 | E41: 1651727 | F41: =E41/'- 3 -'!$D41*100 -> 2.5348476 | G41: =E41/'- 7 -'!$E41 -> 371.592126 | H41: 831724 | I41: =H41/'- 3 -'!$D41*100 -> 1.276417704
A42: SWAN VALLEY | B42: 173390 | C42: =B42/'- 3 -'!$D42*100 -> 0.8149083246 | D42: =B42/'- 7 -'!$E42 -> 125.9644025 | E42: 351142 | F42: =E42/'- 3 -'!$D42*100 -> 1.650317428 | G42: =E42/'- 7 -'!$E42 -> 255.0977116 | H42: 0 | I42: =H42/'- 3 -'!$D42*100 -> 0
A43: TURTLE MOUNTAIN | B43: 130683 | C43: =B43/'- 3 -'!$D43*100 -> 0.9425084487 | D43: =B43/'- 7 -'!$E43 -> 131.4057315 | E43: 337937 | F43: =E43/'- 3 -'!$D43*100 -> 2.437260222 | G43: =E43/'- 7 -'!$E43 -> 339.8059326 | H43: 0 | I43: =H43/'- 3 -'!$D43*100 -> 0
A44: TURTLE RIVER | B44: 87389 | C44: =B44/'- 3 -'!$D44*100 -> 0.7682533241 | D44: =B44/'- 7 -'!$E44 -> 124.9306648 | E44: 166342 | F44: =E44/'- 3 -'!$D44*100 -> 1.462344167 | G44: =E44/'- 7 -'!$E44 -> 237.8012866 | H44: 0 | I44: =H44/'- 3 -'!$D44*100 -> 0
A45: WESTERN | B45: 151615 | C45: =B45/'- 3 -'!$D45*100 -> 0.7120697406 | D45: =B45/'- 7 -'!$E45 -> 81.29490617 | E45: 296847 | F45: =E45/'- 3 -'!$D45*100 -> 1.394161305 | G45: =E45/'- 7 -'!$E45 -> 159.1672922 | H45: 253303 | I45: =H45/'- 3 -'!$D45*100 -> 1.189654068
A46: WINNIPEG | B46: 772700 | C46: =B46/'- 3 -'!$D46*100 -> 0.187161977 | D46: =B46/'- 7 -'!$E46 -> 25.61365708 | E46: 13296572 | F46: =E46/'- 3 -'!$D46*100 -> 3.220671286 | G46: =E46/'- 7 -'!$E46 -> 440.7581669 | H46: 35548350 | I46: =H46/'- 3 -'!$D46*100 -> 8.610456146
A48: PROVINCE | B48: =SUM(B11:B46) -> 10983126 | C48: =B48/'- 3 -'!$D48*100 -> 0.448890727 | D48: =B48/'- 7 -'!$E48 -> 60.85162712 | E48: =SUM(E11:E46) -> 51069409 | F48: =E48/'- 3 -'!$D48*100 -> 2.087254952 | G48: =E48/'- 7 -'!$E48 -> 282.9482821 | H48: =SUM(H11:H46) -> 63287662 | I48: =H48/'- 3 -'!$D48*100 -> 2.586626486
A50: WHITESHELL | B50: 28920 | C50: =B50/'- 3 -'!$D50*100 -> 0.8004989001 | D50: =B50/'- 7 -'!$E50 -> 172.6567164 | E50: 30000 | F50: =E50/'- 3 -'!$D50*100 -> 0.8303930499 | G50: =E50/'- 7 -'!$E50 -> 179.1044776 | H50: 30000 | I50: =H50/'- 3 -'!$D50*100 -> 0.8303930499
A51: MITT | B51: 0 | C51: =B51/'- 3 -'!$D51*100 -> 0 | D51: =B51/'- 7 -'!$E51 -> 0 | E51: 0 | F51: =E51/'- 3 -'!$D51*100 -> 0 | G51: =E51/'- 7 -'!$E51 -> 0 | H51: 0 | I51: =H51/'- 3 -'!$D51*100 -> 0

Sheet - 22 -
B2: =AEXP_BP -> ANALYSIS OF EXPENSE BY PROGRAM | J2: PAGE 5 OF 16
B3: =OPYEAR -> OPERATING FUND 2019/2020 BUDGET
B5: FUNCTION 200: STUDENT SUPPORT SERVICES (CONT'D)
B6: REGULAR PLACEMENT (1) | E6: OTHER RESOURCE SERVICES | H6: COUNSELLING AND GUIDANCE
D8: PER PUPIL | G8: PER PUPIL | J8: PER PUPIL
A9: DIVISION / DISTRICT | B9: AMOUNT | C9: % | E9: AMOUNT | F9: % | H9: AMOUNT | I9: %
A11: BEAUTIFUL PLAINS | B11: 769251 | C11: =B11/'- 3 -'!$D11*100 -> 3.694909476 | D11: =B11/'- 7 -'!$E11 -> 427.0058285 | E11: 1050274 | F11: =E11/'- 3 -'!$D11*100 -> 5.044734885 | G11: =E11/'- 7 -'!$E11 -> 582.9997225 | H11: 351168 | I11: =H11/'- 3 -'!$D11*100 -> 1.6867498 | J11: =H11/'- 7 -'!$E11 -> 194.9308909
A12: BORDER LAND | B12: 2658336 | C12: =B12/'- 3 -'!$D12*100 -> 7.626792525 | D12: =B12/'- 7 -'!$E12 -> 1243.049529 | E12: 1401861 | F12: =E12/'- 3 -'!$D12*100 -> 4.021953205 | G12: =E12/'- 7 -'!$E12 -> 655.5163287 | H12: 411689 | I12: =H12/'- 3 -'!$D12*100 -> 1.181139851 | J12: =H12/'- 7 -'!$E12 -> 192.5075752
A13: BRANDON | B13: 10809800 | C13: =B13/'- 3 -'!$D13*100 -> 10.22768129 | D13: =B13/'- 7 -'!$E13 -> 1246.301954 | E13: 4871600 | F13: =E13/'- 3 -'!$D13*100 -> 4.609259392 | G13: =E13/'- 7 -'!$E13 -> 561.6648412 | H13: 2456500 | I13: =H13/'- 3 -'!$D13*100 -> 2.32421498 | J13: =H13/'- 7 -'!$E13 -> 283.2190004
A14: DSFM | B14: 3827530 | C14: =B14/'- 3 -'!$D14*100 -> 4.007720437 | D14: =B14/'- 7 -'!$E14 -> 662.4316372 | E14: 3005669 | F14: =E14/'- 3 -'!$D14*100 -> 3.147168299 | G14: =E14/'- 7 -'!$E14 -> 520.1919349 | H14: 1686020 | I14: =H14/'- 3 -'!$D14*100 -> 1.76539356 | J14: =H14/'- 7 -'!$E14 -> 291.7999308
A15: EVERGREEN | B15: 1458500 | C15: =B15/'- 3 -'!$D15*100 -> 6.938294844 | D15: =B15/'- 7 -'!$E15 -> 1040.299572 | E15: 1071000 | F15: =E15/'- 3 -'!$D15*100 -> 5.094901459 | G15: =E15/'- 7 -'!$E15 -> 763.9087019 | H15: 576700 | I15: =H15/'- 3 -'!$D15*100 -> 2.743445072 | J15: =H15/'- 7 -'!$E15 -> 411.3409415
A16: FLIN FLON | B16: 978950 | C16: =B16/'- 3 -'!$D16*100 -> 6.564274842 | D16: =B16/'- 7 -'!$E16 -> 1041.99042 | E16: 927380 | F16: =E16/'- 3 -'!$D16*100 -> 6.218476125 | G16: =E16/'- 7 -'!$E16 -> 987.099521 | H16: 425010 | I16: =H16/'- 3 -'!$D16*100 -> 2.849872262 | J16: =H16/'- 7 -'!$E16 -> 452.378925
A17: FORT LA BOSSE | B17: 638150 | C17: =B17/'- 3 -'!$D17*100 -> 3.405808955 | D17: =B17/'- 7 -'!$E17 -> 443.9304348 | E17: 1028550 | F17: =E17/'- 3 -'!$D17*100 -> 5.489375226 | G17: =E17/'- 7 -'!$E17 -> 715.5130435 | H17: 159620 | I17: =H17/'- 3 -'!$D17*100 -> 0.8518925416 | J17: =H17/'- 7 -'!$E17 -> 111.04
A18: FRONTIER | B18: 12172373 | C18: =B18/'- 3 -'!$D18*100 -> 8.922863033 | D18: =B18/'- 7 -'!$E18 -> 1975.810054 | E18: 3925434 | F18: =E18/'- 3 -'!$D18*100 -> 2.877508759 | G18: =E18/'- 7 -'!$E18 -> 637.1733732 | H18: 4061789 | I18: =H18/'- 3 -'!$D18*100 -> 2.977462728 | J18: =H18/'- 7 -'!$E18 -> 659.30641
A19: GARDEN VALLEY | B19: 3278100 | C19: =B19/'- 3 -'!$D19*100 -> 6.426323992 | D19: =B19/'- 7 -'!$E19 -> 754.6270718 | E19: 3055300 | F19: =E19/'- 3 -'!$D19*100 -> 5.989551171 | G19: =E19/'- 7 -'!$E19 -> 703.3379374 | H19: 1228500 | I19: =H19/'- 3 -'!$D19*100 -> 2.408327697 | J19: =H19/'- 7 -'!$E19 -> 282.8038674
A20: HANOVER | B20: 4319200 | C20: =B20/'- 3 -'!$D20*100 -> 4.84812022 | D20: =B20/'- 7 -'!$E20 -> 543.8771013 | E20: 4756700 | F20: =E20/'- 3 -'!$D20*100 -> 5.339195557 | G20: =E20/'- 7 -'!$E20 -> 598.9674495 | H20: 1610900 | I20: =H20/'- 3 -'!$D20*100 -> 1.808167453 | J20: =H20/'- 7 -'!$E20 -> 202.84581
A21: INTERLAKE | B21: 2071000 | C21: =B21/'- 3 -'!$D21*100 -> 5.482824806 | D21: =B21/'- 7 -'!$E21 -> 735.9630419 | E21: 2198747 | F21: =E21/'- 3 -'!$D21*100 -> 5.821025879 | G21: =E21/'- 7 -'!$E21 -> 781.3599858 | H21: 1120025 | I21: =H21/'- 3 -'!$D21*100 -> 2.965186313 | J21: =H21/'- 7 -'!$E21 -> 398.0188344
A22: KELSEY | B22: 857090 | C22: =B22/'- 3 -'!$D22*100 -> 4.17295506 | D22: =B22/'- 7 -'!$E22 -> 600.5395179 | E22: 1422423 | F22: =E22/'- 3 -'!$D22*100 -> 6.925418866 | G22: =E22/'- 7 -'!$E22 -> 996.6528868 | H22: 615125 | I22: =H22/'- 3 -'!$D22*100 -> 2.994888496 | J22: =H22/'- 7 -'!$E22 -> 431.0012612
A23: LAKESHORE | B23: 1410000 | C23: =B23/'- 3 -'!$D23*100 -> 8.607783243 | D23: =B23/'- 7 -'!$E23 -> 1489.698891 | E23: 610000 | F23: =E23/'- 3 -'!$D23*100 -> 3.723934595 | G23: =E23/'- 7 -'!$E23 -> 644.4796619 | H23: 327000 | I23: =H23/'- 3 -'!$D23*100 -> 1.996273135 | J23: =H23/'- 7 -'!$E23 -> 345.4833597
A24: LORD SELKIRK | B24: 3306515 | C24: =B24/'- 3 -'!$D24*100 -> 5.645509377 | D24: =B24/'- 7 -'!$E24 -> 871.2819499 | E24: 2797885 | F24: =E24/'- 3 -'!$D24*100 -> 4.777079797 | G24: =E24/'- 7 -'!$E24 -> 737.2555995 | H24: 1473860 | I24: =H24/'- 3 -'!$D24*100 -> 2.51645326 | J24: =H24/'- 7 -'!$E24 -> 388.3689065
A25: LOUIS RIEL | B25: 10588747 | C25: =B25/'- 3 -'!$D25*100 -> 5.503492312 | D25: =B25/'- 7 -'!$E25 -> 709.4637856 | E25: 8620080 | F25: =E25/'- 3 -'!$D25*100 -> 4.480279301 | G25: =E25/'- 7 -'!$E25 -> 577.559799 | H25: 3141119 | I25: =H25/'- 3 -'!$D25*100 -> 1.632593948 | J25: =H25/'- 7 -'!$E25 -> 210.4602345
A26: MOUNTAIN VIEW | B26: 1855740 | C26: =B26/'- 3 -'!$D26*100 -> 4.485406585 | D26: =B26/'- 7 -'!$E26 -> 617.1400067 | E26: 2045286 | F26: =E26/'- 3 -'!$D26*100 -> 4.943547745 | G26: =E26/'- 7 -'!$E26 -> 680.1749252 | H26: 1325791 | I26: =H26/'- 3 -'!$D26*100 -> 3.204496148 | J26: =H26/'- 7 -'!$E26 -> 440.901563
A27: MYSTERY LAKE | B27: 2167154 | C27: =B27/'- 3 -'!$D27*100 -> 5.166024885 | D27: =B27/'- 7 -'!$E27 -> 725.2858099 | E27: 2257027 | F27: =E27/'- 3 -'!$D27*100 -> 5.380262615 | G27: =E27/'- 7 -'!$E27 -> 755.3637885 | H27: 1143104 | I27: =H27/'- 3 -'!$D27*100 -> 2.724911894 | J27: =H27/'- 7 -'!$E27 -> 382.5649264
A28: PARK WEST | B28: 1228901 | C28: =B28/'- 3 -'!$D28*100 -> 4.268475609 | D28: =B28/'- 7 -'!$E28 -> 612.460005 | E28: 1494511 | F28: =E28/'- 3 -'!$D28*100 -> 5.191047733 | G28: =E28/'- 7 -'!$E28 -> 744.8347869 | H28: 487178 | I28: =H28/'- 3 -'!$D28*100 -> 1.692168377 | J28: =H28/'- 7 -'!$E28 -> 242.7999003
A29: PEMBINA TRAILS | B29: 12057028 | C29: =B29/'- 3 -'!$D29*100 -> 6.878648351 | D29: =B29/'- 7 -'!$E29 -> 869.601731 | E29: 12254504 | F29: =E29/'- 3 -'!$D29*100 -> 6.991310274 | G29: =E29/'- 7 -'!$E29 -> 883.8445005 | H29: 3559264 | I29: =H29/'- 3 -'!$D29*100 -> 2.030593729 | J29: =H29/'- 7 -'!$E29 -> 256.7085467
A30: PINE CREEK | B30: 516123 | C30: =B30/'- 3 -'!$D30*100 -> 3.349167791 | D30: =B30/'- 7 -'!$E30 -> 490.3781473 | E30: 703882 | F30: =E30/'- 3 -'!$D30*100 -> 4.567552546 | G30: =E30/'- 7 -'!$E30 -> 668.7714964 | H30: 299764 | I30: =H30/'- 3 -'!$D30*100 -> 1.945195106 | J30: =H30/'- 7 -'!$E30 -> 284.8114014
A31: PORTAGE LA PRAIRIE | B31: 2127281 | C31: =B31/'- 3 -'!$D31*100 -> 5.328928033 | D31: =B31/'- 7 -'!$E31 -> 637.5786003 | E31: 1510170 | F31: =E31/'- 3 -'!$D31*100 -> 3.783039123 | G31: =E31/'- 7 -'!$E31 -> 452.62101 | H31: 1238260 | I31: =H31/'- 3 -'!$D31*100 -> 3.10189318 | J31: =H31/'- 7 -'!$E31 -> 371.1254308
A32: PRAIRIE ROSE | B32: 965880 | C32: =B32/'- 3 -'!$D32*100 -> 3.090390268 | D32: =B32/'- 7 -'!$E32 -> 432.8388976 | E32: 2017441 | F32: =E32/'- 3 -'!$D32*100 -> 6.45492197 | G32: =E32/'- 7 -'!$E32 -> 904.0739413 | H32: 752618 | I32: =H32/'- 3 -'!$D32*100 -> 2.408045868 | J32: =H32/'- 7 -'!$E32 -> 337.2699978
A33: PRAIRIE SPIRIT | B33: 1703600 | C33: =B33/'- 3 -'!$D33*100 -> 5.96102617 | D33: =B33/'- 7 -'!$E33 -> 840.57828 | E33: 1156025 | F33: =E33/'- 3 -'!$D33*100 -> 4.045019534 | G33: =E33/'- 7 -'!$E33 -> 570.3976908 | H33: 459850 | I33: =H33/'- 3 -'!$D33*100 -> 1.609050179 | J33: =H33/'- 7 -'!$E33 -> 226.8959392
A34: RED RIVER VALLEY | B34: 1506492 | C34: =B34/'- 3 -'!$D34*100 -> 4.757725929 | D34: =B34/'- 7 -'!$E34 -> 674.6493506 | E34: 1602464 | F34: =E34/'- 3 -'!$D34*100 -> 5.060819788 | G34: =E34/'- 7 -'!$E34 -> 717.6283027 | H34: 853933 | I34: =H34/'- 3 -'!$D34*100 -> 2.696847495 | J34: =H34/'- 7 -'!$E34 -> 382.4151366
A35: RIVER EAST TRANSCONA | B35: 15899983 | C35: =B35/'- 3 -'!$D35*100 -> 8.193269204 | D35: =B35/'- 7 -'!$E35 -> 976.3575683 | E35: 10499482 | F35: =E35/'- 3 -'!$D35*100 -> 5.410388333 | G35: =E35/'- 7 -'!$E35 -> 644.7333129 | H35: 3064000 | I35: =H35/'- 3 -'!$D35*100 -> 1.578880735 | J35: =H35/'- 7 -'!$E35 -> 188.148603
A36: ROLLING RIVER | B36: 923900 | C36: =B36/'- 3 -'!$D36*100 -> 3.822518311 | D36: =B36/'- 7 -'!$E36 -> 537.6200175 | E36: 1212825 | F36: =E36/'- 3 -'!$D36*100 -> 5.017908616 | G36: =E36/'- 7 -'!$E36 -> 705.7462904 | H36: 550500 | I36: =H36/'- 3 -'!$D36*100 -> 2.277623477 | J36: =H36/'- 7 -'!$E36 -> 320.3375036
A37: SEINE RIVER | B37: 4571000 | C37: =B37/'- 3 -'!$D37*100 -> 8.446108249 | D37: =B37/'- 7 -'!$E37 -> 1053.954346 | E37: 2661000 | F37: =E37/'- 3 -'!$D37*100 -> 4.916887782 | G37: =E37/'- 7 -'!$E37 -> 613.5577588 | H37: 1524200 | I37: =H37/'- 3 -'!$D37*100 -> 2.816354888 | J37: =H37/'- 7 -'!$E37 -> 351.4410883
A38: SEVEN OAKS | B38: 13447000 | C38: =B38/'- 3 -'!$D38*100 -> 9.073628851 | D38: =B38/'- 7 -'!$E38 -> 1172.403571 | E38: 4827130 | F38: =E38/'- 3 -'!$D38*100 -> 3.257201311 | G38: =E38/'- 7 -'!$E38 -> 420.8629769 | H38: 3624350 | I38: =H38/'- 3 -'!$D38*100 -> 2.44560175 | J38: =H38/'- 7 -'!$E38 -> 315.9961986
A39: SOUTHWEST HORIZON | B39: 1576650 | C39: =B39/'- 3 -'!$D39*100 -> 6.742747906 | D39: =B39/'- 7 -'!$E39 -> 1049.001996 | E39: 638300 | F39: =E39/'- 3 -'!$D39*100 -> 2.729772612 | G39: =E39/'- 7 -'!$E39 -> 424.6839654 | H39: 372700 | I39: =H39/'- 3 -'!$D39*100 -> 1.593899816 | J39: =H39/'- 7 -'!$E39 -> 247.9707252
A40: ST. JAMES-ASSINIBOIA | B40: 12036665 | C40: =B40/'- 3 -'!$D40*100 -> 11.03999997 | D40: =B40/'- 7 -'!$E40 -> 1440.136994 | E40: 6344141 | F40: =E40/'- 3 -'!$D40*100 -> 5.81883075 | G40: =E40/'- 7 -'!$E40 -> 759.0501316 | H40: 2661187 | I40: =H40/'- 3 -'!$D40*100 -> 2.440834267 | J40: =H40/'- 7 -'!$E40 -> 318.3999761
A41: SUNRISE | B41: 5361616 | C41: =B41/'- 3 -'!$D41*100 -> 8.228284364 | D41: =B41/'- 7 -'!$E41 -> 1206.212823 | E41: 3464708 | F41: =E41/'- 3 -'!$D41*100 -> 5.317166067 | G41: =E41/'- 7 -'!$E41 -> 779.4618673 | H41: 1088569 | I41: =H41/'- 3 -'!$D41*100 -> 1.670588733 | J41: =H41/'- 7 -'!$E41 -> 244.8974128
A42: SWAN VALLEY | B42: 1785148 | C42: =B42/'- 3 -'!$D42*100 -> 8.389941553 | D42: =B42/'- 7 -'!$E42 -> 1296.874682 | E42: 861800 | F42: =E42/'- 3 -'!$D42*100 -> 4.050337356 | G42: =E42/'- 7 -'!$E42 -> 626.0806393 | H42: 343313 | I42: =H42/'- 3 -'!$D42*100 -> 1.613522243 | J42: =H42/'- 7 -'!$E42 -> 249.4100981
A43: TURTLE MOUNTAIN | B43: 284480 | C43: =B43/'- 3 -'!$D43*100 -> 2.051719072 | D43: =B43/'- 7 -'!$E43 -> 286.0532931 | E43: 1446242 | F43: =E43/'- 3 -'!$D43*100 -> 10.430548 | G43: =E43/'- 7 -'!$E43 -> 1454.240322 | H43: 238514 | I43: =H43/'- 3 -'!$D43*100 -> 1.720204312 | J43: =H43/'- 7 -'!$E43 -> 239.833082
A44: TURTLE RIVER | B44: 987050 | C44: =B44/'- 3 -'!$D44*100 -> 8.677344329 | D44: =B44/'- 7 -'!$E44 -> 1411.079342 | E44: 506841 | F44: =E44/'- 3 -'!$D44*100 -> 4.455735654 | G44: =E44/'- 7 -'!$E44 -> 724.5761258 | H44: 77891 | I44: =H44/'- 3 -'!$D44*100 -> 0.6847545992 | J44: =H44/'- 7 -'!$E44 -> 111.3523946
A45: WESTERN | B45: 840819 | C45: =B45/'- 3 -'!$D45*100 -> 3.948961298 | D45: =B45/'- 7 -'!$E45 -> 450.8412869 | E45: 1106389 | F45: =E45/'- 3 -'!$D45*100 -> 5.196228132 | G45: =E45/'- 7 -'!$E45 -> 593.2380697 | H45: 547896 | I45: =H45/'- 3 -'!$D45*100 -> 2.573229315 | J45: =H45/'- 7 -'!$E45 -> 293.7780161
A46: WINNIPEG | B46: 21565400 | C46: =B46/'- 3 -'!$D46*100 -> 5.22353164 | D46: =B46/'- 7 -'!$E46 -> 714.8553907 | E46: 19513842 | F46: =E46/'- 3 -'!$D46*100 -> 4.726607024 | G46: =E46/'- 7 -'!$E46 -> 646.8498218 | H46: 5964800 | I46: =H46/'- 3 -'!$D46*100 -> 1.444782917 | J46: =H46/'- 7 -'!$E46 -> 197.7227148
A48: PROVINCE | B48: =SUM(B11:B46) -> 162551452 | C48: =B48/'- 3 -'!$D48*100 -> 6.643631282 | D48: =B48/'- 7 -'!$E48 -> 900.610659 | E48: =SUM(E11:E46) -> 118866913 | F48: =E48/'- 3 -'!$D48*100 -> 4.858202938 | G48: =E48/'- 7 -'!$E48 -> 658.577992 | H48: =SUM(H11:H46) -> 49822707 | I48: =H48/'- 3 -'!$D48*100 -> 2.036301065 | J48: =H48/'- 7 -'!$E48 -> 276.0409731
A50: WHITESHELL | B50: 166380 | C50: =B50/'- 3 -'!$D50*100 -> 4.605359855 | D50: =B50/'- 7 -'!$E50 -> 993.3134328 | E50: 55800 | F50: =E50/'- 3 -'!$D50*100 -> 1.544531073 | G50: =E50/'- 7 -'!$E50 -> 333.1343284 | H50: 55300 | I50: =H50/'- 3 -'!$D50*100 -> 1.530691189 | J50: =H50/'- 7 -'!$E50 -> 330.1492537
A51: MITT | B51: 390222 | C51: =B51/'- 3 -'!$D51*100 -> 1.174963735 | D51: =B51/'- 7 -'!$E51 -> 277.9358974 | E51: 650 | F51: =E51/'- 3 -'!$D51*100 -> 0.001957158817 | G51: =E51/'- 7 -'!$E51 -> 0.462962963 | H51: 530001 | I51: =H51/'- 3 -'!$D51*100 -> 1.5958402 | J51: =H51/'- 7 -'!$E51 -> 377.4935897
A53: (1) Expenses shown are extra costs associated with special needs students in regular classes, not the total cost of educating those students.

Sheet - 23 -
B2: =AEXP_BP -> ANALYSIS OF EXPENSE BY PROGRAM | F2: PAGE 6 OF 16
B3: =OPYEAR -> OPERATING FUND 2019/2020 BUDGET
B5: FUNCTION 300: ADULT LEARNING CENTRES
B6: ADMINISTRATION AND OTHER | D6: INSTRUCTION
A9: DIVISION / DISTRICT | B9: AMOUNT | C9: % | D9: AMOUNT | E9: %
A11: BEAUTIFUL PLAINS | B11: 0 | C11: =B11/'- 3 -'!$D11*100 -> 0 | D11: 0 | E11: =D11/'- 3 -'!$D11*100 -> 0
A12: BORDER LAND | B12: 140800 | C12: =B12/'- 3 -'!$D12*100 -> 0.4039566058 | D12: 476256 | E12: =D12/'- 3 -'!$D12*100 -> 1.366383219
A13: BRANDON | B13: 0 | C13: =B13/'- 3 -'!$D13*100 -> 0 | D13: 0 | E13: =D13/'- 3 -'!$D13*100 -> 0
A14: DSFM | B14: 111569 | C14: =B14/'- 3 -'!$D14*100 -> 0.1168213865 | D14: 147350 | E14: =D14/'- 3 -'!$D14*100 -> 0.1542868655
A15: EVERGREEN | B15: 0 | C15: =B15/'- 3 -'!$D15*100 -> 0 | D15: 0 | E15: =D15/'- 3 -'!$D15*100 -> 0
A16: FLIN FLON | B16: 22191 | C16: =B16/'- 3 -'!$D16*100 -> 0.1488000644 | D16: 71809 | E16: =D16/'- 3 -'!$D16*100 -> 0.4815097933
A17: FORT LA BOSSE | B17: 0 | C17: =B17/'- 3 -'!$D17*100 -> 0 | D17: 0 | E17: =D17/'- 3 -'!$D17*100 -> 0
A18: FRONTIER | B18: 232565 | C18: =B18/'- 3 -'!$D18*100 -> 0.1704799583 | D18: 1861342 | E18: =D18/'- 3 -'!$D18*100 -> 1.364442227
A19: GARDEN VALLEY | B19: 0 | C19: =B19/'- 3 -'!$D19*100 -> 0 | D19: 0 | E19: =D19/'- 3 -'!$D19*100 -> 0
A20: HANOVER | B20: 0 | C20: =B20/'- 3 -'!$D20*100 -> 0 | D20: 0 | E20: =D20/'- 3 -'!$D20*100 -> 0
A21: INTERLAKE | B21: 0 | C21: =B21/'- 3 -'!$D21*100 -> 0 | D21: 0 | E21: =D21/'- 3 -'!$D21*100 -> 0
A22: KELSEY | B22: 152402 | C22: =B22/'- 3 -'!$D22*100 -> 0.7420069037 | D22: 407783 | E22: =D22/'- 3 -'!$D22*100 -> 1.985392588
A23: LAKESHORE | B23: 68000 | C23: =B23/'- 3 -'!$D23*100 -> 0.4151271351 | D23: 204000 | E23: =D23/'- 3 -'!$D23*100 -> 1.245381405
A24: LORD SELKIRK | B24: 76200 | C24: =B24/'- 3 -'!$D24*100 -> 0.1301030888 | D24: 279850 | E24: =D24/'- 3 -'!$D24*100 -> 0.4778129842
A25: LOUIS RIEL | B25: 0 | C25: =B25/'- 3 -'!$D25*100 -> 0 | D25: 567783 | E25: =D25/'- 3 -'!$D25*100 -> 0.2951047348
A26: MOUNTAIN VIEW | B26: 0 | C26: =B26/'- 3 -'!$D26*100 -> 0 | D26: 0 | E26: =D26/'- 3 -'!$D26*100 -> 0
A27: MYSTERY LAKE | B27: 0 | C27: =B27/'- 3 -'!$D27*100 -> 0 | D27: 0 | E27: =D27/'- 3 -'!$D27*100 -> 0
A28: PARK WEST | B28: 0 | C28: =B28/'- 3 -'!$D28*100 -> 0 | D28: 116817 | E28: =D28/'- 3 -'!$D28*100 -> 0.4057532016
A29: PEMBINA TRAILS | B29: 0 | C29: =B29/'- 3 -'!$D29*100 -> 0 | D29: 0 | E29: =D29/'- 3 -'!$D29*100 -> 0
A30: PINE CREEK | B30: 0 | C30: =B30/'- 3 -'!$D30*100 -> 0 | D30: 0 | E30: =D30/'- 3 -'!$D30*100 -> 0
A31: PORTAGE LA PRAIRIE | B31: 0 | C31: =B31/'- 3 -'!$D31*100 -> 0 | D31: 0 | E31: =D31/'- 3 -'!$D31*100 -> 0
A32: PRAIRIE ROSE | B32: 63922 | C32: =B32/'- 3 -'!$D32*100 -> 0.204522225 | D32: 215192 | E32: =D32/'- 3 -'!$D32*100 -> 0.6885195495
A33: PRAIRIE SPIRIT | B33: 0 | C33: =B33/'- 3 -'!$D33*100 -> 0 | D33: 0 | E33: =D33/'- 3 -'!$D33*100 -> 0
A34: RED RIVER VALLEY | B34: 0 | C34: =B34/'- 3 -'!$D34*100 -> 0 | D34: 0 | E34: =D34/'- 3 -'!$D34*100 -> 0
A35: RIVER EAST TRANSCONA | B35: 0 | C35: =B35/'- 3 -'!$D35*100 -> 0 | D35: 0 | E35: =D35/'- 3 -'!$D35*100 -> 0
A36: ROLLING RIVER | B36: 0 | C36: =B36/'- 3 -'!$D36*100 -> 0 | D36: 0 | E36: =D36/'- 3 -'!$D36*100 -> 0
A37: SEINE RIVER | B37: 0 | C37: =B37/'- 3 -'!$D37*100 -> 0 | D37: 0 | E37: =D37/'- 3 -'!$D37*100 -> 0
A38: SEVEN OAKS | B38: 603588 | C38: =B38/'- 3 -'!$D38*100 -> 0.4072829249 | D38: 1423789 | E38: =D38/'- 3 -'!$D38*100 -> 0.96072975
A39: SOUTHWEST HORIZON | B39: 0 | C39: =B39/'- 3 -'!$D39*100 -> 0 | D39: 0 | E39: =D39/'- 3 -'!$D39*100 -> 0
A40: ST. JAMES-ASSINIBOIA | B40: 0 | C40: =B40/'- 3 -'!$D40*100 -> 0 | D40: 0 | E40: =D40/'- 3 -'!$D40*100 -> 0
A41: SUNRISE | B41: 406644 | C41: =B41/'- 3 -'!$D41*100 -> 0.6240623101 | D41: 587476 | E41: =D41/'- 3 -'!$D41*100 -> 0.9015788495
A42: SWAN VALLEY | B42: 0 | C42: =B42/'- 3 -'!$D42*100 -> 0 | D42: 0 | E42: =D42/'- 3 -'!$D42*100 -> 0
A43: TURTLE MOUNTAIN | B43: 0 | C43: =B43/'- 3 -'!$D43*100 -> 0 | D43: 199256 | E43: =D43/'- 3 -'!$D43*100 -> 1.437068811
A44: TURTLE RIVER | B44: 0 | C44: =B44/'- 3 -'!$D44*100 -> 0 | D44: 0 | E44: =D44/'- 3 -'!$D44*100 -> 0
A45: WESTERN | B45: 182937 | C45: =B45/'- 3 -'!$D45*100 -> 0.8591755574 | D45: 244524 | E45: =D45/'- 3 -'!$D45*100 -> 1.148422922
A46: WINNIPEG | B46: 100900 | C46: =B46/'- 3 -'!$D46*100 -> 0.02443981296 | D46: 694900 | E46: =D46/'- 3 -'!$D46*100 -> 0.1683174037
A48: PROVINCE | B48: =SUM(B11:B46) -> 2161718 | C48: =B48/'- 3 -'!$D48*100 -> 0.08835145519 | D48: =SUM(D11:D46) -> 7498127 | E48: =D48/'- 3 -'!$D48*100 -> 0.3064555283
A50: WHITESHELL | B50: 0 | C50: =B50/'- 3 -'!$D50*100 -> 0 | D50: 0 | E50: =D50/'- 3 -'!$D50*100 -> 0
A51: MITT | B51: 905691 | C51: =B51/'- 3 -'!$D51*100 -> 2.727047887 | D51: 1887647 | E51: =D51/'- 3 -'!$D51*100 -> 5.683730723

Sheet - 24 -
B2: =AEXP_BP -> ANALYSIS OF EXPENSE BY PROGRAM | I2: PAGE 7 OF 16
B3: =OPYEAR -> OPERATING FUND 2019/2020 BUDGET
B5: FUNCTION 400: COMMUNITY EDUCATION AND SERVICES
D6: ENGLISH AS AN ADDITIONAL LANGUAGE FOR ADULTS
B7: CONTINUING EDUCATION | F7: COMMUNITY SERVICES & RECREATION | H7: PRE-KINDERGARTEN EDUCATION
A9: DIVISION / DISTRICT | B9: AMOUNT | C9: % | D9: AMOUNT | E9: % | F9: AMOUNT | G9: % | H9: AMOUNT | I9: %
A11: BEAUTIFUL PLAINS | B11: 0 | C11: =B11/'- 3 -'!$D11*100 -> 0 | D11: 0 | E11: =D11/'- 3 -'!$D11*100 -> 0 | F11: 0 | G11: =F11/'- 3 -'!$D11*100 -> 0 | H11: 25330 | I11: =H11/'- 3 -'!$D11*100 -> 0.1216664743
A12: BORDER LAND | B12: 0 | C12: =B12/'- 3 -'!$D12*100 -> 0 | D12: 0 | E12: =D12/'- 3 -'!$D12*100 -> 0 | F12: 0 | G12: =F12/'- 3 -'!$D12*100 -> 0 | H12: 57887 | I12: =H12/'- 3 -'!$D12*100 -> 0.166078381
A13: BRANDON | B13: 0 | C13: =B13/'- 3 -'!$D13*100 -> 0 | D13: 0 | E13: =D13/'- 3 -'!$D13*100 -> 0 | F13: 155600 | G13: =F13/'- 3 -'!$D13*100 -> 0.147220782 | H13: 191000 | I13: =H13/'- 3 -'!$D13*100 -> 0.180714456
A14: DSFM | B14: 0 | C14: =B14/'- 3 -'!$D14*100 -> 0 | D14: 0 | E14: =D14/'- 3 -'!$D14*100 -> 0 | F14: 0 | G14: =F14/'- 3 -'!$D14*100 -> 0 | H14: 1677051 | I14: =H14/'- 3 -'!$D14*100 -> 1.756002322
A15: EVERGREEN | B15: 0 | C15: =B15/'- 3 -'!$D15*100 -> 0 | D15: 0 | E15: =D15/'- 3 -'!$D15*100 -> 0 | F15: 0 | G15: =F15/'- 3 -'!$D15*100 -> 0 | H15: 78400 | I15: =H15/'- 3 -'!$D15*100 -> 0.3729601068
A16: FLIN FLON | B16: 0 | C16: =B16/'- 3 -'!$D16*100 -> 0 | D16: 0 | E16: =D16/'- 3 -'!$D16*100 -> 0 | F16: 0 | G16: =F16/'- 3 -'!$D16*100 -> 0 | H16: 13940 | I16: =H16/'- 3 -'!$D16*100 -> 0.0934736108
A17: FORT LA BOSSE | B17: 0 | C17: =B17/'- 3 -'!$D17*100 -> 0 | D17: 0 | E17: =D17/'- 3 -'!$D17*100 -> 0 | F17: 80000 | G17: =F17/'- 3 -'!$D17*100 -> 0.4269603015 | H17: 205520 | I17: =H17/'- 3 -'!$D17*100 -> 1.096861015
A18: FRONTIER | B18: 0 | C18: =B18/'- 3 -'!$D18*100 -> 0 | D18: 0 | E18: =D18/'- 3 -'!$D18*100 -> 0 | F18: 756322 | G18: =F18/'- 3 -'!$D18*100 -> 0.5544159397 | H18: 1357821 | I18: =H18/'- 3 -'!$D18*100 -> 0.9953400874
A19: GARDEN VALLEY | B19: 0 | C19: =B19/'- 3 -'!$D19*100 -> 0 | D19: 0 | E19: =D19/'- 3 -'!$D19*100 -> 0 | F19: 0 | G19: =F19/'- 3 -'!$D19*100 -> 0 | H19: 91500 | I19: =H19/'- 3 -'!$D19*100 -> 0.1793748346
A20: HANOVER | B20: 0 | C20: =B20/'- 3 -'!$D20*100 -> 0 | D20: 0 | E20: =D20/'- 3 -'!$D20*100 -> 0 | F20: 0 | G20: =F20/'- 3 -'!$D20*100 -> 0 | H20: 142400 | I20: =H20/'- 3 -'!$D20*100 -> 0.1598380069
A21: INTERLAKE | B21: 137000 | C21: =B21/'- 3 -'!$D21*100 -> 0.3626977298 | D21: 0 | E21: =D21/'- 3 -'!$D21*100 -> 0 | F21: 0 | G21: =F21/'- 3 -'!$D21*100 -> 0 | H21: 163000 | I21: =H21/'- 3 -'!$D21*100 -> 0.4315308756
A22: KELSEY | B22: 0 | C22: =B22/'- 3 -'!$D22*100 -> 0 | D22: 0 | E22: =D22/'- 3 -'!$D22*100 -> 0 | F22: 87890 | G22: =F22/'- 3 -'!$D22*100 -> 0.427914245 | H22: 0 | I22: =H22/'- 3 -'!$D22*100 -> 0
A23: LAKESHORE | B23: 117000 | C23: =B23/'- 3 -'!$D23*100 -> 0.7142628649 | D23: 0 | E23: =D23/'- 3 -'!$D23*100 -> 0 | F23: 120000 | G23: =F23/'- 3 -'!$D23*100 -> 0.7325772973 | H23: 40000 | I23: =H23/'- 3 -'!$D23*100 -> 0.2441924324
A24: LORD SELKIRK | B24: 191950 | C24: =B24/'- 3 -'!$D24*100 -> 0.3277334369 | D24: 0 | E24: =D24/'- 3 -'!$D24*100 -> 0 | F24: 235690 | G24: =F24/'- 3 -'!$D24*100 -> 0.4024146587 | H24: 0 | I24: =H24/'- 3 -'!$D24*100 -> 0
A25: LOUIS RIEL | B25: 360304 | C25: =B25/'- 3 -'!$D25*100 -> 0.1872676997 | D25: 0 | E25: =D25/'- 3 -'!$D25*100 -> 0 | F25: 611836 | G25: =F25/'- 3 -'!$D25*100 -> 0.3180012443 | H25: 1107811 | I25: =H25/'- 3 -'!$D25*100 -> 0.5757838318
A26: MOUNTAIN VIEW | B26: 0 | C26: =B26/'- 3 -'!$D26*100 -> 0 | D26: 0 | E26: =D26/'- 3 -'!$D26*100 -> 0 | F26: 0 | G26: =F26/'- 3 -'!$D26*100 -> 0 | H26: 100209 | I26: =H26/'- 3 -'!$D26*100 -> 0.2422096352
A27: MYSTERY LAKE | B27: 0 | C27: =B27/'- 3 -'!$D27*100 -> 0 | D27: 0 | E27: =D27/'- 3 -'!$D27*100 -> 0 | F27: 0 | G27: =F27/'- 3 -'!$D27*100 -> 0 | H27: 50886 | I27: =H27/'- 3 -'!$D27*100 -> 0.1213011822
A28: PARK WEST | B28: 0 | C28: =B28/'- 3 -'!$D28*100 -> 0 | D28: 0 | E28: =D28/'- 3 -'!$D28*100 -> 0 | F28: 0 | G28: =F28/'- 3 -'!$D28*100 -> 0 | H28: 193260 | I28: =H28/'- 3 -'!$D28*100 -> 0.6712709943
A29: PEMBINA TRAILS | B29: 0 | C29: =B29/'- 3 -'!$D29*100 -> 0 | D29: 0 | E29: =D29/'- 3 -'!$D29*100 -> 0 | F29: 273212 | G29: =F29/'- 3 -'!$D29*100 -> 0.1558700264 | H29: 397056 | I29: =H29/'- 3 -'!$D29*100 -> 0.2265241981
A30: PINE CREEK | B30: 0 | C30: =B30/'- 3 -'!$D30*100 -> 0 | D30: 0 | E30: =D30/'- 3 -'!$D30*100 -> 0 | F30: 0 | G30: =F30/'- 3 -'!$D30*100 -> 0 | H30: 14790 | I30: =H30/'- 3 -'!$D30*100 -> 0.09597361796
A31: PORTAGE LA PRAIRIE | B31: 0 | C31: =B31/'- 3 -'!$D31*100 -> 0 | D31: 0 | E31: =D31/'- 3 -'!$D31*100 -> 0 | F31: 0 | G31: =F31/'- 3 -'!$D31*100 -> 0 | H31: 59500 | I31: =H31/'- 3 -'!$D31*100 -> 0.1490499929
A32: PRAIRIE ROSE | B32: 0 | C32: =B32/'- 3 -'!$D32*100 -> 0 | D32: 0 | E32: =D32/'- 3 -'!$D32*100 -> 0 | F32: 0 | G32: =F32/'- 3 -'!$D32*100 -> 0 | H32: 32640 | I32: =H32/'- 3 -'!$D32*100 -> 0.1044336132
A33: PRAIRIE SPIRIT | B33: 0 | C33: =B33/'- 3 -'!$D33*100 -> 0 | D33: 0 | E33: =D33/'- 3 -'!$D33*100 -> 0 | F33: 0 | G33: =F33/'- 3 -'!$D33*100 -> 0 | H33: 28393 | I33: =H33/'- 3 -'!$D33*100 -> 0.09934926981
A34: RED RIVER VALLEY | B34: 0 | C34: =B34/'- 3 -'!$D34*100 -> 0 | D34: 0 | E34: =D34/'- 3 -'!$D34*100 -> 0 | F34: 0 | G34: =F34/'- 3 -'!$D34*100 -> 0 | H34: 58518 | I34: =H34/'- 3 -'!$D34*100 -> 0.1848085525
A35: RIVER EAST TRANSCONA | B35: 361600 | C35: =B35/'- 3 -'!$D35*100 -> 0.1863326611 | D35: 0 | E35: =D35/'- 3 -'!$D35*100 -> 0 | F35: 0 | G35: =F35/'- 3 -'!$D35*100 -> 0 | H35: 211188 | I35: =H35/'- 3 -'!$D35*100 -> 0.1088252822
A36: ROLLING RIVER | B36: 0 | C36: =B36/'- 3 -'!$D36*100 -> 0 | D36: 0 | E36: =D36/'- 3 -'!$D36*100 -> 0 | F36: 0 | G36: =F36/'- 3 -'!$D36*100 -> 0 | H36: 32275 | I36: =H36/'- 3 -'!$D36*100 -> 0.1335336925
A37: SEINE RIVER | B37: 0 | C37: =B37/'- 3 -'!$D37*100 -> 0 | D37: 0 | E37: =D37/'- 3 -'!$D37*100 -> 0 | F37: 5000 | G37: =F37/'- 3 -'!$D37*100 -> 0.009238797035 | H37: 430529 | I37: =H37/'- 3 -'!$D37*100 -> 0.7955140097
A38: SEVEN OAKS | B38: 0 | C38: =B38/'- 3 -'!$D38*100 -> 0 | D38: 632660 | E38: =D38/'- 3 -'!$D38*100 -> 0.4268998311 | F38: 847892 | G38: =F38/'- 3 -'!$D38*100 -> 0.5721318743 | H38: 490980 | I38: =H38/'- 3 -'!$D38*100 -> 0.3312984527
A39: SOUTHWEST HORIZON | B39: 0 | C39: =B39/'- 3 -'!$D39*100 -> 0 | D39: 0 | E39: =D39/'- 3 -'!$D39*100 -> 0 | F39: 0 | G39: =F39/'- 3 -'!$D39*100 -> 0 | H39: 159600 | I39: =H39/'- 3 -'!$D39*100 -> 0.6825500686
A40: ST. JAMES-ASSINIBOIA | B40: 513782 | C40: =B40/'- 3 -'!$D40*100 -> 0.4712396053 | D40: 0 | E40: =D40/'- 3 -'!$D40*100 -> 0 | F40: 363170 | G40: =F40/'- 3 -'!$D40*100 -> 0.3330986439 | H40: 103804 | I40: =H40/'- 3 -'!$D40*100 -> 0.09520877724
A41: SUNRISE | B41: 0 | C41: =B41/'- 3 -'!$D41*100 -> 0 | D41: 0 | E41: =D41/'- 3 -'!$D41*100 -> 0 | F41: 0 | G41: =F41/'- 3 -'!$D41*100 -> 0 | H41: 354954 | I41: =H41/'- 3 -'!$D41*100 -> 0.5447354768
A42: SWAN VALLEY | B42: 0 | C42: =B42/'- 3 -'!$D42*100 -> 0 | D42: 0 | E42: =D42/'- 3 -'!$D42*100 -> 0 | F42: 0 | G42: =F42/'- 3 -'!$D42*100 -> 0 | H42: 63985 | I42: =H42/'- 3 -'!$D42*100 -> 0.3007203942
A43: TURTLE MOUNTAIN | B43: 0 | C43: =B43/'- 3 -'!$D43*100 -> 0 | D43: 0 | E43: =D43/'- 3 -'!$D43*100 -> 0 | F43: 0 | G43: =F43/'- 3 -'!$D43*100 -> 0 | H43: 13090 | I43: =H43/'- 3 -'!$D43*100 -> 0.09440734903
A44: TURTLE RIVER | B44: 0 | C44: =B44/'- 3 -'!$D44*100 -> 0 | D44: 0 | E44: =D44/'- 3 -'!$D44*100 -> 0 | F44: 0 | G44: =F44/'- 3 -'!$D44*100 -> 0 | H44: 24879 | I44: =H44/'- 3 -'!$D44*100 -> 0.218716022
A45: WESTERN | B45: 0 | C45: =B45/'- 3 -'!$D45*100 -> 0 | D45: 0 | E45: =D45/'- 3 -'!$D45*100 -> 0 | F45: 0 | G45: =F45/'- 3 -'!$D45*100 -> 0 | H45: 45707 | I45: =H45/'- 3 -'!$D45*100 -> 0.214665908
A46: WINNIPEG | B46: 0 | C46: =B46/'- 3 -'!$D46*100 -> 0 | D46: 3492300 | E46: =D46/'- 3 -'!$D46*100 -> 0.8458985016 | F46: 188000 | G46: =F46/'- 3 -'!$D46*100 -> 0.04553701524 | H46: 5550600 | I46: =H46/'- 3 -'!$D46*100 -> 1.344456153
A48: PROVINCE | B48: =SUM(B11:B46) -> 1681636 | C48: =B48/'- 3 -'!$D48*100 -> 0.06873005069 | D48: =SUM(D11:D46) -> 4124960 | E48: =D48/'- 3 -'!$D48*100 -> 0.1685910089 | F48: =SUM(F11:F46) -> 3724612 | G48: =F48/'- 3 -'!$D48*100 -> 0.1522284083 | H48: =SUM(H11:H46) -> 13568503 | I48: =H48/'- 3 -'!$D48*100 -> 0.5545575255
A50: WHITESHELL | B50: 0 | C50: =B50/'- 3 -'!$D50*100 -> 0 | D50: 0 | E50: =D50/'- 3 -'!$D50*100 -> 0 | F50: 51950 | G50: =F50/'- 3 -'!$D50*100 -> 1.437963965 | H50: 139050 | I50: =H50/'- 3 -'!$D50*100 -> 3.848871786
A51: MITT | B51: 0 | C51: =B51/'- 3 -'!$D51*100 -> 0 | D51: 1871023 | E51: =D51/'- 3 -'!$D51*100 -> 5.633675633 | F51: 8711751 | G51: =F51/'- 3 -'!$D51*100 -> 26.23120044 | H51: 0 | I51: =H51/'- 3 -'!$D51*100 -> 0

Sheet - 25 -
B2: =AEXP_BP -> ANALYSIS OF EXPENSE BY PROGRAM | J2: PAGE 8 OF 16
B3: =OPYEAR -> OPERATING FUND 2019/2020 BUDGET
B5: FUNCTION 500: DIVISIONAL ADMINISTRATION
E6: INSTRUCTIONAL MGMT. AND ADMINISTRATION | H6: BUSINESS AND ADMIN. SERVICES
B7: BOARD OF TRUSTEES
D8: PER PUPIL | G8: PER PUPIL | J8: PER PUPIL
A9: DIVISION / DISTRICT | B9: AMOUNT | C9: % | E9: AMOUNT | F9: % | H9: AMOUNT | I9: %
A11: BEAUTIFUL PLAINS | B11: 133050 | C11: =B11/'- 3 -'!$D11*100 -> 0.6390732098 | D11: =B11/'- 7 -'!$E11 -> 73.85512073 | E11: 156599 | F11: =E11/'- 3 -'!$D11*100 -> 0.7521850852 | G11: =E11/'- 7 -'!$E11 -> 86.92700527 | H11: 349103 | I11: =H11/'- 3 -'!$D11*100 -> 1.676831077 | J11: =H11/'- 7 -'!$E11 -> 193.7846239
A12: BORDER LAND | B12: 175481 | C12: =B12/'- 3 -'!$D12*100 -> 0.503456741 | D12: =B12/'- 7 -'!$E12 -> 82.05568233 | E12: 191749 | F12: =E12/'- 3 -'!$D12*100 -> 0.5501297954 | G12: =E12/'- 7 -'!$E12 -> 89.66267021 | H12: 785500 | I12: =H12/'- 3 -'!$D12*100 -> 2.253607343 | J12: =H12/'- 7 -'!$E12 -> 367.3032321
A13: BRANDON | B13: 350400 | C13: =B13/'- 3 -'!$D13*100 -> 0.3315306041 | D13: =B13/'- 7 -'!$E13 -> 40.39891624 | E13: 674100 | F13: =E13/'- 3 -'!$D13*100 -> 0.6377990304 | G13: =E13/'- 7 -'!$E13 -> 77.7194904 | H13: 1769900 | I13: =H13/'- 3 -'!$D13*100 -> 1.674589087 | J13: =H13/'- 7 -'!$E13 -> 204.0583386
A14: DSFM | B14: 923919 | C14: =B14/'- 3 -'!$D14*100 -> 0.9674147711 | D14: =B14/'- 7 -'!$E14 -> 159.9029076 | E14: 1598340 | F14: =E14/'- 3 -'!$D14*100 -> 1.673585807 | G14: =E14/'- 7 -'!$E14 -> 276.6251298 | H14: 1102600 | I14: =H14/'- 3 -'!$D14*100 -> 1.154507621 | J14: =H14/'- 7 -'!$E14 -> 190.8272759
A15: EVERGREEN | B15: 154190 | C15: =B15/'- 3 -'!$D15*100 -> 0.7335040672 | D15: =B15/'- 7 -'!$E15 -> 109.978602 | E15: 184900 | F15: =E15/'- 3 -'!$D15*100 -> 0.8795959662 | G15: =E15/'- 7 -'!$E15 -> 131.8830243 | H15: 368300 | I15: =H15/'- 3 -'!$D15*100 -> 1.752056216 | J15: =H15/'- 7 -'!$E15 -> 262.6961484
A16: FLIN FLON | B16: 112373 | C16: =B16/'- 3 -'!$D16*100 -> 0.7535086131 | D16: =B16/'- 7 -'!$E16 -> 119.6093667 | E16: 177162 | F16: =E16/'- 3 -'!$D16*100 -> 1.18794633 | G16: =E16/'- 7 -'!$E16 -> 188.5705162 | H16: 332702 | I16: =H16/'- 3 -'!$D16*100 -> 2.230907981 | J16: =H16/'- 7 -'!$E16 -> 354.1266631
A17: FORT LA BOSSE | B17: 116400 | C17: =B17/'- 3 -'!$D17*100 -> 0.6212272387 | D17: =B17/'- 7 -'!$E17 -> 80.97391304 | E17: 173770 | F17: =E17/'- 3 -'!$D17*100 -> 0.9274111449 | G17: =E17/'- 7 -'!$E17 -> 120.8834783 | H17: 306740 | I17: =H17/'- 3 -'!$D17*100 -> 1.637072536 | J17: =H17/'- 7 -'!$E17 -> 213.3843478
A18: FRONTIER | B18: 1241533 | C18: =B18/'- 3 -'!$D18*100 -> 0.9100960765 | D18: =B18/'- 7 -'!$E18 -> 201.5246644 | E18: 2339450 | F18: =E18/'- 3 -'!$D18*100 -> 1.714915565 | G18: =E18/'- 7 -'!$E18 -> 379.7376921 | H18: 3082674 | I18: =H18/'- 3 -'!$D18*100 -> 2.259730118 | J18: =H18/'- 7 -'!$E18 -> 500.3772299
A19: GARDEN VALLEY | B19: 219100 | C19: =B19/'- 3 -'!$D19*100 -> 0.4295194127 | D19: =B19/'- 7 -'!$E19 -> 50.4373849 | E19: 392100 | F19: =E19/'- 3 -'!$D19*100 -> 0.7686652748 | G19: =E19/'- 7 -'!$E19 -> 90.26243094 | H19: 784700 | I19: =H19/'- 3 -'!$D19*100 -> 1.53831074 | J19: =H19/'- 7 -'!$E19 -> 180.6399632
A20: HANOVER | B20: 295300 | C20: =B20/'- 3 -'!$D20*100 -> 0.3314618218 | D20: =B20/'- 7 -'!$E20 -> 37.18441101 | E20: 597300 | F20: =E20/'- 3 -'!$D20*100 -> 0.6704441117 | G20: =E20/'- 7 -'!$E20 -> 75.21249134 | H20: 1340200 | I20: =H20/'- 3 -'!$D20*100 -> 1.504318096 | J20: =H20/'- 7 -'!$E20 -> 168.7590506
A21: INTERLAKE | B21: 169000 | C21: =B21/'- 3 -'!$D21*100 -> 0.4474154477 | D21: =B21/'- 7 -'!$E21 -> 60.05685856 | E21: 399500 | F21: =E21/'- 3 -'!$D21*100 -> 1.05764776 | G21: =E21/'- 7 -'!$E21 -> 141.9687278 | H21: 683500 | I21: =H21/'- 3 -'!$D21*100 -> 1.809517506 | J21: =H21/'- 7 -'!$E21 -> 242.8926795
A22: KELSEY | B22: 124710 | C22: =B22/'- 3 -'!$D22*100 -> 0.6071815393 | D22: =B22/'- 7 -'!$E22 -> 87.38088565 | E22: 138920 | F22: =E22/'- 3 -'!$D22*100 -> 0.6763664457 | G22: =E22/'- 7 -'!$E22 -> 97.33744395 | H22: 538725 | I22: =H22/'- 3 -'!$D22*100 -> 2.622916164 | J22: =H22/'- 7 -'!$E22 -> 377.4698711
A23: LAKESHORE | B23: 111700 | C23: =B23/'- 3 -'!$D23*100 -> 0.6819073676 | D23: =B23/'- 7 -'!$E23 -> 118.0137348 | E23: 136500 | F23: =E23/'- 3 -'!$D23*100 -> 0.8333066757 | G23: =E23/'- 7 -'!$E23 -> 144.2155309 | H23: 320450 | I23: =H23/'- 3 -'!$D23*100 -> 1.956286624 | J23: =H23/'- 7 -'!$E23 -> 338.5631273
A24: LORD SELKIRK | B24: 300725 | C24: =B24/'- 3 -'!$D24*100 -> 0.5134547424 | D24: =B24/'- 7 -'!$E24 -> 79.24242424 | E24: 338240 | F24: =E24/'- 3 -'!$D24*100 -> 0.5775074639 | G24: =E24/'- 7 -'!$E24 -> 89.12779974 | H24: 1079035 | I24: =H24/'- 3 -'!$D24*100 -> 1.842333155 | J24: =H24/'- 7 -'!$E24 -> 284.3306983
A25: LOUIS RIEL | B25: 481647 | C25: =B25/'- 3 -'!$D25*100 -> 0.2503356215 | D25: =B25/'- 7 -'!$E25 -> 32.27115578 | E25: 604159 | F25: =E25/'- 3 -'!$D25*100 -> 0.3140111301 | G25: =E25/'- 7 -'!$E25 -> 40.47966499 | H25: 4375495 | I25: =H25/'- 3 -'!$D25*100 -> 2.274159831 | J25: =H25/'- 7 -'!$E25 -> 293.1654941
A26: MOUNTAIN VIEW | B26: 227729 | C26: =B26/'- 3 -'!$D26*100 -> 0.550431179 | D26: =B26/'- 7 -'!$E26 -> 75.73295643 | E26: 383906 | F26: =E26/'- 3 -'!$D26*100 -> 0.9279179736 | G26: =E26/'- 7 -'!$E26 -> 127.6707682 | H26: 713979 | I26: =H26/'- 3 -'!$D26*100 -> 1.725719178 | J26: =H26/'- 7 -'!$E26 -> 237.4389757
A27: MYSTERY LAKE | B27: 238260 | C27: =B27/'- 3 -'!$D27*100 -> 0.5679601399 | D27: =B27/'- 7 -'!$E27 -> 79.73895582 | E27: 509044 | F27: =E27/'- 3 -'!$D27*100 -> 1.213450438 | G27: =E27/'- 7 -'!$E27 -> 170.3627845 | H27: 833635 | I27: =H27/'- 3 -'!$D27*100 -> 1.987204949 | J27: =H27/'- 7 -'!$E27 -> 278.9943106
A28: PARK WEST | B28: 147567 | C28: =B28/'- 3 -'!$D28*100 -> 0.5125605237 | D28: =B28/'- 7 -'!$E28 -> 73.54448044 | E28: 366850 | F28: =E28/'- 3 -'!$D28*100 -> 1.274220036 | G28: =E28/'- 7 -'!$E28 -> 182.8307999 | H28: 506425 | I28: =H28/'- 3 -'!$D28*100 -> 1.759021077 | J28: =H28/'- 7 -'!$E28 -> 252.3922253
A29: PEMBINA TRAILS | B29: 473318 | C29: =B29/'- 3 -'!$D29*100 -> 0.2700323894 | D29: =B29/'- 7 -'!$E29 -> 34.13761269 | E29: 2148819 | F29: =E29/'- 3 -'!$D29*100 -> 1.225921535 | G29: =E29/'- 7 -'!$E29 -> 154.9815362 | H29: 1639492 | I29: =H29/'- 3 -'!$D29*100 -> 0.9353456708 | J29: =H29/'- 7 -'!$E29 -> 118.2468085
A30: PINE CREEK | B30: 119698 | C30: =B30/'- 3 -'!$D30*100 -> 0.7767309076 | D30: =B30/'- 7 -'!$E30 -> 113.7273159 | E30: 109258 | F30: =E30/'- 3 -'!$D30*100 -> 0.7089848243 | G30: =E30/'- 7 -'!$E30 -> 103.808076 | H30: 292723 | I30: =H30/'- 3 -'!$D30*100 -> 1.899505434 | J30: =H30/'- 7 -'!$E30 -> 278.1216152
A31: PORTAGE LA PRAIRIE | B31: 170670 | C31: =B31/'- 3 -'!$D31*100 -> 0.4275355007 | D31: =B31/'- 7 -'!$E31 -> 51.15240522 | E31: 272250 | F31: =E31/'- 3 -'!$D31*100 -> 0.6819976567 | G31: =E31/'- 7 -'!$E31 -> 81.59748239 | H31: 541400 | I31: =H31/'- 3 -'!$D31*100 -> 1.356229683 | J31: =H31/'- 7 -'!$E31 -> 162.2658474
A32: PRAIRIE ROSE | B32: 198000 | C32: =B32/'- 3 -'!$D32*100 -> 0.6335127273 | D32: =B32/'- 7 -'!$E32 -> 88.72955411 | E32: 179930 | F32: =E32/'- 3 -'!$D32*100 -> 0.575696692 | G32: =E32/'- 7 -'!$E32 -> 80.63186198 | H32: 652130 | I32: =H32/'- 3 -'!$D32*100 -> 2.08652856 | J32: =H32/'- 7 -'!$E32 -> 292.2384047
A33: PRAIRIE SPIRIT | B33: 183650 | C33: =B33/'- 3 -'!$D33*100 -> 0.6426053393 | D33: =B33/'- 7 -'!$E33 -> 90.61528593 | E33: 255700 | F33: =E33/'- 3 -'!$D33*100 -> 0.8947137777 | G33: =E33/'- 7 -'!$E33 -> 126.1656881 | H33: 410925 | I33: =H33/'- 3 -'!$D33*100 -> 1.437857877 | J33: =H33/'- 7 -'!$E33 -> 202.7557113
A34: RED RIVER VALLEY | B34: 174680 | C34: =B34/'- 3 -'!$D34*100 -> 0.5516654356 | D34: =B34/'- 7 -'!$E34 -> 78.22660099 | E34: 296157 | F34: =E34/'- 3 -'!$D34*100 -> 0.9353078796 | G34: =E34/'- 7 -'!$E34 -> 132.6274071 | H34: 631533 | I34: =H34/'- 3 -'!$D34*100 -> 1.994475198 | J34: =H34/'- 7 -'!$E34 -> 282.8181818
A35: RIVER EAST TRANSCONA | B35: 477400 | C35: =B35/'- 3 -'!$D35*100 -> 0.2460044591 | D35: =B35/'- 7 -'!$E35 -> 29.31532085 | E35: 1224874 | F35: =E35/'- 3 -'!$D35*100 -> 0.6311781857 | G35: =E35/'- 7 -'!$E35 -> 75.2148603 | H35: 2381068 | I35: =H35/'- 3 -'!$D35*100 -> 1.226965533 | J35: =H35/'- 7 -'!$E35 -> 146.2123426
A36: ROLLING RIVER | B36: 177600 | C36: =B36/'- 3 -'!$D36*100 -> 0.7347973287 | D36: =B36/'- 7 -'!$E36 -> 103.3459412 | E36: 176890 | F36: =E36/'- 3 -'!$D36*100 -> 0.7318597944 | G36: =E36/'- 7 -'!$E36 -> 102.9327902 | H36: 502195 | I36: =H36/'- 3 -'!$D36*100 -> 2.077767706 | J36: =H36/'- 7 -'!$E36 -> 292.2286878
A37: SEINE RIVER | B37: 224000 | C37: =B37/'- 3 -'!$D37*100 -> 0.4138981072 | D37: =B37/'- 7 -'!$E37 -> 51.64860503 | E37: 469300 | F37: =E37/'- 3 -'!$D37*100 -> 0.8671534897 | G37: =E37/'- 7 -'!$E37 -> 108.208439 | H37: 850500 | I37: =H37/'- 3 -'!$D37*100 -> 1.571519376 | J37: =H37/'- 7 -'!$E37 -> 196.1032972
A38: SEVEN OAKS | B38: 420760 | C38: =B38/'- 3 -'!$D38*100 -> 0.2839161207 | D38: =B38/'- 7 -'!$E38 -> 36.68480156 | E38: 1277330 | F38: =E38/'- 3 -'!$D38*100 -> 0.8619036469 | G38: =E38/'- 7 -'!$E38 -> 111.366569 | H38: 1859350 | I38: =H38/'- 3 -'!$D38*100 -> 1.254633138 | J38: =H38/'- 7 -'!$E38 -> 162.111146
A39: SOUTHWEST HORIZON | B39: 152800 | C39: =B39/'- 3 -'!$D39*100 -> 0.653468988 | D39: =B39/'- 7 -'!$E39 -> 101.66334 | E39: 247200 | F39: =E39/'- 3 -'!$D39*100 -> 1.057182813 | G39: =E39/'- 7 -'!$E39 -> 164.4710579 | H39: 402000 | I39: =H39/'- 3 -'!$D39*100 -> 1.71920506 | J39: =H39/'- 7 -'!$E39 -> 267.4650699
A40: ST. JAMES-ASSINIBOIA | B40: 408315 | C40: =B40/'- 3 -'!$D40*100 -> 0.3745055285 | D40: =B40/'- 7 -'!$E40 -> 48.85319454 | E40: 978690 | F40: =E40/'- 3 -'!$D40*100 -> 0.8976520962 | G40: =E40/'- 7 -'!$E40 -> 117.0961953 | H40: 1528435 | I40: =H40/'- 3 -'!$D40*100 -> 1.401876878 | J40: =H40/'- 7 -'!$E40 -> 182.8709021
A41: SUNRISE | B41: 281000 | C41: =B41/'- 3 -'!$D41*100 -> 0.4312408621 | D41: =B41/'- 7 -'!$E41 -> 63.21709786 | E41: 443115 | F41: =E41/'- 3 -'!$D41*100 -> 0.6800330769 | G41: =E41/'- 7 -'!$E41 -> 99.68841395 | H41: 1210004 | I41: =H41/'- 3 -'!$D41*100 -> 1.856950776 | J41: =H41/'- 7 -'!$E41 -> 272.2168729
A42: SWAN VALLEY | B42: 193375 | C42: =B42/'- 3 -'!$D42*100 -> 0.9088349805 | D42: =B42/'- 7 -'!$E42 -> 140.4831093 | E42: 220026 | F42: =E42/'- 3 -'!$D42*100 -> 1.034090888 | G42: =E42/'- 7 -'!$E42 -> 159.8445332 | H42: 339107 | I42: =H42/'- 3 -'!$D42*100 -> 1.593754641 | J42: =H42/'- 7 -'!$E42 -> 246.3545223
A43: TURTLE MOUNTAIN | B43: 61070 | C43: =B43/'- 3 -'!$D43*100 -> 0.4404474259 | D43: =B43/'- 7 -'!$E43 -> 61.40774258 | E43: 143724 | F43: =E43/'- 3 -'!$D43*100 -> 1.036562401 | G43: =E43/'- 7 -'!$E43 -> 144.5188537 | H43: 251693 | I43: =H43/'- 3 -'!$D43*100 -> 1.815253545 | J43: =H43/'- 7 -'!$E43 -> 253.0849673
A44: TURTLE RIVER | B44: 97650 | C44: =B44/'- 3 -'!$D44*100 -> 0.8584597272 | D44: =B44/'- 7 -'!$E44 -> 139.5997141 | E44: 52192 | F44: =E44/'- 3 -'!$D44*100 -> 0.4588298012 | G44: =E44/'- 7 -'!$E44 -> 74.61329521 | H44: 238360 | I44: =H44/'- 3 -'!$D44*100 -> 2.095468106 | J44: =H44/'- 7 -'!$E44 -> 340.7576841
A45: WESTERN | B45: 136228 | C45: =B45/'- 3 -'!$D45*100 -> 0.6398036911 | D45: =B45/'- 7 -'!$E45 -> 73.04450402 | E45: 181751 | F45: =E45/'- 3 -'!$D45*100 -> 0.853605431 | G45: =E45/'- 7 -'!$E45 -> 97.4536193 | H45: 378790 | I45: =H45/'- 3 -'!$D45*100 -> 1.779011952 | J45: =H45/'- 7 -'!$E45 -> 203.1045576
A46: WINNIPEG | B46: 952838 | C46: =B46/'- 3 -'!$D46*100 -> 0.230794673 | D46: =B46/'- 7 -'!$E46 -> 31.58491754 | E46: 3236160 | F46: =E46/'- 3 -'!$D46*100 -> 0.7838567406 | G46: =E46/'- 7 -'!$E46 -> 107.2730588 | H46: 6033929 | I46: =H46/'- 3 -'!$D46*100 -> 1.461527217 | J46: =H46/'- 7 -'!$E46 -> 200.0142206
A48: PROVINCE | B48: =SUM(B11:B46) -> 10426136 | C48: =B48/'- 3 -'!$D48*100 -> 0.42612602 | D48: =B48/'- 7 -'!$E48 -> 57.76564342 | E48: =SUM(E11:E46) -> 21275955 | F48: =E48/'- 3 -'!$D48*100 -> 0.8695683641 | G48: =E48/'- 7 -'!$E48 -> 117.8786877 | H48: =SUM(H11:H46) -> 39417297 | I48: =H48/'- 3 -'!$D48*100 -> 1.611022136 | J48: =H48/'- 7 -'!$E48 -> 218.3901613
A50: WHITESHELL | B50: 48800 | C50: =B50/'- 3 -'!$D50*100 -> 1.350772695 | D50: =B50/'- 7 -'!$E50 -> 291.3432836 | E50: 20490 | F50: =E50/'- 3 -'!$D50*100 -> 0.5671584531 | G50: =E50/'- 7 -'!$E50 -> 122.3283582 | H50: 63710 | I50: =H50/'- 3 -'!$D50*100 -> 1.76347804 | J50: =H50/'- 7 -'!$E50 -> 380.358209
A51: MITT | B51: 55470 | C51: =B51/'- 3 -'!$D51*100 -> 0.1670209224 | D51: =B51/'- 7 -'!$E51 -> 39.50854701 | E51: 506110 | F51: =E51/'- 3 -'!$D51*100 -> 1.523904075 | G51: =E51/'- 7 -'!$E51 -> 360.477208 | H51: 4193774 | I51: =H51/'- 3 -'!$D51*100 -> 12.6275104 | J51: =H51/'- 7 -'!$E51 -> 2987.018519

Sheet - 26 -
B2: =AEXP_BP -> ANALYSIS OF EXPENSE BY PROGRAM | E2: PAGE 9 OF 16
B3: =OPYEAR -> OPERATING FUND 2019/2020 BUDGET
B5: FUNCTION 500: (CONT'D)
B6: MANAGEMENT INFORMATION SERVICES
D8: PER PUPIL
A9: DIVISION / DISTRICT | B9: AMOUNT | C9: %
A11: BEAUTIFUL PLAINS | B11: 13200 | C11: =B11/'- 3 -'!$D11*100 -> 0.0634029791 | D11: =B11/'- 7 -'!$E11 -> 7.327227311
A12: BORDER LAND | B12: 64520 | C12: =B12/'- 3 -'!$D12*100 -> 0.1851085242 | D12: =B12/'- 7 -'!$E12 -> 30.16983391
A13: BRANDON | B13: 336600 | C13: =B13/'- 3 -'!$D13*100 -> 0.3184737482 | D13: =B13/'- 7 -'!$E13 -> 38.80786303
A14: DSFM | B14: 126508 | C14: =B14/'- 3 -'!$D14*100 -> 0.1324636769 | D14: =B14/'- 7 -'!$E14 -> 21.89477328
A15: EVERGREEN | B15: 57000 | C15: =B15/'- 3 -'!$D15*100 -> 0.2711572205 | D15: =B15/'- 7 -'!$E15 -> 40.65620542
A16: FLIN FLON | B16: 35676 | C16: =B16/'- 3 -'!$D16*100 -> 0.2392227072 | D16: =B16/'- 7 -'!$E16 -> 37.9733901
A17: FORT LA BOSSE | B17: 84140 | C17: =B17/'- 3 -'!$D17*100 -> 0.4490554971 | D17: =B17/'- 7 -'!$E17 -> 58.53217391
A18: FRONTIER | B18: 667254 | C18: =B18/'- 3 -'!$D18*100 -> 0.4891253374 | D18: =B18/'- 7 -'!$E18 -> 108.3081468
A19: GARDEN VALLEY | B19: 172300 | C19: =B19/'- 3 -'!$D19*100 -> 0.3377735956 | D19: =B19/'- 7 -'!$E19 -> 39.66390424
A20: HANOVER | B20: 106600 | C20: =B20/'- 3 -'!$D20*100 -> 0.1196540136 | D20: =B20/'- 7 -'!$E20 -> 13.42315683
A21: INTERLAKE | B21: 42000 | C21: =B21/'- 3 -'!$D21*100 -> 0.1111920048 | D21: =B21/'- 7 -'!$E21 -> 14.92537313
A22: KELSEY | B22: 75000 | C22: =B22/'- 3 -'!$D22*100 -> 0.3651560857 | D22: =B22/'- 7 -'!$E22 -> 52.55044843
A23: LAKESHORE | B23: 20000 | C23: =B23/'- 3 -'!$D23*100 -> 0.1220962162 | D23: =B23/'- 7 -'!$E23 -> 21.13048072
A24: LORD SELKIRK | B24: 160010 | C24: =B24/'- 3 -'!$D24*100 -> 0.2731994125 | D24: =B24/'- 7 -'!$E24 -> 42.16337286
A25: LOUIS RIEL | B25: 898669 | C25: =B25/'- 3 -'!$D25*100 -> 0.4670824539 | D25: =B25/'- 7 -'!$E25 -> 60.21232831
A26: MOUNTAIN VIEW | B26: 34000 | C26: =B26/'- 3 -'!$D26*100 -> 0.08217952078 | D26: =B26/'- 7 -'!$E26 -> 11.30695045
A27: MYSTERY LAKE | B27: 222673 | C27: =B27/'- 3 -'!$D27*100 -> 0.5308041141 | D27: =B27/'- 7 -'!$E27 -> 74.52242303
A28: PARK WEST | B28: 82500 | C28: =B28/'- 3 -'!$D28*100 -> 0.2865562301 | D28: =B28/'- 7 -'!$E28 -> 41.11637179
A29: PEMBINA TRAILS | B29: 1571561 | C29: =B29/'- 3 -'!$D29*100 -> 0.8965903937 | D29: =B29/'- 7 -'!$E29 -> 113.3473494
A30: PINE CREEK | B30: 28585 | C30: =B30/'- 3 -'!$D30*100 -> 0.1854905929 | D30: =B30/'- 7 -'!$E30 -> 27.15914489
A31: PORTAGE LA PRAIRIE | B31: 85800 | C31: =B31/'- 3 -'!$D31*100 -> 0.2149325948 | D31: =B31/'- 7 -'!$E31 -> 25.71557021
A32: PRAIRIE ROSE | B32: 60000 | C32: =B32/'- 3 -'!$D32*100 -> 0.1919735537 | D32: =B32/'- 7 -'!$E32 -> 26.88774367
A33: PRAIRIE SPIRIT | B33: 48000 | C33: =B33/'- 3 -'!$D33*100 -> 0.1679556563 | D33: =B33/'- 7 -'!$E33 -> 23.68382099
A34: RED RIVER VALLEY | B34: 36968 | C34: =B34/'- 3 -'!$D34*100 -> 0.1167504455 | D34: =B34/'- 7 -'!$E34 -> 16.55530676
A35: RIVER EAST TRANSCONA | B35: 953198 | C35: =B35/'- 3 -'!$D35*100 -> 0.4911834068 | D35: =B35/'- 7 -'!$E35 -> 58.53226896
A36: ROLLING RIVER | B36: 30700 | C36: =B36/'- 3 -'!$D36*100 -> 0.127017331 | D36: =B36/'- 7 -'!$E36 -> 17.86441664
A37: SEINE RIVER | B37: 100800 | C37: =B37/'- 3 -'!$D37*100 -> 0.1862541482 | D37: =B37/'- 7 -'!$E37 -> 23.24187226
A38: SEVEN OAKS | B38: 585640 | C38: =B38/'- 3 -'!$D38*100 -> 0.3951721574 | D38: =B38/'- 7 -'!$E38 -> 51.0601939
A39: SOUTHWEST HORIZON | B39: 55900 | C39: =B39/'- 3 -'!$D39*100 -> 0.2390635892 | D39: =B39/'- 7 -'!$E39 -> 37.1922821
A40: ST. JAMES-ASSINIBOIA | B40: 419297 | C40: =B40/'- 3 -'!$D40*100 -> 0.3845781923 | D40: =B40/'- 7 -'!$E40 -> 50.16714525
A41: SUNRISE | B41: 118355 | C41: =B41/'- 3 -'!$D41*100 -> 0.1816352749 | D41: =B41/'- 7 -'!$E41 -> 26.62654668
A42: SWAN VALLEY | B42: 19000 | C42: =B42/'- 3 -'!$D42*100 -> 0.08929729608 | D42: =B42/'- 7 -'!$E42 -> 13.80312386
A43: TURTLE MOUNTAIN | B43: 21800 | C43: =B43/'- 3 -'!$D43*100 -> 0.1572253788 | D43: =B43/'- 7 -'!$E43 -> 21.9205631
A44: TURTLE RIVER | B44: 9000 | C44: =B44/'- 3 -'!$D44*100 -> 0.07912071218 | D44: =B44/'- 7 -'!$E44 -> 12.8663331
A45: WESTERN | B45: 57200 | C45: =B45/'- 3 -'!$D45*100 -> 0.2686435324 | D45: =B45/'- 7 -'!$E45 -> 30.67024129
A46: WINNIPEG | B46: 1119900 | C46: =B46/'- 3 -'!$D46*100 -> 0.2712601243 | D46: =B46/'- 7 -'!$E46 -> 37.12273142
A48: PROVINCE | B48: =SUM(B11:B46) -> 8520354 | C48: =B48/'- 3 -'!$D48*100 -> 0.3482349107 | D48: =B48/'- 7 -'!$E48 -> 47.20672462
A50: WHITESHELL | B50: 9000 | C50: =B50/'- 3 -'!$D50*100 -> 0.249117915 | D50: =B50/'- 7 -'!$E50 -> 53.73134328
A51: MITT | B51: 1999354 | C51: =B51/'- 3 -'!$D51*100 -> 6.020082015 | D51: =B51/'- 7 -'!$E51 -> 1424.041311

Sheet - 27 -
B2: =AEXP_BP -> ANALYSIS OF EXPENSE BY PROGRAM | J2: PAGE 10 OF 16
B3: =OPYEAR -> OPERATING FUND 2019/2020 BUDGET
B5: FUNCTION 600: INSTRUCTIONAL & OTHER SUPPORT SERVICES
B6: CURRICULUM CONSULTING AND DEVELOPMENT ADMINISTRATION | E6: CURRICULUM CONSULTING AND DEVELOPMENT | H6: LIBRARY / MEDIA CENTRE
D8: PER PUPIL | G8: PER PUPIL | J8: PER PUPIL
A9: DIVISION / DISTRICT | B9: AMOUNT | C9: % | E9: AMOUNT | F9: % | H9: AMOUNT | I9: %
A11: BEAUTIFUL PLAINS | B11: 0 | C11: =B11/'- 3 -'!$D11*100 -> 0 | D11: =B11/'- 7 -'!$C11 -> 0 | E11: 158901 | F11: =E11/'- 3 -'!$D11*100 -> 0.7632421805 | G11: =E11/'- 7 -'!$E11 -> 88.20482931 | H11: 275807 | I11: =H11/'- 3 -'!$D11*100 -> 1.324771626 | J11: =H11/'- 7 -'!$E11 -> 153.098529
A12: BORDER LAND | B12: 0 | C12: =B12/'- 3 -'!$D12*100 -> 0 | D12: =B12/'- 7 -'!$C12 -> 0 | E12: 0 | F12: =E12/'- 3 -'!$D12*100 -> 0 | G12: =E12/'- 7 -'!$E12 -> 0 | H12: 305043 | I12: =H12/'- 3 -'!$D12*100 -> 0.8751714126 | J12: =H12/'- 7 -'!$E12 -> 142.6394396
A13: BRANDON | B13: 86000 | C13: =B13/'- 3 -'!$D13*100 -> 0.08136881266 | D13: =B13/'- 7 -'!$C13 -> 9.915259123 | E13: 587600 | F13: =E13/'- 3 -'!$D13*100 -> 0.5559571432 | G13: =E13/'- 7 -'!$E13 -> 67.74658442 | H13: 994600 | I13: =H13/'- 3 -'!$D13*100 -> 0.9410397799 | J13: =H13/'- 7 -'!$E13 -> 114.6711247
A14: DSFM | B14: 193083 | C14: =B14/'- 3 -'!$D14*100 -> 0.2021728596 | D14: =B14/'- 7 -'!$C14 -> 33.41692627 | E14: 1766585 | F14: =E14/'- 3 -'!$D14*100 -> 1.849751356 | G14: =E14/'- 7 -'!$E14 -> 305.7433368 | H14: 819457 | I14: =H14/'- 3 -'!$D14*100 -> 0.8580349642 | J14: =H14/'- 7 -'!$E14 -> 141.8236414
A15: EVERGREEN | B15: 79900 | C15: =B15/'- 3 -'!$D15*100 -> 0.3800958232 | D15: =B15/'- 7 -'!$C15 -> 56.99001427 | E15: 185445 | F15: =E15/'- 3 -'!$D15*100 -> 0.8821886098 | G15: =E15/'- 7 -'!$E15 -> 132.2717546 | H15: 266205 | I15: =H15/'- 3 -'!$D15*100 -> 1.266375577 | J15: =H15/'- 7 -'!$E15 -> 189.8751783
A16: FLIN FLON | B16: 0 | C16: =B16/'- 3 -'!$D16*100 -> 0 | D16: =B16/'- 7 -'!$C16 -> 0 | E16: 0 | F16: =E16/'- 3 -'!$D16*100 -> 0 | G16: =E16/'- 7 -'!$E16 -> 0 | H16: 167093 | I16: =H16/'- 3 -'!$D16*100 -> 1.120429415 | J16: =H16/'- 7 -'!$E16 -> 177.8531134
A17: FORT LA BOSSE | B17: 0 | C17: =B17/'- 3 -'!$D17*100 -> 0 | D17: =B17/'- 7 -'!$C17 -> 0 | E17: 90790 | F17: =E17/'- 3 -'!$D17*100 -> 0.4845465722 | G17: =E17/'- 7 -'!$E17 -> 63.15826087 | H17: 241970 | I17: =H17/'- 3 -'!$D17*100 -> 1.291394802 | J17: =H17/'- 7 -'!$E17 -> 168.3269565
A18: FRONTIER | B18: 0 | C18: =B18/'- 3 -'!$D18*100 -> 0 | D18: =B18/'- 7 -'!$C18 -> 0 | E18: 2979561 | F18: =E18/'- 3 -'!$D18*100 -> 2.184143938 | G18: =E18/'- 7 -'!$E18 -> 483.6400084 | H18: 1993655 | I18: =H18/'- 3 -'!$D18*100 -> 1.461433239 | J18: =H18/'- 7 -'!$E18 -> 323.6085185
A19: GARDEN VALLEY | B19: 50000 | C19: =B19/'- 3 -'!$D19*100 -> 0.0980190353 | D19: =B19/'- 7 -'!$C19 -> 11.51012891 | E19: 251300 | F19: =E19/'- 3 -'!$D19*100 -> 0.4926436714 | G19: =E19/'- 7 -'!$E19 -> 57.84990792 | H19: 553200 | I19: =H19/'- 3 -'!$D19*100 -> 1.084482607 | J19: =H19/'- 7 -'!$E19 -> 127.3480663
A20: HANOVER | B20: 21200 | C20: =B20/'- 3 -'!$D20*100 -> 0.02379610776 | D20: =B20/'- 7 -'!$C20 -> 2.669520871 | E20: 531800 | F20: =E20/'- 3 -'!$D20*100 -> 0.5969231184 | G20: =E20/'- 7 -'!$E20 -> 66.96467922 | H20: 999200 | I20: =H20/'- 3 -'!$D20*100 -> 1.121559947 | J20: =H20/'- 7 -'!$E20 -> 125.8200592
A21: INTERLAKE | B21: 0 | C21: =B21/'- 3 -'!$D21*100 -> 0 | D21: =B21/'- 7 -'!$C21 -> 0 | E21: 0 | F21: =E21/'- 3 -'!$D21*100 -> 0 | G21: =E21/'- 7 -'!$E21 -> 0 | H21: 538356 | I21: =H21/'- 3 -'!$D21*100 -> 1.425259117 | J21: =H21/'- 7 -'!$E21 -> 191.3134328
A22: KELSEY | B22: 23815 | C22: =B22/'- 3 -'!$D22*100 -> 0.1159492291 | D22: =B22/'- 7 -'!$C22 -> 16.68651906 | E22: 69720 | F22: =E22/'- 3 -'!$D22*100 -> 0.3394490973 | G22: =E22/'- 7 -'!$E22 -> 48.85089686 | H22: 191065 | I22: =H22/'- 3 -'!$D22*100 -> 0.9302473003 | J22: =H22/'- 7 -'!$E22 -> 133.8740191
A23: LAKESHORE | B23: 0 | C23: =B23/'- 3 -'!$D23*100 -> 0 | D23: =B23/'- 7 -'!$C23 -> 0 | E23: 102000 | F23: =E23/'- 3 -'!$D23*100 -> 0.6226907027 | G23: =E23/'- 7 -'!$E23 -> 107.7654517 | H23: 103800 | I23: =H23/'- 3 -'!$D23*100 -> 0.6336793621 | J23: =H23/'- 7 -'!$E23 -> 109.6671949
A24: LORD SELKIRK | B24: 72605 | C24: =B24/'- 3 -'!$D24*100 -> 0.1239650231 | D24: =B24/'- 7 -'!$C24 -> 19.13175231 | E24: 112935 | F24: =E24/'- 3 -'!$D24*100 -> 0.1928240463 | G24: =E24/'- 7 -'!$E24 -> 29.75889328 | H24: 640180 | I24: =H24/'- 3 -'!$D24*100 -> 1.093036685 | J24: =H24/'- 7 -'!$E24 -> 168.6903821
A25: LOUIS RIEL | B25: 236769 | C25: =B25/'- 3 -'!$D25*100 -> 0.1230604878 | D25: =B25/'- 7 -'!$C25 -> 15.8639196 | E25: 1035034 | F25: =E25/'- 3 -'!$D25*100 -> 0.5379580475 | G25: =E25/'- 7 -'!$E25 -> 69.34901173 | H25: 4367240 | I25: =H25/'- 3 -'!$D25*100 -> 2.269869302 | J25: =H25/'- 7 -'!$E25 -> 292.6123953
A26: MOUNTAIN VIEW | B26: 19557 | C26: =B26/'- 3 -'!$D26*100 -> 0.04727014376 | D26: =B26/'- 7 -'!$C26 -> 6.50382441 | E26: 333274 | F26: =E26/'- 3 -'!$D26*100 -> 0.8055381649 | G26: =E26/'- 7 -'!$E26 -> 110.8327236 | H26: 543070 | I26: =H26/'- 3 -'!$D26*100 -> 1.312624481 | J26: =H26/'- 7 -'!$E26 -> 180.6019288
A27: MYSTERY LAKE | B27: 0 | C27: =B27/'- 3 -'!$D27*100 -> 0 | D27: =B27/'- 7 -'!$C27 -> 0 | E27: 618432 | F27: =E27/'- 3 -'!$D27*100 -> 1.474207694 | G27: =E27/'- 7 -'!$E27 -> 206.9718876 | H27: 799037 | I27: =H27/'- 3 -'!$D27*100 -> 1.904730825 | J27: =H27/'- 7 -'!$E27 -> 267.415328
A28: PARK WEST | B28: 47608 | C28: =B28/'- 3 -'!$D28*100 -> 0.1653620485 | D28: =B28/'- 7 -'!$C28 -> 23.72688762 | E28: 0 | F28: =E28/'- 3 -'!$D28*100 -> 0 | G28: =E28/'- 7 -'!$E28 -> 0 | H28: 299060 | I28: =H28/'- 3 -'!$D28*100 -> 1.038757651 | J28: =H28/'- 7 -'!$E28 -> 149.0456018
A29: PEMBINA TRAILS | B29: 473157 | C29: =B29/'- 3 -'!$D29*100 -> 0.2699405374 | D29: =B29/'- 7 -'!$C29 -> 34.12600072 | E29: 752996 | F29: =E29/'- 3 -'!$D29*100 -> 0.4295913299 | G29: =E29/'- 7 -'!$E29 -> 54.30912369 | H29: 3699430 | I29: =H29/'- 3 -'!$D29*100 -> 2.110559756 | J29: =H29/'- 7 -'!$E29 -> 266.8178868
A30: PINE CREEK | B30: 0 | C30: =B30/'- 3 -'!$D30*100 -> 0 | D30: =B30/'- 7 -'!$C30 -> 0 | E30: 0 | F30: =E30/'- 3 -'!$D30*100 -> 0 | G30: =E30/'- 7 -'!$E30 -> 0 | H30: 434810 | I30: =H30/'- 3 -'!$D30*100 -> 2.821520543 | J30: =H30/'- 7 -'!$E30 -> 413.1211401
A31: PORTAGE LA PRAIRIE | B31: 78740 | C31: =B31/'- 3 -'!$D31*100 -> 0.197246999 | D31: =B31/'- 7 -'!$C31 -> 23.5995804 | E31: 107224 | F31: =E31/'- 3 -'!$D31*100 -> 0.2686006125 | G31: =E31/'- 7 -'!$E31 -> 32.13667016 | H31: 445325 | I31: =H31/'- 3 -'!$D31*100 -> 1.115557783 | J31: =H31/'- 7 -'!$E31 -> 133.4707028
A32: PRAIRIE ROSE | B32: 0 | C32: =B32/'- 3 -'!$D32*100 -> 0 | D32: =B32/'- 7 -'!$C32 -> 0 | E32: 128906 | F32: =E32/'- 3 -'!$D32*100 -> 0.4124423819 | G32: =E32/'- 7 -'!$E32 -> 57.76652476 | H32: 324130 | I32: =H32/'- 3 -'!$D32*100 -> 1.037073133 | J32: =H32/'- 7 -'!$E32 -> 145.2520726
A33: PRAIRIE SPIRIT | B33: 0 | C33: =B33/'- 3 -'!$D33*100 -> 0 | D33: =B33/'- 7 -'!$C33 -> 0 | E33: 88900 | F33: =E33/'- 3 -'!$D33*100 -> 0.3110678719 | G33: =E33/'- 7 -'!$E33 -> 43.86441012 | H33: 408825 | I33: =H33/'- 3 -'!$D33*100 -> 1.430509817 | J33: =H33/'- 7 -'!$E33 -> 201.7195441
A34: RED RIVER VALLEY | B34: 6912 | C34: =B34/'- 3 -'!$D34*100 -> 0.02182912463 | D34: =B34/'- 7 -'!$C34 -> 3.095387371 | E34: 149393 | F34: =E34/'- 3 -'!$D34*100 -> 0.4718053264 | G34: =E34/'- 7 -'!$E34 -> 66.90237349 | H34: 238596 | I34: =H34/'- 3 -'!$D34*100 -> 0.7535216754 | J34: =H34/'- 7 -'!$E34 -> 106.8499776
A35: RIVER EAST TRANSCONA | B35: 412505 | C35: =B35/'- 3 -'!$D35*100 -> 0.2125640331 | D35: =B35/'- 7 -'!$C35 -> 25.33036537 | E35: 750385 | F35: =E35/'- 3 -'!$D35*100 -> 0.3866737663 | G35: =E35/'- 7 -'!$E35 -> 46.07829291 | H35: 4897140 | I35: =H35/'- 3 -'!$D35*100 -> 2.523498695 | J35: =H35/'- 7 -'!$E35 -> 300.7147682
A36: ROLLING RIVER | B36: 23415 | C36: =B36/'- 3 -'!$D36*100 -> 0.09687657349 | D36: =B36/'- 7 -'!$C36 -> 13.62525458 | E36: 119345 | F36: =E36/'- 3 -'!$D36*100 -> 0.4937747027 | G36: =E36/'- 7 -'!$E36 -> 69.44719232 | H36: 206700 | I36: =H36/'- 3 -'!$D36*100 -> 0.855194864 | J36: =H36/'- 7 -'!$E36 -> 120.2793134
A37: SEINE RIVER | B37: 68000 | C37: =B37/'- 3 -'!$D37*100 -> 0.1256476397 | D37: =B37/'- 7 -'!$C37 -> 15.67904081 | E37: 621000 | F37: =E37/'- 3 -'!$D37*100 -> 1.147458592 | G37: =E37/'- 7 -'!$E37 -> 143.1865345 | H37: 574750 | I37: =H37/'- 3 -'!$D37*100 -> 1.061999719 | J37: =H37/'- 7 -'!$E37 -> 132.522481
A38: SEVEN OAKS | B38: 85170 | C38: =B38/'- 3 -'!$D38*100 -> 0.05747013975 | D38: =B38/'- 7 -'!$C38 -> 7.425716677 | E38: 568160 | F38: =E38/'- 3 -'!$D38*100 -> 0.3833771821 | G38: =E38/'- 7 -'!$E38 -> 49.53616517 | H38: 1928773 | I38: =H38/'- 3 -'!$D38*100 -> 1.301477678 | J38: =H38/'- 7 -'!$E38 -> 168.163929
A39: SOUTHWEST HORIZON | B39: 0 | C39: =B39/'- 3 -'!$D39*100 -> 0 | D39: =B39/'- 7 -'!$C39 -> 0 | E39: 115400 | F39: =E39/'- 3 -'!$D39*100 -> 0.4935230446 | G39: =E39/'- 7 -'!$E39 -> 76.77977379 | H39: 268400 | I39: =H39/'- 3 -'!$D39*100 -> 1.147847359 | J39: =H39/'- 7 -'!$E39 -> 178.576181
A40: ST. JAMES-ASSINIBOIA | B40: 41338 | C40: =B40/'- 3 -'!$D40*100 -> 0.03791511342 | D40: =B40/'- 7 -'!$C40 -> 4.945920077 | E40: 556134 | F40: =E40/'- 3 -'!$D40*100 -> 0.510084757 | G40: =E40/'- 7 -'!$E40 -> 66.53912419 | H40: 1298382 | I40: =H40/'- 3 -'!$D40*100 -> 1.190872824 | J40: =H40/'- 7 -'!$E40 -> 155.3460158
A41: SUNRISE | B41: 72444 | C41: =B41/'- 3 -'!$D41*100 -> 0.1111772705 | D41: =B41/'- 7 -'!$C41 -> 16.29786277 | E41: 542795 | F41: =E41/'- 3 -'!$D41*100 -> 0.8330084831 | G41: =E41/'- 7 -'!$E41 -> 122.1136108 | H41: 653839 | I41: =H41/'- 3 -'!$D41*100 -> 1.003423822 | J41: =H41/'- 7 -'!$E41 -> 147.0953881
A42: SWAN VALLEY | B42: 19066 | C42: =B42/'- 3 -'!$D42*100 -> 0.08960748669 | D42: =B42/'- 7 -'!$C42 -> 13.85107156 | E42: 0 | F42: =E42/'- 3 -'!$D42*100 -> 0 | G42: =E42/'- 7 -'!$E42 -> 0 | H42: 308385 | I42: =H42/'- 3 -'!$D42*100 -> 1.449365613 | J42: =H42/'- 7 -'!$E42 -> 224.0355975
A43: TURTLE MOUNTAIN | B43: 0 | C43: =B43/'- 3 -'!$D43*100 -> 0 | D43: =B43/'- 7 -'!$C43 -> 0 | E43: 74920 | F43: =E43/'- 3 -'!$D43*100 -> 0.5403360267 | G43: =E43/'- 7 -'!$E43 -> 75.33433886 | H43: 225293 | I43: =H43/'- 3 -'!$D43*100 -> 1.624852168 | J43: =H43/'- 7 -'!$E43 -> 226.5389643
A44: TURTLE RIVER | B44: 0 | C44: =B44/'- 3 -'!$D44*100 -> 0 | D44: =B44/'- 7 -'!$C44 -> 0 | E44: 0 | F44: =E44/'- 3 -'!$D44*100 -> 0 | G44: =E44/'- 7 -'!$E44 -> 0 | H44: 134775 | I44: =H44/'- 3 -'!$D44*100 -> 1.184832665 | J44: =H44/'- 7 -'!$E44 -> 192.6733381
A45: WESTERN | B45: 0 | C45: =B45/'- 3 -'!$D45*100 -> 0 | D45: =B45/'- 7 -'!$C45 -> 0 | E45: 0 | F45: =E45/'- 3 -'!$D45*100 -> 0 | G45: =E45/'- 7 -'!$E45 -> 0 | H45: 239730 | I45: =H45/'- 3 -'!$D45*100 -> 1.125907588 | J45: =H45/'- 7 -'!$E45 -> 128.541555
A46: WINNIPEG | B46: 688500 | C46: =B46/'- 3 -'!$D46*100 -> 0.1667672074 | D46: =B46/'- 7 -'!$C46 -> 22.82257396 | E46: 823300 | F46: =E46/'- 3 -'!$D46*100 -> 0.1994182162 | G46: =E46/'- 7 -'!$E46 -> 27.29095881 | H46: 2065500 | I46: =H46/'- 3 -'!$D46*100 -> 0.5003016222 | J46: =H46/'- 7 -'!$E46 -> 68.46772189
A48: PROVINCE | B48: =SUM(B11:B46) -> 2799784 | C48: =B48/'- 3 -'!$D48*100 -> 0.1144298149 | D48: =B48/'- 7 -'!$C48 -> 15.51210575 | E48: =SUM(E11:E46) -> 14222235 | F48: =E48/'- 3 -'!$D48*100 -> 0.5812761694 | G48: =E48/'- 7 -'!$E48 -> 78.79779773 | H48: =SUM(H11:H46) -> 32450821 | I48: =H48/'- 3 -'!$D48*100 -> 1.326295686 | J48: =H48/'- 7 -'!$E48 -> 179.7926437
A50: WHITESHELL | B50: 0 | C50: =B50/'- 3 -'!$D50*100 -> 0 | D50: =B50/'- 7 -'!$C50 -> 0 | E50: 0 | F50: =E50/'- 3 -'!$D50*100 -> 0 | G50: =E50/'- 7 -'!$E50 -> 0 | H50: 17800 | I50: =H50/'- 3 -'!$D50*100 -> 0.4926998763 | J50: =H50/'- 7 -'!$E50 -> 106.2686567
A51: MITT | B51: 0 | C51: =B51/'- 3 -'!$D51*100 -> 0 | D51: =B51/'- 7 -'!$C51 -> 0 | E51: 874917 | F51: =E51/'- 3 -'!$D51*100 -> 2.634386955 | G51: =E51/'- 7 -'!$E51 -> 623.1602564 | H51: 0 | I51: =H51/'- 3 -'!$D51*100 -> 0 | J51: =H51/'- 7 -'!$E51 -> 0

Sheet - 28 -
B2: =AEXP_BP -> ANALYSIS OF EXPENSE BY PROGRAM | G2: PAGE 11 OF 16
B3: =OPYEAR -> OPERATING FUND 2019/2020 BUDGET
B5: FUNCTION 600: INSTRUCTIONAL & OTHER SUPPORT SERVICES (CONT'D)
B6: PROFESSIONAL AND STAFF DEVELOPMENT
E7: OTHER (1)
D8: PER PUPIL | G8: PER PUPIL
A9: DIVISION / DISTRICT | B9: AMOUNT | C9: % | E9: AMOUNT | F9: %
A11: BEAUTIFUL PLAINS | B11: 171404 | C11: =B11/'- 3 -'!$D11*100 -> 0.8232972902 | D11: =B11/'- 7 -'!$E11 -> 95.14515681 | E11: 9949 | F11: =E11/'- 3 -'!$D11*100 -> 0.04778759387 | G11: =E11/'- 7 -'!$E11 -> 5.522620039
A12: BORDER LAND | B12: 465192 | C12: =B12/'- 3 -'!$D12*100 -> 1.334640493 | D12: =B12/'- 7 -'!$E12 -> 217.5258118 | E12: 159357 | F12: =E12/'- 3 -'!$D12*100 -> 0.457196824 | G12: =E12/'- 7 -'!$E12 -> 74.51602948
A13: BRANDON | B13: 1593500 | C13: =B13/'- 3 -'!$D13*100 -> 1.507688407 | D13: =B13/'- 7 -'!$E13 -> 183.720528 | E13: 124800 | F13: =E13/'- 3 -'!$D13*100 -> 0.1180793933 | G13: =E13/'- 7 -'!$E13 -> 14.3886551
A14: DSFM | B14: 394622 | C14: =B14/'- 3 -'!$D14*100 -> 0.4131998062 | D14: =B14/'- 7 -'!$E14 -> 68.29733472 | E14: 156139 | F14: =E14/'- 3 -'!$D14*100 -> 0.1634896294 | G14: =E14/'- 7 -'!$E14 -> 27.02301835
A15: EVERGREEN | B15: 166906 | C15: =B15/'- 3 -'!$D15*100 -> 0.7939959131 | D15: =B15/'- 7 -'!$E15 -> 119.0485021 | E15: 3700 | F15: =E15/'- 3 -'!$D15*100 -> 0.01760143361 | G15: =E15/'- 7 -'!$E15 -> 2.639087019
A16: FLIN FLON | B16: 96839 | C16: =B16/'- 3 -'!$D16*100 -> 0.6493465564 | D16: =B16/'- 7 -'!$E16 -> 103.0750399 | E16: 43654 | F16: =E16/'- 3 -'!$D16*100 -> 0.2927185801 | G16: =E16/'- 7 -'!$E16 -> 46.46514103
A17: FORT LA BOSSE | B17: 108240 | C17: =B17/'- 3 -'!$D17*100 -> 0.5776772879 | D17: =B17/'- 7 -'!$E17 -> 75.2973913 | E17: 1500 | F17: =E17/'- 3 -'!$D17*100 -> 0.008005505653 | G17: =E17/'- 7 -'!$E17 -> 1.043478261
A18: FRONTIER | B18: 834677 | C18: =B18/'- 3 -'!$D18*100 -> 0.6118534609 | D18: =B18/'- 7 -'!$E18 -> 135.4841171 | E18: 1795131 | F18: =E18/'- 3 -'!$D18*100 -> 1.31590677 | G18: =E18/'- 7 -'!$E18 -> 291.3842583
A19: GARDEN VALLEY | B19: 630600 | C19: =B19/'- 3 -'!$D19*100 -> 1.236216073 | D19: =B19/'- 7 -'!$E19 -> 145.1657459 | E19: 284100 | F19: =E19/'- 3 -'!$D19*100 -> 0.5569441586 | G19: =E19/'- 7 -'!$E19 -> 65.40055249
A20: HANOVER | B20: 1005500 | C20: =B20/'- 3 -'!$D20*100 -> 1.128631432 | D20: =B20/'- 7 -'!$E20 -> 126.6133602 | E20: 191100 | F20: =E20/'- 3 -'!$D20*100 -> 0.2145017073 | G20: =E20/'- 7 -'!$E20 -> 24.06346408
A21: INTERLAKE | B21: 430746 | C21: =B21/'- 3 -'!$D21*100 -> 1.140369316 | D21: =B21/'- 7 -'!$E21 -> 153.0724947 | E21: 118898 | F21: =E21/'- 3 -'!$D21*100 -> 0.3147739758 | G21: =E21/'- 7 -'!$E21 -> 42.25230988
A22: KELSEY | B22: 198593 | C22: =B22/'- 3 -'!$D22*100 -> 0.9668992338 | D22: =B22/'- 7 -'!$E22 -> 139.1486827 | E22: 10000 | F22: =E22/'- 3 -'!$D22*100 -> 0.0486874781 | G22: =E22/'- 7 -'!$E22 -> 7.006726457
A23: LAKESHORE | B23: 212000 | C23: =B23/'- 3 -'!$D23*100 -> 1.294219892 | D23: =B23/'- 7 -'!$E23 -> 223.9830956 | E23: 7000 | F23: =E23/'- 3 -'!$D23*100 -> 0.04273367567 | G23: =E23/'- 7 -'!$E23 -> 7.395668251
A24: LORD SELKIRK | B24: 598440 | C24: =B24/'- 3 -'!$D24*100 -> 1.021770242 | D24: =B24/'- 7 -'!$E24 -> 157.6916996 | E24: 240060 | F24: =E24/'- 3 -'!$D24*100 -> 0.4098759513 | G24: =E24/'- 7 -'!$E24 -> 63.256917
A25: LOUIS RIEL | B25: 1337557 | C25: =B25/'- 3 -'!$D25*100 -> 0.6951941212 | D25: =B25/'- 7 -'!$E25 -> 89.61855946 | E25: 467398 | F25: =E25/'- 3 -'!$D25*100 -> 0.2429297158 | G25: =E25/'- 7 -'!$E25 -> 31.31644891
A26: MOUNTAIN VIEW | B26: 352849 | C26: =B26/'- 3 -'!$D26*100 -> 0.8528518155 | D26: =B26/'- 7 -'!$E26 -> 117.3425341 | E26: 287233 | F26: =E26/'- 3 -'!$D26*100 -> 0.6942550086 | G26: =E26/'- 7 -'!$E26 -> 95.52144995
A27: MYSTERY LAKE | B27: 215400 | C27: =B27/'- 3 -'!$D27*100 -> 0.5134668603 | D27: =B27/'- 7 -'!$E27 -> 72.08835341 | E27: 29000 | F27: =E27/'- 3 -'!$D27*100 -> 0.06912970728 | G27: =E27/'- 7 -'!$E27 -> 9.705488621
A28: PARK WEST | B28: 308625 | C28: =B28/'- 3 -'!$D28*100 -> 1.071980806 | D28: =B28/'- 7 -'!$E28 -> 153.812609 | E28: 0 | F28: =E28/'- 3 -'!$D28*100 -> 0 | G28: =E28/'- 7 -'!$E28 -> 0
A29: PEMBINA TRAILS | B29: 1761200 | C29: =B29/'- 3 -'!$D29*100 -> 1.004781234 | D29: =B29/'- 7 -'!$E29 -> 127.0248828 | E29: 570689 | F29: =E29/'- 3 -'!$D29*100 -> 0.3255834646 | G29: =E29/'- 7 -'!$E29 -> 41.16040389
A30: PINE CREEK | B30: 166970 | C30: =B30/'- 3 -'!$D30*100 -> 1.083483096 | D30: =B30/'- 7 -'!$E30 -> 158.6413302 | E30: 8542 | F30: =E30/'- 3 -'!$D30*100 -> 0.05542979342 | G30: =E30/'- 7 -'!$E30 -> 8.115914489
A31: PORTAGE LA PRAIRIE | B31: 392075 | C31: =B31/'- 3 -'!$D31*100 -> 0.9821643021 | D31: =B31/'- 7 -'!$E31 -> 117.5108647 | E31: 394456 | F31: =E31/'- 3 -'!$D31*100 -> 0.9881288068 | G31: =E31/'- 7 -'!$E31 -> 118.2244867
A32: PRAIRIE ROSE | B32: 469531 | C32: =B32/'- 3 -'!$D32*100 -> 1.502292244 | D32: =B32/'- 7 -'!$E32 -> 210.4104862 | E32: 1836 | F32: =E32/'- 3 -'!$D32*100 -> 0.005874390744 | G32: =E32/'- 7 -'!$E32 -> 0.8227649563
A33: PRAIRIE SPIRIT | B33: 216550 | C33: =B33/'- 3 -'!$D33*100 -> 0.7577249455 | D33: =B33/'- 7 -'!$E33 -> 106.8485716 | E33: 14375 | F33: =E33/'- 3 -'!$D33*100 -> 0.05029922 | G33: =E33/'- 7 -'!$E33 -> 7.092810974
A34: RED RIVER VALLEY | B34: 333530 | C34: =B34/'- 3 -'!$D34*100 -> 1.053337375 | D34: =B34/'- 7 -'!$E34 -> 149.3640842 | E34: 71302 | F34: =E34/'- 3 -'!$D34*100 -> 0.225182327 | G34: =E34/'- 7 -'!$E34 -> 31.93103448
A35: RIVER EAST TRANSCONA | B35: 2347247 | C35: =B35/'- 3 -'!$D35*100 -> 1.209537555 | D35: =B35/'- 7 -'!$E35 -> 144.1355235 | E35: 410000 | F35: =E35/'- 3 -'!$D35*100 -> 0.2112732054 | G35: =E35/'- 7 -'!$E35 -> 25.17654283
A36: ROLLING RIVER | B36: 156500 | C36: =B36/'- 3 -'!$D36*100 -> 0.6474987722 | D36: =B36/'- 7 -'!$E36 -> 91.06779168 | E36: 20400 | F36: =E36/'- 3 -'!$D36*100 -> 0.08440239587 | G36: =E36/'- 7 -'!$E36 -> 11.87081757
A37: SEINE RIVER | B37: 420082 | C37: =B37/'- 3 -'!$D37*100 -> 0.7762104672 | D37: =B37/'- 7 -'!$E37 -> 96.8600415 | E37: 86500 | F37: =E37/'- 3 -'!$D37*100 -> 0.1598311887 | G37: =E37/'- 7 -'!$E37 -> 19.94466221
A38: SEVEN OAKS | B38: 1192240 | C38: =B38/'- 3 -'!$D38*100 -> 0.8044874888 | D38: =B38/'- 7 -'!$E38 -> 103.9478273 | E38: 2248030 | F38: =E38/'- 3 -'!$D38*100 -> 1.516902645 | G38: =E38/'- 7 -'!$E38 -> 195.9989886
A39: SOUTHWEST HORIZON | B39: 95350 | C39: =B39/'- 3 -'!$D39*100 -> 0.4077766231 | D39: =B39/'- 7 -'!$E39 -> 63.43978709 | E39: 36900 | F39: =E39/'- 3 -'!$D39*100 -> 0.1578076287 | G39: =E39/'- 7 -'!$E39 -> 24.5508982
A40: ST. JAMES-ASSINIBOIA | B40: 1843075 | C40: =B40/'- 3 -'!$D40*100 -> 1.690463923 | D40: =B40/'- 7 -'!$E40 -> 220.5162718 | E40: 313472 | F40: =E40/'- 3 -'!$D40*100 -> 0.2875157587 | G40: =E40/'- 7 -'!$E40 -> 37.50562335
A41: SUNRISE | B41: 437663 | C41: =B41/'- 3 -'!$D41*100 -> 0.6716660834 | D41: =B41/'- 7 -'!$E41 -> 98.46186727 | E41: 29756 | F41: =E41/'- 3 -'!$D41*100 -> 0.04566549144 | G41: =E41/'- 7 -'!$E41 -> 6.694263217
A42: SWAN VALLEY | B42: 132650 | C42: =B42/'- 3 -'!$D42*100 -> 0.6234361224 | D42: =B42/'- 7 -'!$E42 -> 96.36759898 | E42: 54686 | F42: =E42/'- 3 -'!$D42*100 -> 0.2570164175 | G42: =E42/'- 7 -'!$E42 -> 39.7282964
A43: TURTLE MOUNTAIN | B43: 132632 | C43: =B43/'- 3 -'!$D43*100 -> 0.9565649745 | D43: =B43/'- 7 -'!$E43 -> 133.3655103 | E43: 17775 | F43: =E43/'- 3 -'!$D43*100 -> 0.1281963811 | G43: =E43/'- 7 -'!$E43 -> 17.87330317
A44: TURTLE RIVER | B44: 31915 | C44: =B44/'- 3 -'!$D44*100 -> 0.2805708366 | D44: =B44/'- 7 -'!$E44 -> 45.62544675 | E44: 80000 | F44: =E44/'- 3 -'!$D44*100 -> 0.7032952194 | G44: =E44/'- 7 -'!$E44 -> 114.3674053
A45: WESTERN | B45: 117792 | C45: =B45/'- 3 -'!$D45*100 -> 0.5532178141 | D45: =B45/'- 7 -'!$E45 -> 63.15924933 | E45: 194605 | F45: =E45/'- 3 -'!$D45*100 -> 0.9139750808 | G45: =E45/'- 7 -'!$E45 -> 104.3458445
A46: WINNIPEG | B46: 3912340 | C46: =B46/'- 3 -'!$D46*100 -> 0.9476398201 | D46: =B46/'- 7 -'!$E46 -> 129.6872462 | E46: 2847986 | F46: =E46/'- 3 -'!$D46*100 -> 0.6898339461 | G46: =E46/'- 7 -'!$E46 -> 94.4057678
A48: PROVINCE | B48: =SUM(B11:B46) -> 23281032 | C48: =B48/'- 3 -'!$D48*100 -> 0.9515177538 | D48: =B48/'- 7 -'!$E48 -> 128.987747 | E48: =SUM(E11:E46) -> 11330329 | F48: =E48/'- 3 -'!$D48*100 -> 0.4630812414 | G48: =E48/'- 7 -'!$E48 -> 62.77529325
A50: WHITESHELL | B50: 45500 | C50: =B50/'- 3 -'!$D50*100 -> 1.259429459 | D50: =B50/'- 7 -'!$E50 -> 271.641791 | E50: 71600 | F50: =E50/'- 3 -'!$D50*100 -> 1.981871413 | G50: =E50/'- 7 -'!$E50 -> 427.4626866
A51: MITT | B51: 0 | C51: =B51/'- 3 -'!$D51*100 -> 0 | D51: =B51/'- 7 -'!$E51 -> 0 | E51: 75700 | F51: =E51/'- 3 -'!$D51*100 -> 0.2279337269 | G51: =E51/'- 7 -'!$E51 -> 53.91737892
A53: (1) Includes food services, health services, and other activities related to instructional and other support not included in previous programs.

Sheet - 29 -
B2: =AEXP_BP -> ANALYSIS OF EXPENSE BY PROGRAM | G2: PAGE 12 OF 16
B3: =OPYEAR -> OPERATING FUND 2019/2020 BUDGET
B6: FUNCTION 700: TRANSPORTATION OF PUPILS
F7: ALLOWANCES IN LIEU OF TRANSPORTATION
B8: ADMINISTRATION | D8: REGULAR
A9: DIVISION / DISTRICT | B9: AMOUNT | C9: % | D9: AMOUNT | E9: % | F9: AMOUNT | G9: %
A11: BEAUTIFUL PLAINS | B11: 88229 | C11: =B11/'- 3 -'!$D11*100 -> 0.423786473 | D11: 1099568 | E11: =D11/'- 3 -'!$D11*100 -> 5.281506585 | F11: 15500 | G11: =F11/'- 3 -'!$D11*100 -> 0.07445046789
A12: BORDER LAND | B12: 141671 | C12: =B12/'- 3 -'!$D12*100 -> 0.4064555135 | D12: 2163716 | E12: =D12/'- 3 -'!$D12*100 -> 6.207722807 | F12: 0 | G12: =F12/'- 3 -'!$D12*100 -> 0
A13: BRANDON | B13: 219100 | C13: =B13/'- 3 -'!$D13*100 -> 0.2073012425 | D13: 2354800 | E13: =D13/'- 3 -'!$D13*100 -> 2.227991628 | F13: 0 | G13: =F13/'- 3 -'!$D13*100 -> 0
A14: DSFM | B14: 276837 | C14: =B14/'- 3 -'!$D14*100 -> 0.2898697862 | D14: 9271812 | E14: =D14/'- 3 -'!$D14*100 -> 9.708305472 | F14: 238812 | G14: =F14/'- 3 -'!$D14*100 -> 0.2500546653
A15: EVERGREEN | B15: 179100 | C15: =B15/'- 3 -'!$D15*100 -> 0.8520045298 | D15: 1493000 | E15: =D15/'- 3 -'!$D15*100 -> 7.10241632 | F15: 0 | G15: =F15/'- 3 -'!$D15*100 -> 0
A16: FLIN FLON | B16: 0 | C16: =B16/'- 3 -'!$D16*100 -> 0 | D16: 375901 | E16: =D16/'- 3 -'!$D16*100 -> 2.520575594 | F16: 375 | G16: =F16/'- 3 -'!$D16*100 -> 0.002514534007
A17: FORT LA BOSSE | B17: 62230 | C17: =B17/'- 3 -'!$D17*100 -> 0.3321217445 | D17: 1320950 | E17: =D17/'- 3 -'!$D17*100 -> 7.049915128 | F17: 1500 | G17: =F17/'- 3 -'!$D17*100 -> 0.008005505653
A18: FRONTIER | B18: 361582 | C18: =B18/'- 3 -'!$D18*100 -> 0.2650548633 | D18: 7751802 | E18: =D18/'- 3 -'!$D18*100 -> 5.68239796 | F18: 104095 | G18: =F18/'- 3 -'!$D18*100 -> 0.07630602738
A19: GARDEN VALLEY | B19: 154100 | C19: =B19/'- 3 -'!$D19*100 -> 0.3020946668 | D19: 2719500 | E19: =D19/'- 3 -'!$D19*100 -> 5.33125533 | F19: 30000 | G19: =F19/'- 3 -'!$D19*100 -> 0.05881142118
A20: HANOVER | B20: 306900 | C20: =B20/'- 3 -'!$D20*100 -> 0.3444823336 | D20: 3544500 | E20: =D20/'- 3 -'!$D20*100 -> 3.978552074 | F20: 3700 | G20: =F20/'- 3 -'!$D20*100 -> 0.00415309428
A21: INTERLAKE | B21: 160000 | C21: =B21/'- 3 -'!$D21*100 -> 0.4235885896 | D21: 1998000 | E21: =D21/'- 3 -'!$D21*100 -> 5.289562512 | F21: 2000 | G21: =F21/'- 3 -'!$D21*100 -> 0.00529485737
A22: KELSEY | B22: 99835 | C22: =B22/'- 3 -'!$D22*100 -> 0.4860714376 | D22: 482149 | E22: =D22/'- 3 -'!$D22*100 -> 2.347461888 | F22: 15000 | G22: =F22/'- 3 -'!$D22*100 -> 0.07303121715
A23: LAKESHORE | B23: 97025 | C23: =B23/'- 3 -'!$D23*100 -> 0.5923192689 | D23: 1605890 | E23: =D23/'- 3 -'!$D23*100 -> 9.803654633 | F23: 4500 | G23: =F23/'- 3 -'!$D23*100 -> 0.02747164865
A24: LORD SELKIRK | B24: 204405 | C24: =B24/'- 3 -'!$D24*100 -> 0.3489989745 | D24: 2451785 | E24: =D24/'- 3 -'!$D24*100 -> 4.186152251 | F24: 5000 | G24: =F24/'- 3 -'!$D24*100 -> 0.008536948082
A25: LOUIS RIEL | B25: 383057 | C25: =B25/'- 3 -'!$D25*100 -> 0.1990935523 | D25: 4157684 | E25: =D25/'- 3 -'!$D25*100 -> 2.160952748 | F25: 10000 | G25: =F25/'- 3 -'!$D25*100 -> 0.005197491555
A26: MOUNTAIN VIEW | B26: 250639 | C26: =B26/'- 3 -'!$D26*100 -> 0.6058056738 | D26: 2470626 | E26: =D26/'- 3 -'!$D26*100 -> 5.97161355 | F26: 10500 | G26: =F26/'- 3 -'!$D26*100 -> 0.02537896965
A27: MYSTERY LAKE | B27: 0 | C27: =B27/'- 3 -'!$D27*100 -> 0 | D27: 0 | E27: =D27/'- 3 -'!$D27*100 -> 0 | F27: 235000 | G27: =F27/'- 3 -'!$D27*100 -> 0.5601890073
A28: PARK WEST | B28: 58455 | C28: =B28/'- 3 -'!$D28*100 -> 0.2030381143 | D28: 1765944 | E28: =D28/'- 3 -'!$D28*100 -> 6.133845518 | F28: 4500 | G28: =F28/'- 3 -'!$D28*100 -> 0.01563033982
A29: PEMBINA TRAILS | B29: 194142 | C29: =B29/'- 3 -'!$D29*100 -> 0.1107598446 | D29: 3162331 | E29: =D29/'- 3 -'!$D29*100 -> 1.804139703 | F29: 100000 | G29: =F29/'- 3 -'!$D29*100 -> 0.05705094449
A30: PINE CREEK | B30: 91075 | C30: =B30/'- 3 -'!$D30*100 -> 0.5909937293 | D30: 1044157 | E30: =D30/'- 3 -'!$D30*100 -> 6.775627114 | F30: 0 | G30: =F30/'- 3 -'!$D30*100 -> 0
A31: PORTAGE LA PRAIRIE | B31: 92815 | C31: =B31/'- 3 -'!$D31*100 -> 0.2325054637 | D31: 1033243 | E31: =D31/'- 3 -'!$D31*100 -> 2.588317006 | F31: 5000 | G31: =F31/'- 3 -'!$D31*100 -> 0.01252520949
A32: PRAIRIE ROSE | B32: 158570 | C32: =B32/'- 3 -'!$D32*100 -> 0.5073541069 | D32: 2109548 | E32: =D32/'- 3 -'!$D32*100 -> 6.749623772 | F32: 0 | G32: =F32/'- 3 -'!$D32*100 -> 0
A33: PRAIRIE SPIRIT | B33: 119900 | C33: =B33/'- 3 -'!$D33*100 -> 0.4195392333 | D33: 2252825 | E33: =D33/'- 3 -'!$D33*100 -> 7.882806281 | F33: 0 | G33: =F33/'- 3 -'!$D33*100 -> 0
A34: RED RIVER VALLEY | B34: 155992 | C34: =B34/'- 3 -'!$D34*100 -> 0.4926459505 | D34: 2471010 | E34: =D34/'- 3 -'!$D34*100 -> 7.803817311 | F34: 0 | G34: =F34/'- 3 -'!$D34*100 -> 0
A35: RIVER EAST TRANSCONA | B35: 389432 | C35: =B35/'- 3 -'!$D35*100 -> 0.2006745047 | D35: 4257000 | E35: =D35/'- 3 -'!$D35*100 -> 2.193634232 | F35: 30700 | G35: =F35/'- 3 -'!$D35*100 -> 0.01581972538
A36: ROLLING RIVER | B36: 56440 | C36: =B36/'- 3 -'!$D36*100 -> 0.2335132952 | D36: 1629550 | E36: =D36/'- 3 -'!$D36*100 -> 6.742055107 | F36: 11000 | G36: =F36/'- 3 -'!$D36*100 -> 0.04551109581
A37: SEINE RIVER | B37: 272500 | C37: =B37/'- 3 -'!$D37*100 -> 0.5035144384 | D37: 3103500 | E37: =D37/'- 3 -'!$D37*100 -> 5.734521319 | F37: 2000 | G37: =F37/'- 3 -'!$D37*100 -> 0.003695518814
A38: SEVEN OAKS | B38: 309700 | C38: =B38/'- 3 -'!$D38*100 -> 0.2089761921 | D38: 3045690 | E38: =D38/'- 3 -'!$D38*100 -> 2.055139485 | F38: 0 | G38: =F38/'- 3 -'!$D38*100 -> 0
A39: SOUTHWEST HORIZON | B39: 100000 | C39: =B39/'- 3 -'!$D39*100 -> 0.4276629503 | D39: 2118200 | E39: =D39/'- 3 -'!$D39*100 -> 9.058756613 | F39: 1000 | G39: =F39/'- 3 -'!$D39*100 -> 0.004276629503
A40: ST. JAMES-ASSINIBOIA | B40: 145983 | C40: =B40/'- 3 -'!$D40*100 -> 0.1338952538 | D40: 1998280 | E40: =D40/'- 3 -'!$D40*100 -> 1.832817573 | F40: 5200 | G40: =F40/'- 3 -'!$D40*100 -> 0.004769427398
A41: SUNRISE | B41: 460452 | C41: =B41/'- 3 -'!$D41*100 -> 0.7066395639 | D41: 4679185 | E41: =D41/'- 3 -'!$D41*100 -> 7.1809814 | F41: 8000 | G41: =F41/'- 3 -'!$D41*100 -> 0.01227731992
A42: SWAN VALLEY | B42: 126153 | C42: =B42/'- 3 -'!$D42*100 -> 0.592901147 | D42: 1687299 | E42: =D42/'- 3 -'!$D42*100 -> 7.930065178 | F42: 0 | G42: =F42/'- 3 -'!$D42*100 -> 0
A43: TURTLE MOUNTAIN | B43: 89583 | C43: =B43/'- 3 -'!$D43*100 -> 0.6460881244 | D43: 1103513 | E43: =D43/'- 3 -'!$D43*100 -> 7.95872704 | F43: 0 | G43: =F43/'- 3 -'!$D43*100 -> 0
A44: TURTLE RIVER | B44: 32404 | C44: =B44/'- 3 -'!$D44*100 -> 0.2848697286 | D44: 1146350 | E44: =D44/'- 3 -'!$D44*100 -> 10.07778093 | F44: 0 | G44: =F44/'- 3 -'!$D44*100 -> 0
A45: WESTERN | B45: 50862 | C45: =B45/'- 3 -'!$D45*100 -> 0.2388767018 | D45: 767674 | E45: =D45/'- 3 -'!$D45*100 -> 3.605431033 | F45: 18000 | G45: =F45/'- 3 -'!$D45*100 -> 0.08453817453
A46: WINNIPEG | B46: 658700 | C46: =B46/'- 3 -'!$D46*100 -> 0.159549106 | D46: 6253300 | E46: =D46/'- 3 -'!$D46*100 -> 1.514662858 | F46: 0 | G46: =F46/'- 3 -'!$D46*100 -> 0
A48: PROVINCE | B48: =SUM(B11:B46) -> 6547868 | C48: =B48/'- 3 -'!$D48*100 -> 0.267617546 | D48: =SUM(D11:D46) -> 90890282 | E48: =D48/'- 3 -'!$D48*100 -> 3.71477162 | F48: =SUM(F11:F46) -> 861382 | G48: =F48/'- 3 -'!$D48*100 -> 0.03520549543
A50: WHITESHELL | B50: 0 | C50: =B50/'- 3 -'!$D50*100 -> 0 | D50: 0 | E50: =D50/'- 3 -'!$D50*100 -> 0 | F50: 15000 | G50: =F50/'- 3 -'!$D50*100 -> 0.415196525
A51: MITT | B51: 0 | C51: =B51/'- 3 -'!$D51*100 -> 0 | D51: 0 | E51: =D51/'- 3 -'!$D51*100 -> 0 | F51: 0 | G51: =F51/'- 3 -'!$D51*100 -> 0

Sheet - 30 -
B2: =AEXP_BP -> ANALYSIS OF EXPENSE BY PROGRAM | F2: PAGE 13 OF 16
B3: =OPYEAR -> OPERATING FUND 2019/2020 BUDGET
B6: FUNCTION 700: TRANSPORTATION (CONT'D)
B7: BOARDING OF STUDENTS | D7: FIELD TRIPS AND OTHER
A9: DIVISION / DISTRICT | B9: AMOUNT | C9: % | D9: AMOUNT | E9: %
A11: BEAUTIFUL PLAINS | B11: 0 | C11: =B11/'- 3 -'!$D11*100 -> 0 | D11: 140000 | E11: =D11/'- 3 -'!$D11*100 -> 0.672455839
A12: BORDER LAND | B12: 0 | C12: =B12/'- 3 -'!$D12*100 -> 0 | D12: 212500 | E12: =D12/'- 3 -'!$D12*100 -> 0.6096646216
A13: BRANDON | B13: 0 | C13: =B13/'- 3 -'!$D13*100 -> 0 | D13: 79400 | E13: =D13/'- 3 -'!$D13*100 -> 0.07512422936
A14: DSFM | B14: 0 | C14: =B14/'- 3 -'!$D14*100 -> 0 | D14: 3215 | E14: =D14/'- 3 -'!$D14*100 -> 0.003366354073
A15: EVERGREEN | B15: 0 | C15: =B15/'- 3 -'!$D15*100 -> 0 | D15: 100000 | E15: =D15/'- 3 -'!$D15*100 -> 0.475714422
A16: FLIN FLON | B16: 0 | C16: =B16/'- 3 -'!$D16*100 -> 0 | D16: 190165 | E16: =D16/'- 3 -'!$D16*100 -> 1.275136958
A17: FORT LA BOSSE | B17: 0 | C17: =B17/'- 3 -'!$D17*100 -> 0 | D17: 36750 | E17: =D17/'- 3 -'!$D17*100 -> 0.1961348885
A18: FRONTIER | B18: 2474602 | C18: =B18/'- 3 -'!$D18*100 -> 1.813987684 | D18: 1090499 | E18: =D18/'- 3 -'!$D18*100 -> 0.7993817815
A19: GARDEN VALLEY | B19: 0 | C19: =B19/'- 3 -'!$D19*100 -> 0 | D19: 291500 | E19: =D19/'- 3 -'!$D19*100 -> 0.5714509758
A20: HANOVER | B20: 0 | C20: =B20/'- 3 -'!$D20*100 -> 0 | D20: 414300 | E20: =D20/'- 3 -'!$D20*100 -> 0.4650343135
A21: INTERLAKE | B21: 0 | C21: =B21/'- 3 -'!$D21*100 -> 0 | D21: 140000 | E21: =D21/'- 3 -'!$D21*100 -> 0.3706400159
A22: KELSEY | B22: 0 | C22: =B22/'- 3 -'!$D22*100 -> 0 | D22: 55950 | E22: =D22/'- 3 -'!$D22*100 -> 0.27240644
A23: LAKESHORE | B23: 0 | C23: =B23/'- 3 -'!$D23*100 -> 0 | D23: 20000 | E23: =D23/'- 3 -'!$D23*100 -> 0.1220962162
A24: LORD SELKIRK | B24: 0 | C24: =B24/'- 3 -'!$D24*100 -> 0 | D24: 93000 | E24: =D24/'- 3 -'!$D24*100 -> 0.1587872343
A25: LOUIS RIEL | B25: 0 | C25: =B25/'- 3 -'!$D25*100 -> 0 | D25: 79829 | E25: =D25/'- 3 -'!$D25*100 -> 0.04149105534
A26: MOUNTAIN VIEW | B26: 0 | C26: =B26/'- 3 -'!$D26*100 -> 0 | D26: 226156 | E26: =D26/'- 3 -'!$D26*100 -> 0.5466291677
A27: MYSTERY LAKE | B27: 0 | C27: =B27/'- 3 -'!$D27*100 -> 0 | D27: 120000 | E27: =D27/'- 3 -'!$D27*100 -> 0.2860539612
A28: PARK WEST | B28: 6000 | C28: =B28/'- 3 -'!$D28*100 -> 0.0208404531 | D28: 109120 | E28: =D28/'- 3 -'!$D28*100 -> 0.3790183737
A29: PEMBINA TRAILS | B29: 0 | C29: =B29/'- 3 -'!$D29*100 -> 0 | D29: 200000 | E29: =D29/'- 3 -'!$D29*100 -> 0.114101889
A30: PINE CREEK | B30: 0 | C30: =B30/'- 3 -'!$D30*100 -> 0 | D30: 119790 | E30: =D30/'- 3 -'!$D30*100 -> 0.7773279037
A31: PORTAGE LA PRAIRIE | B31: 0 | C31: =B31/'- 3 -'!$D31*100 -> 0 | D31: 44250 | E31: =D31/'- 3 -'!$D31*100 -> 0.110848104
A32: PRAIRIE ROSE | B32: 0 | C32: =B32/'- 3 -'!$D32*100 -> 0 | D32: 142800 | E32: =D32/'- 3 -'!$D32*100 -> 0.4568970579
A33: PRAIRIE SPIRIT | B33: 0 | C33: =B33/'- 3 -'!$D33*100 -> 0 | D33: 78000 | E33: =D33/'- 3 -'!$D33*100 -> 0.2729279416
A34: RED RIVER VALLEY | B34: 0 | C34: =B34/'- 3 -'!$D34*100 -> 0 | D34: 149188 | E34: =D34/'- 3 -'!$D34*100 -> 0.4711579059
A35: RIVER EAST TRANSCONA | B35: 0 | C35: =B35/'- 3 -'!$D35*100 -> 0 | D35: 187508 | E35: =D35/'- 3 -'!$D35*100 -> 0.09662296632
A36: ROLLING RIVER | B36: 0 | C36: =B36/'- 3 -'!$D36*100 -> 0 | D36: 103000 | E36: =D36/'- 3 -'!$D36*100 -> 0.4261493517
A37: SEINE RIVER | B37: 0 | C37: =B37/'- 3 -'!$D37*100 -> 0 | D37: 51071 | E37: =D37/'- 3 -'!$D37*100 -> 0.09436692067
A38: SEVEN OAKS | B38: 0 | C38: =B38/'- 3 -'!$D38*100 -> 0 | D38: 579000 | E38: =D38/'- 3 -'!$D38*100 -> 0.3906916862
A39: SOUTHWEST HORIZON | B39: 0 | C39: =B39/'- 3 -'!$D39*100 -> 0 | D39: 16400 | E39: =D39/'- 3 -'!$D39*100 -> 0.07013672385
A40: ST. JAMES-ASSINIBOIA | B40: 0 | C40: =B40/'- 3 -'!$D40*100 -> 0 | D40: 134569 | E40: =D40/'- 3 -'!$D40*100 -> 0.1234263607
A41: SUNRISE | B41: 0 | C41: =B41/'- 3 -'!$D41*100 -> 0 | D41: 53000 | E41: =D41/'- 3 -'!$D41*100 -> 0.08133724446
A42: SWAN VALLEY | B42: 0 | C42: =B42/'- 3 -'!$D42*100 -> 0 | D42: 91924 | E42: =D42/'- 3 -'!$D42*100 -> 0.4320297181
A43: TURTLE MOUNTAIN | B43: 0 | C43: =B43/'- 3 -'!$D43*100 -> 0 | D43: 54544 | E43: =D43/'- 3 -'!$D43*100 -> 0.3933807827
A44: TURTLE RIVER | B44: 0 | C44: =B44/'- 3 -'!$D44*100 -> 0 | D44: 53905 | E44: =D44/'- 3 -'!$D44*100 -> 0.47388911
A45: WESTERN | B45: 0 | C45: =B45/'- 3 -'!$D45*100 -> 0 | D45: 60425 | E45: =D45/'- 3 -'!$D45*100 -> 0.2837899553
A46: WINNIPEG | B46: 0 | C46: =B46/'- 3 -'!$D46*100 -> 0 | D46: 433500 | E46: =D46/'- 3 -'!$D46*100 -> 0.105001575
A48: PROVINCE | B48: =SUM(B11:B46) -> 2480602 | C48: =B48/'- 3 -'!$D48*100 -> 0.1013845453 | D48: =SUM(D11:D46) -> 5955258 | E48: =D48/'- 3 -'!$D48*100 -> 0.2433970159
A50: WHITESHELL | B50: 0 | C50: =B50/'- 3 -'!$D50*100 -> 0 | D50: 54700 | E50: =D50/'- 3 -'!$D50*100 -> 1.514083328
A51: MITT | B51: 0 | C51: =B51/'- 3 -'!$D51*100 -> 0 | D51: 0 | E51: =D51/'- 3 -'!$D51*100 -> 0

Sheet - 31 -
B2: =AEXP_BP -> ANALYSIS OF EXPENSE BY PROGRAM | G2: PAGE 14 OF 16
B3: =OPYEAR -> OPERATING FUND 2019/2020 BUDGET
B6: FUNCTION 800: OPERATIONS AND MAINTENANCE
D7: SCHOOL BUILDINGS
B8: ADMINISTRATION | D8: MAINTENANCE | F8: REPAIRS
A9: DIVISION / DISTRICT | B9: AMOUNT | C9: % | D9: AMOUNT | E9: % | F9: AMOUNT | G9: %
A11: BEAUTIFUL PLAINS | B11: 78686 | C11: =B11/'- 3 -'!$D11*100 -> 0.377949001 | D11: 1682195 | E11: =D11/'- 3 -'!$D11*100 -> 8.080013215 | F11: 150800 | G11: =F11/'- 3 -'!$D11*100 -> 0.7243310037
A12: BORDER LAND | B12: 136425 | C12: =B12/'- 3 -'!$D12*100 -> 0.3914046871 | D12: 2614418 | E12: =D12/'- 3 -'!$D12*100 -> 7.500791345 | F12: 272900 | G12: =F12/'- 3 -'!$D12*100 -> 0.7829528247
A13: BRANDON | B13: 442900 | C13: =B13/'- 3 -'!$D13*100 -> 0.4190493852 | D13: 7283500 | E13: =D13/'- 3 -'!$D13*100 -> 6.891276128 | F13: 732500 | G13: =F13/'- 3 -'!$D13*100 -> 0.6930541311
A14: DSFM | B14: 361057 | C14: =B14/'- 3 -'!$D14*100 -> 0.3780546509 | D14: 8806758 | E14: =D14/'- 3 -'!$D14*100 -> 9.221357905 | F14: 1020000 | G14: =F14/'- 3 -'!$D14*100 -> 1.068019022
A15: EVERGREEN | B15: 120680 | C15: =B15/'- 3 -'!$D15*100 -> 0.5740921644 | D15: 2168575 | E15: =D15/'- 3 -'!$D15*100 -> 10.31622403 | F15: 248000 | G15: =F15/'- 3 -'!$D15*100 -> 1.179771766
A16: FLIN FLON | B16: 100624 | C16: =B16/'- 3 -'!$D16*100 -> 0.6747265863 | D16: 2034383 | E16: =D16/'- 3 -'!$D16*100 -> 13.64140063 | F16: 100000 | G16: =F16/'- 3 -'!$D16*100 -> 0.6705424017
A17: FORT LA BOSSE | B17: 84560 | C17: =B17/'- 3 -'!$D17*100 -> 0.4512970387 | D17: 1664520 | E17: =D17/'- 3 -'!$D17*100 -> 8.883549513 | F17: 69000 | G17: =F17/'- 3 -'!$D17*100 -> 0.36825326
A18: FRONTIER | B18: 975727 | C18: =B18/'- 3 -'!$D18*100 -> 0.7152490626 | D18: 17694075 | E18: =D18/'- 3 -'!$D18*100 -> 12.97050359 | F18: 2079290 | G18: =F18/'- 3 -'!$D18*100 -> 1.524207307
A19: GARDEN VALLEY | B19: 130300 | C19: =B19/'- 3 -'!$D19*100 -> 0.255437606 | D19: 4373200 | E19: =D19/'- 3 -'!$D19*100 -> 8.573136903 | F19: 101000 | G19: =F19/'- 3 -'!$D19*100 -> 0.1979984513
A20: HANOVER | B20: 212100 | C20: =B20/'- 3 -'!$D20*100 -> 0.2380733234 | D20: 7848000 | E20: =D20/'- 3 -'!$D20*100 -> 8.809049705 | F20: 867000 | G20: =F20/'- 3 -'!$D20*100 -> 0.973171011
A21: INTERLAKE | B21: 161000 | C21: =B21/'- 3 -'!$D21*100 -> 0.4262360183 | D21: 2848000 | E21: =D21/'- 3 -'!$D21*100 -> 7.539876895 | F21: 350000 | G21: =F21/'- 3 -'!$D21*100 -> 0.9266000397
A22: KELSEY | B22: 94890 | C22: =B22/'- 3 -'!$D22*100 -> 0.4619954797 | D22: 2330869 | E22: =D22/'- 3 -'!$D22*100 -> 11.34841334 | F22: 150000 | G22: =F22/'- 3 -'!$D22*100 -> 0.7303121715
A23: LAKESHORE | B23: 75848 | C23: =B23/'- 3 -'!$D23*100 -> 0.4630376904 | D23: 1395450 | E23: =D23/'- 3 -'!$D23*100 -> 8.518958246 | F23: 140382 | G23: =F23/'- 3 -'!$D23*100 -> 0.8570055512
A24: LORD SELKIRK | B24: 133585 | C24: =B24/'- 3 -'!$D24*100 -> 0.2280816419 | D24: 5451405 | E24: =D24/'- 3 -'!$D24*100 -> 9.307672292 | F24: 555800 | G24: =F24/'- 3 -'!$D24*100 -> 0.9489671488
A25: LOUIS RIEL | B25: 679633 | C25: =B25/'- 3 -'!$D25*100 -> 0.3532386778 | D25: 18154735 | E25: =D25/'- 3 -'!$D25*100 -> 9.435908185 | F25: 431040 | G25: =F25/'- 3 -'!$D25*100 -> 0.224032676
A26: MOUNTAIN VIEW | B26: 180842 | C26: =B26/'- 3 -'!$D26*100 -> 0.4371032028 | D26: 4487504 | E26: =D26/'- 3 -'!$D26*100 -> 10.84649789 | F26: 259700 | G26: =F26/'- 3 -'!$D26*100 -> 0.627706516
A27: MYSTERY LAKE | B27: 209239 | C27: =B27/'- 3 -'!$D27*100 -> 0.4987803732 | D27: 4167113 | E27: =D27/'- 3 -'!$D27*100 -> 9.933493169 | F27: 506000 | G27: =F27/'- 3 -'!$D27*100 -> 1.206194203
A28: PARK WEST | B28: 73225 | C28: =B28/'- 3 -'!$D28*100 -> 0.254340363 | D28: 3006294 | E28: =D28/'- 3 -'!$D28*100 -> 10.44208818 | F28: 156017 | G28: =F28/'- 3 -'!$D28*100 -> 0.5419108285
A29: PEMBINA TRAILS | B29: 1021698 | C29: =B29/'- 3 -'!$D29*100 -> 0.5828883588 | D29: 15765265 | E29: =D29/'- 3 -'!$D29*100 -> 8.994232583 | F29: 2811200 | G29: =F29/'- 3 -'!$D29*100 -> 1.603816151
A30: PINE CREEK | B30: 130566 | C30: =B30/'- 3 -'!$D30*100 -> 0.8472543207 | D30: 1221823 | E30: =D30/'- 3 -'!$D30*100 -> 7.9285175 | F30: 119274 | G30: =F30/'- 3 -'!$D30*100 -> 0.7739795341
A31: PORTAGE LA PRAIRIE | B31: 105725 | C31: =B31/'- 3 -'!$D31*100 -> 0.2648455546 | D31: 3495421 | E31: =D31/'- 3 -'!$D31*100 -> 8.756176056 | F31: 155000 | G31: =F31/'- 3 -'!$D31*100 -> 0.3882814942
A32: PRAIRIE ROSE | B32: 171643 | C32: =B32/'- 3 -'!$D32*100 -> 0.5491819447 | D32: 2521055 | E32: =D32/'- 3 -'!$D32*100 -> 8.066264791 | F32: 236314 | G32: =F32/'- 3 -'!$D32*100 -> 0.7561006396
A33: PRAIRIE SPIRIT | B33: 116700 | C33: =B33/'- 3 -'!$D33*100 -> 0.4083421895 | D33: 2741525 | E33: =D33/'- 3 -'!$D33*100 -> 9.592804808 | F33: 341525 | G33: =F33/'- 3 -'!$D33*100 -> 1.19502199
A34: RED RIVER VALLEY | B34: 127586 | C34: =B34/'- 3 -'!$D34*100 -> 0.4029355751 | D34: 2277437 | E34: =D34/'- 3 -'!$D34*100 -> 7.19248497 | F34: 285742 | G34: =F34/'- 3 -'!$D34*100 -> 0.9024157596
A35: RIVER EAST TRANSCONA | B35: 972290 | C35: =B35/'- 3 -'!$D35*100 -> 0.501021524 | D35: 19688725 | E35: =D35/'- 3 -'!$D35*100 -> 10.14560985 | F35: 662400 | G35: =F35/'- 3 -'!$D35*100 -> 0.3413350518
A36: ROLLING RIVER | B36: 64450 | C36: =B36/'- 3 -'!$D36*100 -> 0.2666536477 | D36: 2542100 | E36: =D36/'- 3 -'!$D36*100 -> 10.51761424 | F36: 110000 | G36: =F36/'- 3 -'!$D36*100 -> 0.4551109581
A37: SEINE RIVER | B37: 123100 | C37: =B37/'- 3 -'!$D37*100 -> 0.227459183 | D37: 4257200 | E37: =D37/'- 3 -'!$D37*100 -> 7.866281347 | F37: 525000 | G37: =F37/'- 3 -'!$D37*100 -> 0.9700736886
A38: SEVEN OAKS | B38: 704830 | C38: =B38/'- 3 -'!$D38*100 -> 0.4755979641 | D38: 11997915 | E38: =D38/'- 3 -'!$D38*100 -> 8.095830125 | F38: 933260 | G38: =F38/'- 3 -'!$D38*100 -> 0.6297356185
A39: SOUTHWEST HORIZON | B39: 88100 | C39: =B39/'- 3 -'!$D39*100 -> 0.3767710592 | D39: 2175100 | E39: =D39/'- 3 -'!$D39*100 -> 9.302096831 | F39: 160000 | G39: =F39/'- 3 -'!$D39*100 -> 0.6842607204
A40: ST. JAMES-ASSINIBOIA | B40: 491611 | C40: =B40/'- 3 -'!$D40*100 -> 0.4509044178 | D40: 8754478 | E40: =D40/'- 3 -'!$D40*100 -> 8.029586006 | F40: 1453613 | G40: =F40/'- 3 -'!$D40*100 -> 1.333250321
A41: SUNRISE | B41: 184986 | C41: =B41/'- 3 -'!$D41*100 -> 0.2838915378 | D41: 5272591 | E41: =D41/'- 3 -'!$D41*100 -> 8.091660813 | F41: 525060 | G41: =F41/'- 3 -'!$D41*100 -> 0.8057911995
A42: SWAN VALLEY | B42: 97686 | C42: =B42/'- 3 -'!$D42*100 -> 0.4591102981 | D42: 1926321 | E42: =D42/'- 3 -'!$D42*100 -> 9.053434562 | F42: 156197 | G42: =F42/'- 3 -'!$D42*100 -> 0.7341036713
A43: TURTLE MOUNTAIN | B43: 39190 | C43: =B43/'- 3 -'!$D43*100 -> 0.2826450732 | D43: 768208 | E43: =D43/'- 3 -'!$D43*100 -> 5.540449258 | F43: 136403 | G43: =F43/'- 3 -'!$D43*100 -> 0.9837620802
A44: TURTLE RIVER | B44: 33654 | C44: =B44/'- 3 -'!$D44*100 -> 0.2958587164 | D44: 1110205 | E44: =D44/'- 3 -'!$D44*100 -> 9.760023363 | F44: 50520 | G44: =F44/'- 3 -'!$D44*100 -> 0.4441309311
A45: WESTERN | B45: 51862 | C45: =B45/'- 3 -'!$D45*100 -> 0.2435732671 | D45: 1689648 | E45: =D45/'- 3 -'!$D45*100 -> 7.935542084 | F45: 138760 | G45: =F45/'- 3 -'!$D45*100 -> 0.6516953943
A46: WINNIPEG | B46: 1176600 | C46: =B46/'- 3 -'!$D46*100 -> 0.2849938943 | D46: 42621507 | E46: =D46/'- 3 -'!$D46*100 -> 10.32370326 | F46: 6479300 | G46: =F46/'- 3 -'!$D46*100 -> 1.569404164
A48: PROVINCE | B48: =SUM(B11:B46) -> 9953598 | C48: =B48/'- 3 -'!$D48*100 -> 0.4068129459 | D48: =SUM(D11:D46) -> 228837518 | E48: =D48/'- 3 -'!$D48*100 -> 9.35280537 | F48: =SUM(F11:F46) -> 23468997 | G48: =F48/'- 3 -'!$D48*100 -> 0.9592000607
A50: WHITESHELL | B50: 28920 | C50: =B50/'- 3 -'!$D50*100 -> 0.8004989001 | D50: 411380 | E50: =D50/'- 3 -'!$D50*100 -> 11.3869031 | F50: 50000 | G50: =F50/'- 3 -'!$D50*100 -> 1.383988417
A51: MITT | B51: 382621 | C51: =B51/'- 3 -'!$D51*100 -> 1.152077021 | D51: 3594783 | E51: =D51/'- 3 -'!$D51*100 -> 10.82394038 | F51: 0 | G51: =F51/'- 3 -'!$D51*100 -> 0

Sheet - 32 -
B2: =AEXP_BP -> ANALYSIS OF EXPENSE BY PROGRAM | F2: PAGE 15 OF 16
B3: =OPYEAR -> OPERATING FUND 2019/2020 BUDGET
B6: FUNCTION 800: (CONT'D)
B8: OTHER BUILDINGS | D8: GROUNDS
A9: DIVISION / DISTRICT | B9: AMOUNT | C9: % | D9: AMOUNT | E9: %
A11: BEAUTIFUL PLAINS | B11: 63579 | C11: =B11/'- 3 -'!$D11*100 -> 0.3053862128 | D11: 34400 | E11: =D11/'- 3 -'!$D11*100 -> 0.1652320062
A12: BORDER LAND | B12: 330860 | C12: =B12/'- 3 -'!$D12*100 -> 0.9492406433 | D12: 107596 | E12: =D12/'- 3 -'!$D12*100 -> 0.3086939983
A13: BRANDON | B13: 269400 | C13: =B13/'- 3 -'!$D13*100 -> 0.2548925364 | D13: 209000 | E13: =D13/'- 3 -'!$D13*100 -> 0.1977451377
A14: DSFM | B14: 392314 | C14: =B14/'- 3 -'!$D14*100 -> 0.4107831514 | D14: 306000 | E14: =D14/'- 3 -'!$D14*100 -> 0.3204057065
A15: EVERGREEN | B15: 108875 | C15: =B15/'- 3 -'!$D15*100 -> 0.5179340769 | D15: 78500 | E15: =D15/'- 3 -'!$D15*100 -> 0.3734358212
A16: FLIN FLON | B16: 20282 | C16: =B16/'- 3 -'!$D16*100 -> 0.1359994099 | D16: 21431 | E16: =D16/'- 3 -'!$D16*100 -> 0.1437039421
A17: FORT LA BOSSE | B17: 103890 | C17: =B17/'- 3 -'!$D17*100 -> 0.5544613215 | D17: 57000 | E17: =D17/'- 3 -'!$D17*100 -> 0.3042092148
A18: FRONTIER | B18: 3457394 | C18: =B18/'- 3 -'!$D18*100 -> 2.53441569 | D18: 66300 | E18: =D18/'- 3 -'!$D18*100 -> 0.04860069758
A19: GARDEN VALLEY | B19: 118300 | C19: =B19/'- 3 -'!$D19*100 -> 0.2319130375 | D19: 60700 | E19: =D19/'- 3 -'!$D19*100 -> 0.1189951089
A20: HANOVER | B20: 201300 | C20: =B20/'- 3 -'!$D20*100 -> 0.225950778 | D20: 450900 | E20: =D20/'- 3 -'!$D20*100 -> 0.5061162732
A21: INTERLAKE | B21: 181000 | C21: =B21/'- 3 -'!$D21*100 -> 0.479184592 | D21: 109000 | E21: =D21/'- 3 -'!$D21*100 -> 0.2885697267
A22: KELSEY | B22: 62305 | C22: =B22/'- 3 -'!$D22*100 -> 0.3033473323 | D22: 30000 | E22: =D22/'- 3 -'!$D22*100 -> 0.1460624343
A23: LAKESHORE | B23: 55200 | C23: =B23/'- 3 -'!$D23*100 -> 0.3369855568 | D23: 12700 | E23: =D23/'- 3 -'!$D23*100 -> 0.0775310973
A24: LORD SELKIRK | B24: 160855 | C24: =B24/'- 3 -'!$D24*100 -> 0.2746421567 | D24: 201500 | E24: =D24/'- 3 -'!$D24*100 -> 0.3440390077
A25: LOUIS RIEL | B25: 420000 | C25: =B25/'- 3 -'!$D25*100 -> 0.2182946453 | D25: 635000 | E25: =D25/'- 3 -'!$D25*100 -> 0.3300407138
A26: MOUNTAIN VIEW | B26: 208634 | C26: =B26/'- 3 -'!$D26*100 -> 0.5042777099 | D26: 100250 | E26: =D26/'- 3 -'!$D26*100 -> 0.2423087341
A27: MYSTERY LAKE | B27: 145175 | C27: =B27/'- 3 -'!$D27*100 -> 0.3460656984 | D27: 160760 | E27: =D27/'- 3 -'!$D27*100 -> 0.3832169566
A28: PARK WEST | B28: 79150 | C28: =B28/'- 3 -'!$D28*100 -> 0.2749203104 | D28: 97000 | E28: =D28/'- 3 -'!$D28*100 -> 0.3369206584
A29: PEMBINA TRAILS | B29: 668691 | C29: =B29/'- 3 -'!$D29*100 -> 0.3814945312 | D29: 1467109 | E29: =D29/'- 3 -'!$D29*100 -> 0.8369995411
A30: PINE CREEK | B30: 59572 | C30: =B30/'- 3 -'!$D30*100 -> 0.3865679763 | D30: 49500 | E30: =D30/'- 3 -'!$D30*100 -> 0.3212098776
A31: PORTAGE LA PRAIRIE | B31: 120100 | C31: =B31/'- 3 -'!$D31*100 -> 0.3008555319 | D31: 126500 | E31: =D31/'- 3 -'!$D31*100 -> 0.3168878001
A32: PRAIRIE ROSE | B32: 150626 | C32: =B32/'- 3 -'!$D32*100 -> 0.4819368084 | D32: 104975 | E32: =D32/'- 3 -'!$D32*100 -> 0.33587373
A33: PRAIRIE SPIRIT | B33: 122200 | C33: =B33/'- 3 -'!$D33*100 -> 0.4275871085 | D33: 59100 | E33: =D33/'- 3 -'!$D33*100 -> 0.2067954019
A34: RED RIVER VALLEY | B34: 99570 | C34: =B34/'- 3 -'!$D34*100 -> 0.3144568778 | D34: 108309 | E34: =D34/'- 3 -'!$D34*100 -> 0.3420559404
A35: RIVER EAST TRANSCONA | B35: 369000 | C35: =B35/'- 3 -'!$D35*100 -> 0.1901458848 | D35: 706000 | E35: =D35/'- 3 -'!$D35*100 -> 0.3638021536
A36: ROLLING RIVER | B36: 170580 | C36: =B36/'- 3 -'!$D36*100 -> 0.7057529749 | D36: 86000 | E36: =D36/'- 3 -'!$D36*100 -> 0.3558140218
A37: SEINE RIVER | B37: 132200 | C37: =B37/'- 3 -'!$D37*100 -> 0.2442737936 | D37: 212000 | E37: =D37/'- 3 -'!$D37*100 -> 0.3917249943
A38: SEVEN OAKS | B38: 520960 | C38: =B38/'- 3 -'!$D38*100 -> 0.3515280498 | D38: 492990 | E38: =D38/'- 3 -'!$D38*100 -> 0.3326547399
A39: SOUTHWEST HORIZON | B39: 82900 | C39: =B39/'- 3 -'!$D39*100 -> 0.3545325858 | D39: 70100 | E39: =D39/'- 3 -'!$D39*100 -> 0.2997917281
A40: ST. JAMES-ASSINIBOIA | B40: 549970 | C40: =B40/'- 3 -'!$D40*100 -> 0.5044311512 | D40: 351312 | E40: =D40/'- 3 -'!$D40*100 -> 0.322222515
A41: SUNRISE | B41: 357354 | C41: =B41/'- 3 -'!$D41*100 -> 0.5484186728 | D41: 315000 | E41: =D41/'- 3 -'!$D41*100 -> 0.4834194718
A42: SWAN VALLEY | B42: 156782 | C42: =B42/'- 3 -'!$D42*100 -> 0.7368530881 | D42: 111954 | E42: =D42/'- 3 -'!$D42*100 -> 0.5261678676
A43: TURTLE MOUNTAIN | B43: 124270 | C43: =B43/'- 3 -'!$D43*100 -> 0.8962567811 | D43: 26028 | E43: =D43/'- 3 -'!$D43*100 -> 0.1877184477
A44: TURTLE RIVER | B44: 53939 | C44: =B44/'- 3 -'!$D44*100 -> 0.4741880105 | D44: 36000 | E44: =D44/'- 3 -'!$D44*100 -> 0.3164828487
A45: WESTERN | B45: 51200 | C45: =B45/'- 3 -'!$D45*100 -> 0.2404641409 | D45: 47000 | E45: =D45/'- 3 -'!$D45*100 -> 0.2207385668
A46: WINNIPEG | B46: 2357500 | C46: =B46/'- 3 -'!$D46*100 -> 0.5710293267 | D46: 1632200 | E46: =D46/'- 3 -'!$D46*100 -> 0.3953484908
A48: PROVINCE | B48: =SUM(B11:B46) -> 12525927 | C48: =B48/'- 3 -'!$D48*100 -> 0.5119464602 | D48: =SUM(D11:D46) -> 8740114 | E48: =D48/'- 3 -'!$D48*100 -> 0.3572167093
A50: WHITESHELL | B50: 0 | C50: =B50/'- 3 -'!$D50*100 -> 0 | D50: 24000 | E50: =D50/'- 3 -'!$D50*100 -> 0.66431444
A51: MITT | B51: 0 | C51: =B51/'- 3 -'!$D51*100 -> 0 | D51: 44318 | E51: =D51/'- 3 -'!$D51*100 -> 0.1334420992

Sheet - 33 -
B2: =AEXP_BP -> ANALYSIS OF EXPENSE BY PROGRAM | F2: PAGE 16 OF 16
B3: =OPYEAR -> OPERATING FUND 2019/2020 BUDGET
B6: FUNCTION 900: FISCAL
D7: HEALTH AND POST SECONDARY EDUCATION TAX LEVY
B8: DEBT SERVICES
A9: DIVISION / DISTRICT | B9: AMOUNT | C9: % | D9: AMOUNT | E9: %
A11: BEAUTIFUL PLAINS | B11: 15000 | C11: =B11/'- 3 -'!$D11*100 -> 0.07204883989 | D11: 350000 | E11: =D11/'- 3 -'!$D11*100 -> 1.681139597
A12: BORDER LAND | B12: 30000 | C12: =B12/'- 3 -'!$D12*100 -> 0.08607029952 | D12: 534727 | E12: =D12/'- 3 -'!$D12*100 -> 1.534137102
A13: BRANDON | B13: 0 | C13: =B13/'- 3 -'!$D13*100 -> 0 | D13: 1808100 | E13: =D13/'- 3 -'!$D13*100 -> 1.710731979
A14: DSFM | B14: 72719 | C14: =B14/'- 3 -'!$D14*100 -> 0.0761424267 | D14: 1372630 | E14: =D14/'- 3 -'!$D14*100 -> 1.437249951
A15: EVERGREEN | B15: 8500 | C15: =B15/'- 3 -'!$D15*100 -> 0.04043572587 | D15: 320000 | E15: =D15/'- 3 -'!$D15*100 -> 1.52228615
A16: FLIN FLON | B16: 17500 | C16: =B16/'- 3 -'!$D16*100 -> 0.1173449203 | D16: 225820 | E16: =D16/'- 3 -'!$D16*100 -> 1.514218852
A17: FORT LA BOSSE | B17: 74000 | C17: =B17/'- 3 -'!$D17*100 -> 0.3949382789 | D17: 312000 | E17: =D17/'- 3 -'!$D17*100 -> 1.665145176
A18: FRONTIER | B18: 15000 | C18: =B18/'- 3 -'!$D18*100 -> 0.01099563294 | D18: 1250000 | E18: =D18/'- 3 -'!$D18*100 -> 0.9163027448
A19: GARDEN VALLEY | B19: 34000 | C19: =B19/'- 3 -'!$D19*100 -> 0.066652944 | D19: 817000 | E19: =D19/'- 3 -'!$D19*100 -> 1.601631037
A20: HANOVER | B20: 226800 | C20: =B20/'- 3 -'!$D20*100 -> 0.2545734548 | D20: 1420900 | E20: =D20/'- 3 -'!$D20*100 -> 1.594900449
A21: INTERLAKE | B21: 36000 | C21: =B21/'- 3 -'!$D21*100 -> 0.09530743266 | D21: 648000 | E21: =D21/'- 3 -'!$D21*100 -> 1.715533788
A22: KELSEY | B22: 10000 | C22: =B22/'- 3 -'!$D22*100 -> 0.0486874781 | D22: 350000 | E22: =D22/'- 3 -'!$D22*100 -> 1.704061733
A23: LAKESHORE | B23: 5000 | C23: =B23/'- 3 -'!$D23*100 -> 0.03052405405 | D23: 256388 | E23: =D23/'- 3 -'!$D23*100 -> 1.565200234
A24: LORD SELKIRK | B24: 60000 | C24: =B24/'- 3 -'!$D24*100 -> 0.102443377 | D24: 960000 | E24: =D24/'- 3 -'!$D24*100 -> 1.639094032
A25: LOUIS RIEL | B25: 189700 | C25: =B25/'- 3 -'!$D25*100 -> 0.09859641481 | D25: 3223811 | E25: =D25/'- 3 -'!$D25*100 -> 1.675573045
A26: MOUNTAIN VIEW | B26: 140000 | C26: =B26/'- 3 -'!$D26*100 -> 0.338386262 | D26: 644020 | E26: =D26/'- 3 -'!$D26*100 -> 1.556625146
A27: MYSTERY LAKE | B27: 5500 | C27: =B27/'- 3 -'!$D27*100 -> 0.01311080655 | D27: 700400 | E27: =D27/'- 3 -'!$D27*100 -> 1.66960162
A28: PARK WEST | B28: 96600 | C28: =B28/'- 3 -'!$D28*100 -> 0.3355312949 | D28: 414000 | E28: =D28/'- 3 -'!$D28*100 -> 1.437991264
A29: PEMBINA TRAILS | B29: 200000 | C29: =B29/'- 3 -'!$D29*100 -> 0.114101889 | D29: 2900000 | E29: =D29/'- 3 -'!$D29*100 -> 1.65447739
A30: PINE CREEK | B30: 8000 | C30: =B30/'- 3 -'!$D30*100 -> 0.05191270748 | D30: 249255 | E30: =D30/'- 3 -'!$D30*100 -> 1.617437738
A31: PORTAGE LA PRAIRIE | B31: 35000 | C31: =B31/'- 3 -'!$D31*100 -> 0.08767646642 | D31: 660000 | E31: =D31/'- 3 -'!$D31*100 -> 1.653327653
A32: PRAIRIE ROSE | B32: 74400 | C32: =B32/'- 3 -'!$D32*100 -> 0.2380472066 | D32: 533610 | E32: =D32/'- 3 -'!$D32*100 -> 1.7073168
A33: PRAIRIE SPIRIT | B33: 35000 | C33: =B33/'- 3 -'!$D33*100 -> 0.1224676661 | D33: 440000 | E33: =D33/'- 3 -'!$D33*100 -> 1.539593517
A34: RED RIVER VALLEY | B34: 125000 | C34: =B34/'- 3 -'!$D34*100 -> 0.3947686023 | D34: 519589 | E34: =D34/'- 3 -'!$D34*100 -> 1.640939386
A35: RIVER EAST TRANSCONA | B35: 59000 | C35: =B35/'- 3 -'!$D35*100 -> 0.03040272955 | D35: 3350000 | E35: =D35/'- 3 -'!$D35*100 -> 1.726256678
A36: ROLLING RIVER | B36: 50000 | C36: =B36/'- 3 -'!$D36*100 -> 0.2068686173 | D36: 393000 | E36: =D36/'- 3 -'!$D36*100 -> 1.625987332
A37: SEINE RIVER | B37: 50000 | C37: =B37/'- 3 -'!$D37*100 -> 0.09238797035 | D37: 850000 | E37: =D37/'- 3 -'!$D37*100 -> 1.570595496
A38: SEVEN OAKS | B38: 250000 | C38: =B38/'- 3 -'!$D38*100 -> 0.1686924379 | D38: 2430350 | E38: =D38/'- 3 -'!$D38*100 -> 1.639926666
A39: SOUTHWEST HORIZON | B39: 66200 | C39: =B39/'- 3 -'!$D39*100 -> 0.2831128731 | D39: 370000 | E39: =D39/'- 3 -'!$D39*100 -> 1.582352916
A40: ST. JAMES-ASSINIBOIA | B40: 69696 | C40: =B40/'- 3 -'!$D40*100 -> 0.0639250023 | D40: 1808588 | E40: =D40/'- 3 -'!$D40*100 -> 1.658832531
A41: SUNRISE | B41: 143000 | C41: =B41/'- 3 -'!$D41*100 -> 0.2194570935 | D41: 1063595 | E41: =D41/'- 3 -'!$D41*100 -> 1.63226201
A42: SWAN VALLEY | B42: 5000 | C42: =B42/'- 3 -'!$D42*100 -> 0.02349928844 | D42: 337000 | E42: =D42/'- 3 -'!$D42*100 -> 1.583852041
A43: TURTLE MOUNTAIN | B43: 56000 | C43: =B43/'- 3 -'!$D43*100 -> 0.4038817071 | D43: 213301 | E43: =D43/'- 3 -'!$D43*100 -> 1.538363786
A44: TURTLE RIVER | B44: 3000 | C44: =B44/'- 3 -'!$D44*100 -> 0.02637357073 | D44: 182832 | E44: =D44/'- 3 -'!$D44*100 -> 1.607310894
A45: WESTERN | B45: 30000 | C45: =B45/'- 3 -'!$D45*100 -> 0.1408969575 | D45: 358068 | E45: =D45/'- 3 -'!$D45*100 -> 1.681689726
A46: WINNIPEG | B46: 452300 | C46: =B46/'- 3 -'!$D46*100 -> 0.1095552765 | D46: 7031000 | E46: =D46/'- 3 -'!$D46*100 -> 1.703035926
A48: PROVINCE | B48: =SUM(B11:B46) -> 2747915 | C48: =B48/'- 3 -'!$D48*100 -> 0.1123098799 | D48: =SUM(D11:D46) -> 39297984 | E48: =D48/'- 3 -'!$D48*100 -> 1.606145701
A50: WHITESHELL | B50: 0 | C50: =B50/'- 3 -'!$D50*100 -> 0 | D50: 48447 | E50: =D50/'- 3 -'!$D50*100 -> 1.341001736
A51: MITT | B51: 180000 | C51: =B51/'- 3 -'!$D51*100 -> 0.5419824417 | D51: 430675 | E51: =D51/'- 3 -'!$D51*100 -> 1.296768267

Sheet - 34 -
B2: =IF(Lang=1,BA2,BB2) -> ANALYSIS OF TRANSPORTATION EXPENSES | BA2: ANALYSIS OF TRANSPORTATION EXPENSES | BB2: ANALYSE DES DÉPENSES DE TRANSPORT
B3: =OPYEAR -> OPERATING FUND 2019/2020 BUDGET
B6: REGULAR TRANSPORTATION
B7: (PROGRAM 720)
C8: TRANSPORTED PUPILS | D8: PER PUPIL | E8: TOTAL KM. (ROUTES) | F8: COST PER KM. | G8: LOADED KM. | H8: COST PER KM.
A9: DIVISION / DISTRICT | B9: AMOUNT
A11: BEAUTIFUL PLAINS | B11: ='- 29 -'!$D11 -> 1099568 | C11: 758 | D11: =IF(AND(CELL("type",C11)="v",C11>0),B11/C11,"") -> 1450.617414 | E11: 659344 | F11: =IF(AND(CELL("type",E11)="v",E11>0),B11/E11,"") -> 1.667669684 | G11: 426300 | H11: =IF(AND(CELL("type",G11)="v",G11>0),B11/G11,"") -> 2.579329111
A12: BORDER LAND | B12: ='- 29 -'!$D12 -> 2163716 | C12: 1620 | D12: =IF(AND(CELL("type",C12)="v",C12>0),B12/C12,"") -> 1335.62716 | E12: 1152828 | F12: =IF(AND(CELL("type",E12)="v",E12>0),B12/E12,"") -> 1.876876689 | G12: 741768 | H12: =IF(AND(CELL("type",G12)="v",G12>0),B12/G12,"") -> 2.916971344
A13: BRANDON | B13: ='- 29 -'!$D13 -> 2354800 | C13: 3581 | D13: 657.5816811 | E13: 845828 | F13: 2.784017554 | G13: 523909 | H13: 4.494673693
A14: DSFM | B14: ='- 29 -'!$D14 -> 9271812 | C14: 4703 | D14: 1971.467574 | E14: 3202920 | F14: 2.894799745 | G14: 1675860 | H14: 5.532569546
A15: EVERGREEN | B15: ='- 29 -'!$D15 -> 1493000 | C15: 960 | D15: 1555.208333 | E15: 750000 | F15: 1.990666667 | G15: 460000 | H15: 3.245652174
A16: FLIN FLON | B16: ='- 29 -'!$D16 -> 375901 | C16: 303 | D16: 1240.59736 | E16: 57846 | F16: 6.498305847 | G16: 37386 | H16: 10.05459263
A17: FORT LA BOSSE | B17: ='- 29 -'!$D17 -> 1320950 | C17: 703 | D17: 1879.018492 | E17: 911605 | F17: 1.449037686 | G17: 586960 | H17: 2.250494071
A18: FRONTIER | B18: ='- 29 -'!$D18 -> 7751802 | C18: 5030 | D18: 1541.113718 | E18: 1601000 | F18: 4.841850094 | G18: 1114000 | H18: 6.958529623
A19: GARDEN VALLEY | B19: ='- 29 -'!$D19 -> 2719500 | C19: 2705 | D19: 1005.360444 | E19: 882000 | F19: 3.083333333 | G19: 515000 | H19: 5.280582524
A20: HANOVER | B20: ='- 29 -'!$D20 -> 3544500 | C20: 5274 | D20: 672.0705347 | E20: 1411052 | F20: 2.511955619 | G20: 841297 | H20: 4.213137572
A21: INTERLAKE | B21: ='- 29 -'!$D21 -> 1998000 | C21: 1487 | D21: 1343.644923 | E21: 946641 | F21: 2.110620605 | G21: 529827 | H21: 3.771042246
A22: KELSEY | B22: ='- 29 -'!$D22 -> 482149 | C22: 400 | D22: 1205.3725 | E22: 155588 | F22: 3.098882947 | G22: 96224 | H22: 5.010693798
A23: LAKESHORE | B23: ='- 29 -'!$D23 -> 1605890 | C23: 718 | D23: 2236.615599 | E23: 948000 | F23: 1.693976793 | G23: 536000 | H23: 2.996063433
A24: LORD SELKIRK | B24: ='- 29 -'!$D24 -> 2451785 | C24: 2466 | D24: 994.2356042 | E24: 869804 | F24: 2.818778713 | G24: 630540 | H24: 3.888389317
A25: LOUIS RIEL | B25: ='- 29 -'!$D25 -> 4157684 | C25: 2615 | D25: 1589.93652 | E25: 864666 | F25: 4.808427763 | G25: 472427 | H25: 8.8006909
A26: MOUNTAIN VIEW | B26: ='- 29 -'!$D26 -> 2470626 | C26: 1605 | D26: 1539.330841 | E26: 1289672 | F26: 1.915701046 | G26: 1006363 | H26: 2.455004804
A27: MYSTERY LAKE | B27: ='- 29 -'!$D27 -> 0 | C27: N/A | D27: =IF(AND(CELL("type",C27)="v",C27>0),B27/C27,"") ->  | E27: N/A | F27: =IF(AND(CELL("type",E27)="v",E27>0),B27/E27,"") ->  | G27: N/A
A28: PARK WEST | B28: ='- 29 -'!$D28 -> 1765944 | C28: 771 | D28: 2290.459144 | E28: 1199725 | F28: 1.471957324 | G28: 742960 | H28: 2.376903198
A29: PEMBINA TRAILS | B29: ='- 29 -'!$D29 -> 3162331 | C29: 2900 | D29: 1090.458966 | E29: 605000 | F29: 5.226993388 | G29: 345000 | H29: 9.166176812
A30: PINE CREEK | B30: ='- 29 -'!$D30 -> 1044157 | C30: 539 | D30: 1937.211503 | E30: 531549 | F30: 1.964366408 | G30: 440743 | H30: 2.36908357
A31: PORTAGE LA PRAIRIE | B31: ='- 29 -'!$D31 -> 1033243 | C31: 1138 | D31: 907.9463972 | E31: 627072 | F31: 1.647726258 | G31: 404432 | H31: 2.554800313
A32: PRAIRIE ROSE | B32: ='- 29 -'!$D32 -> 2109548 | C32: 1521 | D32: 1386.94806 | E32: 1138867 | F32: 1.852321649 | G32: 752544 | H32: 2.803222137
A33: PRAIRIE SPIRIT | B33: ='- 29 -'!$D33 -> 2252825 | C33: 1141 | D33: 1974.430324 | E33: 1533000 | F33: 1.469553164 | G33: 900000 | H33: 2.503138889
A34: RED RIVER VALLEY | B34: ='- 29 -'!$D34 -> 2471010 | C34: 1392 | D34: 1775.150862 | E34: 1223445 | F34: 2.019714822 | G34: 919161 | H34: 2.688332077
A35: RIVER EAST TRANSCONA | B35: ='- 29 -'!$D35 -> 4257000 | C35: 4075 | D35: 1044.662577 | E35: 1094800 | F35: 3.88838144 | G35: 543150 | H35: 7.837613919
A36: ROLLING RIVER | B36: ='- 29 -'!$D36 -> 1629550 | C36: 925 | D36: 1761.675676 | E36: 832150 | F36: 1.958240702 | G36: 527340 | H36: 3.090131604
A37: SEINE RIVER | B37: ='- 29 -'!$D37 -> 3103500 | C37: 3003 | D37: 1033.466533 | E37: 1423000 | F37: 2.180955727 | G37: 865000 | H37: 3.587861272
A38: SEVEN OAKS | B38: ='- 29 -'!$D38 -> 3045690 | C38: 2718 | D38: 1120.562914 | E38: 726516 | F38: 4.192185719 | G38: 552234 | H38: 5.515216376
A39: SOUTHWEST HORIZON | B39: ='- 29 -'!$D39 -> 2118200 | C39: 795 | D39: 2664.402516 | E39: 1091130 | F39: 1.941290222 | G39: 656010 | H39: 3.228914193
A40: ST. JAMES-ASSINIBOIA | B40: ='- 29 -'!$D40 -> 1998280 | C40: 1757 | D40: 1137.324986 | E40: 452010 | F40: 4.420875644 | G40: 319701 | H40: 6.250465278
A41: SUNRISE | B41: ='- 29 -'!$D41 -> 4679185 | C41: 3677 | D41: 1272.555072 | E41: 2193645 | F41: 2.133063919 | G41: 1575735 | H41: 2.969525333
A42: SWAN VALLEY | B42: ='- 29 -'!$D42 -> 1687299 | C42: 1270 | D42: 1328.58189 | E42: 785887 | F42: 2.146999505 | G42: 667312 | H42: 2.528500911
A43: TURTLE MOUNTAIN | B43: ='- 29 -'!$D43 -> 1103513 | C43: 510 | D43: 2163.75098 | E43: 621866 | F43: 1.774518948 | G43: 399613 | H43: 2.761454207
A44: TURTLE RIVER | B44: ='- 29 -'!$D44 -> 1146350 | C44: 489 | D44: 2344.274029 | E44: 721380 | F44: 1.589106989 | G44: 500489 | H44: 2.29045993
A45: WESTERN | B45: ='- 29 -'!$D45 -> 767674 | C45: 1175 | D45: 653.3395745 | E45: 273000 | F45: 2.811992674 | G45: 164500 | H45: 4.666711246
A46: WINNIPEG | B46: ='- 29 -'!$D46 -> 6253300 | C46: 2333 | D46: 2680.368624 | E46: 920974 | F46: 6.789876804 | G46: 580544 | H46: 10.77144885
A48: PROVINCE | B48: =SUM(B11:B46) -> 90890282 | C48: =SUM(C11:C46) -> 67057 | D48: =B48/C48 -> 1355.418256 | E48: =SUM(E11:E46) -> 34543810 | F48: =B48/E48 -> 2.631159736 | G48: =SUM(G11:G46) -> 22050329 | H48: =B48/G48 -> 4.121946752
A50: WHITESHELL | B50: ='- 29 -'!$D50 -> 0 | C50: N/A | D50: =IF(AND(CELL("type",C50)="v",C50>0),B50/C50,"") ->  | E50: N/A | F50: =IF(AND(CELL("type",E50)="v",E50>0),B50/E50,"") ->  | G50: N/A | H50: =IF(AND(CELL("type",G50)="v",G50>0),B50/G50,"") -> 
A51: MITT | B51: ='- 29 -'!$D51 -> 0 | C51: 0 | D51: =IF(AND(CELL("type",C51)="v",C51>0),B51/C51,"") ->  | E51: 0 | F51: =IF(AND(CELL("type",E51)="v",E51>0),B51/E51,"") ->  | G51: 0 | H51: =IF(AND(CELL("type",G51)="v",G51>0),B51/G51,"") -> 

Sheet - 35 -
B2: =IF(Lang=1,BA2,BB2) -> ANALYSIS OF TRANSPORTATION EXPENSES (CONT'D) | BA2: ANALYSIS OF TRANSPORTATION EXPENSES (CONT'D) | BB2: ANALYSE DES DÉPENSES DE TRANSPORT (SUITE)
B3: =OPYEAR -> OPERATING FUND 2019/2020 BUDGET
B6: ADMINISTRATION, REGULAR AND OTHER
B7: (PROGRAMS 710, 720 AND 790)
C8: TOTAL KM. (LOG BOOK) | D8: COST PER KM.
A9: DIVISION / DISTRICT | B9: AMOUNT
A11: BEAUTIFUL PLAINS | B11: =SUM('- 29 -'!$B11,'- 29 -'!$D11,'- 30 -'!$D11) -> 1327797 | C11: 721633 | D11: =IF(AND(CELL("type",C11)="v",C11>0),B11/C11,"") -> 1.839989302
A12: BORDER LAND | B12: =SUM('- 29 -'!$B12,'- 29 -'!$D12,'- 30 -'!$D12) -> 2517887 | C12: 1259921 | D12: =IF(AND(CELL("type",C12)="v",C12>0),B12/C12,"") -> 1.998448315
A13: BRANDON | B13: =SUM('- 29 -'!$B13,'- 29 -'!$D13,'- 30 -'!$D13) -> 2653300 | C13: 888199 | D13: 2.987281003
A14: DSFM | B14: =SUM('- 29 -'!$B14,'- 29 -'!$D14,'- 30 -'!$D14) -> 9551864 | C14: N/A
A15: EVERGREEN | B15: =SUM('- 29 -'!$B15,'- 29 -'!$D15,'- 30 -'!$D15) -> 1772100 | C15: 800000 | D15: 2.215125
A16: FLIN FLON | B16: =SUM('- 29 -'!$B16,'- 29 -'!$D16,'- 30 -'!$D16) -> 566066 | C16: 57846 | D16: 9.785741451
A17: FORT LA BOSSE | B17: =SUM('- 29 -'!$B17,'- 29 -'!$D17,'- 30 -'!$D17) -> 1419930 | C17: 868304 | D17: 1.635291327
A18: FRONTIER | B18: =SUM('- 29 -'!$B18,'- 29 -'!$D18,'- 30 -'!$D18) -> 9203883 | C18: 1780000 | D18: 5.170720787
A19: GARDEN VALLEY | B19: =SUM('- 29 -'!$B19,'- 29 -'!$D19,'- 30 -'!$D19) -> 3165100 | C19: 1004000 | D19: 3.15249004
A20: HANOVER | B20: =SUM('- 29 -'!$B20,'- 29 -'!$D20,'- 30 -'!$D20) -> 4265700 | C20: 1623848 | D20: 2.62690843
A21: INTERLAKE | B21: =SUM('- 29 -'!$B21,'- 29 -'!$D21,'- 30 -'!$D21) -> 2298000 | C21: 900000 | D21: 2.553333333
A22: KELSEY | B22: =SUM('- 29 -'!$B22,'- 29 -'!$D22,'- 30 -'!$D22) -> 637934 | C22: 185469 | D22: 3.439572112
A23: LAKESHORE | B23: =SUM('- 29 -'!$B23,'- 29 -'!$D23,'- 30 -'!$D23) -> 1722915 | C23: 845000 | D23: 2.038952663
A24: LORD SELKIRK | B24: =SUM('- 29 -'!$B24,'- 29 -'!$D24,'- 30 -'!$D24) -> 2749190 | C24: 1070000 | D24: 2.569336449
A25: LOUIS RIEL | B25: =SUM('- 29 -'!$B25,'- 29 -'!$D25,'- 30 -'!$D25) -> 4620570 | C25: 910000 | D25: 5.077549451
A26: MOUNTAIN VIEW | B26: =SUM('- 29 -'!$B26,'- 29 -'!$D26,'- 30 -'!$D26) -> 2947421 | C26: 1329672 | D26: 2.216652678
A27: MYSTERY LAKE | B27: =SUM('- 29 -'!$B27,'- 29 -'!$D27,'- 30 -'!$D27) -> 120000 | C27: N/A
A28: PARK WEST | B28: =SUM('- 29 -'!$B28,'- 29 -'!$D28,'- 30 -'!$D28) -> 1933519 | C28: 1100000 | D28: 1.757744545
A29: PEMBINA TRAILS | B29: =SUM('- 29 -'!$B29,'- 29 -'!$D29,'- 30 -'!$D29) -> 3556473 | C29: 710000 | D29: 5.009116901
A30: PINE CREEK | B30: =SUM('- 29 -'!$B30,'- 29 -'!$D30,'- 30 -'!$D30) -> 1255022 | C30: 734122 | D30: 1.709555088
A31: PORTAGE LA PRAIRIE | B31: =SUM('- 29 -'!$B31,'- 29 -'!$D31,'- 30 -'!$D31) -> 1170308 | C31: 590584 | D31: 1.981611422
A32: PRAIRIE ROSE | B32: =SUM('- 29 -'!$B32,'- 29 -'!$D32,'- 30 -'!$D32) -> 2410918 | C32: 1207199 | D32: 1.997117294
A33: PRAIRIE SPIRIT | B33: =SUM('- 29 -'!$B33,'- 29 -'!$D33,'- 30 -'!$D33) -> 2450725 | C33: 1580000 | D33: 1.551091772
A34: RED RIVER VALLEY | B34: =SUM('- 29 -'!$B34,'- 29 -'!$D34,'- 30 -'!$D34) -> 2776190 | C34: 1424606 | D34: 1.948742319
A35: RIVER EAST TRANSCONA | B35: =SUM('- 29 -'!$B35,'- 29 -'!$D35,'- 30 -'!$D35) -> 4833940 | C35: 1412800 | D35: 3.42153171
A36: ROLLING RIVER | B36: =SUM('- 29 -'!$B36,'- 29 -'!$D36,'- 30 -'!$D36) -> 1788990 | C36: 865436 | D36: 2.06715459
A37: SEINE RIVER | B37: =SUM('- 29 -'!$B37,'- 29 -'!$D37,'- 30 -'!$D37) -> 3427071 | C37: 1433000 | D37: 2.391535939
A38: SEVEN OAKS | B38: =SUM('- 29 -'!$B38,'- 29 -'!$D38,'- 30 -'!$D38) -> 3934390 | C38: 1030000 | D38: 3.819796117
A39: SOUTHWEST HORIZON | B39: =SUM('- 29 -'!$B39,'- 29 -'!$D39,'- 30 -'!$D39) -> 2234600 | C39: 1100000 | D39: 2.031454545
A40: ST. JAMES-ASSINIBOIA | B40: =SUM('- 29 -'!$B40,'- 29 -'!$D40,'- 30 -'!$D40) -> 2278832 | C40: 584964 | D40: 3.89567905
A41: SUNRISE | B41: =SUM('- 29 -'!$B41,'- 29 -'!$D41,'- 30 -'!$D41) -> 5192637 | C41: 2379372 | D41: 2.182356101
A42: SWAN VALLEY | B42: =SUM('- 29 -'!$B42,'- 29 -'!$D42,'- 30 -'!$D42) -> 1905376 | C42: 695411 | D42: 2.739927899
A43: TURTLE MOUNTAIN | B43: =SUM('- 29 -'!$B43,'- 29 -'!$D43,'- 30 -'!$D43) -> 1247640 | C43: 604369 | D43: 2.064367961
A44: TURTLE RIVER | B44: =SUM('- 29 -'!$B44,'- 29 -'!$D44,'- 30 -'!$D44) -> 1232659 | C44: 775060 | D44: 1.590404614
A45: WESTERN | B45: =SUM('- 29 -'!$B45,'- 29 -'!$D45,'- 30 -'!$D45) -> 878961 | C45: 300000 | D45: 2.92987
A46: WINNIPEG | B46: =SUM('- 29 -'!$B46,'- 29 -'!$D46,'- 30 -'!$D46) -> 7345500 | C46: 920974 | D46: 7.975795191
A48: PROVINCE | B48: =SUM(B11:B46) -> 103393408 | C48: =SUM(C11:C46) -> 33691789 | D48: =B48/C48 -> 3.068801363
A50: WHITESHELL | B50: =SUM('- 29 -'!$B50,'- 29 -'!$D50,'- 30 -'!$D50) -> 54700 | C50: N/A | D50: =IF(AND(CELL("type",C50)="v",C50>0),B50/C50,"") -> 
A51: MITT | B51: =SUM('- 29 -'!$B51,'- 29 -'!$D51,'- 30 -'!$D51) -> 0 | C51: 0 | D51: =IF(AND(CELL("type",C51)="v",C51>0),B51/C51,"") -> 

Sheet - 36 -
A2: =IF(Lang=1,BA2,BB2) -> ANALYSIS OF OPERATIONS AND MAINTENANCE EXPENSES FOR SCHOOL BUILDINGS | BA2: ANALYSIS OF OPERATIONS AND MAINTENANCE EXPENSES FOR SCHOOL BUILDINGS | BB2: ANALYSE DES DÉPENSES DE FONCTIONNEMENT ET D'ENTRETIEN DES BÂTIMENTS SCOLAIRES
A3: =OPYEAR -> OPERATING FUND 2019/2020 BUDGET
F6: REPAIRS AND REPLACEMENTS
B7: MAINTENANCE | I7: TOTAL
C8: COST PER PUPIL | D8: COST PER SQ. FT. (1) | E8: SQ. FT. PER PUPIL (2) | G8: COST PER SQ. FT. (1) | I8: AREA
A9: DIVISION / DISTRICT | B9: AMOUNT | F9: AMOUNT | I9: Sep 30, 18
A11: BEAUTIFUL PLAINS | B11: ='- 31 -'!D11 -> 1682195 | C11: =B11/'- 7 -'!E11 -> 933.7746323 | D11: =B11/I11 -> 6.064914463 | E11: =I11/'- 7 -'!E11 -> 153.9633639 | F11: ='- 31 -'!F11 -> 150800 | G11: =F11/I11 -> 0.5436879202 | I11: 277365
A12: BORDER LAND | B12: ='- 31 -'!D12 -> 2614418 | C12: =B12/'- 7 -'!E12 -> 1222.51328 | D12: 6.697642366 | E12: =I12/'- 7 -'!E12 -> 182.528898 | F12: ='- 31 -'!F12 -> 272900 | G12: 0.6991179688 | I12: 390349
A13: BRANDON | B13: ='- 31 -'!D13 -> 7283500 | C13: =B13/'- 7 -'!E13 -> 839.7417421 | D13: 6.867688907 | E13: =I13/'- 7 -'!E13 -> 122.2742837 | F13: ='- 31 -'!F13 -> 732500 | G13: 0.6906819695 | I13: 1060546
A14: DSFM | B14: ='- 31 -'!D14 -> 8806758 | C14: =B14/'- 7 -'!E14 -> 1524.187954 | D14: 8.924770237 | E14: =I14/'- 7 -'!E14 -> 170.7817584 | F14: ='- 31 -'!F14 -> 1020000 | G14: 1.033668195 | I14: 986777
A15: EVERGREEN | B15: ='- 31 -'!D15 -> 2168575 | C15: =B15/'- 7 -'!E15 -> 1546.772468 | D15: 7.445648815 | E15: =I15/'- 7 -'!E15 -> 207.7417974 | F15: ='- 31 -'!F15 -> 248000 | G15: 0.8514904516 | I15: 291254
A16: FLIN FLON | B16: ='- 31 -'!D16 -> 2034383 | C16: =B16/'- 7 -'!E16 -> 2165.389037 | D16: 9.699315836 | E16: =I16/'- 7 -'!E16 -> 223.2517296 | F16: ='- 31 -'!F16 -> 100000 | G16: 0.4767694105 | I16: 209745
A17: FORT LA BOSSE | B17: ='- 31 -'!D17 -> 1664520 | C17: =B17/'- 7 -'!E17 -> 1157.926957 | D17: 6.348695377 | E17: =I17/'- 7 -'!E17 -> 182.3881739 | F17: ='- 31 -'!F17 -> 69000 | G17: 0.2631749579 | I17: 262183
A18: FRONTIER | B18: ='- 31 -'!D18 -> 17694075 | C18: =B18/'- 7 -'!E18 -> 2872.088399 | D18: 12.13886781 | E18: =I18/'- 7 -'!E18 -> 236.6026588 | F18: ='- 31 -'!F18 -> 2079290 | G18: 1.426479002 | I18: 1457638
A19: GARDEN VALLEY | B19: ='- 31 -'!D19 -> 4373200 | C19: =B19/'- 7 -'!E19 -> 1006.721915 | D19: 6.866556547 | E19: =I19/'- 7 -'!E19 -> 146.6123389 | F19: ='- 31 -'!F19 -> 101000 | G19: 0.1585846088 | I19: 636884
A20: HANOVER | B20: ='- 31 -'!D20 -> 7848000 | C20: =B20/'- 7 -'!E20 -> 988.2264056 | D20: 7.394007914 | E20: =I20/'- 7 -'!E20 -> 133.6523327 | F20: ='- 31 -'!F20 -> 867000 | G20: 0.8168456755 | I20: 1061400
A21: INTERLAKE | B21: ='- 31 -'!D21 -> 2848000 | C21: =B21/'- 7 -'!E21 -> 1012.082445 | D21: 6.201091288 | E21: =I21/'- 7 -'!E21 -> 163.2103767 | F21: ='- 31 -'!F21 -> 350000 | G21: 0.7620723141 | I21: 459274
A22: KELSEY | B22: ='- 31 -'!D22 -> 2330869 | C22: =B22/'- 7 -'!E22 -> 1633.176149 | D22: 6.837638755 | E22: =I22/'- 7 -'!E22 -> 238.8508969 | F22: ='- 31 -'!F22 -> 150000 | G22: 0.440027223 | I22: 340888
A23: LAKESHORE | B23: ='- 31 -'!D23 -> 1395450 | C23: =B23/'- 7 -'!E23 -> 1474.326466 | D23: 5.982482766 | E23: =I23/'- 7 -'!E23 -> 246.4405705 | F23: ='- 31 -'!F23 -> 140382 | G23: 0.6018366087 | I23: 233256
A24: LORD SELKIRK | B24: ='- 31 -'!D24 -> 5451405 | C24: =B24/'- 7 -'!E24 -> 1436.470356 | D24: 7.659382995 | E24: =I24/'- 7 -'!E24 -> 187.5438735 | F24: ='- 31 -'!F24 -> 555800 | G24: 0.7809152079 | I24: 711729
A25: LOUIS RIEL | B25: ='- 31 -'!D25 -> 18154735 | C25: =B25/'- 7 -'!E25 -> 1216.397655 | D25: 7.827840614 | E25: =I25/'- 7 -'!E25 -> 155.3937688 | F25: ='- 31 -'!F25 -> 431040 | G25: 0.185853025 | I25: 2319252
A26: MOUNTAIN VIEW | B26: ='- 31 -'!D26 -> 4487504 | C26: =B26/'- 7 -'!E26 -> 1492.352511 | D26: 5.829418695 | E26: =I26/'- 7 -'!E26 -> 256.0036581 | F26: ='- 31 -'!F26 -> 259700 | G26: 0.3373590386 | I26: 769803
A27: MYSTERY LAKE | B27: ='- 31 -'!D27 -> 4167113 | C27: =B27/'- 7 -'!E27 -> 1394.616131 | D27: 8.91130424 | E27: =I27/'- 7 -'!E27 -> 156.4996653 | F27: ='- 31 -'!F27 -> 506000 | G27: 1.082072875 | I27: 467621 | L27: AREA
A28: PARK WEST | B28: ='- 31 -'!D28 -> 3006294 | C28: =B28/'- 7 -'!E28 -> 1498.277598 | D28: 6.782067855 | E28: =I28/'- 7 -'!E28 -> 220.9175181 | F28: ='- 31 -'!F28 -> 156017 | G28: 0.3519675323 | I28: =393271+50000 -> 443271 | J28: + | K28: 50000 | L28: Waywayseecapo Included
A29: PEMBINA TRAILS | B29: ='- 31 -'!D29 -> 15765265 | C29: =B29/'- 7 -'!E29 -> 1137.054814 | D29: 8.548352552 | E29: =I29/'- 7 -'!E29 -> 133.0144969 | F29: ='- 31 -'!F29 -> 2811200 | G29: 1.524308579 | I29: 1844246
A30: PINE CREEK | B30: ='- 31 -'!D30 -> 1221823 | C30: =B30/'- 7 -'!E30 -> 1160.87696 | D30: 5.82583383 | E30: =I30/'- 7 -'!E30 -> 199.263658 | F30: ='- 31 -'!F30 -> 119274 | G30: 0.5687161759 | I30: 209725
A31: PORTAGE LA PRAIRIE | B31: ='- 31 -'!D31 -> 3495421 | C31: =B31/'- 7 -'!E31 -> 1047.631051 | D31: 5.761442379 | E31: =I31/'- 7 -'!E31 -> 181.8348569 | F31: ='- 31 -'!F31 -> 155000 | G31: 0.2554838369 | I31: 606692
A32: PRAIRIE ROSE | B32: ='- 31 -'!D32 -> 2521055 | C32: =B32/'- 7 -'!E32 -> 1129.75801 | D32: 6.537598801 | E32: =I32/'- 7 -'!E32 -> 172.8093211 | F32: ='- 31 -'!F32 -> 236314 | G32: 0.6128093687 | I32: 385624
A33: PRAIRIE SPIRIT | B33: ='- 31 -'!D33 -> 2741525 | C33: =B33/'- 7 -'!E33 -> 1352.703903 | D33: 5.572714984 | E33: =I33/'- 7 -'!E33 -> 242.7369616 | F33: ='- 31 -'!F33 -> 341525 | G33: 0.6942199998 | I33: 491955
A34: RED RIVER VALLEY | B34: ='- 31 -'!D34 -> 2277437 | C34: =B34/'- 7 -'!E34 -> 1019.900134 | D34: 6.040338109 | E34: =I34/'- 7 -'!E34 -> 168.8481863 | F34: ='- 31 -'!F34 -> 285742 | G34: 0.7578599505 | I34: 377038
A35: RIVER EAST TRANSCONA | B35: ='- 31 -'!D35 -> 19688725 | C35: =B35/'- 7 -'!E35 -> 1209.009825 | D35: 8.043371245 | E35: =I35/'- 7 -'!E35 -> 150.3113294 | F35: ='- 31 -'!F35 -> 662400 | G35: 0.270608133 | I35: 2447820
A36: ROLLING RIVER | B36: ='- 31 -'!D36 -> 2542100 | C36: =B36/'- 7 -'!E36 -> 1479.255164 | D36: 7.897197568 | E36: =I36/'- 7 -'!E36 -> 187.3139366 | F36: ='- 31 -'!F36 -> 110000 | G36: 0.341722093 | I36: 321899
A37: SEINE RIVER | B37: ='- 31 -'!D37 -> 4257200 | C37: =B37/'- 7 -'!E37 -> 981.6001845 | D37: 7.206542292 | E37: =I37/'- 7 -'!E37 -> 136.2095919 | F37: ='- 31 -'!F37 -> 525000 | G37: 0.8887143435 | I37: 590741
A38: SEVEN OAKS | B38: ='- 31 -'!D38 -> 11997915 | C38: =B38/'- 7 -'!E38 -> 1046.062199 | D38: 8.693826311 | E38: =I38/'- 7 -'!E38 -> 120.3224175 | F38: ='- 31 -'!F38 -> 933260 | G38: 0.6762508605 | I38: 1380050
A39: SOUTHWEST HORIZON | B39: ='- 31 -'!D39 -> 2175100 | C39: =B39/'- 7 -'!E39 -> 1447.172322 | D39: 6.849780975 | E39: =I39/'- 7 -'!E39 -> 211.2727878 | F39: ='- 31 -'!F39 -> 160000 | G39: 0.5038687674 | I39: 317543
A40: ST. JAMES-ASSINIBOIA | B40: ='- 31 -'!D40 -> 8754478 | C40: =B40/'- 7 -'!E40 -> 1047.436947 | D40: 6.000121997 | E40: =I40/'- 7 -'!E40 -> 174.5692749 | F40: ='- 31 -'!F40 -> 1453613 | G40: 0.9962736027 | I40: 1459050
A41: SUNRISE | B41: ='- 31 -'!D41 -> 5272591 | C41: =B41/'- 7 -'!E41 -> 1186.184702 | D41: 7.096019703 | E41: =I41/'- 7 -'!E41 -> 167.1619798 | F41: ='- 31 -'!F41 -> 525060 | G41: 0.706642352 | I41: 743035
A42: SWAN VALLEY | B42: ='- 31 -'!D42 -> 1926321 | C42: =B42/'- 7 -'!E42 -> 1399.434072 | D42: 5.999355317 | E42: =I42/'- 7 -'!E42 -> 233.2640756 | F42: ='- 31 -'!F42 -> 156197 | G42: 0.4864616554 | I42: 321088
A43: TURTLE MOUNTAIN | B43: ='- 31 -'!D43 -> 768208 | C43: =B43/'- 7 -'!E43 -> 772.4565108 | D43: =B43/I43 -> 4.207099749 | E43: =I43/'- 7 -'!E43 -> 183.6078431 | F43: ='- 31 -'!F43 -> 136403 | G43: =F43/I43 -> 0.7470125631 | I43: 182598
A44: TURTLE RIVER | B44: ='- 31 -'!D44 -> 1110205 | C44: =B44/'- 7 -'!E44 -> 1587.140815 | D44: =B44/I44 -> 6.143674567 | E44: =I44/'- 7 -'!E44 -> 258.3373838 | F44: ='- 31 -'!F44 -> 50520 | G44: =F44/I44 -> 0.2795685834 | I44: 180707
A45: WESTERN | B45: ='- 31 -'!D45 -> 1689648 | C45: =B45/'- 7 -'!E45 -> 905.9774799 | D45: =B45/I45 -> 7.715534286 | E45: =I45/'- 7 -'!E45 -> 117.4225201 | F45: ='- 31 -'!F45 -> 138760 | G45: =F45/I45 -> 0.6336275589 | I45: 218993
A46: WINNIPEG | B46: ='- 31 -'!D46 -> 42621507 | C46: =B46/'- 7 -'!E46 -> 1412.828607 | D46: =B46/I46 -> 8.411792 | E46: =I46/'- 7 -'!E46 -> 167.9581006 | F46: ='- 31 -'!F46 -> 6479300 | G46: =F46/I46 -> 1.278756378 | I46: 5066876
A48: PROVINCE | B48: =SUM(B11:B46) -> 228837518 | C48: =B48/'- 7 -'!E48 -> 1267.866299 | D48: =B48/I48 -> 7.750657978 | E48: =I48/'- 7 -'!E48 -> 163.5817634 | F48: =SUM(F11:F46) -> 23468997 | G48: =F48/I48 -> 0.7948878769 | I48: =SUM(I11:I46) -> 29524915
A50: WHITESHELL | B50: ='- 31 -'!D50 -> 411380 | C50: =B50/'- 7 -'!E50 -> 2456 | D50: =B50/I50 -> 5.631022777 | E50: =I50/'- 7 -'!E50 -> 436.1552239 | F50: ='- 31 -'!F50 -> 50000 | G50: N/A | I50: 73056
A51: MITT | B51: ='- 31 -'!D51 -> 3594783 | C51: =B51/'- 7 -'!E51 -> 2560.386752 | D51: N/A | E51: N/A | F51: ='- 31 -'!F51 -> 0 | G51: N/A
A53: (1) Based on area (square footage) of active school buildings as at September 30, 2018. Includes rented and leased space.
A54: (2) Square footage (as per note above) divided by total FTE enrolment (from page 7).

Sheet - 37 -
B2: =IF(Lang=1,BA2,BB2) -> ANALYSIS OF INFORMATION TECHNOLOGY EXPENSES | BA2: ANALYSIS OF INFORMATION TECHNOLOGY EXPENSES | BB2: ANALYSE DES DÉPENSES DE TECHNOLOGIE DE L'INFORMATION
B3: =OPYEAR -> OPERATING FUND 2019/2020 BUDGET
B6: INFORMATION TECHNOLOGY EXPENSES (1)
B7: SALARIES | E7: SERVICES | H7: EQUIPMENT
D8: PER PUPIL | G8: PER PUPIL | J8: PER PUPIL
A9: DIVISION / DISTRICT | B9: AMOUNT | C9: % | E9: AMOUNT | F9: % | H9: AMOUNT | I9: %
A11: BEAUTIFUL PLAINS | B11: 145997 | C11: =B11/'- 3 -'!$D11*100 -> 0.7012609652 | D11: =B11/'- 7 -'!$E11 -> 81.04190952 | E11: 194135 | F11: =E11/'- 3 -'!$D11*100 -> 0.9324801022 | G11: =E11/'- 7 -'!$E11 -> 107.7629753 | H11: 213779 | I11: =H11/'- 3 -'!$D11*100 -> 1.026835263 | J11: =H11/'- 7 -'!$E11 -> 118.6672218
A12: BORDER LAND | B12: 370036 | C12: =B12/'- 3 -'!$D12*100 -> 1.061636978 | D12: =B12/'- 7 -'!$E12 -> 173.0304504 | E12: 361189 | F12: =E12/'- 3 -'!$D12*100 -> 1.036254847 | G12: =E12/'- 7 -'!$E12 -> 168.8935545 | H12: 425674 | I12: =H12/'- 3 -'!$D12*100 -> 1.221262956 | J12: =H12/'- 7 -'!$E12 -> 199.0470223
A13: BRANDON | B13: 553500 | C13: =B13/'- 3 -'!$D13*100 -> 0.5236934629 | D13: =B13/'- 7 -'!$E13 -> 63.81506889 | E13: 583200 | F13: =E13/'- 3 -'!$D13*100 -> 0.5517940877 | G13: =E13/'- 7 -'!$E13 -> 67.2392921 | H13: 1000500 | I13: =H13/'- 3 -'!$D13*100 -> 0.9466220589 | J13: =H13/'- 7 -'!$E13 -> 115.3513576
A14: DSFM | B14: 569882 | C14: =B14/'- 3 -'!$D14*100 -> 0.596710604 | D14: =B14/'- 7 -'!$E14 -> 98.62962963 | E14: 473807 | F14: =E14/'- 3 -'!$D14*100 -> 0.4961126359 | G14: =E14/'- 7 -'!$E14 -> 82.00190377 | H14: 627106 | I14: =H14/'- 3 -'!$D14*100 -> 0.6566285653 | J14: =H14/'- 7 -'!$E14 -> 108.5334026
A15: EVERGREEN | B15: 142000 | C15: =B15/'- 3 -'!$D15*100 -> 0.6755144792 | D15: =B15/'- 7 -'!$E15 -> 101.2838802 | E15: 181000 | F15: =E15/'- 3 -'!$D15*100 -> 0.8610431038 | G15: =E15/'- 7 -'!$E15 -> 129.1012839 | H15: 81500 | I15: =H15/'- 3 -'!$D15*100 -> 0.3877072539 | J15: =H15/'- 7 -'!$E15 -> 58.13124108
A16: FLIN FLON | B16: 54247 | C16: =B16/'- 3 -'!$D16*100 -> 0.3637491367 | D16: =B16/'- 7 -'!$E16 -> 57.74028739 | E16: 130838 | F16: =E16/'- 3 -'!$D16*100 -> 0.8773242676 | G16: =E16/'- 7 -'!$E16 -> 139.263438 | H16: 51133 | I16: =H16/'- 3 -'!$D16*100 -> 0.3428684463 | J16: =H16/'- 7 -'!$E16 -> 54.42575838
A17: FORT LA BOSSE | B17: 121000 | C17: =B17/'- 3 -'!$D17*100 -> 0.645777456 | D17: =B17/'- 7 -'!$E17 -> 84.17391304 | E17: 150910 | F17: =E17/'- 3 -'!$D17*100 -> 0.8054072387 | G17: =E17/'- 7 -'!$E17 -> 104.9808696 | H17: 138255 | I17: =H17/'- 3 -'!$D17*100 -> 0.737867456 | J17: =H17/'- 7 -'!$E17 -> 96.1773913
A18: FRONTIER | B18: 356864 | C18: =B18/'- 3 -'!$D18*100 -> 0.2615963702 | D18: =B18/'- 7 -'!$E18 -> 57.92588505 | E18: 0 | F18: =E18/'- 3 -'!$D18*100 -> 0 | G18: =E18/'- 7 -'!$E18 -> 0 | H18: 1578027 | I18: =H18/'- 3 -'!$D18*100 -> 1.156760377 | J18: =H18/'- 7 -'!$E18 -> 256.144107
A19: GARDEN VALLEY | B19: 480000 | C19: =B19/'- 3 -'!$D19*100 -> 0.9409827388 | D19: =B19/'- 7 -'!$E19 -> 110.4972376 | E19: 239700 | F19: =E19/'- 3 -'!$D19*100 -> 0.4699032552 | G19: =E19/'- 7 -'!$E19 -> 55.17955801 | H19: 657500 | I19: =H19/'- 3 -'!$D19*100 -> 1.288950314 | J19: =H19/'- 7 -'!$E19 -> 151.3581952
A20: HANOVER | B20: 761700 | C20: =B20/'- 3 -'!$D20*100 -> 0.8549761927 | D20: =B20/'- 7 -'!$E20 -> 95.91387018 | E20: 381900 | F20: =E20/'- 3 -'!$D20*100 -> 0.4286666771 | G20: =E20/'- 7 -'!$E20 -> 48.08915192 | H20: 1779100 | I20: =H20/'- 3 -'!$D20*100 -> 1.996964874 | J20: =H20/'- 7 -'!$E20 -> 224.0256878
A21: INTERLAKE | B21: 366000 | C21: =B21/'- 3 -'!$D21*100 -> 0.9689588987 | D21: =B21/'- 7 -'!$E21 -> 130.0639659 | E21: 152100 | F21: =E21/'- 3 -'!$D21*100 -> 0.402673903 | G21: =E21/'- 7 -'!$E21 -> 54.05117271 | H21: 434490 | I21: =H21/'- 3 -'!$D21*100 -> 1.150281289 | J21: =H21/'- 7 -'!$E21 -> 154.4029851
A22: KELSEY | B22: 176000 | C22: =B22/'- 3 -'!$D22*100 -> 0.8568996145 | D22: =B22/'- 7 -'!$E22 -> 123.3183857 | E22: 21780 | F22: =E22/'- 3 -'!$D22*100 -> 0.1060413273 | G22: =E22/'- 7 -'!$E22 -> 15.26065022 | H22: 2500 | I22: =H22/'- 3 -'!$D22*100 -> 0.01217186952 | J22: =H22/'- 7 -'!$E22 -> 1.751681614
A23: LAKESHORE | B23: 124000 | C23: =B23/'- 3 -'!$D23*100 -> 0.7569965405 | D23: =B23/'- 7 -'!$E23 -> 131.0089805 | E23: 90500 | F23: =E23/'- 3 -'!$D23*100 -> 0.5524853784 | G23: =E23/'- 7 -'!$E23 -> 95.61542525 | H23: 150000 | I23: =H23/'- 3 -'!$D23*100 -> 0.9157216216 | J23: =H23/'- 7 -'!$E23 -> 158.4786054
A24: LORD SELKIRK | B24: 482625 | C24: =B24/'- 3 -'!$D24*100 -> 0.8240289136 | D24: =B24/'- 7 -'!$E24 -> 127.173913 | E24: 474105 | F24: =E24/'- 3 -'!$D24*100 -> 0.8094819541 | G24: =E24/'- 7 -'!$E24 -> 124.9288538 | H24: 962500 | I24: =H24/'- 3 -'!$D24*100 -> 1.643362506 | J24: =H24/'- 7 -'!$E24 -> 253.6231884
A25: LOUIS RIEL | B25: 970285 | C25: =B25/'- 3 -'!$D25*100 -> 0.5043048094 | D25: =B25/'- 7 -'!$E25 -> 65.01072027 | E25: 1068800 | F25: =E25/'- 3 -'!$D25*100 -> 0.5555078974 | G25: =E25/'- 7 -'!$E25 -> 71.61139028 | H25: 2049021 | I25: =H25/'- 3 -'!$D25*100 -> 1.064976934 | J25: =H25/'- 7 -'!$E25 -> 137.2878392
A26: MOUNTAIN VIEW | B26: 398127 | C26: =B26/'- 3 -'!$D26*100 -> 0.9622907667 | D26: =B26/'- 7 -'!$E26 -> 132.4000665 | E26: 444000 | F26: =E26/'- 3 -'!$D26*100 -> 1.07316786 | G26: =E26/'- 7 -'!$E26 -> 147.6554706 | H26: 354099 | I26: =H26/'- 3 -'!$D26*100 -> 0.8558731214 | J26: =H26/'- 7 -'!$E26 -> 117.7582308
A27: MYSTERY LAKE | B27: 159875 | C27: =B27/'- 3 -'!$D27*100 -> 0.3811073087 | D27: =B27/'- 7 -'!$E27 -> 53.50568942 | E27: 220600 | F27: =E27/'- 3 -'!$D27*100 -> 0.525862532 | G27: =E27/'- 7 -'!$E27 -> 73.82864793 | H27: 152800 | I27: =H27/'- 3 -'!$D27*100 -> 0.3642420439 | J27: =H27/'- 7 -'!$E27 -> 51.13788487
A28: PARK WEST | B28: 237863 | C28: =B28/'- 3 -'!$D28*100 -> 0.8261954492 | D28: =B28/'- 7 -'!$E28 -> 118.5462248 | E28: 278525 | F28: =E28/'- 3 -'!$D28*100 -> 0.9674311998 | G28: =E28/'- 7 -'!$E28 -> 138.8113631 | H28: 264060 | I28: =H28/'- 3 -'!$D28*100 -> 0.9171883408 | J28: =H28/'- 7 -'!$E28 -> 131.6022925
A29: PEMBINA TRAILS | B29: 1059004 | C29: =B29/'- 3 -'!$D29*100 -> 0.6041717841 | D29: =B29/'- 7 -'!$E29 -> 76.37966102 | E29: 1254150 | F29: =E29/'- 3 -'!$D29*100 -> 0.7155044203 | G29: =E29/'- 7 -'!$E29 -> 90.45438154 | H29: 1972000 | I29: =H29/'- 3 -'!$D29*100 -> 1.125044625 | J29: =H29/'- 7 -'!$E29 -> 142.2286332
A30: PINE CREEK | B30: 135685 | C30: =B30/'- 3 -'!$D30*100 -> 0.8804719644 | D30: =B30/'- 7 -'!$E30 -> 128.9168646 | E30: 128090 | F30: =E30/'- 3 -'!$D30*100 -> 0.8311873377 | G30: =E30/'- 7 -'!$E30 -> 121.7007126 | H30: 127579 | I30: =H30/'- 3 -'!$D30*100 -> 0.8278714135 | J30: =H30/'- 7 -'!$E30 -> 121.2152019
A31: PORTAGE LA PRAIRIE | B31: 284000 | C31: =B31/'- 3 -'!$D31*100 -> 0.711431899 | D31: =B31/'- 7 -'!$E31 -> 85.11913682 | E31: 182800 | F31: =E31/'- 3 -'!$D31*100 -> 0.4579216589 | G31: =E31/'- 7 -'!$E31 -> 54.78795145 | H31: 275300 | I31: =H31/'- 3 -'!$D31*100 -> 0.6896380345 | J31: =H31/'- 7 -'!$E31 -> 82.51161397
A32: PRAIRIE ROSE | B32: 230834 | C32: =B32/'- 3 -'!$D32*100 -> 0.738567055 | D32: =B32/'- 7 -'!$E32 -> 103.4434237 | E32: 185360 | F32: =E32/'- 3 -'!$D32*100 -> 0.5930702986 | G32: =E32/'- 7 -'!$E32 -> 83.06520278 | H32: 269517 | I32: =H32/'- 3 -'!$D32*100 -> 0.8623356046 | J32: =H32/'- 7 -'!$E32 -> 120.7784002
A33: PRAIRIE SPIRIT | B33: 367475 | C33: =B33/'- 3 -'!$D33*100 -> 1.285823017 | D33: =B33/'- 7 -'!$E33 -> 181.3169191 | E33: 291650 | F33: =E33/'- 3 -'!$D33*100 -> 1.020505566 | G33: =E33/'- 7 -'!$E33 -> 143.9038832 | H33: 174950 | I33: =H33/'- 3 -'!$D33*100 -> 0.6121633766 | J33: =H33/'- 7 -'!$E33 -> 86.32259338
A34: RED RIVER VALLEY | B34: 332470 | C34: =B34/'- 3 -'!$D34*100 -> 1.049989738 | D34: =B34/'- 7 -'!$E34 -> 148.8893865 | E34: 258413 | F34: =E34/'- 3 -'!$D34*100 -> 0.8161067106 | G34: =E34/'- 7 -'!$E34 -> 115.7245858 | H34: 187764 | I34: =H34/'- 3 -'!$D34*100 -> 0.5929866547 | J34: =H34/'- 7 -'!$E34 -> 84.08598298
A35: RIVER EAST TRANSCONA | B35: 804000 | C35: =B35/'- 3 -'!$D35*100 -> 0.4143016027 | D35: =B35/'- 7 -'!$E35 -> 49.37058643 | E35: 791250 | F35: =E35/'- 3 -'!$D35*100 -> 0.4077315213 | G35: =E35/'- 7 -'!$E35 -> 48.58765735 | H35: 1796450 | I35: =H35/'- 3 -'!$D35*100 -> 0.9257115848 | J35: =H35/'- 7 -'!$E35 -> 110.3131716
A36: ROLLING RIVER | B36: 197900 | C36: =B36/'- 3 -'!$D36*100 -> 0.8187859874 | D36: =B36/'- 7 -'!$E36 -> 115.1585685 | E36: 346575 | F36: =E36/'- 3 -'!$D36*100 -> 1.433909821 | G36: =E36/'- 7 -'!$E36 -> 201.6729706 | H36: 222500 | I36: =H36/'- 3 -'!$D36*100 -> 0.9205653471 | J36: =H36/'- 7 -'!$E36 -> 129.4733779
A37: SEINE RIVER | B37: 311000 | C37: =B37/'- 3 -'!$D37*100 -> 0.5746531756 | D37: =B37/'- 7 -'!$E37 -> 71.7085543 | E37: 637200 | F37: =E37/'- 3 -'!$D37*100 -> 1.177392294 | G37: =E37/'- 7 -'!$E37 -> 146.9218354 | H37: 626400 | I37: =H37/'- 3 -'!$D37*100 -> 1.157436493 | J37: =H37/'- 7 -'!$E37 -> 144.4316348
A38: SEVEN OAKS | B38: 367120 | C38: =B38/'- 3 -'!$D38*100 -> 0.2477214712 | D38: =B38/'- 7 -'!$E38 -> 32.00809095 | E38: 615170 | F38: =E38/'- 3 -'!$D38*100 -> 0.4150981081 | G38: =E38/'- 7 -'!$E38 -> 53.63482597 | H38: 1348400 | I38: =H38/'- 3 -'!$D38*100 -> 0.9098595332 | J38: =H38/'- 7 -'!$E38 -> 117.562949
A39: SOUTHWEST HORIZON | B39: 180000 | C39: =B39/'- 3 -'!$D39*100 -> 0.7697933105 | D39: =B39/'- 7 -'!$E39 -> 119.760479 | E39: 155000 | F39: =E39/'- 3 -'!$D39*100 -> 0.6628775729 | G39: =E39/'- 7 -'!$E39 -> 103.1270792 | H39: 89000 | I39: =H39/'- 3 -'!$D39*100 -> 0.3806200257 | J39: =H39/'- 7 -'!$E39 -> 59.21490353
A40: ST. JAMES-ASSINIBOIA | B40: 704276 | C40: =B40/'- 3 -'!$D40*100 -> 0.6459602404 | D40: =B40/'- 7 -'!$E40 -> 84.26369945 | E40: 593287 | F40: =E40/'- 3 -'!$D40*100 -> 0.5441613986 | G40: =E40/'- 7 -'!$E40 -> 70.98432639 | H40: 907686 | I40: =H40/'- 3 -'!$D40*100 -> 0.8325273995 | J40: =H40/'- 7 -'!$E40 -> 108.6008615
A41: SUNRISE | B41: 393238 | C41: =B41/'- 3 -'!$D41*100 -> 0.6034885912 | D41: =B41/'- 7 -'!$E41 -> 88.46749156 | E41: 643895 | F41: =E41/'- 3 -'!$D41*100 -> 0.9881631136 | G41: =E41/'- 7 -'!$E41 -> 144.8582677 | H41: 255238 | I41: =H41/'- 3 -'!$D41*100 -> 0.3917048227 | J41: =H41/'- 7 -'!$E41 -> 57.42137233
A42: SWAN VALLEY | B42: 191924 | C42: =B42/'- 3 -'!$D42*100 -> 0.902015487 | D42: =B42/'- 7 -'!$E42 -> 139.4289866 | E42: 233145 | F42: =E42/'- 3 -'!$D42*100 -> 1.095748321 | G42: =E42/'- 7 -'!$E42 -> 169.375227 | H42: 104400 | I42: =H42/'- 3 -'!$D42*100 -> 0.4906651427 | J42: =H42/'- 7 -'!$E42 -> 75.84453324
A43: TURTLE MOUNTAIN | B43: 55730 | C43: =B43/'- 3 -'!$D43*100 -> 0.4019344203 | D43: =B43/'- 7 -'!$E43 -> 56.03821016 | E43: 92230 | F43: =E43/'- 3 -'!$D43*100 -> 0.6651787472 | G43: =E43/'- 7 -'!$E43 -> 92.74007039 | H43: 141831 | I43: =H43/'- 3 -'!$D43*100 -> 1.022909757 | J43: =H43/'- 7 -'!$E43 -> 142.6153846
A44: TURTLE RIVER | B44: 124254 | C44: =B44/'- 3 -'!$D44*100 -> 1.092340552 | D44: =B44/'- 7 -'!$E44 -> 177.6325947 | E44: 86000 | F44: =E44/'- 3 -'!$D44*100 -> 0.7560423609 | G44: =E44/'- 7 -'!$E44 -> 122.9449607 | H44: 139825 | I44: =H44/'- 3 -'!$D44*100 -> 1.229228176 | J44: =H44/'- 7 -'!$E44 -> 199.8927806
A45: WESTERN | B45: 236583 | C45: =B45/'- 3 -'!$D45*100 -> 1.111127497 | D45: =B45/'- 7 -'!$E45 -> 126.8541555 | E45: 85990 | F45: =E45/'- 3 -'!$D45*100 -> 0.403857646 | G45: =E45/'- 7 -'!$E45 -> 46.10723861 | H45: 149650 | I45: =H45/'- 3 -'!$D45*100 -> 0.7028409899 | J45: =H45/'- 7 -'!$E45 -> 80.24128686
A46: WINNIPEG | B46: 1042700 | C46: =B46/'- 3 -'!$D46*100 -> 0.2525608818 | D46: =B46/'- 7 -'!$E46 -> 34.56368609 | E46: 1673100 | F46: =E46/'- 3 -'!$D46*100 -> 0.4052552138 | G46: =E46/'- 7 -'!$E46 -> 55.4603464 | H46: 2833800 | I46: =H46/'- 3 -'!$D46*100 -> 0.6863978392 | J46: =H46/'- 7 -'!$E46 -> 93.93552664
A48: PROVINCE | B48: =SUM(B11:B46) -> 13488194 | C48: =B48/'- 3 -'!$D48*100 -> 0.5512752208 | D48: =B48/'- 7 -'!$E48 -> 74.73086913 | E48: =SUM(E11:E46) -> 13700394 | F48: =E48/'- 3 -'!$D48*100 -> 0.5599480351 | G48: =E48/'- 7 -'!$E48 -> 75.90655584 | H48: =SUM(H11:H46) -> 22544334 | I48: =H48/'- 3 -'!$D48*100 -> 0.9214082111 | J48: =H48/'- 7 -'!$E48 -> 124.9060974
A50: WHITESHELL | B50: 0 | C50: =B50/'- 3 -'!$D50*100 -> 0 | D50: =B50/'- 7 -'!$E50 -> 0 | E50: 55000 | F50: =E50/'- 3 -'!$D50*100 -> 1.522387258 | G50: =E50/'- 7 -'!$E50 -> 328.358209 | H50: 75000 | I50: =H50/'- 3 -'!$D50*100 -> 2.075982625 | J50: =H50/'- 7 -'!$E50 -> 447.761194
A51: MITT | B51: 0 | C51: =B51/'- 3 -'!$D51*100 -> 0 | D51: =B51/'- 7 -'!$E51 -> 0 | E51: 307800 | F51: =E51/'- 3 -'!$D51*100 -> 0.9267899753 | G51: =E51/'- 7 -'!$E51 -> 219.2307692 | H51: 78500 | I51: =H51/'- 3 -'!$D51*100 -> 0.2363645649 | J51: =H51/'- 7 -'!$E51 -> 55.91168091
A53: (1) Excludes information technology expenses in Function 300 (Adult Learning Centres) and Function 400 (Community Education and Services) and Management Information Services in Function 500. Total expenses for Management Information Services are included on page 38 and form part of total Information Technology Expenses.

Sheet - 38 -
B2: =+'- 37 -'!B2 -> ANALYSIS OF INFORMATION TECHNOLOGY EXPENSES
B3: =OPYEAR -> OPERATING FUND 2019/2020 BUDGET
B5: INFORMATION TECHNOLOGY EXPENSES (1)
B6: MANAGEMENT INFORMATION SERVICES (2)
E7: TOTAL
D8: PER PUPIL | G8: PER PUPIL
A9: DIVISION / DISTRICT | B9: AMOUNT | C9: % | E9: AMOUNT | F9: %
A11: BEAUTIFUL PLAINS | B11: ='- 26 -'!B11 -> 13200 | C11: ='- 26 -'!C11 -> 0.0634029791 | D11: ='- 26 -'!D11 -> 7.327227311 | E11: =SUM('- 37 -'!B11,'- 37 -'!E11,'- 37 -'!H11,B11) -> 567111 | F11: =E11/'- 3 -'!D11*100 -> 2.723979309 | G11: =E11/'- 7 -'!E11 -> 314.7993339
A12: BORDER LAND | B12: ='- 26 -'!B12 -> 64520 | C12: ='- 26 -'!C12 -> 0.1851085242 | D12: ='- 26 -'!D12 -> 30.16983391 | E12: =SUM('- 37 -'!B12,'- 37 -'!E12,'- 37 -'!H12,B12) -> 1221419 | F12: =E12/'- 3 -'!D12*100 -> 3.504263306 | G12: =E12/'- 7 -'!E12 -> 571.1408611
A13: BRANDON | B13: ='- 26 -'!B13 -> 336600 | C13: ='- 26 -'!C13 -> 0.3184737482 | D13: ='- 26 -'!D13 -> 38.80786303 | E13: =SUM('- 37 -'!B13,'- 37 -'!E13,'- 37 -'!H13,B13) -> 2473800 | F13: =E13/'- 3 -'!D13*100 -> 2.340583358 | G13: =E13/'- 7 -'!E13 -> 285.2135816
A14: DSFM | B14: ='- 26 -'!B14 -> 126508 | C14: ='- 26 -'!C14 -> 0.1324636769 | D14: ='- 26 -'!D14 -> 21.89477328 | E14: =SUM('- 37 -'!B14,'- 37 -'!E14,'- 37 -'!H14,B14) -> 1797303 | F14: =E14/'- 3 -'!D14*100 -> 1.881915482 | G14: =E14/'- 7 -'!E14 -> 311.0597092
A15: EVERGREEN | B15: ='- 26 -'!B15 -> 57000 | C15: ='- 26 -'!C15 -> 0.2711572205 | D15: ='- 26 -'!D15 -> 40.65620542 | E15: =SUM('- 37 -'!B15,'- 37 -'!E15,'- 37 -'!H15,B15) -> 461500 | F15: =E15/'- 3 -'!D15*100 -> 2.195422057 | G15: =E15/'- 7 -'!E15 -> 329.1726106
A16: FLIN FLON | B16: ='- 26 -'!B16 -> 35676 | C16: ='- 26 -'!C16 -> 0.2392227072 | D16: ='- 26 -'!D16 -> 37.9733901 | E16: =SUM('- 37 -'!B16,'- 37 -'!E16,'- 37 -'!H16,B16) -> 271894 | F16: =E16/'- 3 -'!D16*100 -> 1.823164558 | G16: =E16/'- 7 -'!E16 -> 289.4028739
A17: FORT LA BOSSE | B17: ='- 26 -'!B17 -> 84140 | C17: ='- 26 -'!C17 -> 0.4490554971 | D17: ='- 26 -'!D17 -> 58.53217391 | E17: =SUM('- 37 -'!B17,'- 37 -'!E17,'- 37 -'!H17,B17) -> 494305 | F17: =E17/'- 3 -'!D17*100 -> 2.638107648 | G17: =E17/'- 7 -'!E17 -> 343.8643478
A18: FRONTIER | B18: ='- 26 -'!B18 -> 667254 | C18: ='- 26 -'!C18 -> 0.4891253374 | D18: ='- 26 -'!D18 -> 108.3081468 | E18: =SUM('- 37 -'!B18,'- 37 -'!E18,'- 37 -'!H18,B18) -> 2602145 | F18: =E18/'- 3 -'!D18*100 -> 1.907482085 | G18: =E18/'- 7 -'!E18 -> 422.3781388
A19: GARDEN VALLEY | B19: ='- 26 -'!B19 -> 172300 | C19: ='- 26 -'!C19 -> 0.3377735956 | D19: ='- 26 -'!D19 -> 39.66390424 | E19: =SUM('- 37 -'!B19,'- 37 -'!E19,'- 37 -'!H19,B19) -> 1549500 | F19: =E19/'- 3 -'!D19*100 -> 3.037609904 | G19: =E19/'- 7 -'!E19 -> 356.698895
A20: HANOVER | B20: ='- 26 -'!B20 -> 106600 | C20: ='- 26 -'!C20 -> 0.1196540136 | D20: ='- 26 -'!D20 -> 13.42315683 | E20: =SUM('- 37 -'!B20,'- 37 -'!E20,'- 37 -'!H20,B20) -> 3029300 | F20: =E20/'- 3 -'!D20*100 -> 3.400261757 | G20: =E20/'- 7 -'!E20 -> 381.4518668
A21: INTERLAKE | B21: ='- 26 -'!B21 -> 42000 | C21: ='- 26 -'!C21 -> 0.1111920048 | D21: ='- 26 -'!D21 -> 14.92537313 | E21: =SUM('- 37 -'!B21,'- 37 -'!E21,'- 37 -'!H21,B21) -> 994590 | F21: =E21/'- 3 -'!D21*100 -> 2.633106096 | G21: =E21/'- 7 -'!E21 -> 353.4434968
A22: KELSEY | B22: ='- 26 -'!B22 -> 75000 | C22: ='- 26 -'!C22 -> 0.3651560857 | D22: ='- 26 -'!D22 -> 52.55044843 | E22: =SUM('- 37 -'!B22,'- 37 -'!E22,'- 37 -'!H22,B22) -> 275280 | F22: =E22/'- 3 -'!D22*100 -> 1.340268897 | G22: =E22/'- 7 -'!E22 -> 192.8811659
A23: LAKESHORE | B23: ='- 26 -'!B23 -> 20000 | C23: ='- 26 -'!C23 -> 0.1220962162 | D23: ='- 26 -'!D23 -> 21.13048072 | E23: =SUM('- 37 -'!B23,'- 37 -'!E23,'- 37 -'!H23,B23) -> 384500 | F23: =E23/'- 3 -'!D23*100 -> 2.347299757 | G23: =E23/'- 7 -'!E23 -> 406.2334918
A24: LORD SELKIRK | B24: ='- 26 -'!B24 -> 160010 | C24: ='- 26 -'!C24 -> 0.2731994125 | D24: ='- 26 -'!D24 -> 42.16337286 | E24: =SUM('- 37 -'!B24,'- 37 -'!E24,'- 37 -'!H24,B24) -> 2079240 | F24: =E24/'- 3 -'!D24*100 -> 3.550072786 | G24: =E24/'- 7 -'!E24 -> 547.8893281
A25: LOUIS RIEL | B25: ='- 26 -'!B25 -> 898669 | C25: ='- 26 -'!C25 -> 0.4670824539 | D25: ='- 26 -'!D25 -> 60.21232831 | E25: =SUM('- 37 -'!B25,'- 37 -'!E25,'- 37 -'!H25,B25) -> 4986775 | F25: =E25/'- 3 -'!D25*100 -> 2.591872095 | G25: =E25/'- 7 -'!E25 -> 334.1222781
